{"text_format":"1","workbook":"xlsx","n_sheets":4,"sheets":["Unique List","data","cal formula","charts"],"not_rendered":{"charts":3,"images":1,"macros":1,"external_links":0,"defined_names":31,"comments":0,"pivot_tables":0},"unopened":[],"bounds":{"document_bytes":16777216,"sheet_cells":100000,"rows_first":2000,"rows_last":500,"rows_between":2000,"halvings":0,"cell_chars":16384,"cell_head_chars":4096},"cells_cut":0,"cells_raw":0,"read":"whole","date_system":"1900"}

{"sheet":"Unique List","index":0,"n_rows":18,"n_cols":13,"rows_kept":18,"cut":false,"hidden":true,"merged":[]}
["Department",null,"Gender",null,"Band",null,"Designation",null,"Physical Location",null,"Reason for Leaving",null,"Status"]
["Finance & Accounts",null,"Male",null,"GRD 03",null,"Assistant Manager ",null,"Bangalore Branch",null,"Personal Reasons",null,"Active"]
["Purchase",null,"Female",null,"GRD 05",null,"Lead",null,"Mumbai Branch",null,"Retrenchment",null,"Passive"]
["Servicing",null,null,null,"GRD 04",null,"Senior Manager",null,"Kolkata Branch",null,"Involuntary Resignation"]
["Information Technology",null,null,null,"GRD 06",null,"Manager",null,"Gurgaon Branch",null,"Growth Prospects"]
["Supply Chain",null,null,null,"GRD 02",null,"Vice President ",null,"Pune Branch",null,"Health Issues"]
["Operations",null,null,null,"GRD 01",null,"Senior Executive ",null,"Delhi Branch",null,"Absconding"]
["Sales",null,null,null,null,null,"Associate",null,"Noida Branch",null,"Terminated"]
["Human Resource",null,null,null,null,null,"Officer",null,"Chennai Branch",null,"Transfer"]
["Marketing",null,null,null,null,null,"Management Trainee",null,"Hyderabad Branch",null,"Terminated "]
["Customer Service",null,null,null,null,null,"Management Trainee ",null,"Goa Branch"]
["All",null,null,null,null,null,null,null,"All"]
[]
[]
["Department",null,null,null,"Location","location_unique"]
["Gender",null,null,null,"Department","department_unique"]
["Band"]
["Designation"]

{"sheet":"data","index":1,"n_rows":251,"n_cols":11,"rows_kept":251,"cut":false,"hidden":true,"merged":[]}
["Emp code","Full Name","Gender","Department","Band","Designation","DOJ","Physical Location","Row No","Search Criteria - Department","Search Criteria - Department1"]
[89219,"Sample M1","Male","Finance & Accounts","GRD 03","Assistant Manager ","2007-05-02","Bangalore Branch",{"$f":"ROWS($D$2:D2)","v":1},{"$f":"IF(ISNUMBER(SEARCH('cal formula'!$I$8,Department,1)),data!$I2,\"\")","v":""},{"$f":"IFERROR(SMALL($J$2:$J$251,ROWS($D$2:D2)),\"\")","v":3}]
[90172,"Sample M2","Male","Servicing","GRD 05","Lead","2007-05-05","Bangalore Branch",{"$f":"ROWS($D$2:D3)","v":2},{"$f":"IF(ISNUMBER(SEARCH('cal formula'!$I$8,Department,1)),data!$I3,\"\")","v":""},{"$f":"IFERROR(SMALL($J$2:$J$251,ROWS($D$2:D3)),\"\")","v":6}]
[89220,"Sample F3","Female","Information Technology","GRD 05","Lead","2007-05-05","Kolkata Branch",{"$f":"ROWS($D$2:D4)","v":3},{"$f":"IF(ISNUMBER(SEARCH('cal formula'!$I$8,Department,1)),data!$I4,\"\")","v":3},{"$f":"IFERROR(SMALL($J$2:$J$251,ROWS($D$2:D4)),\"\")","v":30}]
[90046,"Sample F4","Female","Purchase","GRD 05","Senior Manager","2007-07-25","Mumbai Branch",{"$f":"ROWS($D$2:D5)","v":4},{"$f":"IF(ISNUMBER(SEARCH('cal formula'!$I$8,Department,1)),data!$I5,\"\")","v":""},{"$f":"IFERROR(SMALL($J$2:$J$251,ROWS($D$2:D5)),\"\")","v":38}]
[89812,"Sample M21","Male","Purchase","GRD 01","Associate","2007-11-15","Hyderabad Branch",{"$f":"ROWS($D$2:D6)","v":5},{"$f":"IF(ISNUMBER(SEARCH('cal formula'!$I$8,Department,1)),data!$I6,\"\")","v":""},{"$f":"IFERROR(SMALL($J$2:$J$251,ROWS($D$2:D6)),\"\")","v":46}]
[89254,"Sample M31","Male","Information Technology","GRD 04","Manager","2008-05-07","Kolkata Branch",{"$f":"ROWS($D$2:D7)","v":6},{"$f":"IF(ISNUMBER(SEARCH('cal formula'!$I$8,Department,1)),data!$I7,\"\")","v":6},{"$f":"IFERROR(SMALL($J$2:$J$251,ROWS($D$2:D7)),\"\")","v":55}]
[89572,"Sample M34","Male","Purchase","GRD 05","Senior Manager","2008-06-15","Bangalore Branch",{"$f":"ROWS($D$2:D8)","v":7},{"$f":"IF(ISNUMBER(SEARCH('cal formula'!$I$8,Department,1)),data!$I8,\"\")","v":""},{"$f":"IFERROR(SMALL($J$2:$J$251,ROWS($D$2:D8)),\"\")","v":64}]
[90011,"Sample M43","Male","Purchase","GRD 05","Senior Manager","2008-08-27","Mumbai Branch",{"$f":"ROWS($D$2:D9)","v":8},{"$f":"IF(ISNUMBER(SEARCH('cal formula'!$I$8,Department,1)),data!$I9,\"\")","v":""},{"$f":"IFERROR(SMALL($J$2:$J$251,ROWS($D$2:D9)),\"\")","v":78}]
[89804,"Sample M44","Male","Sales","GRD 02","Senior Executive ","2008-09-27","Mumbai Branch",{"$f":"ROWS($D$2:D10)","v":9},{"$f":"IF(ISNUMBER(SEARCH('cal formula'!$I$8,Department,1)),data!$I10,\"\")","v":""},{"$f":"IFERROR(SMALL($J$2:$J$251,ROWS($D$2:D10)),\"\")","v":109}]
[89275,"Sample M45","Male","Operations","GRD 01","Associate","2008-10-02","Pune Branch",{"$f":"ROWS($D$2:D11)","v":10},{"$f":"IF(ISNUMBER(SEARCH('cal formula'!$I$8,Department,1)),data!$I11,\"\")","v":""},{"$f":"IFERROR(SMALL($J$2:$J$251,ROWS($D$2:D11)),\"\")","v":114}]
[89625,"Sample M46","Male","Finance & Accounts","GRD 01","Associate","2008-10-02","Bangalore Branch",{"$f":"ROWS($D$2:D12)","v":11},{"$f":"IF(ISNUMBER(SEARCH('cal formula'!$I$8,Department,1)),data!$I12,\"\")","v":""},{"$f":"IFERROR(SMALL($J$2:$J$251,ROWS($D$2:D12)),\"\")","v":120}]
[90082,"Sample M47","Male","Human Resource","GRD 05","Senior Manager","2008-10-08","Pune Branch",{"$f":"ROWS($D$2:D13)","v":12},{"$f":"IF(ISNUMBER(SEARCH('cal formula'!$I$8,Department,1)),data!$I13,\"\")","v":""},{"$f":"IFERROR(SMALL($J$2:$J$251,ROWS($D$2:D13)),\"\")","v":149}]
[89472,"Sample M49","Male","Servicing","GRD 05","Lead","2008-11-14","Bangalore Branch",{"$f":"ROWS($D$2:D14)","v":13},{"$f":"IF(ISNUMBER(SEARCH('cal formula'!$I$8,Department,1)),data!$I14,\"\")","v":""},{"$f":"IFERROR(SMALL($J$2:$J$251,ROWS($D$2:D14)),\"\")","v":150}]
[90015,"Sample F19","Female","Operations","GRD 01","Associate","2008-12-16","Kolkata Branch",{"$f":"ROWS($D$2:D15)","v":14},{"$f":"IF(ISNUMBER(SEARCH('cal formula'!$I$8,Department,1)),data!$I15,\"\")","v":""},{"$f":"IFERROR(SMALL($J$2:$J$251,ROWS($D$2:D15)),\"\")","v":179}]
[89296,"Sample M54","Male","Sales","GRD 05","Lead","2009-02-13","Kolkata Branch",{"$f":"ROWS($D$2:D16)","v":15},{"$f":"IF(ISNUMBER(SEARCH('cal formula'!$I$8,Department,1)),data!$I16,\"\")","v":""},{"$f":"IFERROR(SMALL($J$2:$J$251,ROWS($D$2:D16)),\"\")","v":211}]
[89306,"Sample M55","Male","Purchase","GRD 02","Senior Executive ","2009-05-05","Hyderabad Branch",{"$f":"ROWS($D$2:D17)","v":16},{"$f":"IF(ISNUMBER(SEARCH('cal formula'!$I$8,Department,1)),data!$I17,\"\")","v":""},{"$f":"IFERROR(SMALL($J$2:$J$251,ROWS($D$2:D17)),\"\")","v":242}]
[90196,"Sample F23","Female","Finance & Accounts","GRD 02","Senior Executive ","2009-06-20","Noida Branch",{"$f":"ROWS($D$2:D18)","v":17},{"$f":"IF(ISNUMBER(SEARCH('cal formula'!$I$8,Department,1)),data!$I18,\"\")","v":""},{"$f":"IFERROR(SMALL($J$2:$J$251,ROWS($D$2:D18)),\"\")","v":""}]
[89314,"Sample M59","Male","Purchase","GRD 04","Manager","2009-07-02","Bangalore Branch",{"$f":"ROWS($D$2:D19)","v":18},{"$f":"IF(ISNUMBER(SEARCH('cal formula'!$I$8,Department,1)),data!$I19,\"\")","v":""},{"$f":"IFERROR(SMALL($J$2:$J$251,ROWS($D$2:D19)),\"\")","v":""}]
[89320,"Sample M60","Male","Finance & Accounts","GRD 03","Assistant Manager ","2009-07-05","Noida Branch",{"$f":"ROWS($D$2:D20)","v":19},{"$f":"IF(ISNUMBER(SEARCH('cal formula'!$I$8,Department,1)),data!$I20,\"\")","v":""},{"$f":"IFERROR(SMALL($J$2:$J$251,ROWS($D$2:D20)),\"\")","v":""}]
[89318,"Sample M61","Male","Human Resource","GRD 01","Associate","2009-07-16","Pune Branch",{"$f":"ROWS($D$2:D21)","v":20},{"$f":"IF(ISNUMBER(SEARCH('cal formula'!$I$8,Department,1)),data!$I21,\"\")","v":""},{"$f":"IFERROR(SMALL($J$2:$J$251,ROWS($D$2:D21)),\"\")","v":""}]
[89999,"Sample M67","Male","Purchase","GRD 05","Senior Manager","2009-09-09","Mumbai Branch",{"$f":"ROWS($D$2:D22)","v":21},{"$f":"IF(ISNUMBER(SEARCH('cal formula'!$I$8,Department,1)),data!$I22,\"\")","v":""},{"$f":"IFERROR(SMALL($J$2:$J$251,ROWS($D$2:D22)),\"\")","v":""}]
[89742,"Sample M71","Male","Purchase","GRD 02","Senior Executive ","2009-10-01","Hyderabad Branch",{"$f":"ROWS($D$2:D23)","v":22},{"$f":"IF(ISNUMBER(SEARCH('cal formula'!$I$8,Department,1)),data!$I23,\"\")","v":""},{"$f":"IFERROR(SMALL($J$2:$J$251,ROWS($D$2:D23)),\"\")","v":""}]
[90047,"Sample M72","Male","Purchase","GRD 05","Senior Manager","2009-10-05","Mumbai Branch",{"$f":"ROWS($D$2:D24)","v":23},{"$f":"IF(ISNUMBER(SEARCH('cal formula'!$I$8,Department,1)),data!$I24,\"\")","v":""},{"$f":"IFERROR(SMALL($J$2:$J$251,ROWS($D$2:D24)),\"\")","v":""}]
[89868,"Sample M76","Male","Purchase","GRD 02","Senior Executive ","2009-11-20","Bangalore Branch",{"$f":"ROWS($D$2:D25)","v":24},{"$f":"IF(ISNUMBER(SEARCH('cal formula'!$I$8,Department,1)),data!$I25,\"\")","v":""},{"$f":"IFERROR(SMALL($J$2:$J$251,ROWS($D$2:D25)),\"\")","v":""}]
[89771,"Sample F28","Female","Supply Chain","GRD 02","Senior Executive ","2009-12-01","Delhi Branch",{"$f":"ROWS($D$2:D26)","v":25},{"$f":"IF(ISNUMBER(SEARCH('cal formula'!$I$8,Department,1)),data!$I26,\"\")","v":""},{"$f":"IFERROR(SMALL($J$2:$J$251,ROWS($D$2:D26)),\"\")","v":""}]
[89722,"Sample M85","Male","Purchase","GRD 02","Senior Executive ","2010-02-10","Mumbai Branch",{"$f":"ROWS($D$2:D27)","v":26},{"$f":"IF(ISNUMBER(SEARCH('cal formula'!$I$8,Department,1)),data!$I27,\"\")","v":""},{"$f":"IFERROR(SMALL($J$2:$J$251,ROWS($D$2:D27)),\"\")","v":""}]
[90246,"Sample M86","Male","Finance & Accounts","GRD 03","Assistant Manager ","2010-02-10","Noida Branch",{"$f":"ROWS($D$2:D28)","v":27},{"$f":"IF(ISNUMBER(SEARCH('cal formula'!$I$8,Department,1)),data!$I28,\"\")","v":""},{"$f":"IFERROR(SMALL($J$2:$J$251,ROWS($D$2:D28)),\"\")","v":""}]
[89450,"Sample M88","Male","Marketing","GRD 01","Associate","2010-02-15","Pune Branch",{"$f":"ROWS($D$2:D29)","v":28},{"$f":"IF(ISNUMBER(SEARCH('cal formula'!$I$8,Department,1)),data!$I29,\"\")","v":""},{"$f":"IFERROR(SMALL($J$2:$J$251,ROWS($D$2:D29)),\"\")","v":""}]
[90057,"Sample M92","Male","Customer Service","GRD 02","Senior Executive ","2010-03-16","Mumbai Branch",{"$f":"ROWS($D$2:D30)","v":29},{"$f":"IF(ISNUMBER(SEARCH('cal formula'!$I$8,Department,1)),data!$I30,\"\")","v":""},{"$f":"IFERROR(SMALL($J$2:$J$251,ROWS($D$2:D30)),\"\")","v":""}]
[89552,"Sample F36","Female","Information Technology","GRD 06","Vice President ","2010-04-14","Kolkata Branch",{"$f":"ROWS($D$2:D31)","v":30},{"$f":"IF(ISNUMBER(SEARCH('cal formula'!$I$8,Department,1)),data!$I31,\"\")","v":30},{"$f":"IFERROR(SMALL($J$2:$J$251,ROWS($D$2:D31)),\"\")","v":""}]
[89739,"Sample M96","Male","Purchase","GRD 02","Senior Executive ","2010-04-14","Hyderabad Branch",{"$f":"ROWS($D$2:D32)","v":31},{"$f":"IF(ISNUMBER(SEARCH('cal formula'!$I$8,Department,1)),data!$I32,\"\")","v":""},{"$f":"IFERROR(SMALL($J$2:$J$251,ROWS($D$2:D32)),\"\")","v":""}]
[89668,"Sample M97","Male","Customer Service","GRD 02","Senior Executive ","2010-04-15","Bangalore Branch",{"$f":"ROWS($D$2:D33)","v":32},{"$f":"IF(ISNUMBER(SEARCH('cal formula'!$I$8,Department,1)),data!$I33,\"\")","v":""},{"$f":"IFERROR(SMALL($J$2:$J$251,ROWS($D$2:D33)),\"\")","v":""}]
[89928,"Sample M101","Male","Purchase","GRD 01","Associate","2010-05-06","Mumbai Branch",{"$f":"ROWS($D$2:D34)","v":33},{"$f":"IF(ISNUMBER(SEARCH('cal formula'!$I$8,Department,1)),data!$I34,\"\")","v":""},{"$f":"IFERROR(SMALL($J$2:$J$251,ROWS($D$2:D34)),\"\")","v":""}]
[89394,"Sample M105","Male","Supply Chain","GRD 02","Senior Executive ","2010-05-21","Hyderabad Branch",{"$f":"ROWS($D$2:D35)","v":34},{"$f":"IF(ISNUMBER(SEARCH('cal formula'!$I$8,Department,1)),data!$I35,\"\")","v":""},{"$f":"IFERROR(SMALL($J$2:$J$251,ROWS($D$2:D35)),\"\")","v":""}]
[89398,"Sample F38","Female","Human Resource","GRD 02","Senior Executive ","2010-06-01","Hyderabad Branch",{"$f":"ROWS($D$2:D36)","v":35},{"$f":"IF(ISNUMBER(SEARCH('cal formula'!$I$8,Department,1)),data!$I36,\"\")","v":""},{"$f":"IFERROR(SMALL($J$2:$J$251,ROWS($D$2:D36)),\"\")","v":""}]
[89403,"Sample M108","Male","Supply Chain","GRD 02","Senior Executive ","2010-06-15","Hyderabad Branch",{"$f":"ROWS($D$2:D37)","v":36},{"$f":"IF(ISNUMBER(SEARCH('cal formula'!$I$8,Department,1)),data!$I37,\"\")","v":""},{"$f":"IFERROR(SMALL($J$2:$J$251,ROWS($D$2:D37)),\"\")","v":""}]
[89400,"Sample F41","Female","Purchase","GRD 05","Lead","2010-06-19","Hyderabad Branch",{"$f":"ROWS($D$2:D38)","v":37},{"$f":"IF(ISNUMBER(SEARCH('cal formula'!$I$8,Department,1)),data!$I38,\"\")","v":""},{"$f":"IFERROR(SMALL($J$2:$J$251,ROWS($D$2:D38)),\"\")","v":""}]
[89408,"Sample M110","Male","Information Technology","GRD 03","Assistant Manager ","2010-06-30","Mumbai Branch",{"$f":"ROWS($D$2:D39)","v":38},{"$f":"IF(ISNUMBER(SEARCH('cal formula'!$I$8,Department,1)),data!$I39,\"\")","v":38},{"$f":"IFERROR(SMALL($J$2:$J$251,ROWS($D$2:D39)),\"\")","v":""}]
[89358,"Sample F43","Female","Human Resource","GRD 01","Associate","2010-08-15","Hyderabad Branch",{"$f":"ROWS($D$2:D40)","v":39},{"$f":"IF(ISNUMBER(SEARCH('cal formula'!$I$8,Department,1)),data!$I40,\"\")","v":""},{"$f":"IFERROR(SMALL($J$2:$J$251,ROWS($D$2:D40)),\"\")","v":""}]
[90110,"Sample M122","Male","Purchase","GRD 05","Senior Manager","2010-09-17","Hyderabad Branch",{"$f":"ROWS($D$2:D41)","v":40},{"$f":"IF(ISNUMBER(SEARCH('cal formula'!$I$8,Department,1)),data!$I41,\"\")","v":""},{"$f":"IFERROR(SMALL($J$2:$J$251,ROWS($D$2:D41)),\"\")","v":""}]
[89971,"Sample F44","Female","Servicing","GRD 01","Associate","2010-10-07","Pune Branch",{"$f":"ROWS($D$2:D42)","v":41},{"$f":"IF(ISNUMBER(SEARCH('cal formula'!$I$8,Department,1)),data!$I42,\"\")","v":""},{"$f":"IFERROR(SMALL($J$2:$J$251,ROWS($D$2:D42)),\"\")","v":""}]
[89422,"Sample M127","Male","Servicing","GRD 05","Lead","2010-10-13","Bangalore Branch",{"$f":"ROWS($D$2:D43)","v":42},{"$f":"IF(ISNUMBER(SEARCH('cal formula'!$I$8,Department,1)),data!$I43,\"\")","v":""},{"$f":"IFERROR(SMALL($J$2:$J$251,ROWS($D$2:D43)),\"\")","v":""}]
[89540,"Sample M133","Male","Sales","GRD 04","Manager","2010-11-10","Bangalore Branch",{"$f":"ROWS($D$2:D44)","v":43},{"$f":"IF(ISNUMBER(SEARCH('cal formula'!$I$8,Department,1)),data!$I44,\"\")","v":""},{"$f":"IFERROR(SMALL($J$2:$J$251,ROWS($D$2:D44)),\"\")","v":""}]
[89710,"Sample M138","Male","Finance & Accounts","GRD 03","Assistant Manager ","2010-11-24","Hyderabad Branch",{"$f":"ROWS($D$2:D45)","v":44},{"$f":"IF(ISNUMBER(SEARCH('cal formula'!$I$8,Department,1)),data!$I45,\"\")","v":""},{"$f":"IFERROR(SMALL($J$2:$J$251,ROWS($D$2:D45)),\"\")","v":""}]
[89918,"Sample M144","Male","Purchase","GRD 03","Assistant Manager ","2010-12-10","Mumbai Branch",{"$f":"ROWS($D$2:D46)","v":45},{"$f":"IF(ISNUMBER(SEARCH('cal formula'!$I$8,Department,1)),data!$I46,\"\")","v":""},{"$f":"IFERROR(SMALL($J$2:$J$251,ROWS($D$2:D46)),\"\")","v":""}]
[89864,"Sample M146","Male","Information Technology","GRD 05","Senior Manager","2010-12-18","Noida Branch",{"$f":"ROWS($D$2:D47)","v":46},{"$f":"IF(ISNUMBER(SEARCH('cal formula'!$I$8,Department,1)),data!$I47,\"\")","v":46},{"$f":"IFERROR(SMALL($J$2:$J$251,ROWS($D$2:D47)),\"\")","v":""}]
[89879,"Sample M162","Male","Sales","GRD 04","Manager","2011-03-17","Hyderabad Branch",{"$f":"ROWS($D$2:D48)","v":47},{"$f":"IF(ISNUMBER(SEARCH('cal formula'!$I$8,Department,1)),data!$I48,\"\")","v":""},{"$f":"IFERROR(SMALL($J$2:$J$251,ROWS($D$2:D48)),\"\")","v":""}]
[89470,"Sample M163","Male","Purchase","GRD 03","Assistant Manager ","2011-03-31","Hyderabad Branch",{"$f":"ROWS($D$2:D49)","v":48},{"$f":"IF(ISNUMBER(SEARCH('cal formula'!$I$8,Department,1)),data!$I49,\"\")","v":""},{"$f":"IFERROR(SMALL($J$2:$J$251,ROWS($D$2:D49)),\"\")","v":""}]
[89469,"Sample M169","Male","Supply Chain","GRD 02","Senior Executive ","2011-04-14","Pune Branch",{"$f":"ROWS($D$2:D50)","v":49},{"$f":"IF(ISNUMBER(SEARCH('cal formula'!$I$8,Department,1)),data!$I50,\"\")","v":""},{"$f":"IFERROR(SMALL($J$2:$J$251,ROWS($D$2:D50)),\"\")","v":""}]
[90117,"Sample M177","Male","Purchase","GRD 02","Senior Executive ","2011-05-05","Hyderabad Branch",{"$f":"ROWS($D$2:D51)","v":50},{"$f":"IF(ISNUMBER(SEARCH('cal formula'!$I$8,Department,1)),data!$I51,\"\")","v":""},{"$f":"IFERROR(SMALL($J$2:$J$251,ROWS($D$2:D51)),\"\")","v":""}]
[90109,"Sample F65","Female","Servicing","GRD 01","Associate","2011-06-16","Bangalore Branch",{"$f":"ROWS($D$2:D52)","v":51},{"$f":"IF(ISNUMBER(SEARCH('cal formula'!$I$8,Department,1)),data!$I52,\"\")","v":""},{"$f":"IFERROR(SMALL($J$2:$J$251,ROWS($D$2:D52)),\"\")","v":""}]
[89474,"Sample F67","Female","Sales","GRD 06","Vice President ","2011-06-23","Mumbai Branch",{"$f":"ROWS($D$2:D53)","v":52},{"$f":"IF(ISNUMBER(SEARCH('cal formula'!$I$8,Department,1)),data!$I53,\"\")","v":""},{"$f":"IFERROR(SMALL($J$2:$J$251,ROWS($D$2:D53)),\"\")","v":""}]
[89854,"Sample M196","Male","Purchase","GRD 01","Associate","2011-09-08","Delhi Branch",{"$f":"ROWS($D$2:D54)","v":53},{"$f":"IF(ISNUMBER(SEARCH('cal formula'!$I$8,Department,1)),data!$I54,\"\")","v":""},{"$f":"IFERROR(SMALL($J$2:$J$251,ROWS($D$2:D54)),\"\")","v":""}]
[89353,"Sample F73","Female","Customer Service","GRD 02","Senior Executive ","2011-09-29","Noida Branch",{"$f":"ROWS($D$2:D55)","v":54},{"$f":"IF(ISNUMBER(SEARCH('cal formula'!$I$8,Department,1)),data!$I55,\"\")","v":""},{"$f":"IFERROR(SMALL($J$2:$J$251,ROWS($D$2:D55)),\"\")","v":""}]
[89288,"Sample M205","Male","Information Technology","GRD 03","Assistant Manager ","2011-11-15","Noida Branch",{"$f":"ROWS($D$2:D56)","v":55},{"$f":"IF(ISNUMBER(SEARCH('cal formula'!$I$8,Department,1)),data!$I56,\"\")","v":55},{"$f":"IFERROR(SMALL($J$2:$J$251,ROWS($D$2:D56)),\"\")","v":""}]
[89516,"Sample M216","Male","Marketing","GRD 04","Manager","2012-03-23","Pune Branch",{"$f":"ROWS($D$2:D57)","v":56},{"$f":"IF(ISNUMBER(SEARCH('cal formula'!$I$8,Department,1)),data!$I57,\"\")","v":""},{"$f":"IFERROR(SMALL($J$2:$J$251,ROWS($D$2:D57)),\"\")","v":""}]
[89270,"Sample M218","Male","Purchase","GRD 03","Assistant Manager ","2012-04-06","Delhi Branch",{"$f":"ROWS($D$2:D58)","v":57},{"$f":"IF(ISNUMBER(SEARCH('cal formula'!$I$8,Department,1)),data!$I58,\"\")","v":""},{"$f":"IFERROR(SMALL($J$2:$J$251,ROWS($D$2:D58)),\"\")","v":""}]
[89795,"Sample M222","Male","Human Resource","GRD 04","Manager","2012-05-05","Noida Branch",{"$f":"ROWS($D$2:D59)","v":58},{"$f":"IF(ISNUMBER(SEARCH('cal formula'!$I$8,Department,1)),data!$I59,\"\")","v":""},{"$f":"IFERROR(SMALL($J$2:$J$251,ROWS($D$2:D59)),\"\")","v":""}]
[89439,"Sample M234","Male","Servicing","GRD 05","Senior Manager","2012-07-25","Pune Branch",{"$f":"ROWS($D$2:D60)","v":59},{"$f":"IF(ISNUMBER(SEARCH('cal formula'!$I$8,Department,1)),data!$I60,\"\")","v":""},{"$f":"IFERROR(SMALL($J$2:$J$251,ROWS($D$2:D60)),\"\")","v":""}]
[89580,"Sample F95","Female","Purchase","GRD 03","Assistant Manager ","2012-08-01","Bangalore Branch",{"$f":"ROWS($D$2:D61)","v":60},{"$f":"IF(ISNUMBER(SEARCH('cal formula'!$I$8,Department,1)),data!$I61,\"\")","v":""},{"$f":"IFERROR(SMALL($J$2:$J$251,ROWS($D$2:D61)),\"\")","v":""}]
[89629,"Sample M241","Male","Human Resource","GRD 04","Manager","2012-08-22","Noida Branch",{"$f":"ROWS($D$2:D62)","v":61},{"$f":"IF(ISNUMBER(SEARCH('cal formula'!$I$8,Department,1)),data!$I62,\"\")","v":""},{"$f":"IFERROR(SMALL($J$2:$J$251,ROWS($D$2:D62)),\"\")","v":""}]
[89252,"Sample M243","Male","Customer Service","GRD 02","Senior Executive ","2012-09-05","Bangalore Branch",{"$f":"ROWS($D$2:D63)","v":62},{"$f":"IF(ISNUMBER(SEARCH('cal formula'!$I$8,Department,1)),data!$I63,\"\")","v":""},{"$f":"IFERROR(SMALL($J$2:$J$251,ROWS($D$2:D63)),\"\")","v":""}]
[89332,"Sample M245","Male","Servicing","GRD 03","Assistant Manager ","2012-09-19","Pune Branch",{"$f":"ROWS($D$2:D64)","v":63},{"$f":"IF(ISNUMBER(SEARCH('cal formula'!$I$8,Department,1)),data!$I64,\"\")","v":""},{"$f":"IFERROR(SMALL($J$2:$J$251,ROWS($D$2:D64)),\"\")","v":""}]
[89601,"Sample M252","Male","Information Technology","GRD 01","Associate","2012-10-08","Pune Branch",{"$f":"ROWS($D$2:D65)","v":64},{"$f":"IF(ISNUMBER(SEARCH('cal formula'!$I$8,Department,1)),data!$I65,\"\")","v":64},{"$f":"IFERROR(SMALL($J$2:$J$251,ROWS($D$2:D65)),\"\")","v":""}]
[90127,"Sample M258","Male","Marketing","GRD 01","Associate","2012-12-04","Bangalore Branch",{"$f":"ROWS($D$2:D66)","v":65},{"$f":"IF(ISNUMBER(SEARCH('cal formula'!$I$8,Department,1)),data!$I66,\"\")","v":""},{"$f":"IFERROR(SMALL($J$2:$J$251,ROWS($D$2:D66)),\"\")","v":""}]
[89682,"Sample M259","Male","Marketing","GRD 02","Senior Executive ","2012-12-04","Bangalore Branch",{"$f":"ROWS($D$2:D67)","v":66},{"$f":"IF(ISNUMBER(SEARCH('cal formula'!$I$8,Department,1)),data!$I67,\"\")","v":""},{"$f":"IFERROR(SMALL($J$2:$J$251,ROWS($D$2:D67)),\"\")","v":""}]
[89941,"Sample F104","Female","Marketing","GRD 02","Senior Executive ","2012-12-21","Bangalore Branch",{"$f":"ROWS($D$2:D68)","v":67},{"$f":"IF(ISNUMBER(SEARCH('cal formula'!$I$8,Department,1)),data!$I68,\"\")","v":""},{"$f":"IFERROR(SMALL($J$2:$J$251,ROWS($D$2:D68)),\"\")","v":""}]
[89414,"Sample M263","Male","Finance & Accounts","GRD 03","Assistant Manager ","2013-01-02","Chennai Branch",{"$f":"ROWS($D$2:D69)","v":68},{"$f":"IF(ISNUMBER(SEARCH('cal formula'!$I$8,Department,1)),data!$I69,\"\")","v":""},{"$f":"IFERROR(SMALL($J$2:$J$251,ROWS($D$2:D69)),\"\")","v":""}]
[89720,"Sample F105","Female","Operations","GRD 03","Assistant Manager ","2013-01-23","Bangalore Branch",{"$f":"ROWS($D$2:D70)","v":69},{"$f":"IF(ISNUMBER(SEARCH('cal formula'!$I$8,Department,1)),data!$I70,\"\")","v":""},{"$f":"IFERROR(SMALL($J$2:$J$251,ROWS($D$2:D70)),\"\")","v":""}]
[89997,"Sample F106","Female","Operations","GRD 03","Assistant Manager ","2013-02-02","Delhi Branch",{"$f":"ROWS($D$2:D71)","v":70},{"$f":"IF(ISNUMBER(SEARCH('cal formula'!$I$8,Department,1)),data!$I71,\"\")","v":""},{"$f":"IFERROR(SMALL($J$2:$J$251,ROWS($D$2:D71)),\"\")","v":""}]
[90280,"Sample M268","Male","Marketing","GRD 02","Senior Executive ","2013-02-05","Bangalore Branch",{"$f":"ROWS($D$2:D72)","v":71},{"$f":"IF(ISNUMBER(SEARCH('cal formula'!$I$8,Department,1)),data!$I72,\"\")","v":""},{"$f":"IFERROR(SMALL($J$2:$J$251,ROWS($D$2:D72)),\"\")","v":""}]
[89299,"Sample M269","Male","Operations","GRD 03","Assistant Manager ","2013-02-13","Delhi Branch",{"$f":"ROWS($D$2:D73)","v":72},{"$f":"IF(ISNUMBER(SEARCH('cal formula'!$I$8,Department,1)),data!$I73,\"\")","v":""},{"$f":"IFERROR(SMALL($J$2:$J$251,ROWS($D$2:D73)),\"\")","v":""}]
[89395,"Sample M270","Male","Operations","GRD 02","Senior Executive ","2013-02-14","Mumbai Branch",{"$f":"ROWS($D$2:D74)","v":73},{"$f":"IF(ISNUMBER(SEARCH('cal formula'!$I$8,Department,1)),data!$I74,\"\")","v":""},{"$f":"IFERROR(SMALL($J$2:$J$251,ROWS($D$2:D74)),\"\")","v":""}]
[89986,"Sample M273","Male","Purchase","GRD 03","Assistant Manager ","2013-04-06","Delhi Branch",{"$f":"ROWS($D$2:D75)","v":74},{"$f":"IF(ISNUMBER(SEARCH('cal formula'!$I$8,Department,1)),data!$I75,\"\")","v":""},{"$f":"IFERROR(SMALL($J$2:$J$251,ROWS($D$2:D75)),\"\")","v":""}]
[90108,"Sample M275","Male","Customer Service","GRD 02","Senior Executive ","2013-04-12","Bangalore Branch",{"$f":"ROWS($D$2:D76)","v":75},{"$f":"IF(ISNUMBER(SEARCH('cal formula'!$I$8,Department,1)),data!$I76,\"\")","v":""},{"$f":"IFERROR(SMALL($J$2:$J$251,ROWS($D$2:D76)),\"\")","v":""}]
[90067,"Sample F112","Female","Finance & Accounts","GRD 03","Assistant Manager ","2013-04-17","Gurgaon Branch",{"$f":"ROWS($D$2:D77)","v":76},{"$f":"IF(ISNUMBER(SEARCH('cal formula'!$I$8,Department,1)),data!$I77,\"\")","v":""},{"$f":"IFERROR(SMALL($J$2:$J$251,ROWS($D$2:D77)),\"\")","v":""}]
[90179,"Sample F113","Female","Supply Chain","GRD 02","Senior Executive ","2013-04-20","Hyderabad Branch",{"$f":"ROWS($D$2:D78)","v":77},{"$f":"IF(ISNUMBER(SEARCH('cal formula'!$I$8,Department,1)),data!$I78,\"\")","v":""},{"$f":"IFERROR(SMALL($J$2:$J$251,ROWS($D$2:D78)),\"\")","v":""}]
[89631,"Sample F114","Female","Information Technology","GRD 02","Senior Executive ","2013-04-23","Pune Branch",{"$f":"ROWS($D$2:D79)","v":78},{"$f":"IF(ISNUMBER(SEARCH('cal formula'!$I$8,Department,1)),data!$I79,\"\")","v":78},{"$f":"IFERROR(SMALL($J$2:$J$251,ROWS($D$2:D79)),\"\")","v":""}]
[89377,"Sample F115","Female","Finance & Accounts","GRD 03","Assistant Manager ","2013-05-15","Mumbai Branch",{"$f":"ROWS($D$2:D80)","v":79},{"$f":"IF(ISNUMBER(SEARCH('cal formula'!$I$8,Department,1)),data!$I80,\"\")","v":""},{"$f":"IFERROR(SMALL($J$2:$J$251,ROWS($D$2:D80)),\"\")","v":""}]
[89666,"Sample M280","Male","Sales","GRD 03","Assistant Manager ","2013-05-22","Bangalore Branch",{"$f":"ROWS($D$2:D81)","v":80},{"$f":"IF(ISNUMBER(SEARCH('cal formula'!$I$8,Department,1)),data!$I81,\"\")","v":""},{"$f":"IFERROR(SMALL($J$2:$J$251,ROWS($D$2:D81)),\"\")","v":""}]
[89345,"Sample M285","Male","Purchase","GRD 02","Senior Executive ","2013-06-28","Delhi Branch",{"$f":"ROWS($D$2:D82)","v":81},{"$f":"IF(ISNUMBER(SEARCH('cal formula'!$I$8,Department,1)),data!$I82,\"\")","v":""},{"$f":"IFERROR(SMALL($J$2:$J$251,ROWS($D$2:D82)),\"\")","v":""}]
[89333,"Sample M287","Male","Servicing","GRD 02","Senior Executive ","2013-07-04","Bangalore Branch",{"$f":"ROWS($D$2:D83)","v":82},{"$f":"IF(ISNUMBER(SEARCH('cal formula'!$I$8,Department,1)),data!$I83,\"\")","v":""},{"$f":"IFERROR(SMALL($J$2:$J$251,ROWS($D$2:D83)),\"\")","v":""}]
[90002,"Sample M288","Male","Servicing","GRD 05","Lead","2013-07-05","Mumbai Branch",{"$f":"ROWS($D$2:D84)","v":83},{"$f":"IF(ISNUMBER(SEARCH('cal formula'!$I$8,Department,1)),data!$I84,\"\")","v":""},{"$f":"IFERROR(SMALL($J$2:$J$251,ROWS($D$2:D84)),\"\")","v":""}]
[89464,"Sample M294","Male","Marketing","GRD 02","Senior Executive ","2013-07-16","Mumbai Branch",{"$f":"ROWS($D$2:D85)","v":84},{"$f":"IF(ISNUMBER(SEARCH('cal formula'!$I$8,Department,1)),data!$I85,\"\")","v":""},{"$f":"IFERROR(SMALL($J$2:$J$251,ROWS($D$2:D85)),\"\")","v":""}]
[89889,"Sample M296","Male","Purchase","GRD 04","Manager","2013-07-26","Bangalore Branch",{"$f":"ROWS($D$2:D86)","v":85},{"$f":"IF(ISNUMBER(SEARCH('cal formula'!$I$8,Department,1)),data!$I86,\"\")","v":""},{"$f":"IFERROR(SMALL($J$2:$J$251,ROWS($D$2:D86)),\"\")","v":""}]
[89251,"Sample F120","Female","Supply Chain","GRD 03","Assistant Manager ","2013-07-31","Delhi Branch",{"$f":"ROWS($D$2:D87)","v":86},{"$f":"IF(ISNUMBER(SEARCH('cal formula'!$I$8,Department,1)),data!$I87,\"\")","v":""},{"$f":"IFERROR(SMALL($J$2:$J$251,ROWS($D$2:D87)),\"\")","v":""}]
[89418,"Sample M297","Male","Supply Chain","GRD 03","Assistant Manager ","2013-07-31","Hyderabad Branch",{"$f":"ROWS($D$2:D88)","v":87},{"$f":"IF(ISNUMBER(SEARCH('cal formula'!$I$8,Department,1)),data!$I88,\"\")","v":""},{"$f":"IFERROR(SMALL($J$2:$J$251,ROWS($D$2:D88)),\"\")","v":""}]
[89717,"Sample F121","Female","Supply Chain","GRD 03","Assistant Manager ","2013-08-14","Mumbai Branch",{"$f":"ROWS($D$2:D89)","v":88},{"$f":"IF(ISNUMBER(SEARCH('cal formula'!$I$8,Department,1)),data!$I89,\"\")","v":""},{"$f":"IFERROR(SMALL($J$2:$J$251,ROWS($D$2:D89)),\"\")","v":""}]
[89293,"Sample M301","Male","Sales","GRD 03","Assistant Manager ","2013-08-28","Pune Branch",{"$f":"ROWS($D$2:D90)","v":89},{"$f":"IF(ISNUMBER(SEARCH('cal formula'!$I$8,Department,1)),data!$I90,\"\")","v":""},{"$f":"IFERROR(SMALL($J$2:$J$251,ROWS($D$2:D90)),\"\")","v":""}]
[89388,"Sample M302","Male","Supply Chain","GRD 04","Manager","2013-08-30","Pune Branch",{"$f":"ROWS($D$2:D91)","v":90},{"$f":"IF(ISNUMBER(SEARCH('cal formula'!$I$8,Department,1)),data!$I91,\"\")","v":""},{"$f":"IFERROR(SMALL($J$2:$J$251,ROWS($D$2:D91)),\"\")","v":""}]
[89960,"Sample M304","Male","Purchase","GRD 04","Manager","2013-09-04","Delhi Branch",{"$f":"ROWS($D$2:D92)","v":91},{"$f":"IF(ISNUMBER(SEARCH('cal formula'!$I$8,Department,1)),data!$I92,\"\")","v":""},{"$f":"IFERROR(SMALL($J$2:$J$251,ROWS($D$2:D92)),\"\")","v":""}]
[89575,"Sample M311","Male","Purchase","GRD 02","Senior Executive ","2013-10-05","Mumbai Branch",{"$f":"ROWS($D$2:D93)","v":92},{"$f":"IF(ISNUMBER(SEARCH('cal formula'!$I$8,Department,1)),data!$I93,\"\")","v":""},{"$f":"IFERROR(SMALL($J$2:$J$251,ROWS($D$2:D93)),\"\")","v":""}]
[90044,"Sample M313","Male","Purchase","GRD 03","Assistant Manager ","2013-10-16","Delhi Branch",{"$f":"ROWS($D$2:D94)","v":93},{"$f":"IF(ISNUMBER(SEARCH('cal formula'!$I$8,Department,1)),data!$I94,\"\")","v":""},{"$f":"IFERROR(SMALL($J$2:$J$251,ROWS($D$2:D94)),\"\")","v":""}]
[90028,"Sample M317","Male","Finance & Accounts","GRD 06","Vice President ","2013-11-06","Delhi Branch",{"$f":"ROWS($D$2:D95)","v":94},{"$f":"IF(ISNUMBER(SEARCH('cal formula'!$I$8,Department,1)),data!$I95,\"\")","v":""},{"$f":"IFERROR(SMALL($J$2:$J$251,ROWS($D$2:D95)),\"\")","v":""}]
[89838,"Sample M320","Male","Supply Chain","GRD 03","Assistant Manager ","2013-11-20","Chennai Branch",{"$f":"ROWS($D$2:D96)","v":95},{"$f":"IF(ISNUMBER(SEARCH('cal formula'!$I$8,Department,1)),data!$I96,\"\")","v":""},{"$f":"IFERROR(SMALL($J$2:$J$251,ROWS($D$2:D96)),\"\")","v":""}]
[89807,"Sample M321","Male","Purchase","GRD 03","Assistant Manager ","2013-11-21","Mumbai Branch",{"$f":"ROWS($D$2:D97)","v":96},{"$f":"IF(ISNUMBER(SEARCH('cal formula'!$I$8,Department,1)),data!$I97,\"\")","v":""},{"$f":"IFERROR(SMALL($J$2:$J$251,ROWS($D$2:D97)),\"\")","v":""}]
[89233,"Sample M322","Male","Supply Chain","GRD 02","Senior Executive ","2013-12-05","Hyderabad Branch",{"$f":"ROWS($D$2:D98)","v":97},{"$f":"IF(ISNUMBER(SEARCH('cal formula'!$I$8,Department,1)),data!$I98,\"\")","v":""},{"$f":"IFERROR(SMALL($J$2:$J$251,ROWS($D$2:D98)),\"\")","v":""}]
[89278,"Sample M324","Male","Sales","GRD 05","Lead","2013-12-18","Hyderabad Branch",{"$f":"ROWS($D$2:D99)","v":98},{"$f":"IF(ISNUMBER(SEARCH('cal formula'!$I$8,Department,1)),data!$I99,\"\")","v":""},{"$f":"IFERROR(SMALL($J$2:$J$251,ROWS($D$2:D99)),\"\")","v":""}]
[90070,"Sample M326","Male","Finance & Accounts","GRD 02","Senior Executive ","2014-01-14","Chennai Branch",{"$f":"ROWS($D$2:D100)","v":99},{"$f":"IF(ISNUMBER(SEARCH('cal formula'!$I$8,Department,1)),data!$I100,\"\")","v":""},{"$f":"IFERROR(SMALL($J$2:$J$251,ROWS($D$2:D100)),\"\")","v":""}]
[89344,"Sample F129","Female","Supply Chain","GRD 02","Senior Executive ","2014-01-21","Kolkata Branch",{"$f":"ROWS($D$2:D101)","v":100},{"$f":"IF(ISNUMBER(SEARCH('cal formula'!$I$8,Department,1)),data!$I101,\"\")","v":""},{"$f":"IFERROR(SMALL($J$2:$J$251,ROWS($D$2:D101)),\"\")","v":""}]
[89370,"Sample M329","Male","Sales","GRD 04","Manager","2014-01-31","Kolkata Branch",{"$f":"ROWS($D$2:D102)","v":101},{"$f":"IF(ISNUMBER(SEARCH('cal formula'!$I$8,Department,1)),data!$I102,\"\")","v":""},{"$f":"IFERROR(SMALL($J$2:$J$251,ROWS($D$2:D102)),\"\")","v":""}]
[89823,"Sample F131","Female","Human Resource","GRD 02","Senior Executive ","2014-01-31","Noida Branch",{"$f":"ROWS($D$2:D103)","v":102},{"$f":"IF(ISNUMBER(SEARCH('cal formula'!$I$8,Department,1)),data!$I103,\"\")","v":""},{"$f":"IFERROR(SMALL($J$2:$J$251,ROWS($D$2:D103)),\"\")","v":""}]
[89311,"Sample M330","Male","Sales","GRD 03","Assistant Manager ","2014-02-01","Kolkata Branch",{"$f":"ROWS($D$2:D104)","v":103},{"$f":"IF(ISNUMBER(SEARCH('cal formula'!$I$8,Department,1)),data!$I104,\"\")","v":""},{"$f":"IFERROR(SMALL($J$2:$J$251,ROWS($D$2:D104)),\"\")","v":""}]
[89355,"Sample F132","Female","Operations","GRD 02","Senior Executive ","2014-02-04","Kolkata Branch",{"$f":"ROWS($D$2:D105)","v":104},{"$f":"IF(ISNUMBER(SEARCH('cal formula'!$I$8,Department,1)),data!$I105,\"\")","v":""},{"$f":"IFERROR(SMALL($J$2:$J$251,ROWS($D$2:D105)),\"\")","v":""}]
[90033,"Sample M332","Male","Supply Chain","GRD 03","Assistant Manager ","2014-02-07","Delhi Branch",{"$f":"ROWS($D$2:D106)","v":105},{"$f":"IF(ISNUMBER(SEARCH('cal formula'!$I$8,Department,1)),data!$I106,\"\")","v":""},{"$f":"IFERROR(SMALL($J$2:$J$251,ROWS($D$2:D106)),\"\")","v":""}]
[89351,"Sample F133","Female","Purchase","GRD 05","Lead","2014-02-15","Mumbai Branch",{"$f":"ROWS($D$2:D107)","v":106},{"$f":"IF(ISNUMBER(SEARCH('cal formula'!$I$8,Department,1)),data!$I107,\"\")","v":""},{"$f":"IFERROR(SMALL($J$2:$J$251,ROWS($D$2:D107)),\"\")","v":""}]
[89277,"Sample F134","Female","Finance & Accounts","GRD 05","Senior Manager","2014-02-22","Pune Branch",{"$f":"ROWS($D$2:D108)","v":107},{"$f":"IF(ISNUMBER(SEARCH('cal formula'!$I$8,Department,1)),data!$I108,\"\")","v":""},{"$f":"IFERROR(SMALL($J$2:$J$251,ROWS($D$2:D108)),\"\")","v":""}]
[89505,"Sample M334","Male","Supply Chain","GRD 02","Senior Executive ","2014-02-25","Gurgaon Branch",{"$f":"ROWS($D$2:D109)","v":108},{"$f":"IF(ISNUMBER(SEARCH('cal formula'!$I$8,Department,1)),data!$I109,\"\")","v":""},{"$f":"IFERROR(SMALL($J$2:$J$251,ROWS($D$2:D109)),\"\")","v":""}]
[89933,"Sample M335","Male","Information Technology","GRD 01","Associate","2014-03-13","Pune Branch",{"$f":"ROWS($D$2:D110)","v":109},{"$f":"IF(ISNUMBER(SEARCH('cal formula'!$I$8,Department,1)),data!$I110,\"\")","v":109},{"$f":"IFERROR(SMALL($J$2:$J$251,ROWS($D$2:D110)),\"\")","v":""}]
[89733,"Sample M336","Male","Supply Chain","GRD 02","Senior Executive ","2014-03-18","Pune Branch",{"$f":"ROWS($D$2:D111)","v":110},{"$f":"IF(ISNUMBER(SEARCH('cal formula'!$I$8,Department,1)),data!$I111,\"\")","v":""},{"$f":"IFERROR(SMALL($J$2:$J$251,ROWS($D$2:D111)),\"\")","v":""}]
[89775,"Sample M337","Male","Servicing","GRD 02","Senior Executive ","2014-03-18","Noida Branch",{"$f":"ROWS($D$2:D112)","v":111},{"$f":"IF(ISNUMBER(SEARCH('cal formula'!$I$8,Department,1)),data!$I112,\"\")","v":""},{"$f":"IFERROR(SMALL($J$2:$J$251,ROWS($D$2:D112)),\"\")","v":""}]
[89938,"Sample F135","Female","Sales","GRD 03","Assistant Manager ","2014-03-19","Mumbai Branch",{"$f":"ROWS($D$2:D113)","v":112},{"$f":"IF(ISNUMBER(SEARCH('cal formula'!$I$8,Department,1)),data!$I113,\"\")","v":""},{"$f":"IFERROR(SMALL($J$2:$J$251,ROWS($D$2:D113)),\"\")","v":""}]
[90080,"Sample M339","Male","Marketing","GRD 03","Assistant Manager ","2014-04-02","Bangalore Branch",{"$f":"ROWS($D$2:D114)","v":113},{"$f":"IF(ISNUMBER(SEARCH('cal formula'!$I$8,Department,1)),data!$I114,\"\")","v":""},{"$f":"IFERROR(SMALL($J$2:$J$251,ROWS($D$2:D114)),\"\")","v":""}]
[90099,"Sample F137","Female","Information Technology","GRD 03","Assistant Manager ","2014-04-02","Mumbai Branch",{"$f":"ROWS($D$2:D115)","v":114},{"$f":"IF(ISNUMBER(SEARCH('cal formula'!$I$8,Department,1)),data!$I115,\"\")","v":114},{"$f":"IFERROR(SMALL($J$2:$J$251,ROWS($D$2:D115)),\"\")","v":""}]
[90293,"Sample M340","Male","Supply Chain","GRD 03","Assistant Manager ","2014-04-09","Kolkata Branch",{"$f":"ROWS($D$2:D116)","v":115},{"$f":"IF(ISNUMBER(SEARCH('cal formula'!$I$8,Department,1)),data!$I116,\"\")","v":""},{"$f":"IFERROR(SMALL($J$2:$J$251,ROWS($D$2:D116)),\"\")","v":""}]
[89223,"Sample M342","Male","Customer Service","GRD 03","Assistant Manager ","2014-04-10","Bangalore Branch",{"$f":"ROWS($D$2:D117)","v":116},{"$f":"IF(ISNUMBER(SEARCH('cal formula'!$I$8,Department,1)),data!$I117,\"\")","v":""},{"$f":"IFERROR(SMALL($J$2:$J$251,ROWS($D$2:D117)),\"\")","v":""}]
[89774,"Sample F138","Female","Marketing","GRD 03","Assistant Manager ","2014-04-10","Pune Branch",{"$f":"ROWS($D$2:D118)","v":117},{"$f":"IF(ISNUMBER(SEARCH('cal formula'!$I$8,Department,1)),data!$I118,\"\")","v":""},{"$f":"IFERROR(SMALL($J$2:$J$251,ROWS($D$2:D118)),\"\")","v":""}]
[89764,"Sample M343","Male","Operations","GRD 03","Assistant Manager ","2014-04-11","Pune Branch",{"$f":"ROWS($D$2:D119)","v":118},{"$f":"IF(ISNUMBER(SEARCH('cal formula'!$I$8,Department,1)),data!$I119,\"\")","v":""},{"$f":"IFERROR(SMALL($J$2:$J$251,ROWS($D$2:D119)),\"\")","v":""}]
[90106,"Sample M344","Male","Customer Service","GRD 03","Assistant Manager ","2014-04-23","Delhi Branch",{"$f":"ROWS($D$2:D120)","v":119},{"$f":"IF(ISNUMBER(SEARCH('cal formula'!$I$8,Department,1)),data!$I120,\"\")","v":""},{"$f":"IFERROR(SMALL($J$2:$J$251,ROWS($D$2:D120)),\"\")","v":""}]
[90101,"Sample M345","Male","Information Technology","GRD 02","Senior Executive ","2014-04-29","Mumbai Branch",{"$f":"ROWS($D$2:D121)","v":120},{"$f":"IF(ISNUMBER(SEARCH('cal formula'!$I$8,Department,1)),data!$I121,\"\")","v":120},{"$f":"IFERROR(SMALL($J$2:$J$251,ROWS($D$2:D121)),\"\")","v":""}]
[90102,"Sample F140","Female","Finance & Accounts","GRD 02","Senior Executive ","2014-04-29","Gurgaon Branch",{"$f":"ROWS($D$2:D122)","v":121},{"$f":"IF(ISNUMBER(SEARCH('cal formula'!$I$8,Department,1)),data!$I122,\"\")","v":""},{"$f":"IFERROR(SMALL($J$2:$J$251,ROWS($D$2:D122)),\"\")","v":""}]
[89362,"Sample M346","Male","Sales","GRD 03","Assistant Manager ","2014-05-01","Kolkata Branch",{"$f":"ROWS($D$2:D123)","v":122},{"$f":"IF(ISNUMBER(SEARCH('cal formula'!$I$8,Department,1)),data!$I123,\"\")","v":""},{"$f":"IFERROR(SMALL($J$2:$J$251,ROWS($D$2:D123)),\"\")","v":""}]
[89352,"Sample M347","Male","Finance & Accounts","GRD 02","Senior Executive ","2014-05-01","Goa Branch",{"$f":"ROWS($D$2:D124)","v":123},{"$f":"IF(ISNUMBER(SEARCH('cal formula'!$I$8,Department,1)),data!$I124,\"\")","v":""},{"$f":"IFERROR(SMALL($J$2:$J$251,ROWS($D$2:D124)),\"\")","v":""}]
[90209,"Sample F141","Female","Marketing","GRD 03","Assistant Manager ","2014-05-07","Hyderabad Branch",{"$f":"ROWS($D$2:D125)","v":124},{"$f":"IF(ISNUMBER(SEARCH('cal formula'!$I$8,Department,1)),data!$I125,\"\")","v":""},{"$f":"IFERROR(SMALL($J$2:$J$251,ROWS($D$2:D125)),\"\")","v":""}]
[89956,"Sample F142","Female","Finance & Accounts","GRD 03","Assistant Manager ","2014-05-10","Delhi Branch",{"$f":"ROWS($D$2:D126)","v":125},{"$f":"IF(ISNUMBER(SEARCH('cal formula'!$I$8,Department,1)),data!$I126,\"\")","v":""},{"$f":"IFERROR(SMALL($J$2:$J$251,ROWS($D$2:D126)),\"\")","v":""}]
[89946,"Sample M348","Male","Sales","GRD 03","Assistant Manager ","2014-05-14","Mumbai Branch",{"$f":"ROWS($D$2:D127)","v":126},{"$f":"IF(ISNUMBER(SEARCH('cal formula'!$I$8,Department,1)),data!$I127,\"\")","v":""},{"$f":"IFERROR(SMALL($J$2:$J$251,ROWS($D$2:D127)),\"\")","v":""}]
[89830,"Sample M350","Male","Finance & Accounts","GRD 03","Assistant Manager ","2014-05-17","Goa Branch",{"$f":"ROWS($D$2:D128)","v":127},{"$f":"IF(ISNUMBER(SEARCH('cal formula'!$I$8,Department,1)),data!$I128,\"\")","v":""},{"$f":"IFERROR(SMALL($J$2:$J$251,ROWS($D$2:D128)),\"\")","v":""}]
[89703,"Sample M352","Male","Supply Chain","GRD 05","Senior Manager","2014-05-19","Kolkata Branch",{"$f":"ROWS($D$2:D129)","v":128},{"$f":"IF(ISNUMBER(SEARCH('cal formula'!$I$8,Department,1)),data!$I129,\"\")","v":""},{"$f":"IFERROR(SMALL($J$2:$J$251,ROWS($D$2:D129)),\"\")","v":""}]
[90004,"Sample M354","Male","Finance & Accounts","GRD 02","Senior Executive ","2014-06-10","Bangalore Branch",{"$f":"ROWS($D$2:D130)","v":129},{"$f":"IF(ISNUMBER(SEARCH('cal formula'!$I$8,Department,1)),data!$I130,\"\")","v":""},{"$f":"IFERROR(SMALL($J$2:$J$251,ROWS($D$2:D130)),\"\")","v":""}]
[90119,"Sample M355","Male","Operations","GRD 02","Senior Executive ","2014-06-11","Kolkata Branch",{"$f":"ROWS($D$2:D131)","v":130},{"$f":"IF(ISNUMBER(SEARCH('cal formula'!$I$8,Department,1)),data!$I131,\"\")","v":""},{"$f":"IFERROR(SMALL($J$2:$J$251,ROWS($D$2:D131)),\"\")","v":""}]
[90001,"Sample M356","Male","Marketing","GRD 02","Senior Executive ","2014-06-21","Pune Branch",{"$f":"ROWS($D$2:D132)","v":131},{"$f":"IF(ISNUMBER(SEARCH('cal formula'!$I$8,Department,1)),data!$I132,\"\")","v":""},{"$f":"IFERROR(SMALL($J$2:$J$251,ROWS($D$2:D132)),\"\")","v":""}]
[90120,"Sample M357","Male","Purchase","GRD 03","Assistant Manager ","2014-06-26","Mumbai Branch",{"$f":"ROWS($D$2:D133)","v":132},{"$f":"IF(ISNUMBER(SEARCH('cal formula'!$I$8,Department,1)),data!$I133,\"\")","v":""},{"$f":"IFERROR(SMALL($J$2:$J$251,ROWS($D$2:D133)),\"\")","v":""}]
[89468,"Sample M358","Male","Supply Chain","GRD 02","Senior Executive ","2014-07-02","Gurgaon Branch",{"$f":"ROWS($D$2:D134)","v":133},{"$f":"IF(ISNUMBER(SEARCH('cal formula'!$I$8,Department,1)),data!$I134,\"\")","v":""},{"$f":"IFERROR(SMALL($J$2:$J$251,ROWS($D$2:D134)),\"\")","v":""}]
[89389,"Sample M359","Male","Purchase","GRD 02","Senior Executive ","2014-07-09","Mumbai Branch",{"$f":"ROWS($D$2:D135)","v":134},{"$f":"IF(ISNUMBER(SEARCH('cal formula'!$I$8,Department,1)),data!$I135,\"\")","v":""},{"$f":"IFERROR(SMALL($J$2:$J$251,ROWS($D$2:D135)),\"\")","v":""}]
[89281,"Sample F144","Female","Operations","GRD 02","Senior Executive ","2014-07-17","Bangalore Branch",{"$f":"ROWS($D$2:D136)","v":135},{"$f":"IF(ISNUMBER(SEARCH('cal formula'!$I$8,Department,1)),data!$I136,\"\")","v":""},{"$f":"IFERROR(SMALL($J$2:$J$251,ROWS($D$2:D136)),\"\")","v":""}]
[89802,"Sample M361","Male","Finance & Accounts","GRD 03","Assistant Manager ","2014-07-18","Delhi Branch",{"$f":"ROWS($D$2:D137)","v":136},{"$f":"IF(ISNUMBER(SEARCH('cal formula'!$I$8,Department,1)),data!$I137,\"\")","v":""},{"$f":"IFERROR(SMALL($J$2:$J$251,ROWS($D$2:D137)),\"\")","v":""}]
[89711,"Sample M362","Male","Marketing","GRD 03","Assistant Manager ","2014-07-23","Goa Branch",{"$f":"ROWS($D$2:D138)","v":137},{"$f":"IF(ISNUMBER(SEARCH('cal formula'!$I$8,Department,1)),data!$I138,\"\")","v":""},{"$f":"IFERROR(SMALL($J$2:$J$251,ROWS($D$2:D138)),\"\")","v":""}]
[90125,"Sample F145","Female","Finance & Accounts","GRD 02","Senior Executive ","2014-07-30","Chennai Branch",{"$f":"ROWS($D$2:D139)","v":138},{"$f":"IF(ISNUMBER(SEARCH('cal formula'!$I$8,Department,1)),data!$I139,\"\")","v":""},{"$f":"IFERROR(SMALL($J$2:$J$251,ROWS($D$2:D139)),\"\")","v":""}]
[89413,"Sample F146","Female","Finance & Accounts","GRD 03","Assistant Manager ","2014-07-31","Pune Branch",{"$f":"ROWS($D$2:D140)","v":139},{"$f":"IF(ISNUMBER(SEARCH('cal formula'!$I$8,Department,1)),data!$I140,\"\")","v":""},{"$f":"IFERROR(SMALL($J$2:$J$251,ROWS($D$2:D140)),\"\")","v":""}]
[90186,"Sample F148","Female","Sales","GRD 02","Senior Executive ","2014-08-12","Kolkata Branch",{"$f":"ROWS($D$2:D141)","v":140},{"$f":"IF(ISNUMBER(SEARCH('cal formula'!$I$8,Department,1)),data!$I141,\"\")","v":""},{"$f":"IFERROR(SMALL($J$2:$J$251,ROWS($D$2:D141)),\"\")","v":""}]
[89968,"Sample M364","Male","Supply Chain","GRD 02","Senior Executive ","2014-08-20","Kolkata Branch",{"$f":"ROWS($D$2:D142)","v":141},{"$f":"IF(ISNUMBER(SEARCH('cal formula'!$I$8,Department,1)),data!$I142,\"\")","v":""},{"$f":"IFERROR(SMALL($J$2:$J$251,ROWS($D$2:D142)),\"\")","v":""}]
[89334,"Sample M365","Male","Sales","GRD 03","Assistant Manager ","2014-08-23","Kolkata Branch",{"$f":"ROWS($D$2:D143)","v":142},{"$f":"IF(ISNUMBER(SEARCH('cal formula'!$I$8,Department,1)),data!$I143,\"\")","v":""},{"$f":"IFERROR(SMALL($J$2:$J$251,ROWS($D$2:D143)),\"\")","v":""}]
[89360,"Sample M367","Male","Finance & Accounts","GRD 02","Senior Executive ","2014-08-29","Pune Branch",{"$f":"ROWS($D$2:D144)","v":143},{"$f":"IF(ISNUMBER(SEARCH('cal formula'!$I$8,Department,1)),data!$I144,\"\")","v":""},{"$f":"IFERROR(SMALL($J$2:$J$251,ROWS($D$2:D144)),\"\")","v":""}]
[89732,"Sample M369","Male","Supply Chain","GRD 02","Senior Executive ","2014-09-02","Goa Branch",{"$f":"ROWS($D$2:D145)","v":144},{"$f":"IF(ISNUMBER(SEARCH('cal formula'!$I$8,Department,1)),data!$I145,\"\")","v":""},{"$f":"IFERROR(SMALL($J$2:$J$251,ROWS($D$2:D145)),\"\")","v":""}]
[89556,"Sample M370","Male","Human Resource","GRD 02","Senior Executive ","2014-09-05","Chennai Branch",{"$f":"ROWS($D$2:D146)","v":145},{"$f":"IF(ISNUMBER(SEARCH('cal formula'!$I$8,Department,1)),data!$I146,\"\")","v":""},{"$f":"IFERROR(SMALL($J$2:$J$251,ROWS($D$2:D146)),\"\")","v":""}]
[89777,"Sample M371","Male","Human Resource","GRD 02","Senior Executive ","2014-09-09","Chennai Branch",{"$f":"ROWS($D$2:D147)","v":146},{"$f":"IF(ISNUMBER(SEARCH('cal formula'!$I$8,Department,1)),data!$I147,\"\")","v":""},{"$f":"IFERROR(SMALL($J$2:$J$251,ROWS($D$2:D147)),\"\")","v":""}]
[89371,"Sample M372","Male","Sales","GRD 03","Assistant Manager ","2014-09-10","Kolkata Branch",{"$f":"ROWS($D$2:D148)","v":147},{"$f":"IF(ISNUMBER(SEARCH('cal formula'!$I$8,Department,1)),data!$I148,\"\")","v":""},{"$f":"IFERROR(SMALL($J$2:$J$251,ROWS($D$2:D148)),\"\")","v":""}]
[90132,"Sample M374","Male","Servicing","GRD 04","Manager","2014-09-13","Mumbai Branch",{"$f":"ROWS($D$2:D149)","v":148},{"$f":"IF(ISNUMBER(SEARCH('cal formula'!$I$8,Department,1)),data!$I149,\"\")","v":""},{"$f":"IFERROR(SMALL($J$2:$J$251,ROWS($D$2:D149)),\"\")","v":""}]
[90139,"Sample M375","Male","Information Technology","GRD 02","Senior Executive ","2014-09-23","Mumbai Branch",{"$f":"ROWS($D$2:D150)","v":149},{"$f":"IF(ISNUMBER(SEARCH('cal formula'!$I$8,Department,1)),data!$I150,\"\")","v":149},{"$f":"IFERROR(SMALL($J$2:$J$251,ROWS($D$2:D150)),\"\")","v":""}]
[89420,"Sample M376","Male","Information Technology","GRD 03","Assistant Manager ","2014-09-25","Mumbai Branch",{"$f":"ROWS($D$2:D151)","v":150},{"$f":"IF(ISNUMBER(SEARCH('cal formula'!$I$8,Department,1)),data!$I151,\"\")","v":150},{"$f":"IFERROR(SMALL($J$2:$J$251,ROWS($D$2:D151)),\"\")","v":""}]
[90142,"Sample M377","Male","Marketing","GRD 02","Senior Executive ","2014-09-30","Noida Branch",{"$f":"ROWS($D$2:D152)","v":151},{"$f":"IF(ISNUMBER(SEARCH('cal formula'!$I$8,Department,1)),data!$I152,\"\")","v":""},{"$f":"IFERROR(SMALL($J$2:$J$251,ROWS($D$2:D152)),\"\")","v":""}]
[89544,"Sample M378","Male","Sales","GRD 02","Senior Executive ","2014-09-30","Bangalore Branch",{"$f":"ROWS($D$2:D153)","v":152},{"$f":"IF(ISNUMBER(SEARCH('cal formula'!$I$8,Department,1)),data!$I153,\"\")","v":""},{"$f":"IFERROR(SMALL($J$2:$J$251,ROWS($D$2:D153)),\"\")","v":""}]
[89557,"Sample M379","Male","Marketing","GRD 03","Assistant Manager ","2014-10-01","Hyderabad Branch",{"$f":"ROWS($D$2:D154)","v":153},{"$f":"IF(ISNUMBER(SEARCH('cal formula'!$I$8,Department,1)),data!$I154,\"\")","v":""},{"$f":"IFERROR(SMALL($J$2:$J$251,ROWS($D$2:D154)),\"\")","v":""}]
[89833,"Sample M380","Male","Servicing","GRD 03","Assistant Manager ","2014-10-04","Noida Branch",{"$f":"ROWS($D$2:D155)","v":154},{"$f":"IF(ISNUMBER(SEARCH('cal formula'!$I$8,Department,1)),data!$I155,\"\")","v":""},{"$f":"IFERROR(SMALL($J$2:$J$251,ROWS($D$2:D155)),\"\")","v":""}]
[90138,"Sample M381","Male","Purchase","GRD 05","Senior Manager","2014-10-05","Delhi Branch",{"$f":"ROWS($D$2:D156)","v":155},{"$f":"IF(ISNUMBER(SEARCH('cal formula'!$I$8,Department,1)),data!$I156,\"\")","v":""},{"$f":"IFERROR(SMALL($J$2:$J$251,ROWS($D$2:D156)),\"\")","v":""}]
[89490,"Sample F150","Female","Supply Chain","GRD 02","Senior Executive ","2014-10-07","Chennai Branch",{"$f":"ROWS($D$2:D157)","v":156},{"$f":"IF(ISNUMBER(SEARCH('cal formula'!$I$8,Department,1)),data!$I157,\"\")","v":""},{"$f":"IFERROR(SMALL($J$2:$J$251,ROWS($D$2:D157)),\"\")","v":""}]
[89566,"Sample M382","Male","Supply Chain","GRD 02","Senior Executive ","2014-10-07","Goa Branch",{"$f":"ROWS($D$2:D158)","v":157},{"$f":"IF(ISNUMBER(SEARCH('cal formula'!$I$8,Department,1)),data!$I158,\"\")","v":""},{"$f":"IFERROR(SMALL($J$2:$J$251,ROWS($D$2:D158)),\"\")","v":""}]
[90056,"Sample M383","Male","Marketing","GRD 03","Assistant Manager ","2014-10-08","Noida Branch",{"$f":"ROWS($D$2:D159)","v":158},{"$f":"IF(ISNUMBER(SEARCH('cal formula'!$I$8,Department,1)),data!$I159,\"\")","v":""},{"$f":"IFERROR(SMALL($J$2:$J$251,ROWS($D$2:D159)),\"\")","v":""}]
[90145,"Sample M384","Male","Supply Chain","GRD 03","Assistant Manager ","2014-10-18","Gurgaon Branch",{"$f":"ROWS($D$2:D160)","v":159},{"$f":"IF(ISNUMBER(SEARCH('cal formula'!$I$8,Department,1)),data!$I160,\"\")","v":""},{"$f":"IFERROR(SMALL($J$2:$J$251,ROWS($D$2:D160)),\"\")","v":""}]
[90135,"Sample F151","Female","Marketing","GRD 03","Assistant Manager ","2014-10-22","Hyderabad Branch",{"$f":"ROWS($D$2:D161)","v":160},{"$f":"IF(ISNUMBER(SEARCH('cal formula'!$I$8,Department,1)),data!$I161,\"\")","v":""},{"$f":"IFERROR(SMALL($J$2:$J$251,ROWS($D$2:D161)),\"\")","v":""}]
[89967,"Sample F152","Female","Marketing","GRD 03","Assistant Manager ","2014-10-22","Goa Branch",{"$f":"ROWS($D$2:D162)","v":161},{"$f":"IF(ISNUMBER(SEARCH('cal formula'!$I$8,Department,1)),data!$I162,\"\")","v":""},{"$f":"IFERROR(SMALL($J$2:$J$251,ROWS($D$2:D162)),\"\")","v":""}]
[89452,"Sample M385","Male","Purchase","GRD 02","Senior Executive ","2014-11-05","Bangalore Branch",{"$f":"ROWS($D$2:D163)","v":162},{"$f":"IF(ISNUMBER(SEARCH('cal formula'!$I$8,Department,1)),data!$I163,\"\")","v":""},{"$f":"IFERROR(SMALL($J$2:$J$251,ROWS($D$2:D163)),\"\")","v":""}]
[90149,"Sample M386","Male","Purchase","GRD 03","Assistant Manager ","2014-11-09","Hyderabad Branch",{"$f":"ROWS($D$2:D164)","v":163},{"$f":"IF(ISNUMBER(SEARCH('cal formula'!$I$8,Department,1)),data!$I164,\"\")","v":""},{"$f":"IFERROR(SMALL($J$2:$J$251,ROWS($D$2:D164)),\"\")","v":""}]
[90150,"Sample M387","Male","Purchase","GRD 03","Assistant Manager ","2014-11-09","Delhi Branch",{"$f":"ROWS($D$2:D165)","v":164},{"$f":"IF(ISNUMBER(SEARCH('cal formula'!$I$8,Department,1)),data!$I165,\"\")","v":""},{"$f":"IFERROR(SMALL($J$2:$J$251,ROWS($D$2:D165)),\"\")","v":""}]
[89264,"Sample M388","Male","Customer Service","GRD 03","Assistant Manager ","2014-11-13","Delhi Branch",{"$f":"ROWS($D$2:D166)","v":165},{"$f":"IF(ISNUMBER(SEARCH('cal formula'!$I$8,Department,1)),data!$I166,\"\")","v":""},{"$f":"IFERROR(SMALL($J$2:$J$251,ROWS($D$2:D166)),\"\")","v":""}]
[89241,"Sample M389","Male","Supply Chain","GRD 02","Senior Executive ","2014-11-18","Chennai Branch",{"$f":"ROWS($D$2:D167)","v":166},{"$f":"IF(ISNUMBER(SEARCH('cal formula'!$I$8,Department,1)),data!$I167,\"\")","v":""},{"$f":"IFERROR(SMALL($J$2:$J$251,ROWS($D$2:D167)),\"\")","v":""}]
[89577,"Sample M390","Male","Marketing","GRD 03","Assistant Manager ","2014-11-19","Mumbai Branch",{"$f":"ROWS($D$2:D168)","v":167},{"$f":"IF(ISNUMBER(SEARCH('cal formula'!$I$8,Department,1)),data!$I168,\"\")","v":""},{"$f":"IFERROR(SMALL($J$2:$J$251,ROWS($D$2:D168)),\"\")","v":""}]
[90151,"Sample F154","Female","Finance & Accounts","GRD 02","Senior Executive ","2014-11-29","Pune Branch",{"$f":"ROWS($D$2:D169)","v":168},{"$f":"IF(ISNUMBER(SEARCH('cal formula'!$I$8,Department,1)),data!$I169,\"\")","v":""},{"$f":"IFERROR(SMALL($J$2:$J$251,ROWS($D$2:D169)),\"\")","v":""}]
[89672,"Sample M391","Male","Sales","GRD 02","Senior Executive ","2014-12-02","Pune Branch",{"$f":"ROWS($D$2:D170)","v":169},{"$f":"IF(ISNUMBER(SEARCH('cal formula'!$I$8,Department,1)),data!$I170,\"\")","v":""},{"$f":"IFERROR(SMALL($J$2:$J$251,ROWS($D$2:D170)),\"\")","v":""}]
[89560,"Sample M392","Male","Marketing","GRD 02","Senior Executive ","2014-12-02","Mumbai Branch",{"$f":"ROWS($D$2:D171)","v":170},{"$f":"IF(ISNUMBER(SEARCH('cal formula'!$I$8,Department,1)),data!$I171,\"\")","v":""},{"$f":"IFERROR(SMALL($J$2:$J$251,ROWS($D$2:D171)),\"\")","v":""}]
[90043,"Sample M393","Male","Human Resource","GRD 06","Vice President ","2014-12-03","Chennai Branch",{"$f":"ROWS($D$2:D172)","v":171},{"$f":"IF(ISNUMBER(SEARCH('cal formula'!$I$8,Department,1)),data!$I172,\"\")","v":""},{"$f":"IFERROR(SMALL($J$2:$J$251,ROWS($D$2:D172)),\"\")","v":""}]
[90187,"Sample F155","Female","Customer Service","GRD 02","Senior Executive ","2014-12-09","Mumbai Branch",{"$f":"ROWS($D$2:D173)","v":172},{"$f":"IF(ISNUMBER(SEARCH('cal formula'!$I$8,Department,1)),data!$I173,\"\")","v":""},{"$f":"IFERROR(SMALL($J$2:$J$251,ROWS($D$2:D173)),\"\")","v":""}]
[90148,"Sample M395","Male","Finance & Accounts","GRD 04","Manager","2014-12-10","Goa Branch",{"$f":"ROWS($D$2:D174)","v":173},{"$f":"IF(ISNUMBER(SEARCH('cal formula'!$I$8,Department,1)),data!$I174,\"\")","v":""},{"$f":"IFERROR(SMALL($J$2:$J$251,ROWS($D$2:D174)),\"\")","v":""}]
[89789,"Sample F156","Female","Purchase","GRD 04","Manager","2014-12-14","Bangalore Branch",{"$f":"ROWS($D$2:D175)","v":174},{"$f":"IF(ISNUMBER(SEARCH('cal formula'!$I$8,Department,1)),data!$I175,\"\")","v":""},{"$f":"IFERROR(SMALL($J$2:$J$251,ROWS($D$2:D175)),\"\")","v":""}]
[89361,"Sample M396","Male","Finance & Accounts","GRD 03","Assistant Manager ","2014-12-20","Hyderabad Branch",{"$f":"ROWS($D$2:D176)","v":175},{"$f":"IF(ISNUMBER(SEARCH('cal formula'!$I$8,Department,1)),data!$I176,\"\")","v":""},{"$f":"IFERROR(SMALL($J$2:$J$251,ROWS($D$2:D176)),\"\")","v":""}]
[89954,"Sample M397","Male","Customer Service","GRD 02","Senior Executive ","2014-12-23","Mumbai Branch",{"$f":"ROWS($D$2:D177)","v":176},{"$f":"IF(ISNUMBER(SEARCH('cal formula'!$I$8,Department,1)),data!$I177,\"\")","v":""},{"$f":"IFERROR(SMALL($J$2:$J$251,ROWS($D$2:D177)),\"\")","v":""}]
[90167,"Sample M399","Male","Marketing","GRD 03","Assistant Manager ","2015-01-22","Noida Branch",{"$f":"ROWS($D$2:D178)","v":177},{"$f":"IF(ISNUMBER(SEARCH('cal formula'!$I$8,Department,1)),data!$I178,\"\")","v":""},{"$f":"IFERROR(SMALL($J$2:$J$251,ROWS($D$2:D178)),\"\")","v":""}]
[90161,"Sample F158","Female","Finance & Accounts","GRD 04","Manager","2015-01-30","Hyderabad Branch",{"$f":"ROWS($D$2:D179)","v":178},{"$f":"IF(ISNUMBER(SEARCH('cal formula'!$I$8,Department,1)),data!$I179,\"\")","v":""},{"$f":"IFERROR(SMALL($J$2:$J$251,ROWS($D$2:D179)),\"\")","v":""}]
[89435,"Sample F159","Female","Information Technology","GRD 02","Senior Executive ","2015-02-03","Bangalore Branch",{"$f":"ROWS($D$2:D180)","v":179},{"$f":"IF(ISNUMBER(SEARCH('cal formula'!$I$8,Department,1)),data!$I180,\"\")","v":179},{"$f":"IFERROR(SMALL($J$2:$J$251,ROWS($D$2:D180)),\"\")","v":""}]
[90098,"Sample F160","Female","Sales","GRD 02","Senior Executive ","2015-02-03","Pune Branch",{"$f":"ROWS($D$2:D181)","v":180},{"$f":"IF(ISNUMBER(SEARCH('cal formula'!$I$8,Department,1)),data!$I181,\"\")","v":""},{"$f":"IFERROR(SMALL($J$2:$J$251,ROWS($D$2:D181)),\"\")","v":""}]
[90168,"Sample M400","Male","Operations","GRD 03","Assistant Manager ","2015-02-04","Bangalore Branch",{"$f":"ROWS($D$2:D182)","v":181},{"$f":"IF(ISNUMBER(SEARCH('cal formula'!$I$8,Department,1)),data!$I182,\"\")","v":""},{"$f":"IFERROR(SMALL($J$2:$J$251,ROWS($D$2:D182)),\"\")","v":""}]
[89346,"Sample M401","Male","Servicing","GRD 05","Lead","2015-02-11","Mumbai Branch",{"$f":"ROWS($D$2:D183)","v":182},{"$f":"IF(ISNUMBER(SEARCH('cal formula'!$I$8,Department,1)),data!$I183,\"\")","v":""},{"$f":"IFERROR(SMALL($J$2:$J$251,ROWS($D$2:D183)),\"\")","v":""}]
[89393,"Sample F161","Female","Operations","GRD 02","Senior Executive ","2015-02-24","Hyderabad Branch",{"$f":"ROWS($D$2:D184)","v":183},{"$f":"IF(ISNUMBER(SEARCH('cal formula'!$I$8,Department,1)),data!$I184,\"\")","v":""},{"$f":"IFERROR(SMALL($J$2:$J$251,ROWS($D$2:D184)),\"\")","v":""}]
[89953,"Sample M403","Male","Operations","GRD 02","Senior Executive ","2015-03-03","Mumbai Branch",{"$f":"ROWS($D$2:D185)","v":184},{"$f":"IF(ISNUMBER(SEARCH('cal formula'!$I$8,Department,1)),data!$I185,\"\")","v":""},{"$f":"IFERROR(SMALL($J$2:$J$251,ROWS($D$2:D185)),\"\")","v":""}]
[89780,"Sample F162","Female","Marketing","GRD 02","Senior Executive ","2015-03-03","Noida Branch",{"$f":"ROWS($D$2:D186)","v":185},{"$f":"IF(ISNUMBER(SEARCH('cal formula'!$I$8,Department,1)),data!$I186,\"\")","v":""},{"$f":"IFERROR(SMALL($J$2:$J$251,ROWS($D$2:D186)),\"\")","v":""}]
[89713,"Sample F164","Female","Marketing","GRD 03","Assistant Manager ","2015-03-06","Bangalore Branch",{"$f":"ROWS($D$2:D187)","v":186},{"$f":"IF(ISNUMBER(SEARCH('cal formula'!$I$8,Department,1)),data!$I187,\"\")","v":""},{"$f":"IFERROR(SMALL($J$2:$J$251,ROWS($D$2:D187)),\"\")","v":""}]
[89826,"Sample M404","Male","Servicing","GRD 02","Senior Executive ","2015-03-10","Noida Branch",{"$f":"ROWS($D$2:D188)","v":187},{"$f":"IF(ISNUMBER(SEARCH('cal formula'!$I$8,Department,1)),data!$I188,\"\")","v":""},{"$f":"IFERROR(SMALL($J$2:$J$251,ROWS($D$2:D188)),\"\")","v":""}]
[89665,"Sample F165","Female","Customer Service","GRD 02","Senior Executive ","2015-03-10","Pune Branch",{"$f":"ROWS($D$2:D189)","v":188},{"$f":"IF(ISNUMBER(SEARCH('cal formula'!$I$8,Department,1)),data!$I189,\"\")","v":""},{"$f":"IFERROR(SMALL($J$2:$J$251,ROWS($D$2:D189)),\"\")","v":""}]
[89444,"Sample M405","Male","Finance & Accounts","GRD 05","Senior Manager","2015-03-11","Hyderabad Branch",{"$f":"ROWS($D$2:D190)","v":189},{"$f":"IF(ISNUMBER(SEARCH('cal formula'!$I$8,Department,1)),data!$I190,\"\")","v":""},{"$f":"IFERROR(SMALL($J$2:$J$251,ROWS($D$2:D190)),\"\")","v":""}]
[90281,"Sample M406","Male","Supply Chain","GRD 02","Management Trainee","2015-03-18","Mumbai Branch",{"$f":"ROWS($D$2:D191)","v":190},{"$f":"IF(ISNUMBER(SEARCH('cal formula'!$I$8,Department,1)),data!$I191,\"\")","v":""},{"$f":"IFERROR(SMALL($J$2:$J$251,ROWS($D$2:D191)),\"\")","v":""}]
[89947,"Sample F166","Female","Customer Service","GRD 02","Senior Executive ","2015-03-24","Pune Branch",{"$f":"ROWS($D$2:D192)","v":191},{"$f":"IF(ISNUMBER(SEARCH('cal formula'!$I$8,Department,1)),data!$I192,\"\")","v":""},{"$f":"IFERROR(SMALL($J$2:$J$251,ROWS($D$2:D192)),\"\")","v":""}]
[90173,"Sample M408","Male","Purchase","GRD 02","Senior Executive ","2015-03-31","Bangalore Branch",{"$f":"ROWS($D$2:D193)","v":192},{"$f":"IF(ISNUMBER(SEARCH('cal formula'!$I$8,Department,1)),data!$I193,\"\")","v":""},{"$f":"IFERROR(SMALL($J$2:$J$251,ROWS($D$2:D193)),\"\")","v":""}]
[89912,"Sample M409","Male","Operations","GRD 02","Senior Executive ","2015-04-01","Mumbai Branch",{"$f":"ROWS($D$2:D194)","v":193},{"$f":"IF(ISNUMBER(SEARCH('cal formula'!$I$8,Department,1)),data!$I194,\"\")","v":""},{"$f":"IFERROR(SMALL($J$2:$J$251,ROWS($D$2:D194)),\"\")","v":""}]
[89453,"Sample M410","Male","Purchase","GRD 03","Assistant Manager ","2015-04-03","Mumbai Branch",{"$f":"ROWS($D$2:D195)","v":194},{"$f":"IF(ISNUMBER(SEARCH('cal formula'!$I$8,Department,1)),data!$I195,\"\")","v":""},{"$f":"IFERROR(SMALL($J$2:$J$251,ROWS($D$2:D195)),\"\")","v":""}]
[89981,"Sample F167","Female","Purchase","GRD 02","Senior Executive ","2015-04-07","Delhi Branch",{"$f":"ROWS($D$2:D196)","v":195},{"$f":"IF(ISNUMBER(SEARCH('cal formula'!$I$8,Department,1)),data!$I196,\"\")","v":""},{"$f":"IFERROR(SMALL($J$2:$J$251,ROWS($D$2:D196)),\"\")","v":""}]
[90169,"Sample M411","Male","Supply Chain","GRD 02","Senior Executive ","2015-04-07","Gurgaon Branch",{"$f":"ROWS($D$2:D197)","v":196},{"$f":"IF(ISNUMBER(SEARCH('cal formula'!$I$8,Department,1)),data!$I197,\"\")","v":""},{"$f":"IFERROR(SMALL($J$2:$J$251,ROWS($D$2:D197)),\"\")","v":""}]
[90190,"Sample M412","Male","Sales","GRD 02","Senior Executive ","2015-04-21","Pune Branch",{"$f":"ROWS($D$2:D198)","v":197},{"$f":"IF(ISNUMBER(SEARCH('cal formula'!$I$8,Department,1)),data!$I198,\"\")","v":""},{"$f":"IFERROR(SMALL($J$2:$J$251,ROWS($D$2:D198)),\"\")","v":""}]
[89380,"Sample M413","Male","Customer Service","GRD 02","Senior Executive ","2015-04-28","Noida Branch",{"$f":"ROWS($D$2:D199)","v":198},{"$f":"IF(ISNUMBER(SEARCH('cal formula'!$I$8,Department,1)),data!$I199,\"\")","v":""},{"$f":"IFERROR(SMALL($J$2:$J$251,ROWS($D$2:D199)),\"\")","v":""}]
[89484,"Sample M414","Male","Sales","GRD 02","Senior Executive ","2015-04-28","Bangalore Branch",{"$f":"ROWS($D$2:D200)","v":199},{"$f":"IF(ISNUMBER(SEARCH('cal formula'!$I$8,Department,1)),data!$I200,\"\")","v":""},{"$f":"IFERROR(SMALL($J$2:$J$251,ROWS($D$2:D200)),\"\")","v":""}]
[89858,"Sample M415","Male","Marketing","GRD 05","Senior Manager","2015-04-29","Goa Branch",{"$f":"ROWS($D$2:D201)","v":200},{"$f":"IF(ISNUMBER(SEARCH('cal formula'!$I$8,Department,1)),data!$I201,\"\")","v":""},{"$f":"IFERROR(SMALL($J$2:$J$251,ROWS($D$2:D201)),\"\")","v":""}]
[90133,"Sample F168","Female","Customer Service","GRD 02","Senior Executive ","2015-05-05","Noida Branch",{"$f":"ROWS($D$2:D202)","v":201},{"$f":"IF(ISNUMBER(SEARCH('cal formula'!$I$8,Department,1)),data!$I202,\"\")","v":""},{"$f":"IFERROR(SMALL($J$2:$J$251,ROWS($D$2:D202)),\"\")","v":""}]
[90177,"Sample F169","Female","Operations","GRD 04","Manager","2015-05-06","Hyderabad Branch",{"$f":"ROWS($D$2:D203)","v":202},{"$f":"IF(ISNUMBER(SEARCH('cal formula'!$I$8,Department,1)),data!$I203,\"\")","v":""},{"$f":"IFERROR(SMALL($J$2:$J$251,ROWS($D$2:D203)),\"\")","v":""}]
[89760,"Sample F170","Female","Sales","GRD 02","Senior Executive ","2015-05-06","Hyderabad Branch",{"$f":"ROWS($D$2:D204)","v":203},{"$f":"IF(ISNUMBER(SEARCH('cal formula'!$I$8,Department,1)),data!$I204,\"\")","v":""},{"$f":"IFERROR(SMALL($J$2:$J$251,ROWS($D$2:D204)),\"\")","v":""}]
[90023,"Sample M416","Male","Sales","GRD 02","Senior Executive ","2015-05-06","Hyderabad Branch",{"$f":"ROWS($D$2:D205)","v":204},{"$f":"IF(ISNUMBER(SEARCH('cal formula'!$I$8,Department,1)),data!$I205,\"\")","v":""},{"$f":"IFERROR(SMALL($J$2:$J$251,ROWS($D$2:D205)),\"\")","v":""}]
[89984,"Sample M418","Male","Sales","GRD 02","Senior Executive ","2015-05-12","Mumbai Branch",{"$f":"ROWS($D$2:D206)","v":205},{"$f":"IF(ISNUMBER(SEARCH('cal formula'!$I$8,Department,1)),data!$I206,\"\")","v":""},{"$f":"IFERROR(SMALL($J$2:$J$251,ROWS($D$2:D206)),\"\")","v":""}]
[89791,"Sample M419","Male","Purchase","GRD 04","Manager","2015-05-13","Delhi Branch",{"$f":"ROWS($D$2:D207)","v":206},{"$f":"IF(ISNUMBER(SEARCH('cal formula'!$I$8,Department,1)),data!$I207,\"\")","v":""},{"$f":"IFERROR(SMALL($J$2:$J$251,ROWS($D$2:D207)),\"\")","v":""}]
[90182,"Sample F173","Female","Human Resource","GRD 02","Senior Executive ","2015-05-14","Mumbai Branch",{"$f":"ROWS($D$2:D208)","v":207},{"$f":"IF(ISNUMBER(SEARCH('cal formula'!$I$8,Department,1)),data!$I208,\"\")","v":""},{"$f":"IFERROR(SMALL($J$2:$J$251,ROWS($D$2:D208)),\"\")","v":""}]
[90189,"Sample M420","Male","Finance & Accounts","GRD 03","Assistant Manager ","2015-05-15","Hyderabad Branch",{"$f":"ROWS($D$2:D209)","v":208},{"$f":"IF(ISNUMBER(SEARCH('cal formula'!$I$8,Department,1)),data!$I209,\"\")","v":""},{"$f":"IFERROR(SMALL($J$2:$J$251,ROWS($D$2:D209)),\"\")","v":""}]
[90183,"Sample F174","Female","Sales","GRD 02","Senior Executive ","2015-05-21","Hyderabad Branch",{"$f":"ROWS($D$2:D210)","v":209},{"$f":"IF(ISNUMBER(SEARCH('cal formula'!$I$8,Department,1)),data!$I210,\"\")","v":""},{"$f":"IFERROR(SMALL($J$2:$J$251,ROWS($D$2:D210)),\"\")","v":""}]
[89785,"Sample F175","Female","Sales","GRD 02","Senior Executive ","2015-05-21","Pune Branch",{"$f":"ROWS($D$2:D211)","v":210},{"$f":"IF(ISNUMBER(SEARCH('cal formula'!$I$8,Department,1)),data!$I211,\"\")","v":""},{"$f":"IFERROR(SMALL($J$2:$J$251,ROWS($D$2:D211)),\"\")","v":""}]
[90185,"Sample F176","Female","Information Technology","GRD 02","Senior Executive ","2015-05-21","Bangalore Branch",{"$f":"ROWS($D$2:D212)","v":211},{"$f":"IF(ISNUMBER(SEARCH('cal formula'!$I$8,Department,1)),data!$I212,\"\")","v":211},{"$f":"IFERROR(SMALL($J$2:$J$251,ROWS($D$2:D212)),\"\")","v":""}]
[89920,"Sample F177","Female","Sales","GRD 02","Senior Executive ","2015-05-26","Bangalore Branch",{"$f":"ROWS($D$2:D213)","v":212},{"$f":"IF(ISNUMBER(SEARCH('cal formula'!$I$8,Department,1)),data!$I213,\"\")","v":""},{"$f":"IFERROR(SMALL($J$2:$J$251,ROWS($D$2:D213)),\"\")","v":""}]
[90049,"Sample M421","Male","Supply Chain","GRD 02","Senior Executive ","2015-06-02","Mumbai Branch",{"$f":"ROWS($D$2:D214)","v":213},{"$f":"IF(ISNUMBER(SEARCH('cal formula'!$I$8,Department,1)),data!$I214,\"\")","v":""},{"$f":"IFERROR(SMALL($J$2:$J$251,ROWS($D$2:D214)),\"\")","v":""}]
[90176,"Sample M422","Male","Purchase","GRD 06","Vice President ","2015-06-03","Mumbai Branch",{"$f":"ROWS($D$2:D215)","v":214},{"$f":"IF(ISNUMBER(SEARCH('cal formula'!$I$8,Department,1)),data!$I215,\"\")","v":""},{"$f":"IFERROR(SMALL($J$2:$J$251,ROWS($D$2:D215)),\"\")","v":""}]
[89298,"Sample M423","Male","Sales","GRD 03","Assistant Manager ","2015-06-03","Bangalore Branch",{"$f":"ROWS($D$2:D216)","v":215},{"$f":"IF(ISNUMBER(SEARCH('cal formula'!$I$8,Department,1)),data!$I216,\"\")","v":""},{"$f":"IFERROR(SMALL($J$2:$J$251,ROWS($D$2:D216)),\"\")","v":""}]
[89816,"Sample M424","Male","Sales","GRD 02","Senior Executive ","2015-06-09","Bangalore Branch",{"$f":"ROWS($D$2:D217)","v":216},{"$f":"IF(ISNUMBER(SEARCH('cal formula'!$I$8,Department,1)),data!$I217,\"\")","v":""},{"$f":"IFERROR(SMALL($J$2:$J$251,ROWS($D$2:D217)),\"\")","v":""}]
[89784,"Sample M425","Male","Sales","GRD 02","Senior Executive ","2015-06-09","Bangalore Branch",{"$f":"ROWS($D$2:D218)","v":217},{"$f":"IF(ISNUMBER(SEARCH('cal formula'!$I$8,Department,1)),data!$I218,\"\")","v":""},{"$f":"IFERROR(SMALL($J$2:$J$251,ROWS($D$2:D218)),\"\")","v":""}]
[90194,"Sample M426","Male","Customer Service","GRD 03","Assistant Manager ","2015-06-10","Kolkata Branch",{"$f":"ROWS($D$2:D219)","v":218},{"$f":"IF(ISNUMBER(SEARCH('cal formula'!$I$8,Department,1)),data!$I219,\"\")","v":""},{"$f":"IFERROR(SMALL($J$2:$J$251,ROWS($D$2:D219)),\"\")","v":""}]
[90193,"Sample M427","Male","Sales","GRD 02","Senior Executive ","2015-06-23","Pune Branch",{"$f":"ROWS($D$2:D220)","v":219},{"$f":"IF(ISNUMBER(SEARCH('cal formula'!$I$8,Department,1)),data!$I220,\"\")","v":""},{"$f":"IFERROR(SMALL($J$2:$J$251,ROWS($D$2:D220)),\"\")","v":""}]
[90197,"Sample M428","Male","Servicing","GRD 03","Assistant Manager ","2015-07-01","Bangalore Branch",{"$f":"ROWS($D$2:D221)","v":220},{"$f":"IF(ISNUMBER(SEARCH('cal formula'!$I$8,Department,1)),data!$I221,\"\")","v":""},{"$f":"IFERROR(SMALL($J$2:$J$251,ROWS($D$2:D221)),\"\")","v":""}]
[89887,"Sample M429","Male","Sales","GRD 03","Assistant Manager ","2015-07-01","Noida Branch",{"$f":"ROWS($D$2:D222)","v":221},{"$f":"IF(ISNUMBER(SEARCH('cal formula'!$I$8,Department,1)),data!$I222,\"\")","v":""},{"$f":"IFERROR(SMALL($J$2:$J$251,ROWS($D$2:D222)),\"\")","v":""}]
[89247,"Sample M430","Male","Sales","GRD 03","Assistant Manager ","2015-07-04","Noida Branch",{"$f":"ROWS($D$2:D223)","v":222},{"$f":"IF(ISNUMBER(SEARCH('cal formula'!$I$8,Department,1)),data!$I223,\"\")","v":""},{"$f":"IFERROR(SMALL($J$2:$J$251,ROWS($D$2:D223)),\"\")","v":""}]
[89255,"Sample M431","Male","Finance & Accounts","GRD 05","Senior Manager","2015-07-10","Hyderabad Branch",{"$f":"ROWS($D$2:D224)","v":223},{"$f":"IF(ISNUMBER(SEARCH('cal formula'!$I$8,Department,1)),data!$I224,\"\")","v":""},{"$f":"IFERROR(SMALL($J$2:$J$251,ROWS($D$2:D224)),\"\")","v":""}]
[90195,"Sample M432","Male","Sales","GRD 05","Lead","2015-07-15","Noida Branch",{"$f":"ROWS($D$2:D225)","v":224},{"$f":"IF(ISNUMBER(SEARCH('cal formula'!$I$8,Department,1)),data!$I225,\"\")","v":""},{"$f":"IFERROR(SMALL($J$2:$J$251,ROWS($D$2:D225)),\"\")","v":""}]
[89934,"Sample M433","Male","Customer Service","GRD 02","Senior Executive ","2015-07-28","Kolkata Branch",{"$f":"ROWS($D$2:D226)","v":225},{"$f":"IF(ISNUMBER(SEARCH('cal formula'!$I$8,Department,1)),data!$I226,\"\")","v":""},{"$f":"IFERROR(SMALL($J$2:$J$251,ROWS($D$2:D226)),\"\")","v":""}]
[89319,"Sample M435","Male","Sales","GRD 02","Senior Executive ","2015-07-28","Noida Branch",{"$f":"ROWS($D$2:D227)","v":226},{"$f":"IF(ISNUMBER(SEARCH('cal formula'!$I$8,Department,1)),data!$I227,\"\")","v":""},{"$f":"IFERROR(SMALL($J$2:$J$251,ROWS($D$2:D227)),\"\")","v":""}]
[89496,"Sample F178","Female","Sales","GRD 03","Assistant Manager ","2015-07-31","Delhi Branch",{"$f":"ROWS($D$2:D228)","v":227},{"$f":"IF(ISNUMBER(SEARCH('cal formula'!$I$8,Department,1)),data!$I228,\"\")","v":""},{"$f":"IFERROR(SMALL($J$2:$J$251,ROWS($D$2:D228)),\"\")","v":""}]
[89958,"Sample F179","Female","Operations","GRD 03","Assistant Manager ","2015-07-31","Bangalore Branch",{"$f":"ROWS($D$2:D229)","v":228},{"$f":"IF(ISNUMBER(SEARCH('cal formula'!$I$8,Department,1)),data!$I229,\"\")","v":""},{"$f":"IFERROR(SMALL($J$2:$J$251,ROWS($D$2:D229)),\"\")","v":""}]
[89973,"Sample M436","Male","Supply Chain","GRD 02","Senior Executive ","2015-08-04","Goa Branch",{"$f":"ROWS($D$2:D230)","v":229},{"$f":"IF(ISNUMBER(SEARCH('cal formula'!$I$8,Department,1)),data!$I230,\"\")","v":""},{"$f":"IFERROR(SMALL($J$2:$J$251,ROWS($D$2:D230)),\"\")","v":""}]
[89714,"Sample M437","Male","Sales","GRD 03","Assistant Manager ","2015-08-09","Delhi Branch",{"$f":"ROWS($D$2:D231)","v":230},{"$f":"IF(ISNUMBER(SEARCH('cal formula'!$I$8,Department,1)),data!$I231,\"\")","v":""},{"$f":"IFERROR(SMALL($J$2:$J$251,ROWS($D$2:D231)),\"\")","v":""}]
[90227,"Sample F180","Female","Marketing","GRD 02","Senior Executive ","2015-08-20","Goa Branch",{"$f":"ROWS($D$2:D232)","v":231},{"$f":"IF(ISNUMBER(SEARCH('cal formula'!$I$8,Department,1)),data!$I232,\"\")","v":""},{"$f":"IFERROR(SMALL($J$2:$J$251,ROWS($D$2:D232)),\"\")","v":""}]
[90312,"Sample M438","Male","Marketing","GRD 02","Senior Executive ","2015-08-20","Mumbai Branch",{"$f":"ROWS($D$2:D233)","v":232},{"$f":"IF(ISNUMBER(SEARCH('cal formula'!$I$8,Department,1)),data!$I233,\"\")","v":""},{"$f":"IFERROR(SMALL($J$2:$J$251,ROWS($D$2:D233)),\"\")","v":""}]
[89700,"Sample M439","Male","Human Resource","GRD 02","Senior Executive ","2015-08-26","Bangalore Branch",{"$f":"ROWS($D$2:D234)","v":233},{"$f":"IF(ISNUMBER(SEARCH('cal formula'!$I$8,Department,1)),data!$I234,\"\")","v":""},{"$f":"IFERROR(SMALL($J$2:$J$251,ROWS($D$2:D234)),\"\")","v":""}]
[90206,"Sample M440","Male","Servicing","GRD 02","Senior Executive ","2015-09-01","Bangalore Branch",{"$f":"ROWS($D$2:D235)","v":234},{"$f":"IF(ISNUMBER(SEARCH('cal formula'!$I$8,Department,1)),data!$I235,\"\")","v":""},{"$f":"IFERROR(SMALL($J$2:$J$251,ROWS($D$2:D235)),\"\")","v":""}]
[90202,"Sample M441","Male","Supply Chain","GRD 04","Manager","2015-09-04","Mumbai Branch",{"$f":"ROWS($D$2:D236)","v":235},{"$f":"IF(ISNUMBER(SEARCH('cal formula'!$I$8,Department,1)),data!$I236,\"\")","v":""},{"$f":"IFERROR(SMALL($J$2:$J$251,ROWS($D$2:D236)),\"\")","v":""}]
[90121,"Sample F182","Female","Finance & Accounts","GRD 02","Senior Executive ","2015-09-10","Mumbai Branch",{"$f":"ROWS($D$2:D237)","v":236},{"$f":"IF(ISNUMBER(SEARCH('cal formula'!$I$8,Department,1)),data!$I237,\"\")","v":""},{"$f":"IFERROR(SMALL($J$2:$J$251,ROWS($D$2:D237)),\"\")","v":""}]
[89303,"Sample M442","Male","Servicing","GRD 02","Senior Executive ","2015-09-15","Bangalore Branch",{"$f":"ROWS($D$2:D238)","v":237},{"$f":"IF(ISNUMBER(SEARCH('cal formula'!$I$8,Department,1)),data!$I238,\"\")","v":""},{"$f":"IFERROR(SMALL($J$2:$J$251,ROWS($D$2:D238)),\"\")","v":""}]
[90210,"Sample F183","Female","Supply Chain","GRD 02","Senior Executive ","2015-09-16","Mumbai Branch",{"$f":"ROWS($D$2:D239)","v":238},{"$f":"IF(ISNUMBER(SEARCH('cal formula'!$I$8,Department,1)),data!$I239,\"\")","v":""},{"$f":"IFERROR(SMALL($J$2:$J$251,ROWS($D$2:D239)),\"\")","v":""}]
[89256,"Sample M443","Male","Supply Chain","GRD 02","Senior Executive ","2015-09-22","Gurgaon Branch",{"$f":"ROWS($D$2:D240)","v":239},{"$f":"IF(ISNUMBER(SEARCH('cal formula'!$I$8,Department,1)),data!$I240,\"\")","v":""},{"$f":"IFERROR(SMALL($J$2:$J$251,ROWS($D$2:D240)),\"\")","v":""}]
[89940,"Sample M444","Male","Sales","GRD 03","Assistant Manager ","2015-09-24","Delhi Branch",{"$f":"ROWS($D$2:D241)","v":240},{"$f":"IF(ISNUMBER(SEARCH('cal formula'!$I$8,Department,1)),data!$I241,\"\")","v":""},{"$f":"IFERROR(SMALL($J$2:$J$251,ROWS($D$2:D241)),\"\")","v":""}]
[90214,"Sample M445","Male","Purchase","GRD 02","Senior Executive ","2015-09-29","Delhi Branch",{"$f":"ROWS($D$2:D242)","v":241},{"$f":"IF(ISNUMBER(SEARCH('cal formula'!$I$8,Department,1)),data!$I242,\"\")","v":""},{"$f":"IFERROR(SMALL($J$2:$J$251,ROWS($D$2:D242)),\"\")","v":""}]
[90200,"Sample M446","Male","Information Technology","GRD 06","Vice President ","2015-09-30","Bangalore Branch",{"$f":"ROWS($D$2:D243)","v":242},{"$f":"IF(ISNUMBER(SEARCH('cal formula'!$I$8,Department,1)),data!$I243,\"\")","v":242},{"$f":"IFERROR(SMALL($J$2:$J$251,ROWS($D$2:D243)),\"\")","v":""}]
[89340,"Sample M447","Male","Customer Service","GRD 02","Senior Executive ","2015-10-09","Hyderabad Branch",{"$f":"ROWS($D$2:D244)","v":243},{"$f":"IF(ISNUMBER(SEARCH('cal formula'!$I$8,Department,1)),data!$I244,\"\")","v":""},{"$f":"IFERROR(SMALL($J$2:$J$251,ROWS($D$2:D244)),\"\")","v":""}]
[90274,"Sample M448","Male","Servicing","GRD 03","Assistant Manager ","2015-10-14","Mumbai Branch",{"$f":"ROWS($D$2:D245)","v":244},{"$f":"IF(ISNUMBER(SEARCH('cal formula'!$I$8,Department,1)),data!$I245,\"\")","v":""},{"$f":"IFERROR(SMALL($J$2:$J$251,ROWS($D$2:D245)),\"\")","v":""}]
[90220,"Sample F185","Female","Operations","GRD 02","Senior Executive ","2015-10-14","Hyderabad Branch",{"$f":"ROWS($D$2:D246)","v":245},{"$f":"IF(ISNUMBER(SEARCH('cal formula'!$I$8,Department,1)),data!$I246,\"\")","v":""},{"$f":"IFERROR(SMALL($J$2:$J$251,ROWS($D$2:D246)),\"\")","v":""}]
[89919,"Sample F186","Female","Sales","GRD 03","Assistant Manager ","2015-10-21","Bangalore Branch",{"$f":"ROWS($D$2:D247)","v":246},{"$f":"IF(ISNUMBER(SEARCH('cal formula'!$I$8,Department,1)),data!$I247,\"\")","v":""},{"$f":"IFERROR(SMALL($J$2:$J$251,ROWS($D$2:D247)),\"\")","v":""}]
[89442,"Sample M449","Male","Purchase","GRD 02","Senior Executive ","2015-10-27","Mumbai Branch",{"$f":"ROWS($D$2:D248)","v":247},{"$f":"IF(ISNUMBER(SEARCH('cal formula'!$I$8,Department,1)),data!$I248,\"\")","v":""},{"$f":"IFERROR(SMALL($J$2:$J$251,ROWS($D$2:D248)),\"\")","v":""}]
[90223,"Sample M450","Male","Purchase","GRD 02","Senior Executive ","2015-10-27","Delhi Branch",{"$f":"ROWS($D$2:D249)","v":248},{"$f":"IF(ISNUMBER(SEARCH('cal formula'!$I$8,Department,1)),data!$I249,\"\")","v":""},{"$f":"IFERROR(SMALL($J$2:$J$251,ROWS($D$2:D249)),\"\")","v":""}]
[89381,"Sample M451","Male","Customer Service","GRD 02","Senior Executive ","2015-11-03","Hyderabad Branch",{"$f":"ROWS($D$2:D250)","v":249},{"$f":"IF(ISNUMBER(SEARCH('cal formula'!$I$8,Department,1)),data!$I250,\"\")","v":""},{"$f":"IFERROR(SMALL($J$2:$J$251,ROWS($D$2:D250)),\"\")","v":""}]
[90262,"Sample M452","Male","Sales","GRD 02","Management Trainee","2015-11-10","Mumbai Branch",{"$f":"ROWS($D$2:D251)","v":250},{"$f":"IF(ISNUMBER(SEARCH('cal formula'!$I$8,Department,1)),data!$I251,\"\")","v":""},{"$f":"IFERROR(SMALL($J$2:$J$251,ROWS($D$2:D251)),\"\")","v":""}]

{"sheet":"cal formula","index":2,"n_rows":251,"n_cols":18,"rows_kept":251,"cut":false,"hidden":true,"merged":[[5,7,5,8]]}
["Full_Name","Department","Physical_Location","Band","Designation","Gender"]
[{"$f":"IF($I$8= \"All\", INDEX(data!$A$2:$H$251,,COLUMN(INDIRECT('cal formula'!A$1))),IFERROR(INDEX(data!$A$2:$H$251,data!$K2,COLUMN(INDIRECT('cal formula'!A$1))),\"\"))","v":"Sample F3"},{"$f":"IF($I$8= \"All\", INDEX(data!$A$2:$H$251,,COLUMN(INDIRECT('cal formula'!B$1))),IFERROR(INDEX(data!$A$2:$H$251,data!$K2,COLUMN(INDIRECT('cal formula'!B$1))),\"\"))","v":"Information Technology"},{"$f":"IF($I$8= \"All\", INDEX(data!$A$2:$H$251,,COLUMN(INDIRECT('cal formula'!C$1))),IFERROR(INDEX(data!$A$2:$H$251,data!$K2,COLUMN(INDIRECT('cal formula'!C$1))),\"\"))","v":"Kolkata Branch"},{"$f":"IF($I$8= \"All\", INDEX(data!$A$2:$H$251,,COLUMN(INDIRECT('cal formula'!D$1))),IFERROR(INDEX(data!$A$2:$H$251,data!$K2,COLUMN(INDIRECT('cal formula'!D$1))),\"\"))","v":"GRD 05"},{"$f":"IF($I$8= \"All\", INDEX(data!$A$2:$H$251,,COLUMN(INDIRECT('cal formula'!E$1))),IFERROR(INDEX(data!$A$2:$H$251,data!$K2,COLUMN(INDIRECT('cal formula'!E$1))),\"\"))","v":"Lead"},{"$f":"IF($I$8= \"All\", INDEX(data!$A$2:$H$251,,COLUMN(INDIRECT('cal formula'!F$1))),IFERROR(INDEX(data!$A$2:$H$251,data!$K2,COLUMN(INDIRECT('cal formula'!F$1))),\"\"))","v":"Female"},null,"Combo Box Linked Cell",1]
[{"$f":"IF($I$8= \"All\", INDEX(data!$A$2:$H$251,,COLUMN(INDIRECT('cal formula'!A$1))),IFERROR(INDEX(data!$A$2:$H$251,data!$K3,COLUMN(INDIRECT('cal formula'!A$1))),\"\"))","v":"Sample M31"},{"$f":"IF($I$8= \"All\", INDEX(data!$A$2:$H$251,,COLUMN(INDIRECT('cal formula'!B$1))),IFERROR(INDEX(data!$A$2:$H$251,data!$K3,COLUMN(INDIRECT('cal formula'!B$1))),\"\"))","v":"Information Technology"},{"$f":"IF($I$8= \"All\", INDEX(data!$A$2:$H$251,,COLUMN(INDIRECT('cal formula'!C$1))),IFERROR(INDEX(data!$A$2:$H$251,data!$K3,COLUMN(INDIRECT('cal formula'!C$1))),\"\"))","v":"Kolkata Branch"},{"$f":"IF($I$8= \"All\", INDEX(data!$A$2:$H$251,,COLUMN(INDIRECT('cal formula'!D$1))),IFERROR(INDEX(data!$A$2:$H$251,data!$K3,COLUMN(INDIRECT('cal formula'!D$1))),\"\"))","v":"GRD 04"},{"$f":"IF($I$8= \"All\", INDEX(data!$A$2:$H$251,,COLUMN(INDIRECT('cal formula'!E$1))),IFERROR(INDEX(data!$A$2:$H$251,data!$K3,COLUMN(INDIRECT('cal formula'!E$1))),\"\"))","v":"Manager"},{"$f":"IF($I$8= \"All\", INDEX(data!$A$2:$H$251,,COLUMN(INDIRECT('cal formula'!F$1))),IFERROR(INDEX(data!$A$2:$H$251,data!$K3,COLUMN(INDIRECT('cal formula'!F$1))),\"\"))","v":"Male"},null,"Value ",{"$f":"INDEX('Unique List'!$E$15:$E$16,'cal formula'!$I$2)","v":"Location"}]
[{"$f":"IF($I$8= \"All\", INDEX(data!$A$2:$H$251,,COLUMN(INDIRECT('cal formula'!A$1))),IFERROR(INDEX(data!$A$2:$H$251,data!$K4,COLUMN(INDIRECT('cal formula'!A$1))),\"\"))","v":"Sample F36"},{"$f":"IF($I$8= \"All\", INDEX(data!$A$2:$H$251,,COLUMN(INDIRECT('cal formula'!B$1))),IFERROR(INDEX(data!$A$2:$H$251,data!$K4,COLUMN(INDIRECT('cal formula'!B$1))),\"\"))","v":"Information Technology"},{"$f":"IF($I$8= \"All\", INDEX(data!$A$2:$H$251,,COLUMN(INDIRECT('cal formula'!C$1))),IFERROR(INDEX(data!$A$2:$H$251,data!$K4,COLUMN(INDIRECT('cal formula'!C$1))),\"\"))","v":"Kolkata Branch"},{"$f":"IF($I$8= \"All\", INDEX(data!$A$2:$H$251,,COLUMN(INDIRECT('cal formula'!D$1))),IFERROR(INDEX(data!$A$2:$H$251,data!$K4,COLUMN(INDIRECT('cal formula'!D$1))),\"\"))","v":"GRD 06"},{"$f":"IF($I$8= \"All\", INDEX(data!$A$2:$H$251,,COLUMN(INDIRECT('cal formula'!E$1))),IFERROR(INDEX(data!$A$2:$H$251,data!$K4,COLUMN(INDIRECT('cal formula'!E$1))),\"\"))","v":"Vice President "},{"$f":"IF($I$8= \"All\", INDEX(data!$A$2:$H$251,,COLUMN(INDIRECT('cal formula'!F$1))),IFERROR(INDEX(data!$A$2:$H$251,data!$K4,COLUMN(INDIRECT('cal formula'!F$1))),\"\"))","v":"Female"},null,"Named Range",{"$f":"INDEX('Unique List'!$F$15:$F$16,'cal formula'!$I$2)","v":"location_unique"}]
[{"$f":"IF($I$8= \"All\", INDEX(data!$A$2:$H$251,,COLUMN(INDIRECT('cal formula'!A$1))),IFERROR(INDEX(data!$A$2:$H$251,data!$K5,COLUMN(INDIRECT('cal formula'!A$1))),\"\"))","v":"Sample M110"},{"$f":"IF($I$8= \"All\", INDEX(data!$A$2:$H$251,,COLUMN(INDIRECT('cal formula'!B$1))),IFERROR(INDEX(data!$A$2:$H$251,data!$K5,COLUMN(INDIRECT('cal formula'!B$1))),\"\"))","v":"Information Technology"},{"$f":"IF($I$8= \"All\", INDEX(data!$A$2:$H$251,,COLUMN(INDIRECT('cal formula'!C$1))),IFERROR(INDEX(data!$A$2:$H$251,data!$K5,COLUMN(INDIRECT('cal formula'!C$1))),\"\"))","v":"Mumbai Branch"},{"$f":"IF($I$8= \"All\", INDEX(data!$A$2:$H$251,,COLUMN(INDIRECT('cal formula'!D$1))),IFERROR(INDEX(data!$A$2:$H$251,data!$K5,COLUMN(INDIRECT('cal formula'!D$1))),\"\"))","v":"GRD 03"},{"$f":"IF($I$8= \"All\", INDEX(data!$A$2:$H$251,,COLUMN(INDIRECT('cal formula'!E$1))),IFERROR(INDEX(data!$A$2:$H$251,data!$K5,COLUMN(INDIRECT('cal formula'!E$1))),\"\"))","v":"Assistant Manager "},{"$f":"IF($I$8= \"All\", INDEX(data!$A$2:$H$251,,COLUMN(INDIRECT('cal formula'!F$1))),IFERROR(INDEX(data!$A$2:$H$251,data!$K5,COLUMN(INDIRECT('cal formula'!F$1))),\"\"))","v":"Male"}]
[{"$f":"IF($I$8= \"All\", INDEX(data!$A$2:$H$251,,COLUMN(INDIRECT('cal formula'!A$1))),IFERROR(INDEX(data!$A$2:$H$251,data!$K6,COLUMN(INDIRECT('cal formula'!A$1))),\"\"))","v":"Sample M146"},{"$f":"IF($I$8= \"All\", INDEX(data!$A$2:$H$251,,COLUMN(INDIRECT('cal formula'!B$1))),IFERROR(INDEX(data!$A$2:$H$251,data!$K6,COLUMN(INDIRECT('cal formula'!B$1))),\"\"))","v":"Information Technology"},{"$f":"IF($I$8= \"All\", INDEX(data!$A$2:$H$251,,COLUMN(INDIRECT('cal formula'!C$1))),IFERROR(INDEX(data!$A$2:$H$251,data!$K6,COLUMN(INDIRECT('cal formula'!C$1))),\"\"))","v":"Noida Branch"},{"$f":"IF($I$8= \"All\", INDEX(data!$A$2:$H$251,,COLUMN(INDIRECT('cal formula'!D$1))),IFERROR(INDEX(data!$A$2:$H$251,data!$K6,COLUMN(INDIRECT('cal formula'!D$1))),\"\"))","v":"GRD 05"},{"$f":"IF($I$8= \"All\", INDEX(data!$A$2:$H$251,,COLUMN(INDIRECT('cal formula'!E$1))),IFERROR(INDEX(data!$A$2:$H$251,data!$K6,COLUMN(INDIRECT('cal formula'!E$1))),\"\"))","v":"Senior Manager"},{"$f":"IF($I$8= \"All\", INDEX(data!$A$2:$H$251,,COLUMN(INDIRECT('cal formula'!F$1))),IFERROR(INDEX(data!$A$2:$H$251,data!$K6,COLUMN(INDIRECT('cal formula'!F$1))),\"\"))","v":"Male"},null,"Sub Category"]
[{"$f":"IF($I$8= \"All\", INDEX(data!$A$2:$H$251,,COLUMN(INDIRECT('cal formula'!A$1))),IFERROR(INDEX(data!$A$2:$H$251,data!$K7,COLUMN(INDIRECT('cal formula'!A$1))),\"\"))","v":"Sample M205"},{"$f":"IF($I$8= \"All\", INDEX(data!$A$2:$H$251,,COLUMN(INDIRECT('cal formula'!B$1))),IFERROR(INDEX(data!$A$2:$H$251,data!$K7,COLUMN(INDIRECT('cal formula'!B$1))),\"\"))","v":"Information Technology"},{"$f":"IF($I$8= \"All\", INDEX(data!$A$2:$H$251,,COLUMN(INDIRECT('cal formula'!C$1))),IFERROR(INDEX(data!$A$2:$H$251,data!$K7,COLUMN(INDIRECT('cal formula'!C$1))),\"\"))","v":"Noida Branch"},{"$f":"IF($I$8= \"All\", INDEX(data!$A$2:$H$251,,COLUMN(INDIRECT('cal formula'!D$1))),IFERROR(INDEX(data!$A$2:$H$251,data!$K7,COLUMN(INDIRECT('cal formula'!D$1))),\"\"))","v":"GRD 03"},{"$f":"IF($I$8= \"All\", INDEX(data!$A$2:$H$251,,COLUMN(INDIRECT('cal formula'!E$1))),IFERROR(INDEX(data!$A$2:$H$251,data!$K7,COLUMN(INDIRECT('cal formula'!E$1))),\"\"))","v":"Assistant Manager "},{"$f":"IF($I$8= \"All\", INDEX(data!$A$2:$H$251,,COLUMN(INDIRECT('cal formula'!F$1))),IFERROR(INDEX(data!$A$2:$H$251,data!$K7,COLUMN(INDIRECT('cal formula'!F$1))),\"\"))","v":"Male"},null,"Combo Box Linked Cell",4]
[{"$f":"IF($I$8= \"All\", INDEX(data!$A$2:$H$251,,COLUMN(INDIRECT('cal formula'!A$1))),IFERROR(INDEX(data!$A$2:$H$251,data!$K8,COLUMN(INDIRECT('cal formula'!A$1))),\"\"))","v":"Sample M252"},{"$f":"IF($I$8= \"All\", INDEX(data!$A$2:$H$251,,COLUMN(INDIRECT('cal formula'!B$1))),IFERROR(INDEX(data!$A$2:$H$251,data!$K8,COLUMN(INDIRECT('cal formula'!B$1))),\"\"))","v":"Information Technology"},{"$f":"IF($I$8= \"All\", INDEX(data!$A$2:$H$251,,COLUMN(INDIRECT('cal formula'!C$1))),IFERROR(INDEX(data!$A$2:$H$251,data!$K8,COLUMN(INDIRECT('cal formula'!C$1))),\"\"))","v":"Pune Branch"},{"$f":"IF($I$8= \"All\", INDEX(data!$A$2:$H$251,,COLUMN(INDIRECT('cal formula'!D$1))),IFERROR(INDEX(data!$A$2:$H$251,data!$K8,COLUMN(INDIRECT('cal formula'!D$1))),\"\"))","v":"GRD 01"},{"$f":"IF($I$8= \"All\", INDEX(data!$A$2:$H$251,,COLUMN(INDIRECT('cal formula'!E$1))),IFERROR(INDEX(data!$A$2:$H$251,data!$K8,COLUMN(INDIRECT('cal formula'!E$1))),\"\"))","v":"Associate"},{"$f":"IF($I$8= \"All\", INDEX(data!$A$2:$H$251,,COLUMN(INDIRECT('cal formula'!F$1))),IFERROR(INDEX(data!$A$2:$H$251,data!$K8,COLUMN(INDIRECT('cal formula'!F$1))),\"\"))","v":"Male"},null,"Value ",{"$f":"INDEX(department_unique,'cal formula'!$I$7)","v":"Information Technology"}]
[{"$f":"IF($I$8= \"All\", INDEX(data!$A$2:$H$251,,COLUMN(INDIRECT('cal formula'!A$1))),IFERROR(INDEX(data!$A$2:$H$251,data!$K9,COLUMN(INDIRECT('cal formula'!A$1))),\"\"))","v":"Sample F114"},{"$f":"IF($I$8= \"All\", INDEX(data!$A$2:$H$251,,COLUMN(INDIRECT('cal formula'!B$1))),IFERROR(INDEX(data!$A$2:$H$251,data!$K9,COLUMN(INDIRECT('cal formula'!B$1))),\"\"))","v":"Information Technology"},{"$f":"IF($I$8= \"All\", INDEX(data!$A$2:$H$251,,COLUMN(INDIRECT('cal formula'!C$1))),IFERROR(INDEX(data!$A$2:$H$251,data!$K9,COLUMN(INDIRECT('cal formula'!C$1))),\"\"))","v":"Pune Branch"},{"$f":"IF($I$8= \"All\", INDEX(data!$A$2:$H$251,,COLUMN(INDIRECT('cal formula'!D$1))),IFERROR(INDEX(data!$A$2:$H$251,data!$K9,COLUMN(INDIRECT('cal formula'!D$1))),\"\"))","v":"GRD 02"},{"$f":"IF($I$8= \"All\", INDEX(data!$A$2:$H$251,,COLUMN(INDIRECT('cal formula'!E$1))),IFERROR(INDEX(data!$A$2:$H$251,data!$K9,COLUMN(INDIRECT('cal formula'!E$1))),\"\"))","v":"Senior Executive "},{"$f":"IF($I$8= \"All\", INDEX(data!$A$2:$H$251,,COLUMN(INDIRECT('cal formula'!F$1))),IFERROR(INDEX(data!$A$2:$H$251,data!$K9,COLUMN(INDIRECT('cal formula'!F$1))),\"\"))","v":"Female"}]
[{"$f":"IF($I$8= \"All\", INDEX(data!$A$2:$H$251,,COLUMN(INDIRECT('cal formula'!A$1))),IFERROR(INDEX(data!$A$2:$H$251,data!$K10,COLUMN(INDIRECT('cal formula'!A$1))),\"\"))","v":"Sample M335"},{"$f":"IF($I$8= \"All\", INDEX(data!$A$2:$H$251,,COLUMN(INDIRECT('cal formula'!B$1))),IFERROR(INDEX(data!$A$2:$H$251,data!$K10,COLUMN(INDIRECT('cal formula'!B$1))),\"\"))","v":"Information Technology"},{"$f":"IF($I$8= \"All\", INDEX(data!$A$2:$H$251,,COLUMN(INDIRECT('cal formula'!C$1))),IFERROR(INDEX(data!$A$2:$H$251,data!$K10,COLUMN(INDIRECT('cal formula'!C$1))),\"\"))","v":"Pune Branch"},{"$f":"IF($I$8= \"All\", INDEX(data!$A$2:$H$251,,COLUMN(INDIRECT('cal formula'!D$1))),IFERROR(INDEX(data!$A$2:$H$251,data!$K10,COLUMN(INDIRECT('cal formula'!D$1))),\"\"))","v":"GRD 01"},{"$f":"IF($I$8= \"All\", INDEX(data!$A$2:$H$251,,COLUMN(INDIRECT('cal formula'!E$1))),IFERROR(INDEX(data!$A$2:$H$251,data!$K10,COLUMN(INDIRECT('cal formula'!E$1))),\"\"))","v":"Associate"},{"$f":"IF($I$8= \"All\", INDEX(data!$A$2:$H$251,,COLUMN(INDIRECT('cal formula'!F$1))),IFERROR(INDEX(data!$A$2:$H$251,data!$K10,COLUMN(INDIRECT('cal formula'!F$1))),\"\"))","v":"Male"}]
[{"$f":"IF($I$8= \"All\", INDEX(data!$A$2:$H$251,,COLUMN(INDIRECT('cal formula'!A$1))),IFERROR(INDEX(data!$A$2:$H$251,data!$K11,COLUMN(INDIRECT('cal formula'!A$1))),\"\"))","v":"Sample F137"},{"$f":"IF($I$8= \"All\", INDEX(data!$A$2:$H$251,,COLUMN(INDIRECT('cal formula'!B$1))),IFERROR(INDEX(data!$A$2:$H$251,data!$K11,COLUMN(INDIRECT('cal formula'!B$1))),\"\"))","v":"Information Technology"},{"$f":"IF($I$8= \"All\", INDEX(data!$A$2:$H$251,,COLUMN(INDIRECT('cal formula'!C$1))),IFERROR(INDEX(data!$A$2:$H$251,data!$K11,COLUMN(INDIRECT('cal formula'!C$1))),\"\"))","v":"Mumbai Branch"},{"$f":"IF($I$8= \"All\", INDEX(data!$A$2:$H$251,,COLUMN(INDIRECT('cal formula'!D$1))),IFERROR(INDEX(data!$A$2:$H$251,data!$K11,COLUMN(INDIRECT('cal formula'!D$1))),\"\"))","v":"GRD 03"},{"$f":"IF($I$8= \"All\", INDEX(data!$A$2:$H$251,,COLUMN(INDIRECT('cal formula'!E$1))),IFERROR(INDEX(data!$A$2:$H$251,data!$K11,COLUMN(INDIRECT('cal formula'!E$1))),\"\"))","v":"Assistant Manager "},{"$f":"IF($I$8= \"All\", INDEX(data!$A$2:$H$251,,COLUMN(INDIRECT('cal formula'!F$1))),IFERROR(INDEX(data!$A$2:$H$251,data!$K11,COLUMN(INDIRECT('cal formula'!F$1))),\"\"))","v":"Female"},null,null,{"$f":"I12&\" \"&\"employees\"","v":"16 employees"},null,null,null,null,"Location Based Count"]
[{"$f":"IF($I$8= \"All\", INDEX(data!$A$2:$H$251,,COLUMN(INDIRECT('cal formula'!A$1))),IFERROR(INDEX(data!$A$2:$H$251,data!$K12,COLUMN(INDIRECT('cal formula'!A$1))),\"\"))","v":"Sample M345"},{"$f":"IF($I$8= \"All\", INDEX(data!$A$2:$H$251,,COLUMN(INDIRECT('cal formula'!B$1))),IFERROR(INDEX(data!$A$2:$H$251,data!$K12,COLUMN(INDIRECT('cal formula'!B$1))),\"\"))","v":"Information Technology"},{"$f":"IF($I$8= \"All\", INDEX(data!$A$2:$H$251,,COLUMN(INDIRECT('cal formula'!C$1))),IFERROR(INDEX(data!$A$2:$H$251,data!$K12,COLUMN(INDIRECT('cal formula'!C$1))),\"\"))","v":"Mumbai Branch"},{"$f":"IF($I$8= \"All\", INDEX(data!$A$2:$H$251,,COLUMN(INDIRECT('cal formula'!D$1))),IFERROR(INDEX(data!$A$2:$H$251,data!$K12,COLUMN(INDIRECT('cal formula'!D$1))),\"\"))","v":"GRD 02"},{"$f":"IF($I$8= \"All\", INDEX(data!$A$2:$H$251,,COLUMN(INDIRECT('cal formula'!E$1))),IFERROR(INDEX(data!$A$2:$H$251,data!$K12,COLUMN(INDIRECT('cal formula'!E$1))),\"\"))","v":"Senior Executive "},{"$f":"IF($I$8= \"All\", INDEX(data!$A$2:$H$251,,COLUMN(INDIRECT('cal formula'!F$1))),IFERROR(INDEX(data!$A$2:$H$251,data!$K12,COLUMN(INDIRECT('cal formula'!F$1))),\"\"))","v":"Male"},null,"Location Count",{"$f":"SUM(I14:I23)","v":16}]
[{"$f":"IF($I$8= \"All\", INDEX(data!$A$2:$H$251,,COLUMN(INDIRECT('cal formula'!A$1))),IFERROR(INDEX(data!$A$2:$H$251,data!$K13,COLUMN(INDIRECT('cal formula'!A$1))),\"\"))","v":"Sample M375"},{"$f":"IF($I$8= \"All\", INDEX(data!$A$2:$H$251,,COLUMN(INDIRECT('cal formula'!B$1))),IFERROR(INDEX(data!$A$2:$H$251,data!$K13,COLUMN(INDIRECT('cal formula'!B$1))),\"\"))","v":"Information Technology"},{"$f":"IF($I$8= \"All\", INDEX(data!$A$2:$H$251,,COLUMN(INDIRECT('cal formula'!C$1))),IFERROR(INDEX(data!$A$2:$H$251,data!$K13,COLUMN(INDIRECT('cal formula'!C$1))),\"\"))","v":"Mumbai Branch"},{"$f":"IF($I$8= \"All\", INDEX(data!$A$2:$H$251,,COLUMN(INDIRECT('cal formula'!D$1))),IFERROR(INDEX(data!$A$2:$H$251,data!$K13,COLUMN(INDIRECT('cal formula'!D$1))),\"\"))","v":"GRD 02"},{"$f":"IF($I$8= \"All\", INDEX(data!$A$2:$H$251,,COLUMN(INDIRECT('cal formula'!E$1))),IFERROR(INDEX(data!$A$2:$H$251,data!$K13,COLUMN(INDIRECT('cal formula'!E$1))),\"\"))","v":"Senior Executive "},{"$f":"IF($I$8= \"All\", INDEX(data!$A$2:$H$251,,COLUMN(INDIRECT('cal formula'!F$1))),IFERROR(INDEX(data!$A$2:$H$251,data!$K13,COLUMN(INDIRECT('cal formula'!F$1))),\"\"))","v":"Male"},null,"Location Name","Location Nos","rows no","criteria","stack",null,"Location Name","Location Nos",null,"named location name","named location nos"]
[{"$f":"IF($I$8= \"All\", INDEX(data!$A$2:$H$251,,COLUMN(INDIRECT('cal formula'!A$1))),IFERROR(INDEX(data!$A$2:$H$251,data!$K14,COLUMN(INDIRECT('cal formula'!A$1))),\"\"))","v":"Sample M376"},{"$f":"IF($I$8= \"All\", INDEX(data!$A$2:$H$251,,COLUMN(INDIRECT('cal formula'!B$1))),IFERROR(INDEX(data!$A$2:$H$251,data!$K14,COLUMN(INDIRECT('cal formula'!B$1))),\"\"))","v":"Information Technology"},{"$f":"IF($I$8= \"All\", INDEX(data!$A$2:$H$251,,COLUMN(INDIRECT('cal formula'!C$1))),IFERROR(INDEX(data!$A$2:$H$251,data!$K14,COLUMN(INDIRECT('cal formula'!C$1))),\"\"))","v":"Mumbai Branch"},{"$f":"IF($I$8= \"All\", INDEX(data!$A$2:$H$251,,COLUMN(INDIRECT('cal formula'!D$1))),IFERROR(INDEX(data!$A$2:$H$251,data!$K14,COLUMN(INDIRECT('cal formula'!D$1))),\"\"))","v":"GRD 03"},{"$f":"IF($I$8= \"All\", INDEX(data!$A$2:$H$251,,COLUMN(INDIRECT('cal formula'!E$1))),IFERROR(INDEX(data!$A$2:$H$251,data!$K14,COLUMN(INDIRECT('cal formula'!E$1))),\"\"))","v":"Assistant Manager "},{"$f":"IF($I$8= \"All\", INDEX(data!$A$2:$H$251,,COLUMN(INDIRECT('cal formula'!F$1))),IFERROR(INDEX(data!$A$2:$H$251,data!$K14,COLUMN(INDIRECT('cal formula'!F$1))),\"\"))","v":"Male"},null,"Bangalore Branch",{"$f":"IF(COUNTIF($C$2:$C$251,$H14)>=1,COUNTIF($C$2:$C$251,$H14),0)","v":3},{"$f":"ROWS($I$14:I14)","v":1},{"$f":"IF($I14>0,$J14,\"\")","v":1},{"$f":"IFERROR(SMALL($K$14:$K$23,ROWS($J$14:J14)),\"\")","v":1},null,{"$f":"IFERROR(INDEX($H$14:$H$23,$L14,COLUMNS($J$14:J14)),\"\")","v":"Bangalore Branch"},{"$f":"IFERROR(INDEX($I$14:$I$23,$L14,COLUMNS($J$14:J14)),\"\")","v":3},null,{"$f":"$N$14:INDEX($N$14:$N$23,COUNTIF($N$14:$N$23,\"?*\"))","v":"Bangalore Branch"},{"$f":"$O$14:INDEX($O$14:$O$23,COUNTIF($O$14:$O$23,\">0\"))","v":3}]
[{"$f":"IF($I$8= \"All\", INDEX(data!$A$2:$H$251,,COLUMN(INDIRECT('cal formula'!A$1))),IFERROR(INDEX(data!$A$2:$H$251,data!$K15,COLUMN(INDIRECT('cal formula'!A$1))),\"\"))","v":"Sample F159"},{"$f":"IF($I$8= \"All\", INDEX(data!$A$2:$H$251,,COLUMN(INDIRECT('cal formula'!B$1))),IFERROR(INDEX(data!$A$2:$H$251,data!$K15,COLUMN(INDIRECT('cal formula'!B$1))),\"\"))","v":"Information Technology"},{"$f":"IF($I$8= \"All\", INDEX(data!$A$2:$H$251,,COLUMN(INDIRECT('cal formula'!C$1))),IFERROR(INDEX(data!$A$2:$H$251,data!$K15,COLUMN(INDIRECT('cal formula'!C$1))),\"\"))","v":"Bangalore Branch"},{"$f":"IF($I$8= \"All\", INDEX(data!$A$2:$H$251,,COLUMN(INDIRECT('cal formula'!D$1))),IFERROR(INDEX(data!$A$2:$H$251,data!$K15,COLUMN(INDIRECT('cal formula'!D$1))),\"\"))","v":"GRD 02"},{"$f":"IF($I$8= \"All\", INDEX(data!$A$2:$H$251,,COLUMN(INDIRECT('cal formula'!E$1))),IFERROR(INDEX(data!$A$2:$H$251,data!$K15,COLUMN(INDIRECT('cal formula'!E$1))),\"\"))","v":"Senior Executive "},{"$f":"IF($I$8= \"All\", INDEX(data!$A$2:$H$251,,COLUMN(INDIRECT('cal formula'!F$1))),IFERROR(INDEX(data!$A$2:$H$251,data!$K15,COLUMN(INDIRECT('cal formula'!F$1))),\"\"))","v":"Female"},null,"Mumbai Branch",5,{"$f":"ROWS($I$14:I15)","v":2},{"$f":"IF($I15>0,$J15,\"\")","v":2},{"$f":"IFERROR(SMALL($K$14:$K$23,ROWS($J$14:J15)),\"\")","v":2},null,{"$f":"IFERROR(INDEX($H$14:$H$23,$L15,COLUMNS($J$14:J15)),\"\")","v":"Mumbai Branch"},{"$f":"IFERROR(INDEX($I$14:$I$23,$L15,COLUMNS($J$14:J15)),\"\")","v":5}]
[{"$f":"IF($I$8= \"All\", INDEX(data!$A$2:$H$251,,COLUMN(INDIRECT('cal formula'!A$1))),IFERROR(INDEX(data!$A$2:$H$251,data!$K16,COLUMN(INDIRECT('cal formula'!A$1))),\"\"))","v":"Sample F176"},{"$f":"IF($I$8= \"All\", INDEX(data!$A$2:$H$251,,COLUMN(INDIRECT('cal formula'!B$1))),IFERROR(INDEX(data!$A$2:$H$251,data!$K16,COLUMN(INDIRECT('cal formula'!B$1))),\"\"))","v":"Information Technology"},{"$f":"IF($I$8= \"All\", INDEX(data!$A$2:$H$251,,COLUMN(INDIRECT('cal formula'!C$1))),IFERROR(INDEX(data!$A$2:$H$251,data!$K16,COLUMN(INDIRECT('cal formula'!C$1))),\"\"))","v":"Bangalore Branch"},{"$f":"IF($I$8= \"All\", INDEX(data!$A$2:$H$251,,COLUMN(INDIRECT('cal formula'!D$1))),IFERROR(INDEX(data!$A$2:$H$251,data!$K16,COLUMN(INDIRECT('cal formula'!D$1))),\"\"))","v":"GRD 02"},{"$f":"IF($I$8= \"All\", INDEX(data!$A$2:$H$251,,COLUMN(INDIRECT('cal formula'!E$1))),IFERROR(INDEX(data!$A$2:$H$251,data!$K16,COLUMN(INDIRECT('cal formula'!E$1))),\"\"))","v":"Senior Executive "},{"$f":"IF($I$8= \"All\", INDEX(data!$A$2:$H$251,,COLUMN(INDIRECT('cal formula'!F$1))),IFERROR(INDEX(data!$A$2:$H$251,data!$K16,COLUMN(INDIRECT('cal formula'!F$1))),\"\"))","v":"Female"},null,"Kolkata Branch",3,{"$f":"ROWS($I$14:I16)","v":3},3,{"$f":"IFERROR(SMALL($K$14:$K$23,ROWS($J$14:J16)),\"\")","v":3},null,{"$f":"IFERROR(INDEX($H$14:$H$23,$L16,COLUMNS($J$14:J16)),\"\")","v":"Kolkata Branch"},{"$f":"IFERROR(INDEX($I$14:$I$23,$L16,COLUMNS($J$14:J16)),\"\")","v":3}]
[{"$f":"IF($I$8= \"All\", INDEX(data!$A$2:$H$251,,COLUMN(INDIRECT('cal formula'!A$1))),IFERROR(INDEX(data!$A$2:$H$251,data!$K17,COLUMN(INDIRECT('cal formula'!A$1))),\"\"))","v":"Sample M446"},{"$f":"IF($I$8= \"All\", INDEX(data!$A$2:$H$251,,COLUMN(INDIRECT('cal formula'!B$1))),IFERROR(INDEX(data!$A$2:$H$251,data!$K17,COLUMN(INDIRECT('cal formula'!B$1))),\"\"))","v":"Information Technology"},{"$f":"IF($I$8= \"All\", INDEX(data!$A$2:$H$251,,COLUMN(INDIRECT('cal formula'!C$1))),IFERROR(INDEX(data!$A$2:$H$251,data!$K17,COLUMN(INDIRECT('cal formula'!C$1))),\"\"))","v":"Bangalore Branch"},{"$f":"IF($I$8= \"All\", INDEX(data!$A$2:$H$251,,COLUMN(INDIRECT('cal formula'!D$1))),IFERROR(INDEX(data!$A$2:$H$251,data!$K17,COLUMN(INDIRECT('cal formula'!D$1))),\"\"))","v":"GRD 06"},{"$f":"IF($I$8= \"All\", INDEX(data!$A$2:$H$251,,COLUMN(INDIRECT('cal formula'!E$1))),IFERROR(INDEX(data!$A$2:$H$251,data!$K17,COLUMN(INDIRECT('cal formula'!E$1))),\"\"))","v":"Vice President "},{"$f":"IF($I$8= \"All\", INDEX(data!$A$2:$H$251,,COLUMN(INDIRECT('cal formula'!F$1))),IFERROR(INDEX(data!$A$2:$H$251,data!$K17,COLUMN(INDIRECT('cal formula'!F$1))),\"\"))","v":"Male"},null,"Gurgaon Branch",0,{"$f":"ROWS($I$14:I17)","v":4},"",{"$f":"IFERROR(SMALL($K$14:$K$23,ROWS($J$14:J17)),\"\")","v":5},null,{"$f":"IFERROR(INDEX($H$14:$H$23,$L17,COLUMNS($J$14:J17)),\"\")","v":"Pune Branch"},{"$f":"IFERROR(INDEX($I$14:$I$23,$L17,COLUMNS($J$14:J17)),\"\")","v":3}]
[{"$f":"IF($I$8= \"All\", INDEX(data!$A$2:$H$251,,COLUMN(INDIRECT('cal formula'!A$1))),IFERROR(INDEX(data!$A$2:$H$251,data!$K18,COLUMN(INDIRECT('cal formula'!A$1))),\"\"))","v":""},{"$f":"IF($I$8= \"All\", INDEX(data!$A$2:$H$251,,COLUMN(INDIRECT('cal formula'!B$1))),IFERROR(INDEX(data!$A$2:$H$251,data!$K18,COLUMN(INDIRECT('cal formula'!B$1))),\"\"))","v":""},{"$f":"IF($I$8= \"All\", INDEX(data!$A$2:$H$251,,COLUMN(INDIRECT('cal formula'!C$1))),IFERROR(INDEX(data!$A$2:$H$251,data!$K18,COLUMN(INDIRECT('cal formula'!C$1))),\"\"))","v":""},{"$f":"IF($I$8= \"All\", INDEX(data!$A$2:$H$251,,COLUMN(INDIRECT('cal formula'!D$1))),IFERROR(INDEX(data!$A$2:$H$251,data!$K18,COLUMN(INDIRECT('cal formula'!D$1))),\"\"))","v":""},{"$f":"IF($I$8= \"All\", INDEX(data!$A$2:$H$251,,COLUMN(INDIRECT('cal formula'!E$1))),IFERROR(INDEX(data!$A$2:$H$251,data!$K18,COLUMN(INDIRECT('cal formula'!E$1))),\"\"))","v":""},{"$f":"IF($I$8= \"All\", INDEX(data!$A$2:$H$251,,COLUMN(INDIRECT('cal formula'!F$1))),IFERROR(INDEX(data!$A$2:$H$251,data!$K18,COLUMN(INDIRECT('cal formula'!F$1))),\"\"))","v":""},null,"Pune Branch",3,{"$f":"ROWS($I$14:I18)","v":5},5,{"$f":"IFERROR(SMALL($K$14:$K$23,ROWS($J$14:J18)),\"\")","v":7},null,{"$f":"IFERROR(INDEX($H$14:$H$23,$L18,COLUMNS($J$14:J18)),\"\")","v":"Noida Branch"},{"$f":"IFERROR(INDEX($I$14:$I$23,$L18,COLUMNS($J$14:J18)),\"\")","v":2}]
[{"$f":"IF($I$8= \"All\", INDEX(data!$A$2:$H$251,,COLUMN(INDIRECT('cal formula'!A$1))),IFERROR(INDEX(data!$A$2:$H$251,data!$K19,COLUMN(INDIRECT('cal formula'!A$1))),\"\"))","v":""},{"$f":"IF($I$8= \"All\", INDEX(data!$A$2:$H$251,,COLUMN(INDIRECT('cal formula'!B$1))),IFERROR(INDEX(data!$A$2:$H$251,data!$K19,COLUMN(INDIRECT('cal formula'!B$1))),\"\"))","v":""},{"$f":"IF($I$8= \"All\", INDEX(data!$A$2:$H$251,,COLUMN(INDIRECT('cal formula'!C$1))),IFERROR(INDEX(data!$A$2:$H$251,data!$K19,COLUMN(INDIRECT('cal formula'!C$1))),\"\"))","v":""},{"$f":"IF($I$8= \"All\", INDEX(data!$A$2:$H$251,,COLUMN(INDIRECT('cal formula'!D$1))),IFERROR(INDEX(data!$A$2:$H$251,data!$K19,COLUMN(INDIRECT('cal formula'!D$1))),\"\"))","v":""},{"$f":"IF($I$8= \"All\", INDEX(data!$A$2:$H$251,,COLUMN(INDIRECT('cal formula'!E$1))),IFERROR(INDEX(data!$A$2:$H$251,data!$K19,COLUMN(INDIRECT('cal formula'!E$1))),\"\"))","v":""},{"$f":"IF($I$8= \"All\", INDEX(data!$A$2:$H$251,,COLUMN(INDIRECT('cal formula'!F$1))),IFERROR(INDEX(data!$A$2:$H$251,data!$K19,COLUMN(INDIRECT('cal formula'!F$1))),\"\"))","v":""},null,"Delhi Branch",0,{"$f":"ROWS($I$14:I19)","v":6},"",{"$f":"IFERROR(SMALL($K$14:$K$23,ROWS($J$14:J19)),\"\")","v":""},null,{"$f":"IFERROR(INDEX($H$14:$H$23,$L19,COLUMNS($J$14:J19)),\"\")","v":""},{"$f":"IFERROR(INDEX($I$14:$I$23,$L19,COLUMNS($J$14:J19)),\"\")","v":""}]
[{"$f":"IF($I$8= \"All\", INDEX(data!$A$2:$H$251,,COLUMN(INDIRECT('cal formula'!A$1))),IFERROR(INDEX(data!$A$2:$H$251,data!$K20,COLUMN(INDIRECT('cal formula'!A$1))),\"\"))","v":""},{"$f":"IF($I$8= \"All\", INDEX(data!$A$2:$H$251,,COLUMN(INDIRECT('cal formula'!B$1))),IFERROR(INDEX(data!$A$2:$H$251,data!$K20,COLUMN(INDIRECT('cal formula'!B$1))),\"\"))","v":""},{"$f":"IF($I$8= \"All\", INDEX(data!$A$2:$H$251,,COLUMN(INDIRECT('cal formula'!C$1))),IFERROR(INDEX(data!$A$2:$H$251,data!$K20,COLUMN(INDIRECT('cal formula'!C$1))),\"\"))","v":""},{"$f":"IF($I$8= \"All\", INDEX(data!$A$2:$H$251,,COLUMN(INDIRECT('cal formula'!D$1))),IFERROR(INDEX(data!$A$2:$H$251,data!$K20,COLUMN(INDIRECT('cal formula'!D$1))),\"\"))","v":""},{"$f":"IF($I$8= \"All\", INDEX(data!$A$2:$H$251,,COLUMN(INDIRECT('cal formula'!E$1))),IFERROR(INDEX(data!$A$2:$H$251,data!$K20,COLUMN(INDIRECT('cal formula'!E$1))),\"\"))","v":""},{"$f":"IF($I$8= \"All\", INDEX(data!$A$2:$H$251,,COLUMN(INDIRECT('cal formula'!F$1))),IFERROR(INDEX(data!$A$2:$H$251,data!$K20,COLUMN(INDIRECT('cal formula'!F$1))),\"\"))","v":""},null,"Noida Branch",2,{"$f":"ROWS($I$14:I20)","v":7},7,{"$f":"IFERROR(SMALL($K$14:$K$23,ROWS($J$14:J20)),\"\")","v":""},null,{"$f":"IFERROR(INDEX($H$14:$H$23,$L20,COLUMNS($J$14:J20)),\"\")","v":""},{"$f":"IFERROR(INDEX($I$14:$I$23,$L20,COLUMNS($J$14:J20)),\"\")","v":""}]
[{"$f":"IF($I$8= \"All\", INDEX(data!$A$2:$H$251,,COLUMN(INDIRECT('cal formula'!A$1))),IFERROR(INDEX(data!$A$2:$H$251,data!$K21,COLUMN(INDIRECT('cal formula'!A$1))),\"\"))","v":""},{"$f":"IF($I$8= \"All\", INDEX(data!$A$2:$H$251,,COLUMN(INDIRECT('cal formula'!B$1))),IFERROR(INDEX(data!$A$2:$H$251,data!$K21,COLUMN(INDIRECT('cal formula'!B$1))),\"\"))","v":""},{"$f":"IF($I$8= \"All\", INDEX(data!$A$2:$H$251,,COLUMN(INDIRECT('cal formula'!C$1))),IFERROR(INDEX(data!$A$2:$H$251,data!$K21,COLUMN(INDIRECT('cal formula'!C$1))),\"\"))","v":""},{"$f":"IF($I$8= \"All\", INDEX(data!$A$2:$H$251,,COLUMN(INDIRECT('cal formula'!D$1))),IFERROR(INDEX(data!$A$2:$H$251,data!$K21,COLUMN(INDIRECT('cal formula'!D$1))),\"\"))","v":""},{"$f":"IF($I$8= \"All\", INDEX(data!$A$2:$H$251,,COLUMN(INDIRECT('cal formula'!E$1))),IFERROR(INDEX(data!$A$2:$H$251,data!$K21,COLUMN(INDIRECT('cal formula'!E$1))),\"\"))","v":""},{"$f":"IF($I$8= \"All\", INDEX(data!$A$2:$H$251,,COLUMN(INDIRECT('cal formula'!F$1))),IFERROR(INDEX(data!$A$2:$H$251,data!$K21,COLUMN(INDIRECT('cal formula'!F$1))),\"\"))","v":""},null,"Chennai Branch",0,{"$f":"ROWS($I$14:I21)","v":8},"",{"$f":"IFERROR(SMALL($K$14:$K$23,ROWS($J$14:J21)),\"\")","v":""},null,{"$f":"IFERROR(INDEX($H$14:$H$23,$L21,COLUMNS($J$14:J21)),\"\")","v":""},{"$f":"IFERROR(INDEX($I$14:$I$23,$L21,COLUMNS($J$14:J21)),\"\")","v":""}]
[{"$f":"IF($I$8= \"All\", INDEX(data!$A$2:$H$251,,COLUMN(INDIRECT('cal formula'!A$1))),IFERROR(INDEX(data!$A$2:$H$251,data!$K22,COLUMN(INDIRECT('cal formula'!A$1))),\"\"))","v":""},{"$f":"IF($I$8= \"All\", INDEX(data!$A$2:$H$251,,COLUMN(INDIRECT('cal formula'!B$1))),IFERROR(INDEX(data!$A$2:$H$251,data!$K22,COLUMN(INDIRECT('cal formula'!B$1))),\"\"))","v":""},{"$f":"IF($I$8= \"All\", INDEX(data!$A$2:$H$251,,COLUMN(INDIRECT('cal formula'!C$1))),IFERROR(INDEX(data!$A$2:$H$251,data!$K22,COLUMN(INDIRECT('cal formula'!C$1))),\"\"))","v":""},{"$f":"IF($I$8= \"All\", INDEX(data!$A$2:$H$251,,COLUMN(INDIRECT('cal formula'!D$1))),IFERROR(INDEX(data!$A$2:$H$251,data!$K22,COLUMN(INDIRECT('cal formula'!D$1))),\"\"))","v":""},{"$f":"IF($I$8= \"All\", INDEX(data!$A$2:$H$251,,COLUMN(INDIRECT('cal formula'!E$1))),IFERROR(INDEX(data!$A$2:$H$251,data!$K22,COLUMN(INDIRECT('cal formula'!E$1))),\"\"))","v":""},{"$f":"IF($I$8= \"All\", INDEX(data!$A$2:$H$251,,COLUMN(INDIRECT('cal formula'!F$1))),IFERROR(INDEX(data!$A$2:$H$251,data!$K22,COLUMN(INDIRECT('cal formula'!F$1))),\"\"))","v":""},null,"Hyderabad Branch",0,{"$f":"ROWS($I$14:I22)","v":9},"",{"$f":"IFERROR(SMALL($K$14:$K$23,ROWS($J$14:J22)),\"\")","v":""},null,{"$f":"IFERROR(INDEX($H$14:$H$23,$L22,COLUMNS($J$14:J22)),\"\")","v":""},{"$f":"IFERROR(INDEX($I$14:$I$23,$L22,COLUMNS($J$14:J22)),\"\")","v":""}]
[{"$f":"IF($I$8= \"All\", INDEX(data!$A$2:$H$251,,COLUMN(INDIRECT('cal formula'!A$1))),IFERROR(INDEX(data!$A$2:$H$251,data!$K23,COLUMN(INDIRECT('cal formula'!A$1))),\"\"))","v":""},{"$f":"IF($I$8= \"All\", INDEX(data!$A$2:$H$251,,COLUMN(INDIRECT('cal formula'!B$1))),IFERROR(INDEX(data!$A$2:$H$251,data!$K23,COLUMN(INDIRECT('cal formula'!B$1))),\"\"))","v":""},{"$f":"IF($I$8= \"All\", INDEX(data!$A$2:$H$251,,COLUMN(INDIRECT('cal formula'!C$1))),IFERROR(INDEX(data!$A$2:$H$251,data!$K23,COLUMN(INDIRECT('cal formula'!C$1))),\"\"))","v":""},{"$f":"IF($I$8= \"All\", INDEX(data!$A$2:$H$251,,COLUMN(INDIRECT('cal formula'!D$1))),IFERROR(INDEX(data!$A$2:$H$251,data!$K23,COLUMN(INDIRECT('cal formula'!D$1))),\"\"))","v":""},{"$f":"IF($I$8= \"All\", INDEX(data!$A$2:$H$251,,COLUMN(INDIRECT('cal formula'!E$1))),IFERROR(INDEX(data!$A$2:$H$251,data!$K23,COLUMN(INDIRECT('cal formula'!E$1))),\"\"))","v":""},{"$f":"IF($I$8= \"All\", INDEX(data!$A$2:$H$251,,COLUMN(INDIRECT('cal formula'!F$1))),IFERROR(INDEX(data!$A$2:$H$251,data!$K23,COLUMN(INDIRECT('cal formula'!F$1))),\"\"))","v":""},null,"Goa Branch",0,{"$f":"ROWS($I$14:I23)","v":10},"",{"$f":"IFERROR(SMALL($K$14:$K$23,ROWS($J$14:J23)),\"\")","v":""},null,{"$f":"IFERROR(INDEX($H$14:$H$23,$L23,COLUMNS($J$14:J23)),\"\")","v":""},{"$f":"IFERROR(INDEX($I$14:$I$23,$L23,COLUMNS($J$14:J23)),\"\")","v":""}]
[{"$f":"IF($I$8= \"All\", INDEX(data!$A$2:$H$251,,COLUMN(INDIRECT('cal formula'!A$1))),IFERROR(INDEX(data!$A$2:$H$251,data!$K24,COLUMN(INDIRECT('cal formula'!A$1))),\"\"))","v":""},{"$f":"IF($I$8= \"All\", INDEX(data!$A$2:$H$251,,COLUMN(INDIRECT('cal formula'!B$1))),IFERROR(INDEX(data!$A$2:$H$251,data!$K24,COLUMN(INDIRECT('cal formula'!B$1))),\"\"))","v":""},{"$f":"IF($I$8= \"All\", INDEX(data!$A$2:$H$251,,COLUMN(INDIRECT('cal formula'!C$1))),IFERROR(INDEX(data!$A$2:$H$251,data!$K24,COLUMN(INDIRECT('cal formula'!C$1))),\"\"))","v":""},{"$f":"IF($I$8= \"All\", INDEX(data!$A$2:$H$251,,COLUMN(INDIRECT('cal formula'!D$1))),IFERROR(INDEX(data!$A$2:$H$251,data!$K24,COLUMN(INDIRECT('cal formula'!D$1))),\"\"))","v":""},{"$f":"IF($I$8= \"All\", INDEX(data!$A$2:$H$251,,COLUMN(INDIRECT('cal formula'!E$1))),IFERROR(INDEX(data!$A$2:$H$251,data!$K24,COLUMN(INDIRECT('cal formula'!E$1))),\"\"))","v":""},{"$f":"IF($I$8= \"All\", INDEX(data!$A$2:$H$251,,COLUMN(INDIRECT('cal formula'!F$1))),IFERROR(INDEX(data!$A$2:$H$251,data!$K24,COLUMN(INDIRECT('cal formula'!F$1))),\"\"))","v":""}]
[{"$f":"IF($I$8= \"All\", INDEX(data!$A$2:$H$251,,COLUMN(INDIRECT('cal formula'!A$1))),IFERROR(INDEX(data!$A$2:$H$251,data!$K25,COLUMN(INDIRECT('cal formula'!A$1))),\"\"))","v":""},{"$f":"IF($I$8= \"All\", INDEX(data!$A$2:$H$251,,COLUMN(INDIRECT('cal formula'!B$1))),IFERROR(INDEX(data!$A$2:$H$251,data!$K25,COLUMN(INDIRECT('cal formula'!B$1))),\"\"))","v":""},{"$f":"IF($I$8= \"All\", INDEX(data!$A$2:$H$251,,COLUMN(INDIRECT('cal formula'!C$1))),IFERROR(INDEX(data!$A$2:$H$251,data!$K25,COLUMN(INDIRECT('cal formula'!C$1))),\"\"))","v":""},{"$f":"IF($I$8= \"All\", INDEX(data!$A$2:$H$251,,COLUMN(INDIRECT('cal formula'!D$1))),IFERROR(INDEX(data!$A$2:$H$251,data!$K25,COLUMN(INDIRECT('cal formula'!D$1))),\"\"))","v":""},{"$f":"IF($I$8= \"All\", INDEX(data!$A$2:$H$251,,COLUMN(INDIRECT('cal formula'!E$1))),IFERROR(INDEX(data!$A$2:$H$251,data!$K25,COLUMN(INDIRECT('cal formula'!E$1))),\"\"))","v":""},{"$f":"IF($I$8= \"All\", INDEX(data!$A$2:$H$251,,COLUMN(INDIRECT('cal formula'!F$1))),IFERROR(INDEX(data!$A$2:$H$251,data!$K25,COLUMN(INDIRECT('cal formula'!F$1))),\"\"))","v":""}]
[{"$f":"IF($I$8= \"All\", INDEX(data!$A$2:$H$251,,COLUMN(INDIRECT('cal formula'!A$1))),IFERROR(INDEX(data!$A$2:$H$251,data!$K26,COLUMN(INDIRECT('cal formula'!A$1))),\"\"))","v":""},{"$f":"IF($I$8= \"All\", INDEX(data!$A$2:$H$251,,COLUMN(INDIRECT('cal formula'!B$1))),IFERROR(INDEX(data!$A$2:$H$251,data!$K26,COLUMN(INDIRECT('cal formula'!B$1))),\"\"))","v":""},{"$f":"IF($I$8= \"All\", INDEX(data!$A$2:$H$251,,COLUMN(INDIRECT('cal formula'!C$1))),IFERROR(INDEX(data!$A$2:$H$251,data!$K26,COLUMN(INDIRECT('cal formula'!C$1))),\"\"))","v":""},{"$f":"IF($I$8= \"All\", INDEX(data!$A$2:$H$251,,COLUMN(INDIRECT('cal formula'!D$1))),IFERROR(INDEX(data!$A$2:$H$251,data!$K26,COLUMN(INDIRECT('cal formula'!D$1))),\"\"))","v":""},{"$f":"IF($I$8= \"All\", INDEX(data!$A$2:$H$251,,COLUMN(INDIRECT('cal formula'!E$1))),IFERROR(INDEX(data!$A$2:$H$251,data!$K26,COLUMN(INDIRECT('cal formula'!E$1))),\"\"))","v":""},{"$f":"IF($I$8= \"All\", INDEX(data!$A$2:$H$251,,COLUMN(INDIRECT('cal formula'!F$1))),IFERROR(INDEX(data!$A$2:$H$251,data!$K26,COLUMN(INDIRECT('cal formula'!F$1))),\"\"))","v":""},null,"Gender Count",{"$f":"SUM(I28:I29)","v":16}]
[{"$f":"IF($I$8= \"All\", INDEX(data!$A$2:$H$251,,COLUMN(INDIRECT('cal formula'!A$1))),IFERROR(INDEX(data!$A$2:$H$251,data!$K27,COLUMN(INDIRECT('cal formula'!A$1))),\"\"))","v":""},{"$f":"IF($I$8= \"All\", INDEX(data!$A$2:$H$251,,COLUMN(INDIRECT('cal formula'!B$1))),IFERROR(INDEX(data!$A$2:$H$251,data!$K27,COLUMN(INDIRECT('cal formula'!B$1))),\"\"))","v":""},{"$f":"IF($I$8= \"All\", INDEX(data!$A$2:$H$251,,COLUMN(INDIRECT('cal formula'!C$1))),IFERROR(INDEX(data!$A$2:$H$251,data!$K27,COLUMN(INDIRECT('cal formula'!C$1))),\"\"))","v":""},{"$f":"IF($I$8= \"All\", INDEX(data!$A$2:$H$251,,COLUMN(INDIRECT('cal formula'!D$1))),IFERROR(INDEX(data!$A$2:$H$251,data!$K27,COLUMN(INDIRECT('cal formula'!D$1))),\"\"))","v":""},{"$f":"IF($I$8= \"All\", INDEX(data!$A$2:$H$251,,COLUMN(INDIRECT('cal formula'!E$1))),IFERROR(INDEX(data!$A$2:$H$251,data!$K27,COLUMN(INDIRECT('cal formula'!E$1))),\"\"))","v":""},{"$f":"IF($I$8= \"All\", INDEX(data!$A$2:$H$251,,COLUMN(INDIRECT('cal formula'!F$1))),IFERROR(INDEX(data!$A$2:$H$251,data!$K27,COLUMN(INDIRECT('cal formula'!F$1))),\"\"))","v":""},null,"Gender Name","Gender Nos"]
[{"$f":"IF($I$8= \"All\", INDEX(data!$A$2:$H$251,,COLUMN(INDIRECT('cal formula'!A$1))),IFERROR(INDEX(data!$A$2:$H$251,data!$K28,COLUMN(INDIRECT('cal formula'!A$1))),\"\"))","v":""},{"$f":"IF($I$8= \"All\", INDEX(data!$A$2:$H$251,,COLUMN(INDIRECT('cal formula'!B$1))),IFERROR(INDEX(data!$A$2:$H$251,data!$K28,COLUMN(INDIRECT('cal formula'!B$1))),\"\"))","v":""},{"$f":"IF($I$8= \"All\", INDEX(data!$A$2:$H$251,,COLUMN(INDIRECT('cal formula'!C$1))),IFERROR(INDEX(data!$A$2:$H$251,data!$K28,COLUMN(INDIRECT('cal formula'!C$1))),\"\"))","v":""},{"$f":"IF($I$8= \"All\", INDEX(data!$A$2:$H$251,,COLUMN(INDIRECT('cal formula'!D$1))),IFERROR(INDEX(data!$A$2:$H$251,data!$K28,COLUMN(INDIRECT('cal formula'!D$1))),\"\"))","v":""},{"$f":"IF($I$8= \"All\", INDEX(data!$A$2:$H$251,,COLUMN(INDIRECT('cal formula'!E$1))),IFERROR(INDEX(data!$A$2:$H$251,data!$K28,COLUMN(INDIRECT('cal formula'!E$1))),\"\"))","v":""},{"$f":"IF($I$8= \"All\", INDEX(data!$A$2:$H$251,,COLUMN(INDIRECT('cal formula'!F$1))),IFERROR(INDEX(data!$A$2:$H$251,data!$K28,COLUMN(INDIRECT('cal formula'!F$1))),\"\"))","v":""},null,"Male",{"$f":"IF(COUNTIF($F$2:$F$251,$H28)>=1,COUNTIF($F$2:$F$251,$H28),0)","v":10}]
[{"$f":"IF($I$8= \"All\", INDEX(data!$A$2:$H$251,,COLUMN(INDIRECT('cal formula'!A$1))),IFERROR(INDEX(data!$A$2:$H$251,data!$K29,COLUMN(INDIRECT('cal formula'!A$1))),\"\"))","v":""},{"$f":"IF($I$8= \"All\", INDEX(data!$A$2:$H$251,,COLUMN(INDIRECT('cal formula'!B$1))),IFERROR(INDEX(data!$A$2:$H$251,data!$K29,COLUMN(INDIRECT('cal formula'!B$1))),\"\"))","v":""},{"$f":"IF($I$8= \"All\", INDEX(data!$A$2:$H$251,,COLUMN(INDIRECT('cal formula'!C$1))),IFERROR(INDEX(data!$A$2:$H$251,data!$K29,COLUMN(INDIRECT('cal formula'!C$1))),\"\"))","v":""},{"$f":"IF($I$8= \"All\", INDEX(data!$A$2:$H$251,,COLUMN(INDIRECT('cal formula'!D$1))),IFERROR(INDEX(data!$A$2:$H$251,data!$K29,COLUMN(INDIRECT('cal formula'!D$1))),\"\"))","v":""},{"$f":"IF($I$8= \"All\", INDEX(data!$A$2:$H$251,,COLUMN(INDIRECT('cal formula'!E$1))),IFERROR(INDEX(data!$A$2:$H$251,data!$K29,COLUMN(INDIRECT('cal formula'!E$1))),\"\"))","v":""},{"$f":"IF($I$8= \"All\", INDEX(data!$A$2:$H$251,,COLUMN(INDIRECT('cal formula'!F$1))),IFERROR(INDEX(data!$A$2:$H$251,data!$K29,COLUMN(INDIRECT('cal formula'!F$1))),\"\"))","v":""},null,"Female",{"$f":"IF(COUNTIF($F$2:$F$251,$H29)>=1,COUNTIF($F$2:$F$251,$H29),0)","v":6}]
[{"$f":"IF($I$8= \"All\", INDEX(data!$A$2:$H$251,,COLUMN(INDIRECT('cal formula'!A$1))),IFERROR(INDEX(data!$A$2:$H$251,data!$K30,COLUMN(INDIRECT('cal formula'!A$1))),\"\"))","v":""},{"$f":"IF($I$8= \"All\", INDEX(data!$A$2:$H$251,,COLUMN(INDIRECT('cal formula'!B$1))),IFERROR(INDEX(data!$A$2:$H$251,data!$K30,COLUMN(INDIRECT('cal formula'!B$1))),\"\"))","v":""},{"$f":"IF($I$8= \"All\", INDEX(data!$A$2:$H$251,,COLUMN(INDIRECT('cal formula'!C$1))),IFERROR(INDEX(data!$A$2:$H$251,data!$K30,COLUMN(INDIRECT('cal formula'!C$1))),\"\"))","v":""},{"$f":"IF($I$8= \"All\", INDEX(data!$A$2:$H$251,,COLUMN(INDIRECT('cal formula'!D$1))),IFERROR(INDEX(data!$A$2:$H$251,data!$K30,COLUMN(INDIRECT('cal formula'!D$1))),\"\"))","v":""},{"$f":"IF($I$8= \"All\", INDEX(data!$A$2:$H$251,,COLUMN(INDIRECT('cal formula'!E$1))),IFERROR(INDEX(data!$A$2:$H$251,data!$K30,COLUMN(INDIRECT('cal formula'!E$1))),\"\"))","v":""},{"$f":"IF($I$8= \"All\", INDEX(data!$A$2:$H$251,,COLUMN(INDIRECT('cal formula'!F$1))),IFERROR(INDEX(data!$A$2:$H$251,data!$K30,COLUMN(INDIRECT('cal formula'!F$1))),\"\"))","v":""}]
[{"$f":"IF($I$8= \"All\", INDEX(data!$A$2:$H$251,,COLUMN(INDIRECT('cal formula'!A$1))),IFERROR(INDEX(data!$A$2:$H$251,data!$K31,COLUMN(INDIRECT('cal formula'!A$1))),\"\"))","v":""},{"$f":"IF($I$8= \"All\", INDEX(data!$A$2:$H$251,,COLUMN(INDIRECT('cal formula'!B$1))),IFERROR(INDEX(data!$A$2:$H$251,data!$K31,COLUMN(INDIRECT('cal formula'!B$1))),\"\"))","v":""},{"$f":"IF($I$8= \"All\", INDEX(data!$A$2:$H$251,,COLUMN(INDIRECT('cal formula'!C$1))),IFERROR(INDEX(data!$A$2:$H$251,data!$K31,COLUMN(INDIRECT('cal formula'!C$1))),\"\"))","v":""},{"$f":"IF($I$8= \"All\", INDEX(data!$A$2:$H$251,,COLUMN(INDIRECT('cal formula'!D$1))),IFERROR(INDEX(data!$A$2:$H$251,data!$K31,COLUMN(INDIRECT('cal formula'!D$1))),\"\"))","v":""},{"$f":"IF($I$8= \"All\", INDEX(data!$A$2:$H$251,,COLUMN(INDIRECT('cal formula'!E$1))),IFERROR(INDEX(data!$A$2:$H$251,data!$K31,COLUMN(INDIRECT('cal formula'!E$1))),\"\"))","v":""},{"$f":"IF($I$8= \"All\", INDEX(data!$A$2:$H$251,,COLUMN(INDIRECT('cal formula'!F$1))),IFERROR(INDEX(data!$A$2:$H$251,data!$K31,COLUMN(INDIRECT('cal formula'!F$1))),\"\"))","v":""},null,"Grade Count",{"$f":"SUM(I33:I38)","v":16},null,null,null,null,"Grade Based Count"]
[{"$f":"IF($I$8= \"All\", INDEX(data!$A$2:$H$251,,COLUMN(INDIRECT('cal formula'!A$1))),IFERROR(INDEX(data!$A$2:$H$251,data!$K32,COLUMN(INDIRECT('cal formula'!A$1))),\"\"))","v":""},{"$f":"IF($I$8= \"All\", INDEX(data!$A$2:$H$251,,COLUMN(INDIRECT('cal formula'!B$1))),IFERROR(INDEX(data!$A$2:$H$251,data!$K32,COLUMN(INDIRECT('cal formula'!B$1))),\"\"))","v":""},{"$f":"IF($I$8= \"All\", INDEX(data!$A$2:$H$251,,COLUMN(INDIRECT('cal formula'!C$1))),IFERROR(INDEX(data!$A$2:$H$251,data!$K32,COLUMN(INDIRECT('cal formula'!C$1))),\"\"))","v":""},{"$f":"IF($I$8= \"All\", INDEX(data!$A$2:$H$251,,COLUMN(INDIRECT('cal formula'!D$1))),IFERROR(INDEX(data!$A$2:$H$251,data!$K32,COLUMN(INDIRECT('cal formula'!D$1))),\"\"))","v":""},{"$f":"IF($I$8= \"All\", INDEX(data!$A$2:$H$251,,COLUMN(INDIRECT('cal formula'!E$1))),IFERROR(INDEX(data!$A$2:$H$251,data!$K32,COLUMN(INDIRECT('cal formula'!E$1))),\"\"))","v":""},{"$f":"IF($I$8= \"All\", INDEX(data!$A$2:$H$251,,COLUMN(INDIRECT('cal formula'!F$1))),IFERROR(INDEX(data!$A$2:$H$251,data!$K32,COLUMN(INDIRECT('cal formula'!F$1))),\"\"))","v":""},null,"Grade Name","Grade Nos","rows no","criteria","stack",null,"Grade Name","Grade Nos",null,"named Grade name","named grade nos"]
[{"$f":"IF($I$8= \"All\", INDEX(data!$A$2:$H$251,,COLUMN(INDIRECT('cal formula'!A$1))),IFERROR(INDEX(data!$A$2:$H$251,data!$K33,COLUMN(INDIRECT('cal formula'!A$1))),\"\"))","v":""},{"$f":"IF($I$8= \"All\", INDEX(data!$A$2:$H$251,,COLUMN(INDIRECT('cal formula'!B$1))),IFERROR(INDEX(data!$A$2:$H$251,data!$K33,COLUMN(INDIRECT('cal formula'!B$1))),\"\"))","v":""},{"$f":"IF($I$8= \"All\", INDEX(data!$A$2:$H$251,,COLUMN(INDIRECT('cal formula'!C$1))),IFERROR(INDEX(data!$A$2:$H$251,data!$K33,COLUMN(INDIRECT('cal formula'!C$1))),\"\"))","v":""},{"$f":"IF($I$8= \"All\", INDEX(data!$A$2:$H$251,,COLUMN(INDIRECT('cal formula'!D$1))),IFERROR(INDEX(data!$A$2:$H$251,data!$K33,COLUMN(INDIRECT('cal formula'!D$1))),\"\"))","v":""},{"$f":"IF($I$8= \"All\", INDEX(data!$A$2:$H$251,,COLUMN(INDIRECT('cal formula'!E$1))),IFERROR(INDEX(data!$A$2:$H$251,data!$K33,COLUMN(INDIRECT('cal formula'!E$1))),\"\"))","v":""},{"$f":"IF($I$8= \"All\", INDEX(data!$A$2:$H$251,,COLUMN(INDIRECT('cal formula'!F$1))),IFERROR(INDEX(data!$A$2:$H$251,data!$K33,COLUMN(INDIRECT('cal formula'!F$1))),\"\"))","v":""},null,"GRD 03",{"$f":"IF(COUNTIF($D$2:$D$251,$H33)>=1,COUNTIF($D$2:$D$251,$H33),0)","v":4},{"$f":"ROWS($I$33:I33)","v":1},{"$f":"IF($I33>0,$J33,\"\")","v":1},{"$f":"IFERROR(SMALL($K$33:$K$38,ROWS($I$33:I33)),\"\")","v":1},null,{"$f":"IFERROR(INDEX($H$33:$H$38,$L33,COLUMNS($J$14:J14)),\"\")","v":"GRD 03"},{"$f":"IFERROR(INDEX($I$33:$I$38,$L33,COLUMNS($J$14:J14)),\"\")","v":4},null,{"$f":"$N$33:INDEX($N$33:$N$38,COUNTIF($N$33:$N$38,\"?*\"))","v":"GRD 03"},{"$f":"$O$33:INDEX($O$33:$O$38,COUNTIF($O$33:$O$38,\">0\"))","v":4}]
[{"$f":"IF($I$8= \"All\", INDEX(data!$A$2:$H$251,,COLUMN(INDIRECT('cal formula'!A$1))),IFERROR(INDEX(data!$A$2:$H$251,data!$K34,COLUMN(INDIRECT('cal formula'!A$1))),\"\"))","v":""},{"$f":"IF($I$8= \"All\", INDEX(data!$A$2:$H$251,,COLUMN(INDIRECT('cal formula'!B$1))),IFERROR(INDEX(data!$A$2:$H$251,data!$K34,COLUMN(INDIRECT('cal formula'!B$1))),\"\"))","v":""},{"$f":"IF($I$8= \"All\", INDEX(data!$A$2:$H$251,,COLUMN(INDIRECT('cal formula'!C$1))),IFERROR(INDEX(data!$A$2:$H$251,data!$K34,COLUMN(INDIRECT('cal formula'!C$1))),\"\"))","v":""},{"$f":"IF($I$8= \"All\", INDEX(data!$A$2:$H$251,,COLUMN(INDIRECT('cal formula'!D$1))),IFERROR(INDEX(data!$A$2:$H$251,data!$K34,COLUMN(INDIRECT('cal formula'!D$1))),\"\"))","v":""},{"$f":"IF($I$8= \"All\", INDEX(data!$A$2:$H$251,,COLUMN(INDIRECT('cal formula'!E$1))),IFERROR(INDEX(data!$A$2:$H$251,data!$K34,COLUMN(INDIRECT('cal formula'!E$1))),\"\"))","v":""},{"$f":"IF($I$8= \"All\", INDEX(data!$A$2:$H$251,,COLUMN(INDIRECT('cal formula'!F$1))),IFERROR(INDEX(data!$A$2:$H$251,data!$K34,COLUMN(INDIRECT('cal formula'!F$1))),\"\"))","v":""},null,"GRD 05",2,{"$f":"ROWS($I$33:I34)","v":2},{"$f":"IF($I34>0,$J34,\"\")","v":2},{"$f":"IFERROR(SMALL($K$33:$K$38,ROWS($I$33:I34)),\"\")","v":2},null,{"$f":"IFERROR(INDEX($H$33:$H$38,$L34,COLUMNS($J$14:J15)),\"\")","v":"GRD 05"},{"$f":"IFERROR(INDEX($I$33:$I$38,$L34,COLUMNS($J$14:J15)),\"\")","v":2}]
[{"$f":"IF($I$8= \"All\", INDEX(data!$A$2:$H$251,,COLUMN(INDIRECT('cal formula'!A$1))),IFERROR(INDEX(data!$A$2:$H$251,data!$K35,COLUMN(INDIRECT('cal formula'!A$1))),\"\"))","v":""},{"$f":"IF($I$8= \"All\", INDEX(data!$A$2:$H$251,,COLUMN(INDIRECT('cal formula'!B$1))),IFERROR(INDEX(data!$A$2:$H$251,data!$K35,COLUMN(INDIRECT('cal formula'!B$1))),\"\"))","v":""},{"$f":"IF($I$8= \"All\", INDEX(data!$A$2:$H$251,,COLUMN(INDIRECT('cal formula'!C$1))),IFERROR(INDEX(data!$A$2:$H$251,data!$K35,COLUMN(INDIRECT('cal formula'!C$1))),\"\"))","v":""},{"$f":"IF($I$8= \"All\", INDEX(data!$A$2:$H$251,,COLUMN(INDIRECT('cal formula'!D$1))),IFERROR(INDEX(data!$A$2:$H$251,data!$K35,COLUMN(INDIRECT('cal formula'!D$1))),\"\"))","v":""},{"$f":"IF($I$8= \"All\", INDEX(data!$A$2:$H$251,,COLUMN(INDIRECT('cal formula'!E$1))),IFERROR(INDEX(data!$A$2:$H$251,data!$K35,COLUMN(INDIRECT('cal formula'!E$1))),\"\"))","v":""},{"$f":"IF($I$8= \"All\", INDEX(data!$A$2:$H$251,,COLUMN(INDIRECT('cal formula'!F$1))),IFERROR(INDEX(data!$A$2:$H$251,data!$K35,COLUMN(INDIRECT('cal formula'!F$1))),\"\"))","v":""},null,"GRD 04",1,{"$f":"ROWS($I$33:I35)","v":3},3,{"$f":"IFERROR(SMALL($K$33:$K$38,ROWS($I$33:I35)),\"\")","v":3},null,{"$f":"IFERROR(INDEX($H$33:$H$38,$L35,COLUMNS($J$14:J16)),\"\")","v":"GRD 04"},{"$f":"IFERROR(INDEX($I$33:$I$38,$L35,COLUMNS($J$14:J16)),\"\")","v":1}]
[{"$f":"IF($I$8= \"All\", INDEX(data!$A$2:$H$251,,COLUMN(INDIRECT('cal formula'!A$1))),IFERROR(INDEX(data!$A$2:$H$251,data!$K36,COLUMN(INDIRECT('cal formula'!A$1))),\"\"))","v":""},{"$f":"IF($I$8= \"All\", INDEX(data!$A$2:$H$251,,COLUMN(INDIRECT('cal formula'!B$1))),IFERROR(INDEX(data!$A$2:$H$251,data!$K36,COLUMN(INDIRECT('cal formula'!B$1))),\"\"))","v":""},{"$f":"IF($I$8= \"All\", INDEX(data!$A$2:$H$251,,COLUMN(INDIRECT('cal formula'!C$1))),IFERROR(INDEX(data!$A$2:$H$251,data!$K36,COLUMN(INDIRECT('cal formula'!C$1))),\"\"))","v":""},{"$f":"IF($I$8= \"All\", INDEX(data!$A$2:$H$251,,COLUMN(INDIRECT('cal formula'!D$1))),IFERROR(INDEX(data!$A$2:$H$251,data!$K36,COLUMN(INDIRECT('cal formula'!D$1))),\"\"))","v":""},{"$f":"IF($I$8= \"All\", INDEX(data!$A$2:$H$251,,COLUMN(INDIRECT('cal formula'!E$1))),IFERROR(INDEX(data!$A$2:$H$251,data!$K36,COLUMN(INDIRECT('cal formula'!E$1))),\"\"))","v":""},{"$f":"IF($I$8= \"All\", INDEX(data!$A$2:$H$251,,COLUMN(INDIRECT('cal formula'!F$1))),IFERROR(INDEX(data!$A$2:$H$251,data!$K36,COLUMN(INDIRECT('cal formula'!F$1))),\"\"))","v":""},null,"GRD 06",2,{"$f":"ROWS($I$33:I36)","v":4},4,{"$f":"IFERROR(SMALL($K$33:$K$38,ROWS($I$33:I36)),\"\")","v":4},null,{"$f":"IFERROR(INDEX($H$33:$H$38,$L36,COLUMNS($J$14:J17)),\"\")","v":"GRD 06"},{"$f":"IFERROR(INDEX($I$33:$I$38,$L36,COLUMNS($J$14:J17)),\"\")","v":2}]
[{"$f":"IF($I$8= \"All\", INDEX(data!$A$2:$H$251,,COLUMN(INDIRECT('cal formula'!A$1))),IFERROR(INDEX(data!$A$2:$H$251,data!$K37,COLUMN(INDIRECT('cal formula'!A$1))),\"\"))","v":""},{"$f":"IF($I$8= \"All\", INDEX(data!$A$2:$H$251,,COLUMN(INDIRECT('cal formula'!B$1))),IFERROR(INDEX(data!$A$2:$H$251,data!$K37,COLUMN(INDIRECT('cal formula'!B$1))),\"\"))","v":""},{"$f":"IF($I$8= \"All\", INDEX(data!$A$2:$H$251,,COLUMN(INDIRECT('cal formula'!C$1))),IFERROR(INDEX(data!$A$2:$H$251,data!$K37,COLUMN(INDIRECT('cal formula'!C$1))),\"\"))","v":""},{"$f":"IF($I$8= \"All\", INDEX(data!$A$2:$H$251,,COLUMN(INDIRECT('cal formula'!D$1))),IFERROR(INDEX(data!$A$2:$H$251,data!$K37,COLUMN(INDIRECT('cal formula'!D$1))),\"\"))","v":""},{"$f":"IF($I$8= \"All\", INDEX(data!$A$2:$H$251,,COLUMN(INDIRECT('cal formula'!E$1))),IFERROR(INDEX(data!$A$2:$H$251,data!$K37,COLUMN(INDIRECT('cal formula'!E$1))),\"\"))","v":""},{"$f":"IF($I$8= \"All\", INDEX(data!$A$2:$H$251,,COLUMN(INDIRECT('cal formula'!F$1))),IFERROR(INDEX(data!$A$2:$H$251,data!$K37,COLUMN(INDIRECT('cal formula'!F$1))),\"\"))","v":""},null,"GRD 02",5,{"$f":"ROWS($I$33:I37)","v":5},5,{"$f":"IFERROR(SMALL($K$33:$K$38,ROWS($I$33:I37)),\"\")","v":5},null,{"$f":"IFERROR(INDEX($H$33:$H$38,$L37,COLUMNS($J$14:J18)),\"\")","v":"GRD 02"},{"$f":"IFERROR(INDEX($I$33:$I$38,$L37,COLUMNS($J$14:J18)),\"\")","v":5}]
[{"$f":"IF($I$8= \"All\", INDEX(data!$A$2:$H$251,,COLUMN(INDIRECT('cal formula'!A$1))),IFERROR(INDEX(data!$A$2:$H$251,data!$K38,COLUMN(INDIRECT('cal formula'!A$1))),\"\"))","v":""},{"$f":"IF($I$8= \"All\", INDEX(data!$A$2:$H$251,,COLUMN(INDIRECT('cal formula'!B$1))),IFERROR(INDEX(data!$A$2:$H$251,data!$K38,COLUMN(INDIRECT('cal formula'!B$1))),\"\"))","v":""},{"$f":"IF($I$8= \"All\", INDEX(data!$A$2:$H$251,,COLUMN(INDIRECT('cal formula'!C$1))),IFERROR(INDEX(data!$A$2:$H$251,data!$K38,COLUMN(INDIRECT('cal formula'!C$1))),\"\"))","v":""},{"$f":"IF($I$8= \"All\", INDEX(data!$A$2:$H$251,,COLUMN(INDIRECT('cal formula'!D$1))),IFERROR(INDEX(data!$A$2:$H$251,data!$K38,COLUMN(INDIRECT('cal formula'!D$1))),\"\"))","v":""},{"$f":"IF($I$8= \"All\", INDEX(data!$A$2:$H$251,,COLUMN(INDIRECT('cal formula'!E$1))),IFERROR(INDEX(data!$A$2:$H$251,data!$K38,COLUMN(INDIRECT('cal formula'!E$1))),\"\"))","v":""},{"$f":"IF($I$8= \"All\", INDEX(data!$A$2:$H$251,,COLUMN(INDIRECT('cal formula'!F$1))),IFERROR(INDEX(data!$A$2:$H$251,data!$K38,COLUMN(INDIRECT('cal formula'!F$1))),\"\"))","v":""},null,"GRD 01",2,{"$f":"ROWS($I$33:I38)","v":6},6,{"$f":"IFERROR(SMALL($K$33:$K$38,ROWS($I$33:I38)),\"\")","v":6},null,{"$f":"IFERROR(INDEX($H$33:$H$38,$L38,COLUMNS($J$14:J19)),\"\")","v":"GRD 01"},{"$f":"IFERROR(INDEX($I$33:$I$38,$L38,COLUMNS($J$14:J19)),\"\")","v":2}]
[{"$f":"IF($I$8= \"All\", INDEX(data!$A$2:$H$251,,COLUMN(INDIRECT('cal formula'!A$1))),IFERROR(INDEX(data!$A$2:$H$251,data!$K39,COLUMN(INDIRECT('cal formula'!A$1))),\"\"))","v":""},{"$f":"IF($I$8= \"All\", INDEX(data!$A$2:$H$251,,COLUMN(INDIRECT('cal formula'!B$1))),IFERROR(INDEX(data!$A$2:$H$251,data!$K39,COLUMN(INDIRECT('cal formula'!B$1))),\"\"))","v":""},{"$f":"IF($I$8= \"All\", INDEX(data!$A$2:$H$251,,COLUMN(INDIRECT('cal formula'!C$1))),IFERROR(INDEX(data!$A$2:$H$251,data!$K39,COLUMN(INDIRECT('cal formula'!C$1))),\"\"))","v":""},{"$f":"IF($I$8= \"All\", INDEX(data!$A$2:$H$251,,COLUMN(INDIRECT('cal formula'!D$1))),IFERROR(INDEX(data!$A$2:$H$251,data!$K39,COLUMN(INDIRECT('cal formula'!D$1))),\"\"))","v":""},{"$f":"IF($I$8= \"All\", INDEX(data!$A$2:$H$251,,COLUMN(INDIRECT('cal formula'!E$1))),IFERROR(INDEX(data!$A$2:$H$251,data!$K39,COLUMN(INDIRECT('cal formula'!E$1))),\"\"))","v":""},{"$f":"IF($I$8= \"All\", INDEX(data!$A$2:$H$251,,COLUMN(INDIRECT('cal formula'!F$1))),IFERROR(INDEX(data!$A$2:$H$251,data!$K39,COLUMN(INDIRECT('cal formula'!F$1))),\"\"))","v":""}]
[{"$f":"IF($I$8= \"All\", INDEX(data!$A$2:$H$251,,COLUMN(INDIRECT('cal formula'!A$1))),IFERROR(INDEX(data!$A$2:$H$251,data!$K40,COLUMN(INDIRECT('cal formula'!A$1))),\"\"))","v":""},{"$f":"IF($I$8= \"All\", INDEX(data!$A$2:$H$251,,COLUMN(INDIRECT('cal formula'!B$1))),IFERROR(INDEX(data!$A$2:$H$251,data!$K40,COLUMN(INDIRECT('cal formula'!B$1))),\"\"))","v":""},{"$f":"IF($I$8= \"All\", INDEX(data!$A$2:$H$251,,COLUMN(INDIRECT('cal formula'!C$1))),IFERROR(INDEX(data!$A$2:$H$251,data!$K40,COLUMN(INDIRECT('cal formula'!C$1))),\"\"))","v":""},{"$f":"IF($I$8= \"All\", INDEX(data!$A$2:$H$251,,COLUMN(INDIRECT('cal formula'!D$1))),IFERROR(INDEX(data!$A$2:$H$251,data!$K40,COLUMN(INDIRECT('cal formula'!D$1))),\"\"))","v":""},{"$f":"IF($I$8= \"All\", INDEX(data!$A$2:$H$251,,COLUMN(INDIRECT('cal formula'!E$1))),IFERROR(INDEX(data!$A$2:$H$251,data!$K40,COLUMN(INDIRECT('cal formula'!E$1))),\"\"))","v":""},{"$f":"IF($I$8= \"All\", INDEX(data!$A$2:$H$251,,COLUMN(INDIRECT('cal formula'!F$1))),IFERROR(INDEX(data!$A$2:$H$251,data!$K40,COLUMN(INDIRECT('cal formula'!F$1))),\"\"))","v":""}]
[{"$f":"IF($I$8= \"All\", INDEX(data!$A$2:$H$251,,COLUMN(INDIRECT('cal formula'!A$1))),IFERROR(INDEX(data!$A$2:$H$251,data!$K41,COLUMN(INDIRECT('cal formula'!A$1))),\"\"))","v":""},{"$f":"IF($I$8= \"All\", INDEX(data!$A$2:$H$251,,COLUMN(INDIRECT('cal formula'!B$1))),IFERROR(INDEX(data!$A$2:$H$251,data!$K41,COLUMN(INDIRECT('cal formula'!B$1))),\"\"))","v":""},{"$f":"IF($I$8= \"All\", INDEX(data!$A$2:$H$251,,COLUMN(INDIRECT('cal formula'!C$1))),IFERROR(INDEX(data!$A$2:$H$251,data!$K41,COLUMN(INDIRECT('cal formula'!C$1))),\"\"))","v":""},{"$f":"IF($I$8= \"All\", INDEX(data!$A$2:$H$251,,COLUMN(INDIRECT('cal formula'!D$1))),IFERROR(INDEX(data!$A$2:$H$251,data!$K41,COLUMN(INDIRECT('cal formula'!D$1))),\"\"))","v":""},{"$f":"IF($I$8= \"All\", INDEX(data!$A$2:$H$251,,COLUMN(INDIRECT('cal formula'!E$1))),IFERROR(INDEX(data!$A$2:$H$251,data!$K41,COLUMN(INDIRECT('cal formula'!E$1))),\"\"))","v":""},{"$f":"IF($I$8= \"All\", INDEX(data!$A$2:$H$251,,COLUMN(INDIRECT('cal formula'!F$1))),IFERROR(INDEX(data!$A$2:$H$251,data!$K41,COLUMN(INDIRECT('cal formula'!F$1))),\"\"))","v":""}]
[{"$f":"IF($I$8= \"All\", INDEX(data!$A$2:$H$251,,COLUMN(INDIRECT('cal formula'!A$1))),IFERROR(INDEX(data!$A$2:$H$251,data!$K42,COLUMN(INDIRECT('cal formula'!A$1))),\"\"))","v":""},{"$f":"IF($I$8= \"All\", INDEX(data!$A$2:$H$251,,COLUMN(INDIRECT('cal formula'!B$1))),IFERROR(INDEX(data!$A$2:$H$251,data!$K42,COLUMN(INDIRECT('cal formula'!B$1))),\"\"))","v":""},{"$f":"IF($I$8= \"All\", INDEX(data!$A$2:$H$251,,COLUMN(INDIRECT('cal formula'!C$1))),IFERROR(INDEX(data!$A$2:$H$251,data!$K42,COLUMN(INDIRECT('cal formula'!C$1))),\"\"))","v":""},{"$f":"IF($I$8= \"All\", INDEX(data!$A$2:$H$251,,COLUMN(INDIRECT('cal formula'!D$1))),IFERROR(INDEX(data!$A$2:$H$251,data!$K42,COLUMN(INDIRECT('cal formula'!D$1))),\"\"))","v":""},{"$f":"IF($I$8= \"All\", INDEX(data!$A$2:$H$251,,COLUMN(INDIRECT('cal formula'!E$1))),IFERROR(INDEX(data!$A$2:$H$251,data!$K42,COLUMN(INDIRECT('cal formula'!E$1))),\"\"))","v":""},{"$f":"IF($I$8= \"All\", INDEX(data!$A$2:$H$251,,COLUMN(INDIRECT('cal formula'!F$1))),IFERROR(INDEX(data!$A$2:$H$251,data!$K42,COLUMN(INDIRECT('cal formula'!F$1))),\"\"))","v":""}]
[{"$f":"IF($I$8= \"All\", INDEX(data!$A$2:$H$251,,COLUMN(INDIRECT('cal formula'!A$1))),IFERROR(INDEX(data!$A$2:$H$251,data!$K43,COLUMN(INDIRECT('cal formula'!A$1))),\"\"))","v":""},{"$f":"IF($I$8= \"All\", INDEX(data!$A$2:$H$251,,COLUMN(INDIRECT('cal formula'!B$1))),IFERROR(INDEX(data!$A$2:$H$251,data!$K43,COLUMN(INDIRECT('cal formula'!B$1))),\"\"))","v":""},{"$f":"IF($I$8= \"All\", INDEX(data!$A$2:$H$251,,COLUMN(INDIRECT('cal formula'!C$1))),IFERROR(INDEX(data!$A$2:$H$251,data!$K43,COLUMN(INDIRECT('cal formula'!C$1))),\"\"))","v":""},{"$f":"IF($I$8= \"All\", INDEX(data!$A$2:$H$251,,COLUMN(INDIRECT('cal formula'!D$1))),IFERROR(INDEX(data!$A$2:$H$251,data!$K43,COLUMN(INDIRECT('cal formula'!D$1))),\"\"))","v":""},{"$f":"IF($I$8= \"All\", INDEX(data!$A$2:$H$251,,COLUMN(INDIRECT('cal formula'!E$1))),IFERROR(INDEX(data!$A$2:$H$251,data!$K43,COLUMN(INDIRECT('cal formula'!E$1))),\"\"))","v":""},{"$f":"IF($I$8= \"All\", INDEX(data!$A$2:$H$251,,COLUMN(INDIRECT('cal formula'!F$1))),IFERROR(INDEX(data!$A$2:$H$251,data!$K43,COLUMN(INDIRECT('cal formula'!F$1))),\"\"))","v":""}]
[{"$f":"IF($I$8= \"All\", INDEX(data!$A$2:$H$251,,COLUMN(INDIRECT('cal formula'!A$1))),IFERROR(INDEX(data!$A$2:$H$251,data!$K44,COLUMN(INDIRECT('cal formula'!A$1))),\"\"))","v":""},{"$f":"IF($I$8= \"All\", INDEX(data!$A$2:$H$251,,COLUMN(INDIRECT('cal formula'!B$1))),IFERROR(INDEX(data!$A$2:$H$251,data!$K44,COLUMN(INDIRECT('cal formula'!B$1))),\"\"))","v":""},{"$f":"IF($I$8= \"All\", INDEX(data!$A$2:$H$251,,COLUMN(INDIRECT('cal formula'!C$1))),IFERROR(INDEX(data!$A$2:$H$251,data!$K44,COLUMN(INDIRECT('cal formula'!C$1))),\"\"))","v":""},{"$f":"IF($I$8= \"All\", INDEX(data!$A$2:$H$251,,COLUMN(INDIRECT('cal formula'!D$1))),IFERROR(INDEX(data!$A$2:$H$251,data!$K44,COLUMN(INDIRECT('cal formula'!D$1))),\"\"))","v":""},{"$f":"IF($I$8= \"All\", INDEX(data!$A$2:$H$251,,COLUMN(INDIRECT('cal formula'!E$1))),IFERROR(INDEX(data!$A$2:$H$251,data!$K44,COLUMN(INDIRECT('cal formula'!E$1))),\"\"))","v":""},{"$f":"IF($I$8= \"All\", INDEX(data!$A$2:$H$251,,COLUMN(INDIRECT('cal formula'!F$1))),IFERROR(INDEX(data!$A$2:$H$251,data!$K44,COLUMN(INDIRECT('cal formula'!F$1))),\"\"))","v":""}]
[{"$f":"IF($I$8= \"All\", INDEX(data!$A$2:$H$251,,COLUMN(INDIRECT('cal formula'!A$1))),IFERROR(INDEX(data!$A$2:$H$251,data!$K45,COLUMN(INDIRECT('cal formula'!A$1))),\"\"))","v":""},{"$f":"IF($I$8= \"All\", INDEX(data!$A$2:$H$251,,COLUMN(INDIRECT('cal formula'!B$1))),IFERROR(INDEX(data!$A$2:$H$251,data!$K45,COLUMN(INDIRECT('cal formula'!B$1))),\"\"))","v":""},{"$f":"IF($I$8= \"All\", INDEX(data!$A$2:$H$251,,COLUMN(INDIRECT('cal formula'!C$1))),IFERROR(INDEX(data!$A$2:$H$251,data!$K45,COLUMN(INDIRECT('cal formula'!C$1))),\"\"))","v":""},{"$f":"IF($I$8= \"All\", INDEX(data!$A$2:$H$251,,COLUMN(INDIRECT('cal formula'!D$1))),IFERROR(INDEX(data!$A$2:$H$251,data!$K45,COLUMN(INDIRECT('cal formula'!D$1))),\"\"))","v":""},{"$f":"IF($I$8= \"All\", INDEX(data!$A$2:$H$251,,COLUMN(INDIRECT('cal formula'!E$1))),IFERROR(INDEX(data!$A$2:$H$251,data!$K45,COLUMN(INDIRECT('cal formula'!E$1))),\"\"))","v":""},{"$f":"IF($I$8= \"All\", INDEX(data!$A$2:$H$251,,COLUMN(INDIRECT('cal formula'!F$1))),IFERROR(INDEX(data!$A$2:$H$251,data!$K45,COLUMN(INDIRECT('cal formula'!F$1))),\"\"))","v":""}]
[{"$f":"IF($I$8= \"All\", INDEX(data!$A$2:$H$251,,COLUMN(INDIRECT('cal formula'!A$1))),IFERROR(INDEX(data!$A$2:$H$251,data!$K46,COLUMN(INDIRECT('cal formula'!A$1))),\"\"))","v":""},{"$f":"IF($I$8= \"All\", INDEX(data!$A$2:$H$251,,COLUMN(INDIRECT('cal formula'!B$1))),IFERROR(INDEX(data!$A$2:$H$251,data!$K46,COLUMN(INDIRECT('cal formula'!B$1))),\"\"))","v":""},{"$f":"IF($I$8= \"All\", INDEX(data!$A$2:$H$251,,COLUMN(INDIRECT('cal formula'!C$1))),IFERROR(INDEX(data!$A$2:$H$251,data!$K46,COLUMN(INDIRECT('cal formula'!C$1))),\"\"))","v":""},{"$f":"IF($I$8= \"All\", INDEX(data!$A$2:$H$251,,COLUMN(INDIRECT('cal formula'!D$1))),IFERROR(INDEX(data!$A$2:$H$251,data!$K46,COLUMN(INDIRECT('cal formula'!D$1))),\"\"))","v":""},{"$f":"IF($I$8= \"All\", INDEX(data!$A$2:$H$251,,COLUMN(INDIRECT('cal formula'!E$1))),IFERROR(INDEX(data!$A$2:$H$251,data!$K46,COLUMN(INDIRECT('cal formula'!E$1))),\"\"))","v":""},{"$f":"IF($I$8= \"All\", INDEX(data!$A$2:$H$251,,COLUMN(INDIRECT('cal formula'!F$1))),IFERROR(INDEX(data!$A$2:$H$251,data!$K46,COLUMN(INDIRECT('cal formula'!F$1))),\"\"))","v":""}]
[{"$f":"IF($I$8= \"All\", INDEX(data!$A$2:$H$251,,COLUMN(INDIRECT('cal formula'!A$1))),IFERROR(INDEX(data!$A$2:$H$251,data!$K47,COLUMN(INDIRECT('cal formula'!A$1))),\"\"))","v":""},{"$f":"IF($I$8= \"All\", INDEX(data!$A$2:$H$251,,COLUMN(INDIRECT('cal formula'!B$1))),IFERROR(INDEX(data!$A$2:$H$251,data!$K47,COLUMN(INDIRECT('cal formula'!B$1))),\"\"))","v":""},{"$f":"IF($I$8= \"All\", INDEX(data!$A$2:$H$251,,COLUMN(INDIRECT('cal formula'!C$1))),IFERROR(INDEX(data!$A$2:$H$251,data!$K47,COLUMN(INDIRECT('cal formula'!C$1))),\"\"))","v":""},{"$f":"IF($I$8= \"All\", INDEX(data!$A$2:$H$251,,COLUMN(INDIRECT('cal formula'!D$1))),IFERROR(INDEX(data!$A$2:$H$251,data!$K47,COLUMN(INDIRECT('cal formula'!D$1))),\"\"))","v":""},{"$f":"IF($I$8= \"All\", INDEX(data!$A$2:$H$251,,COLUMN(INDIRECT('cal formula'!E$1))),IFERROR(INDEX(data!$A$2:$H$251,data!$K47,COLUMN(INDIRECT('cal formula'!E$1))),\"\"))","v":""},{"$f":"IF($I$8= \"All\", INDEX(data!$A$2:$H$251,,COLUMN(INDIRECT('cal formula'!F$1))),IFERROR(INDEX(data!$A$2:$H$251,data!$K47,COLUMN(INDIRECT('cal formula'!F$1))),\"\"))","v":""}]
[{"$f":"IF($I$8= \"All\", INDEX(data!$A$2:$H$251,,COLUMN(INDIRECT('cal formula'!A$1))),IFERROR(INDEX(data!$A$2:$H$251,data!$K48,COLUMN(INDIRECT('cal formula'!A$1))),\"\"))","v":""},{"$f":"IF($I$8= \"All\", INDEX(data!$A$2:$H$251,,COLUMN(INDIRECT('cal formula'!B$1))),IFERROR(INDEX(data!$A$2:$H$251,data!$K48,COLUMN(INDIRECT('cal formula'!B$1))),\"\"))","v":""},{"$f":"IF($I$8= \"All\", INDEX(data!$A$2:$H$251,,COLUMN(INDIRECT('cal formula'!C$1))),IFERROR(INDEX(data!$A$2:$H$251,data!$K48,COLUMN(INDIRECT('cal formula'!C$1))),\"\"))","v":""},{"$f":"IF($I$8= \"All\", INDEX(data!$A$2:$H$251,,COLUMN(INDIRECT('cal formula'!D$1))),IFERROR(INDEX(data!$A$2:$H$251,data!$K48,COLUMN(INDIRECT('cal formula'!D$1))),\"\"))","v":""},{"$f":"IF($I$8= \"All\", INDEX(data!$A$2:$H$251,,COLUMN(INDIRECT('cal formula'!E$1))),IFERROR(INDEX(data!$A$2:$H$251,data!$K48,COLUMN(INDIRECT('cal formula'!E$1))),\"\"))","v":""},{"$f":"IF($I$8= \"All\", INDEX(data!$A$2:$H$251,,COLUMN(INDIRECT('cal formula'!F$1))),IFERROR(INDEX(data!$A$2:$H$251,data!$K48,COLUMN(INDIRECT('cal formula'!F$1))),\"\"))","v":""}]
[{"$f":"IF($I$8= \"All\", INDEX(data!$A$2:$H$251,,COLUMN(INDIRECT('cal formula'!A$1))),IFERROR(INDEX(data!$A$2:$H$251,data!$K49,COLUMN(INDIRECT('cal formula'!A$1))),\"\"))","v":""},{"$f":"IF($I$8= \"All\", INDEX(data!$A$2:$H$251,,COLUMN(INDIRECT('cal formula'!B$1))),IFERROR(INDEX(data!$A$2:$H$251,data!$K49,COLUMN(INDIRECT('cal formula'!B$1))),\"\"))","v":""},{"$f":"IF($I$8= \"All\", INDEX(data!$A$2:$H$251,,COLUMN(INDIRECT('cal formula'!C$1))),IFERROR(INDEX(data!$A$2:$H$251,data!$K49,COLUMN(INDIRECT('cal formula'!C$1))),\"\"))","v":""},{"$f":"IF($I$8= \"All\", INDEX(data!$A$2:$H$251,,COLUMN(INDIRECT('cal formula'!D$1))),IFERROR(INDEX(data!$A$2:$H$251,data!$K49,COLUMN(INDIRECT('cal formula'!D$1))),\"\"))","v":""},{"$f":"IF($I$8= \"All\", INDEX(data!$A$2:$H$251,,COLUMN(INDIRECT('cal formula'!E$1))),IFERROR(INDEX(data!$A$2:$H$251,data!$K49,COLUMN(INDIRECT('cal formula'!E$1))),\"\"))","v":""},{"$f":"IF($I$8= \"All\", INDEX(data!$A$2:$H$251,,COLUMN(INDIRECT('cal formula'!F$1))),IFERROR(INDEX(data!$A$2:$H$251,data!$K49,COLUMN(INDIRECT('cal formula'!F$1))),\"\"))","v":""}]
[{"$f":"IF($I$8= \"All\", INDEX(data!$A$2:$H$251,,COLUMN(INDIRECT('cal formula'!A$1))),IFERROR(INDEX(data!$A$2:$H$251,data!$K50,COLUMN(INDIRECT('cal formula'!A$1))),\"\"))","v":""},{"$f":"IF($I$8= \"All\", INDEX(data!$A$2:$H$251,,COLUMN(INDIRECT('cal formula'!B$1))),IFERROR(INDEX(data!$A$2:$H$251,data!$K50,COLUMN(INDIRECT('cal formula'!B$1))),\"\"))","v":""},{"$f":"IF($I$8= \"All\", INDEX(data!$A$2:$H$251,,COLUMN(INDIRECT('cal formula'!C$1))),IFERROR(INDEX(data!$A$2:$H$251,data!$K50,COLUMN(INDIRECT('cal formula'!C$1))),\"\"))","v":""},{"$f":"IF($I$8= \"All\", INDEX(data!$A$2:$H$251,,COLUMN(INDIRECT('cal formula'!D$1))),IFERROR(INDEX(data!$A$2:$H$251,data!$K50,COLUMN(INDIRECT('cal formula'!D$1))),\"\"))","v":""},{"$f":"IF($I$8= \"All\", INDEX(data!$A$2:$H$251,,COLUMN(INDIRECT('cal formula'!E$1))),IFERROR(INDEX(data!$A$2:$H$251,data!$K50,COLUMN(INDIRECT('cal formula'!E$1))),\"\"))","v":""},{"$f":"IF($I$8= \"All\", INDEX(data!$A$2:$H$251,,COLUMN(INDIRECT('cal formula'!F$1))),IFERROR(INDEX(data!$A$2:$H$251,data!$K50,COLUMN(INDIRECT('cal formula'!F$1))),\"\"))","v":""}]
[{"$f":"IF($I$8= \"All\", INDEX(data!$A$2:$H$251,,COLUMN(INDIRECT('cal formula'!A$1))),IFERROR(INDEX(data!$A$2:$H$251,data!$K51,COLUMN(INDIRECT('cal formula'!A$1))),\"\"))","v":""},{"$f":"IF($I$8= \"All\", INDEX(data!$A$2:$H$251,,COLUMN(INDIRECT('cal formula'!B$1))),IFERROR(INDEX(data!$A$2:$H$251,data!$K51,COLUMN(INDIRECT('cal formula'!B$1))),\"\"))","v":""},{"$f":"IF($I$8= \"All\", INDEX(data!$A$2:$H$251,,COLUMN(INDIRECT('cal formula'!C$1))),IFERROR(INDEX(data!$A$2:$H$251,data!$K51,COLUMN(INDIRECT('cal formula'!C$1))),\"\"))","v":""},{"$f":"IF($I$8= \"All\", INDEX(data!$A$2:$H$251,,COLUMN(INDIRECT('cal formula'!D$1))),IFERROR(INDEX(data!$A$2:$H$251,data!$K51,COLUMN(INDIRECT('cal formula'!D$1))),\"\"))","v":""},{"$f":"IF($I$8= \"All\", INDEX(data!$A$2:$H$251,,COLUMN(INDIRECT('cal formula'!E$1))),IFERROR(INDEX(data!$A$2:$H$251,data!$K51,COLUMN(INDIRECT('cal formula'!E$1))),\"\"))","v":""},{"$f":"IF($I$8= \"All\", INDEX(data!$A$2:$H$251,,COLUMN(INDIRECT('cal formula'!F$1))),IFERROR(INDEX(data!$A$2:$H$251,data!$K51,COLUMN(INDIRECT('cal formula'!F$1))),\"\"))","v":""}]
[{"$f":"IF($I$8= \"All\", INDEX(data!$A$2:$H$251,,COLUMN(INDIRECT('cal formula'!A$1))),IFERROR(INDEX(data!$A$2:$H$251,data!$K52,COLUMN(INDIRECT('cal formula'!A$1))),\"\"))","v":""},{"$f":"IF($I$8= \"All\", INDEX(data!$A$2:$H$251,,COLUMN(INDIRECT('cal formula'!B$1))),IFERROR(INDEX(data!$A$2:$H$251,data!$K52,COLUMN(INDIRECT('cal formula'!B$1))),\"\"))","v":""},{"$f":"IF($I$8= \"All\", INDEX(data!$A$2:$H$251,,COLUMN(INDIRECT('cal formula'!C$1))),IFERROR(INDEX(data!$A$2:$H$251,data!$K52,COLUMN(INDIRECT('cal formula'!C$1))),\"\"))","v":""},{"$f":"IF($I$8= \"All\", INDEX(data!$A$2:$H$251,,COLUMN(INDIRECT('cal formula'!D$1))),IFERROR(INDEX(data!$A$2:$H$251,data!$K52,COLUMN(INDIRECT('cal formula'!D$1))),\"\"))","v":""},{"$f":"IF($I$8= \"All\", INDEX(data!$A$2:$H$251,,COLUMN(INDIRECT('cal formula'!E$1))),IFERROR(INDEX(data!$A$2:$H$251,data!$K52,COLUMN(INDIRECT('cal formula'!E$1))),\"\"))","v":""},{"$f":"IF($I$8= \"All\", INDEX(data!$A$2:$H$251,,COLUMN(INDIRECT('cal formula'!F$1))),IFERROR(INDEX(data!$A$2:$H$251,data!$K52,COLUMN(INDIRECT('cal formula'!F$1))),\"\"))","v":""}]
[{"$f":"IF($I$8= \"All\", INDEX(data!$A$2:$H$251,,COLUMN(INDIRECT('cal formula'!A$1))),IFERROR(INDEX(data!$A$2:$H$251,data!$K53,COLUMN(INDIRECT('cal formula'!A$1))),\"\"))","v":""},{"$f":"IF($I$8= \"All\", INDEX(data!$A$2:$H$251,,COLUMN(INDIRECT('cal formula'!B$1))),IFERROR(INDEX(data!$A$2:$H$251,data!$K53,COLUMN(INDIRECT('cal formula'!B$1))),\"\"))","v":""},{"$f":"IF($I$8= \"All\", INDEX(data!$A$2:$H$251,,COLUMN(INDIRECT('cal formula'!C$1))),IFERROR(INDEX(data!$A$2:$H$251,data!$K53,COLUMN(INDIRECT('cal formula'!C$1))),\"\"))","v":""},{"$f":"IF($I$8= \"All\", INDEX(data!$A$2:$H$251,,COLUMN(INDIRECT('cal formula'!D$1))),IFERROR(INDEX(data!$A$2:$H$251,data!$K53,COLUMN(INDIRECT('cal formula'!D$1))),\"\"))","v":""},{"$f":"IF($I$8= \"All\", INDEX(data!$A$2:$H$251,,COLUMN(INDIRECT('cal formula'!E$1))),IFERROR(INDEX(data!$A$2:$H$251,data!$K53,COLUMN(INDIRECT('cal formula'!E$1))),\"\"))","v":""},{"$f":"IF($I$8= \"All\", INDEX(data!$A$2:$H$251,,COLUMN(INDIRECT('cal formula'!F$1))),IFERROR(INDEX(data!$A$2:$H$251,data!$K53,COLUMN(INDIRECT('cal formula'!F$1))),\"\"))","v":""}]
[{"$f":"IF($I$8= \"All\", INDEX(data!$A$2:$H$251,,COLUMN(INDIRECT('cal formula'!A$1))),IFERROR(INDEX(data!$A$2:$H$251,data!$K54,COLUMN(INDIRECT('cal formula'!A$1))),\"\"))","v":""},{"$f":"IF($I$8= \"All\", INDEX(data!$A$2:$H$251,,COLUMN(INDIRECT('cal formula'!B$1))),IFERROR(INDEX(data!$A$2:$H$251,data!$K54,COLUMN(INDIRECT('cal formula'!B$1))),\"\"))","v":""},{"$f":"IF($I$8= \"All\", INDEX(data!$A$2:$H$251,,COLUMN(INDIRECT('cal formula'!C$1))),IFERROR(INDEX(data!$A$2:$H$251,data!$K54,COLUMN(INDIRECT('cal formula'!C$1))),\"\"))","v":""},{"$f":"IF($I$8= \"All\", INDEX(data!$A$2:$H$251,,COLUMN(INDIRECT('cal formula'!D$1))),IFERROR(INDEX(data!$A$2:$H$251,data!$K54,COLUMN(INDIRECT('cal formula'!D$1))),\"\"))","v":""},{"$f":"IF($I$8= \"All\", INDEX(data!$A$2:$H$251,,COLUMN(INDIRECT('cal formula'!E$1))),IFERROR(INDEX(data!$A$2:$H$251,data!$K54,COLUMN(INDIRECT('cal formula'!E$1))),\"\"))","v":""},{"$f":"IF($I$8= \"All\", INDEX(data!$A$2:$H$251,,COLUMN(INDIRECT('cal formula'!F$1))),IFERROR(INDEX(data!$A$2:$H$251,data!$K54,COLUMN(INDIRECT('cal formula'!F$1))),\"\"))","v":""}]
[{"$f":"IF($I$8= \"All\", INDEX(data!$A$2:$H$251,,COLUMN(INDIRECT('cal formula'!A$1))),IFERROR(INDEX(data!$A$2:$H$251,data!$K55,COLUMN(INDIRECT('cal formula'!A$1))),\"\"))","v":""},{"$f":"IF($I$8= \"All\", INDEX(data!$A$2:$H$251,,COLUMN(INDIRECT('cal formula'!B$1))),IFERROR(INDEX(data!$A$2:$H$251,data!$K55,COLUMN(INDIRECT('cal formula'!B$1))),\"\"))","v":""},{"$f":"IF($I$8= \"All\", INDEX(data!$A$2:$H$251,,COLUMN(INDIRECT('cal formula'!C$1))),IFERROR(INDEX(data!$A$2:$H$251,data!$K55,COLUMN(INDIRECT('cal formula'!C$1))),\"\"))","v":""},{"$f":"IF($I$8= \"All\", INDEX(data!$A$2:$H$251,,COLUMN(INDIRECT('cal formula'!D$1))),IFERROR(INDEX(data!$A$2:$H$251,data!$K55,COLUMN(INDIRECT('cal formula'!D$1))),\"\"))","v":""},{"$f":"IF($I$8= \"All\", INDEX(data!$A$2:$H$251,,COLUMN(INDIRECT('cal formula'!E$1))),IFERROR(INDEX(data!$A$2:$H$251,data!$K55,COLUMN(INDIRECT('cal formula'!E$1))),\"\"))","v":""},{"$f":"IF($I$8= \"All\", INDEX(data!$A$2:$H$251,,COLUMN(INDIRECT('cal formula'!F$1))),IFERROR(INDEX(data!$A$2:$H$251,data!$K55,COLUMN(INDIRECT('cal formula'!F$1))),\"\"))","v":""}]
[{"$f":"IF($I$8= \"All\", INDEX(data!$A$2:$H$251,,COLUMN(INDIRECT('cal formula'!A$1))),IFERROR(INDEX(data!$A$2:$H$251,data!$K56,COLUMN(INDIRECT('cal formula'!A$1))),\"\"))","v":""},{"$f":"IF($I$8= \"All\", INDEX(data!$A$2:$H$251,,COLUMN(INDIRECT('cal formula'!B$1))),IFERROR(INDEX(data!$A$2:$H$251,data!$K56,COLUMN(INDIRECT('cal formula'!B$1))),\"\"))","v":""},{"$f":"IF($I$8= \"All\", INDEX(data!$A$2:$H$251,,COLUMN(INDIRECT('cal formula'!C$1))),IFERROR(INDEX(data!$A$2:$H$251,data!$K56,COLUMN(INDIRECT('cal formula'!C$1))),\"\"))","v":""},{"$f":"IF($I$8= \"All\", INDEX(data!$A$2:$H$251,,COLUMN(INDIRECT('cal formula'!D$1))),IFERROR(INDEX(data!$A$2:$H$251,data!$K56,COLUMN(INDIRECT('cal formula'!D$1))),\"\"))","v":""},{"$f":"IF($I$8= \"All\", INDEX(data!$A$2:$H$251,,COLUMN(INDIRECT('cal formula'!E$1))),IFERROR(INDEX(data!$A$2:$H$251,data!$K56,COLUMN(INDIRECT('cal formula'!E$1))),\"\"))","v":""},{"$f":"IF($I$8= \"All\", INDEX(data!$A$2:$H$251,,COLUMN(INDIRECT('cal formula'!F$1))),IFERROR(INDEX(data!$A$2:$H$251,data!$K56,COLUMN(INDIRECT('cal formula'!F$1))),\"\"))","v":""}]
[{"$f":"IF($I$8= \"All\", INDEX(data!$A$2:$H$251,,COLUMN(INDIRECT('cal formula'!A$1))),IFERROR(INDEX(data!$A$2:$H$251,data!$K57,COLUMN(INDIRECT('cal formula'!A$1))),\"\"))","v":""},{"$f":"IF($I$8= \"All\", INDEX(data!$A$2:$H$251,,COLUMN(INDIRECT('cal formula'!B$1))),IFERROR(INDEX(data!$A$2:$H$251,data!$K57,COLUMN(INDIRECT('cal formula'!B$1))),\"\"))","v":""},{"$f":"IF($I$8= \"All\", INDEX(data!$A$2:$H$251,,COLUMN(INDIRECT('cal formula'!C$1))),IFERROR(INDEX(data!$A$2:$H$251,data!$K57,COLUMN(INDIRECT('cal formula'!C$1))),\"\"))","v":""},{"$f":"IF($I$8= \"All\", INDEX(data!$A$2:$H$251,,COLUMN(INDIRECT('cal formula'!D$1))),IFERROR(INDEX(data!$A$2:$H$251,data!$K57,COLUMN(INDIRECT('cal formula'!D$1))),\"\"))","v":""},{"$f":"IF($I$8= \"All\", INDEX(data!$A$2:$H$251,,COLUMN(INDIRECT('cal formula'!E$1))),IFERROR(INDEX(data!$A$2:$H$251,data!$K57,COLUMN(INDIRECT('cal formula'!E$1))),\"\"))","v":""},{"$f":"IF($I$8= \"All\", INDEX(data!$A$2:$H$251,,COLUMN(INDIRECT('cal formula'!F$1))),IFERROR(INDEX(data!$A$2:$H$251,data!$K57,COLUMN(INDIRECT('cal formula'!F$1))),\"\"))","v":""}]
[{"$f":"IF($I$8= \"All\", INDEX(data!$A$2:$H$251,,COLUMN(INDIRECT('cal formula'!A$1))),IFERROR(INDEX(data!$A$2:$H$251,data!$K58,COLUMN(INDIRECT('cal formula'!A$1))),\"\"))","v":""},{"$f":"IF($I$8= \"All\", INDEX(data!$A$2:$H$251,,COLUMN(INDIRECT('cal formula'!B$1))),IFERROR(INDEX(data!$A$2:$H$251,data!$K58,COLUMN(INDIRECT('cal formula'!B$1))),\"\"))","v":""},{"$f":"IF($I$8= \"All\", INDEX(data!$A$2:$H$251,,COLUMN(INDIRECT('cal formula'!C$1))),IFERROR(INDEX(data!$A$2:$H$251,data!$K58,COLUMN(INDIRECT('cal formula'!C$1))),\"\"))","v":""},{"$f":"IF($I$8= \"All\", INDEX(data!$A$2:$H$251,,COLUMN(INDIRECT('cal formula'!D$1))),IFERROR(INDEX(data!$A$2:$H$251,data!$K58,COLUMN(INDIRECT('cal formula'!D$1))),\"\"))","v":""},{"$f":"IF($I$8= \"All\", INDEX(data!$A$2:$H$251,,COLUMN(INDIRECT('cal formula'!E$1))),IFERROR(INDEX(data!$A$2:$H$251,data!$K58,COLUMN(INDIRECT('cal formula'!E$1))),\"\"))","v":""},{"$f":"IF($I$8= \"All\", INDEX(data!$A$2:$H$251,,COLUMN(INDIRECT('cal formula'!F$1))),IFERROR(INDEX(data!$A$2:$H$251,data!$K58,COLUMN(INDIRECT('cal formula'!F$1))),\"\"))","v":""}]
[{"$f":"IF($I$8= \"All\", INDEX(data!$A$2:$H$251,,COLUMN(INDIRECT('cal formula'!A$1))),IFERROR(INDEX(data!$A$2:$H$251,data!$K59,COLUMN(INDIRECT('cal formula'!A$1))),\"\"))","v":""},{"$f":"IF($I$8= \"All\", INDEX(data!$A$2:$H$251,,COLUMN(INDIRECT('cal formula'!B$1))),IFERROR(INDEX(data!$A$2:$H$251,data!$K59,COLUMN(INDIRECT('cal formula'!B$1))),\"\"))","v":""},{"$f":"IF($I$8= \"All\", INDEX(data!$A$2:$H$251,,COLUMN(INDIRECT('cal formula'!C$1))),IFERROR(INDEX(data!$A$2:$H$251,data!$K59,COLUMN(INDIRECT('cal formula'!C$1))),\"\"))","v":""},{"$f":"IF($I$8= \"All\", INDEX(data!$A$2:$H$251,,COLUMN(INDIRECT('cal formula'!D$1))),IFERROR(INDEX(data!$A$2:$H$251,data!$K59,COLUMN(INDIRECT('cal formula'!D$1))),\"\"))","v":""},{"$f":"IF($I$8= \"All\", INDEX(data!$A$2:$H$251,,COLUMN(INDIRECT('cal formula'!E$1))),IFERROR(INDEX(data!$A$2:$H$251,data!$K59,COLUMN(INDIRECT('cal formula'!E$1))),\"\"))","v":""},{"$f":"IF($I$8= \"All\", INDEX(data!$A$2:$H$251,,COLUMN(INDIRECT('cal formula'!F$1))),IFERROR(INDEX(data!$A$2:$H$251,data!$K59,COLUMN(INDIRECT('cal formula'!F$1))),\"\"))","v":""}]
[{"$f":"IF($I$8= \"All\", INDEX(data!$A$2:$H$251,,COLUMN(INDIRECT('cal formula'!A$1))),IFERROR(INDEX(data!$A$2:$H$251,data!$K60,COLUMN(INDIRECT('cal formula'!A$1))),\"\"))","v":""},{"$f":"IF($I$8= \"All\", INDEX(data!$A$2:$H$251,,COLUMN(INDIRECT('cal formula'!B$1))),IFERROR(INDEX(data!$A$2:$H$251,data!$K60,COLUMN(INDIRECT('cal formula'!B$1))),\"\"))","v":""},{"$f":"IF($I$8= \"All\", INDEX(data!$A$2:$H$251,,COLUMN(INDIRECT('cal formula'!C$1))),IFERROR(INDEX(data!$A$2:$H$251,data!$K60,COLUMN(INDIRECT('cal formula'!C$1))),\"\"))","v":""},{"$f":"IF($I$8= \"All\", INDEX(data!$A$2:$H$251,,COLUMN(INDIRECT('cal formula'!D$1))),IFERROR(INDEX(data!$A$2:$H$251,data!$K60,COLUMN(INDIRECT('cal formula'!D$1))),\"\"))","v":""},{"$f":"IF($I$8= \"All\", INDEX(data!$A$2:$H$251,,COLUMN(INDIRECT('cal formula'!E$1))),IFERROR(INDEX(data!$A$2:$H$251,data!$K60,COLUMN(INDIRECT('cal formula'!E$1))),\"\"))","v":""},{"$f":"IF($I$8= \"All\", INDEX(data!$A$2:$H$251,,COLUMN(INDIRECT('cal formula'!F$1))),IFERROR(INDEX(data!$A$2:$H$251,data!$K60,COLUMN(INDIRECT('cal formula'!F$1))),\"\"))","v":""}]
[{"$f":"IF($I$8= \"All\", INDEX(data!$A$2:$H$251,,COLUMN(INDIRECT('cal formula'!A$1))),IFERROR(INDEX(data!$A$2:$H$251,data!$K61,COLUMN(INDIRECT('cal formula'!A$1))),\"\"))","v":""},{"$f":"IF($I$8= \"All\", INDEX(data!$A$2:$H$251,,COLUMN(INDIRECT('cal formula'!B$1))),IFERROR(INDEX(data!$A$2:$H$251,data!$K61,COLUMN(INDIRECT('cal formula'!B$1))),\"\"))","v":""},{"$f":"IF($I$8= \"All\", INDEX(data!$A$2:$H$251,,COLUMN(INDIRECT('cal formula'!C$1))),IFERROR(INDEX(data!$A$2:$H$251,data!$K61,COLUMN(INDIRECT('cal formula'!C$1))),\"\"))","v":""},{"$f":"IF($I$8= \"All\", INDEX(data!$A$2:$H$251,,COLUMN(INDIRECT('cal formula'!D$1))),IFERROR(INDEX(data!$A$2:$H$251,data!$K61,COLUMN(INDIRECT('cal formula'!D$1))),\"\"))","v":""},{"$f":"IF($I$8= \"All\", INDEX(data!$A$2:$H$251,,COLUMN(INDIRECT('cal formula'!E$1))),IFERROR(INDEX(data!$A$2:$H$251,data!$K61,COLUMN(INDIRECT('cal formula'!E$1))),\"\"))","v":""},{"$f":"IF($I$8= \"All\", INDEX(data!$A$2:$H$251,,COLUMN(INDIRECT('cal formula'!F$1))),IFERROR(INDEX(data!$A$2:$H$251,data!$K61,COLUMN(INDIRECT('cal formula'!F$1))),\"\"))","v":""}]
[{"$f":"IF($I$8= \"All\", INDEX(data!$A$2:$H$251,,COLUMN(INDIRECT('cal formula'!A$1))),IFERROR(INDEX(data!$A$2:$H$251,data!$K62,COLUMN(INDIRECT('cal formula'!A$1))),\"\"))","v":""},{"$f":"IF($I$8= \"All\", INDEX(data!$A$2:$H$251,,COLUMN(INDIRECT('cal formula'!B$1))),IFERROR(INDEX(data!$A$2:$H$251,data!$K62,COLUMN(INDIRECT('cal formula'!B$1))),\"\"))","v":""},{"$f":"IF($I$8= \"All\", INDEX(data!$A$2:$H$251,,COLUMN(INDIRECT('cal formula'!C$1))),IFERROR(INDEX(data!$A$2:$H$251,data!$K62,COLUMN(INDIRECT('cal formula'!C$1))),\"\"))","v":""},{"$f":"IF($I$8= \"All\", INDEX(data!$A$2:$H$251,,COLUMN(INDIRECT('cal formula'!D$1))),IFERROR(INDEX(data!$A$2:$H$251,data!$K62,COLUMN(INDIRECT('cal formula'!D$1))),\"\"))","v":""},{"$f":"IF($I$8= \"All\", INDEX(data!$A$2:$H$251,,COLUMN(INDIRECT('cal formula'!E$1))),IFERROR(INDEX(data!$A$2:$H$251,data!$K62,COLUMN(INDIRECT('cal formula'!E$1))),\"\"))","v":""},{"$f":"IF($I$8= \"All\", INDEX(data!$A$2:$H$251,,COLUMN(INDIRECT('cal formula'!F$1))),IFERROR(INDEX(data!$A$2:$H$251,data!$K62,COLUMN(INDIRECT('cal formula'!F$1))),\"\"))","v":""}]
[{"$f":"IF($I$8= \"All\", INDEX(data!$A$2:$H$251,,COLUMN(INDIRECT('cal formula'!A$1))),IFERROR(INDEX(data!$A$2:$H$251,data!$K63,COLUMN(INDIRECT('cal formula'!A$1))),\"\"))","v":""},{"$f":"IF($I$8= \"All\", INDEX(data!$A$2:$H$251,,COLUMN(INDIRECT('cal formula'!B$1))),IFERROR(INDEX(data!$A$2:$H$251,data!$K63,COLUMN(INDIRECT('cal formula'!B$1))),\"\"))","v":""},{"$f":"IF($I$8= \"All\", INDEX(data!$A$2:$H$251,,COLUMN(INDIRECT('cal formula'!C$1))),IFERROR(INDEX(data!$A$2:$H$251,data!$K63,COLUMN(INDIRECT('cal formula'!C$1))),\"\"))","v":""},{"$f":"IF($I$8= \"All\", INDEX(data!$A$2:$H$251,,COLUMN(INDIRECT('cal formula'!D$1))),IFERROR(INDEX(data!$A$2:$H$251,data!$K63,COLUMN(INDIRECT('cal formula'!D$1))),\"\"))","v":""},{"$f":"IF($I$8= \"All\", INDEX(data!$A$2:$H$251,,COLUMN(INDIRECT('cal formula'!E$1))),IFERROR(INDEX(data!$A$2:$H$251,data!$K63,COLUMN(INDIRECT('cal formula'!E$1))),\"\"))","v":""},{"$f":"IF($I$8= \"All\", INDEX(data!$A$2:$H$251,,COLUMN(INDIRECT('cal formula'!F$1))),IFERROR(INDEX(data!$A$2:$H$251,data!$K63,COLUMN(INDIRECT('cal formula'!F$1))),\"\"))","v":""}]
[{"$f":"IF($I$8= \"All\", INDEX(data!$A$2:$H$251,,COLUMN(INDIRECT('cal formula'!A$1))),IFERROR(INDEX(data!$A$2:$H$251,data!$K64,COLUMN(INDIRECT('cal formula'!A$1))),\"\"))","v":""},{"$f":"IF($I$8= \"All\", INDEX(data!$A$2:$H$251,,COLUMN(INDIRECT('cal formula'!B$1))),IFERROR(INDEX(data!$A$2:$H$251,data!$K64,COLUMN(INDIRECT('cal formula'!B$1))),\"\"))","v":""},{"$f":"IF($I$8= \"All\", INDEX(data!$A$2:$H$251,,COLUMN(INDIRECT('cal formula'!C$1))),IFERROR(INDEX(data!$A$2:$H$251,data!$K64,COLUMN(INDIRECT('cal formula'!C$1))),\"\"))","v":""},{"$f":"IF($I$8= \"All\", INDEX(data!$A$2:$H$251,,COLUMN(INDIRECT('cal formula'!D$1))),IFERROR(INDEX(data!$A$2:$H$251,data!$K64,COLUMN(INDIRECT('cal formula'!D$1))),\"\"))","v":""},{"$f":"IF($I$8= \"All\", INDEX(data!$A$2:$H$251,,COLUMN(INDIRECT('cal formula'!E$1))),IFERROR(INDEX(data!$A$2:$H$251,data!$K64,COLUMN(INDIRECT('cal formula'!E$1))),\"\"))","v":""},{"$f":"IF($I$8= \"All\", INDEX(data!$A$2:$H$251,,COLUMN(INDIRECT('cal formula'!F$1))),IFERROR(INDEX(data!$A$2:$H$251,data!$K64,COLUMN(INDIRECT('cal formula'!F$1))),\"\"))","v":""}]
[{"$f":"IF($I$8= \"All\", INDEX(data!$A$2:$H$251,,COLUMN(INDIRECT('cal formula'!A$1))),IFERROR(INDEX(data!$A$2:$H$251,data!$K65,COLUMN(INDIRECT('cal formula'!A$1))),\"\"))","v":""},{"$f":"IF($I$8= \"All\", INDEX(data!$A$2:$H$251,,COLUMN(INDIRECT('cal formula'!B$1))),IFERROR(INDEX(data!$A$2:$H$251,data!$K65,COLUMN(INDIRECT('cal formula'!B$1))),\"\"))","v":""},{"$f":"IF($I$8= \"All\", INDEX(data!$A$2:$H$251,,COLUMN(INDIRECT('cal formula'!C$1))),IFERROR(INDEX(data!$A$2:$H$251,data!$K65,COLUMN(INDIRECT('cal formula'!C$1))),\"\"))","v":""},{"$f":"IF($I$8= \"All\", INDEX(data!$A$2:$H$251,,COLUMN(INDIRECT('cal formula'!D$1))),IFERROR(INDEX(data!$A$2:$H$251,data!$K65,COLUMN(INDIRECT('cal formula'!D$1))),\"\"))","v":""},{"$f":"IF($I$8= \"All\", INDEX(data!$A$2:$H$251,,COLUMN(INDIRECT('cal formula'!E$1))),IFERROR(INDEX(data!$A$2:$H$251,data!$K65,COLUMN(INDIRECT('cal formula'!E$1))),\"\"))","v":""},{"$f":"IF($I$8= \"All\", INDEX(data!$A$2:$H$251,,COLUMN(INDIRECT('cal formula'!F$1))),IFERROR(INDEX(data!$A$2:$H$251,data!$K65,COLUMN(INDIRECT('cal formula'!F$1))),\"\"))","v":""}]
[{"$f":"IF($I$8= \"All\", INDEX(data!$A$2:$H$251,,COLUMN(INDIRECT('cal formula'!A$1))),IFERROR(INDEX(data!$A$2:$H$251,data!$K66,COLUMN(INDIRECT('cal formula'!A$1))),\"\"))","v":""},{"$f":"IF($I$8= \"All\", INDEX(data!$A$2:$H$251,,COLUMN(INDIRECT('cal formula'!B$1))),IFERROR(INDEX(data!$A$2:$H$251,data!$K66,COLUMN(INDIRECT('cal formula'!B$1))),\"\"))","v":""},{"$f":"IF($I$8= \"All\", INDEX(data!$A$2:$H$251,,COLUMN(INDIRECT('cal formula'!C$1))),IFERROR(INDEX(data!$A$2:$H$251,data!$K66,COLUMN(INDIRECT('cal formula'!C$1))),\"\"))","v":""},{"$f":"IF($I$8= \"All\", INDEX(data!$A$2:$H$251,,COLUMN(INDIRECT('cal formula'!D$1))),IFERROR(INDEX(data!$A$2:$H$251,data!$K66,COLUMN(INDIRECT('cal formula'!D$1))),\"\"))","v":""},{"$f":"IF($I$8= \"All\", INDEX(data!$A$2:$H$251,,COLUMN(INDIRECT('cal formula'!E$1))),IFERROR(INDEX(data!$A$2:$H$251,data!$K66,COLUMN(INDIRECT('cal formula'!E$1))),\"\"))","v":""},{"$f":"IF($I$8= \"All\", INDEX(data!$A$2:$H$251,,COLUMN(INDIRECT('cal formula'!F$1))),IFERROR(INDEX(data!$A$2:$H$251,data!$K66,COLUMN(INDIRECT('cal formula'!F$1))),\"\"))","v":""}]
[{"$f":"IF($I$8= \"All\", INDEX(data!$A$2:$H$251,,COLUMN(INDIRECT('cal formula'!A$1))),IFERROR(INDEX(data!$A$2:$H$251,data!$K67,COLUMN(INDIRECT('cal formula'!A$1))),\"\"))","v":""},{"$f":"IF($I$8= \"All\", INDEX(data!$A$2:$H$251,,COLUMN(INDIRECT('cal formula'!B$1))),IFERROR(INDEX(data!$A$2:$H$251,data!$K67,COLUMN(INDIRECT('cal formula'!B$1))),\"\"))","v":""},{"$f":"IF($I$8= \"All\", INDEX(data!$A$2:$H$251,,COLUMN(INDIRECT('cal formula'!C$1))),IFERROR(INDEX(data!$A$2:$H$251,data!$K67,COLUMN(INDIRECT('cal formula'!C$1))),\"\"))","v":""},{"$f":"IF($I$8= \"All\", INDEX(data!$A$2:$H$251,,COLUMN(INDIRECT('cal formula'!D$1))),IFERROR(INDEX(data!$A$2:$H$251,data!$K67,COLUMN(INDIRECT('cal formula'!D$1))),\"\"))","v":""},{"$f":"IF($I$8= \"All\", INDEX(data!$A$2:$H$251,,COLUMN(INDIRECT('cal formula'!E$1))),IFERROR(INDEX(data!$A$2:$H$251,data!$K67,COLUMN(INDIRECT('cal formula'!E$1))),\"\"))","v":""},{"$f":"IF($I$8= \"All\", INDEX(data!$A$2:$H$251,,COLUMN(INDIRECT('cal formula'!F$1))),IFERROR(INDEX(data!$A$2:$H$251,data!$K67,COLUMN(INDIRECT('cal formula'!F$1))),\"\"))","v":""}]
[{"$f":"IF($I$8= \"All\", INDEX(data!$A$2:$H$251,,COLUMN(INDIRECT('cal formula'!A$1))),IFERROR(INDEX(data!$A$2:$H$251,data!$K68,COLUMN(INDIRECT('cal formula'!A$1))),\"\"))","v":""},{"$f":"IF($I$8= \"All\", INDEX(data!$A$2:$H$251,,COLUMN(INDIRECT('cal formula'!B$1))),IFERROR(INDEX(data!$A$2:$H$251,data!$K68,COLUMN(INDIRECT('cal formula'!B$1))),\"\"))","v":""},{"$f":"IF($I$8= \"All\", INDEX(data!$A$2:$H$251,,COLUMN(INDIRECT('cal formula'!C$1))),IFERROR(INDEX(data!$A$2:$H$251,data!$K68,COLUMN(INDIRECT('cal formula'!C$1))),\"\"))","v":""},{"$f":"IF($I$8= \"All\", INDEX(data!$A$2:$H$251,,COLUMN(INDIRECT('cal formula'!D$1))),IFERROR(INDEX(data!$A$2:$H$251,data!$K68,COLUMN(INDIRECT('cal formula'!D$1))),\"\"))","v":""},{"$f":"IF($I$8= \"All\", INDEX(data!$A$2:$H$251,,COLUMN(INDIRECT('cal formula'!E$1))),IFERROR(INDEX(data!$A$2:$H$251,data!$K68,COLUMN(INDIRECT('cal formula'!E$1))),\"\"))","v":""},{"$f":"IF($I$8= \"All\", INDEX(data!$A$2:$H$251,,COLUMN(INDIRECT('cal formula'!F$1))),IFERROR(INDEX(data!$A$2:$H$251,data!$K68,COLUMN(INDIRECT('cal formula'!F$1))),\"\"))","v":""}]
[{"$f":"IF($I$8= \"All\", INDEX(data!$A$2:$H$251,,COLUMN(INDIRECT('cal formula'!A$1))),IFERROR(INDEX(data!$A$2:$H$251,data!$K69,COLUMN(INDIRECT('cal formula'!A$1))),\"\"))","v":""},{"$f":"IF($I$8= \"All\", INDEX(data!$A$2:$H$251,,COLUMN(INDIRECT('cal formula'!B$1))),IFERROR(INDEX(data!$A$2:$H$251,data!$K69,COLUMN(INDIRECT('cal formula'!B$1))),\"\"))","v":""},{"$f":"IF($I$8= \"All\", INDEX(data!$A$2:$H$251,,COLUMN(INDIRECT('cal formula'!C$1))),IFERROR(INDEX(data!$A$2:$H$251,data!$K69,COLUMN(INDIRECT('cal formula'!C$1))),\"\"))","v":""},{"$f":"IF($I$8= \"All\", INDEX(data!$A$2:$H$251,,COLUMN(INDIRECT('cal formula'!D$1))),IFERROR(INDEX(data!$A$2:$H$251,data!$K69,COLUMN(INDIRECT('cal formula'!D$1))),\"\"))","v":""},{"$f":"IF($I$8= \"All\", INDEX(data!$A$2:$H$251,,COLUMN(INDIRECT('cal formula'!E$1))),IFERROR(INDEX(data!$A$2:$H$251,data!$K69,COLUMN(INDIRECT('cal formula'!E$1))),\"\"))","v":""},{"$f":"IF($I$8= \"All\", INDEX(data!$A$2:$H$251,,COLUMN(INDIRECT('cal formula'!F$1))),IFERROR(INDEX(data!$A$2:$H$251,data!$K69,COLUMN(INDIRECT('cal formula'!F$1))),\"\"))","v":""}]
[{"$f":"IF($I$8= \"All\", INDEX(data!$A$2:$H$251,,COLUMN(INDIRECT('cal formula'!A$1))),IFERROR(INDEX(data!$A$2:$H$251,data!$K70,COLUMN(INDIRECT('cal formula'!A$1))),\"\"))","v":""},{"$f":"IF($I$8= \"All\", INDEX(data!$A$2:$H$251,,COLUMN(INDIRECT('cal formula'!B$1))),IFERROR(INDEX(data!$A$2:$H$251,data!$K70,COLUMN(INDIRECT('cal formula'!B$1))),\"\"))","v":""},{"$f":"IF($I$8= \"All\", INDEX(data!$A$2:$H$251,,COLUMN(INDIRECT('cal formula'!C$1))),IFERROR(INDEX(data!$A$2:$H$251,data!$K70,COLUMN(INDIRECT('cal formula'!C$1))),\"\"))","v":""},{"$f":"IF($I$8= \"All\", INDEX(data!$A$2:$H$251,,COLUMN(INDIRECT('cal formula'!D$1))),IFERROR(INDEX(data!$A$2:$H$251,data!$K70,COLUMN(INDIRECT('cal formula'!D$1))),\"\"))","v":""},{"$f":"IF($I$8= \"All\", INDEX(data!$A$2:$H$251,,COLUMN(INDIRECT('cal formula'!E$1))),IFERROR(INDEX(data!$A$2:$H$251,data!$K70,COLUMN(INDIRECT('cal formula'!E$1))),\"\"))","v":""},{"$f":"IF($I$8= \"All\", INDEX(data!$A$2:$H$251,,COLUMN(INDIRECT('cal formula'!F$1))),IFERROR(INDEX(data!$A$2:$H$251,data!$K70,COLUMN(INDIRECT('cal formula'!F$1))),\"\"))","v":""}]
[{"$f":"IF($I$8= \"All\", INDEX(data!$A$2:$H$251,,COLUMN(INDIRECT('cal formula'!A$1))),IFERROR(INDEX(data!$A$2:$H$251,data!$K71,COLUMN(INDIRECT('cal formula'!A$1))),\"\"))","v":""},{"$f":"IF($I$8= \"All\", INDEX(data!$A$2:$H$251,,COLUMN(INDIRECT('cal formula'!B$1))),IFERROR(INDEX(data!$A$2:$H$251,data!$K71,COLUMN(INDIRECT('cal formula'!B$1))),\"\"))","v":""},{"$f":"IF($I$8= \"All\", INDEX(data!$A$2:$H$251,,COLUMN(INDIRECT('cal formula'!C$1))),IFERROR(INDEX(data!$A$2:$H$251,data!$K71,COLUMN(INDIRECT('cal formula'!C$1))),\"\"))","v":""},{"$f":"IF($I$8= \"All\", INDEX(data!$A$2:$H$251,,COLUMN(INDIRECT('cal formula'!D$1))),IFERROR(INDEX(data!$A$2:$H$251,data!$K71,COLUMN(INDIRECT('cal formula'!D$1))),\"\"))","v":""},{"$f":"IF($I$8= \"All\", INDEX(data!$A$2:$H$251,,COLUMN(INDIRECT('cal formula'!E$1))),IFERROR(INDEX(data!$A$2:$H$251,data!$K71,COLUMN(INDIRECT('cal formula'!E$1))),\"\"))","v":""},{"$f":"IF($I$8= \"All\", INDEX(data!$A$2:$H$251,,COLUMN(INDIRECT('cal formula'!F$1))),IFERROR(INDEX(data!$A$2:$H$251,data!$K71,COLUMN(INDIRECT('cal formula'!F$1))),\"\"))","v":""}]
[{"$f":"IF($I$8= \"All\", INDEX(data!$A$2:$H$251,,COLUMN(INDIRECT('cal formula'!A$1))),IFERROR(INDEX(data!$A$2:$H$251,data!$K72,COLUMN(INDIRECT('cal formula'!A$1))),\"\"))","v":""},{"$f":"IF($I$8= \"All\", INDEX(data!$A$2:$H$251,,COLUMN(INDIRECT('cal formula'!B$1))),IFERROR(INDEX(data!$A$2:$H$251,data!$K72,COLUMN(INDIRECT('cal formula'!B$1))),\"\"))","v":""},{"$f":"IF($I$8= \"All\", INDEX(data!$A$2:$H$251,,COLUMN(INDIRECT('cal formula'!C$1))),IFERROR(INDEX(data!$A$2:$H$251,data!$K72,COLUMN(INDIRECT('cal formula'!C$1))),\"\"))","v":""},{"$f":"IF($I$8= \"All\", INDEX(data!$A$2:$H$251,,COLUMN(INDIRECT('cal formula'!D$1))),IFERROR(INDEX(data!$A$2:$H$251,data!$K72,COLUMN(INDIRECT('cal formula'!D$1))),\"\"))","v":""},{"$f":"IF($I$8= \"All\", INDEX(data!$A$2:$H$251,,COLUMN(INDIRECT('cal formula'!E$1))),IFERROR(INDEX(data!$A$2:$H$251,data!$K72,COLUMN(INDIRECT('cal formula'!E$1))),\"\"))","v":""},{"$f":"IF($I$8= \"All\", INDEX(data!$A$2:$H$251,,COLUMN(INDIRECT('cal formula'!F$1))),IFERROR(INDEX(data!$A$2:$H$251,data!$K72,COLUMN(INDIRECT('cal formula'!F$1))),\"\"))","v":""}]
[{"$f":"IF($I$8= \"All\", INDEX(data!$A$2:$H$251,,COLUMN(INDIRECT('cal formula'!A$1))),IFERROR(INDEX(data!$A$2:$H$251,data!$K73,COLUMN(INDIRECT('cal formula'!A$1))),\"\"))","v":""},{"$f":"IF($I$8= \"All\", INDEX(data!$A$2:$H$251,,COLUMN(INDIRECT('cal formula'!B$1))),IFERROR(INDEX(data!$A$2:$H$251,data!$K73,COLUMN(INDIRECT('cal formula'!B$1))),\"\"))","v":""},{"$f":"IF($I$8= \"All\", INDEX(data!$A$2:$H$251,,COLUMN(INDIRECT('cal formula'!C$1))),IFERROR(INDEX(data!$A$2:$H$251,data!$K73,COLUMN(INDIRECT('cal formula'!C$1))),\"\"))","v":""},{"$f":"IF($I$8= \"All\", INDEX(data!$A$2:$H$251,,COLUMN(INDIRECT('cal formula'!D$1))),IFERROR(INDEX(data!$A$2:$H$251,data!$K73,COLUMN(INDIRECT('cal formula'!D$1))),\"\"))","v":""},{"$f":"IF($I$8= \"All\", INDEX(data!$A$2:$H$251,,COLUMN(INDIRECT('cal formula'!E$1))),IFERROR(INDEX(data!$A$2:$H$251,data!$K73,COLUMN(INDIRECT('cal formula'!E$1))),\"\"))","v":""},{"$f":"IF($I$8= \"All\", INDEX(data!$A$2:$H$251,,COLUMN(INDIRECT('cal formula'!F$1))),IFERROR(INDEX(data!$A$2:$H$251,data!$K73,COLUMN(INDIRECT('cal formula'!F$1))),\"\"))","v":""}]
[{"$f":"IF($I$8= \"All\", INDEX(data!$A$2:$H$251,,COLUMN(INDIRECT('cal formula'!A$1))),IFERROR(INDEX(data!$A$2:$H$251,data!$K74,COLUMN(INDIRECT('cal formula'!A$1))),\"\"))","v":""},{"$f":"IF($I$8= \"All\", INDEX(data!$A$2:$H$251,,COLUMN(INDIRECT('cal formula'!B$1))),IFERROR(INDEX(data!$A$2:$H$251,data!$K74,COLUMN(INDIRECT('cal formula'!B$1))),\"\"))","v":""},{"$f":"IF($I$8= \"All\", INDEX(data!$A$2:$H$251,,COLUMN(INDIRECT('cal formula'!C$1))),IFERROR(INDEX(data!$A$2:$H$251,data!$K74,COLUMN(INDIRECT('cal formula'!C$1))),\"\"))","v":""},{"$f":"IF($I$8= \"All\", INDEX(data!$A$2:$H$251,,COLUMN(INDIRECT('cal formula'!D$1))),IFERROR(INDEX(data!$A$2:$H$251,data!$K74,COLUMN(INDIRECT('cal formula'!D$1))),\"\"))","v":""},{"$f":"IF($I$8= \"All\", INDEX(data!$A$2:$H$251,,COLUMN(INDIRECT('cal formula'!E$1))),IFERROR(INDEX(data!$A$2:$H$251,data!$K74,COLUMN(INDIRECT('cal formula'!E$1))),\"\"))","v":""},{"$f":"IF($I$8= \"All\", INDEX(data!$A$2:$H$251,,COLUMN(INDIRECT('cal formula'!F$1))),IFERROR(INDEX(data!$A$2:$H$251,data!$K74,COLUMN(INDIRECT('cal formula'!F$1))),\"\"))","v":""}]
[{"$f":"IF($I$8= \"All\", INDEX(data!$A$2:$H$251,,COLUMN(INDIRECT('cal formula'!A$1))),IFERROR(INDEX(data!$A$2:$H$251,data!$K75,COLUMN(INDIRECT('cal formula'!A$1))),\"\"))","v":""},{"$f":"IF($I$8= \"All\", INDEX(data!$A$2:$H$251,,COLUMN(INDIRECT('cal formula'!B$1))),IFERROR(INDEX(data!$A$2:$H$251,data!$K75,COLUMN(INDIRECT('cal formula'!B$1))),\"\"))","v":""},{"$f":"IF($I$8= \"All\", INDEX(data!$A$2:$H$251,,COLUMN(INDIRECT('cal formula'!C$1))),IFERROR(INDEX(data!$A$2:$H$251,data!$K75,COLUMN(INDIRECT('cal formula'!C$1))),\"\"))","v":""},{"$f":"IF($I$8= \"All\", INDEX(data!$A$2:$H$251,,COLUMN(INDIRECT('cal formula'!D$1))),IFERROR(INDEX(data!$A$2:$H$251,data!$K75,COLUMN(INDIRECT('cal formula'!D$1))),\"\"))","v":""},{"$f":"IF($I$8= \"All\", INDEX(data!$A$2:$H$251,,COLUMN(INDIRECT('cal formula'!E$1))),IFERROR(INDEX(data!$A$2:$H$251,data!$K75,COLUMN(INDIRECT('cal formula'!E$1))),\"\"))","v":""},{"$f":"IF($I$8= \"All\", INDEX(data!$A$2:$H$251,,COLUMN(INDIRECT('cal formula'!F$1))),IFERROR(INDEX(data!$A$2:$H$251,data!$K75,COLUMN(INDIRECT('cal formula'!F$1))),\"\"))","v":""}]
[{"$f":"IF($I$8= \"All\", INDEX(data!$A$2:$H$251,,COLUMN(INDIRECT('cal formula'!A$1))),IFERROR(INDEX(data!$A$2:$H$251,data!$K76,COLUMN(INDIRECT('cal formula'!A$1))),\"\"))","v":""},{"$f":"IF($I$8= \"All\", INDEX(data!$A$2:$H$251,,COLUMN(INDIRECT('cal formula'!B$1))),IFERROR(INDEX(data!$A$2:$H$251,data!$K76,COLUMN(INDIRECT('cal formula'!B$1))),\"\"))","v":""},{"$f":"IF($I$8= \"All\", INDEX(data!$A$2:$H$251,,COLUMN(INDIRECT('cal formula'!C$1))),IFERROR(INDEX(data!$A$2:$H$251,data!$K76,COLUMN(INDIRECT('cal formula'!C$1))),\"\"))","v":""},{"$f":"IF($I$8= \"All\", INDEX(data!$A$2:$H$251,,COLUMN(INDIRECT('cal formula'!D$1))),IFERROR(INDEX(data!$A$2:$H$251,data!$K76,COLUMN(INDIRECT('cal formula'!D$1))),\"\"))","v":""},{"$f":"IF($I$8= \"All\", INDEX(data!$A$2:$H$251,,COLUMN(INDIRECT('cal formula'!E$1))),IFERROR(INDEX(data!$A$2:$H$251,data!$K76,COLUMN(INDIRECT('cal formula'!E$1))),\"\"))","v":""},{"$f":"IF($I$8= \"All\", INDEX(data!$A$2:$H$251,,COLUMN(INDIRECT('cal formula'!F$1))),IFERROR(INDEX(data!$A$2:$H$251,data!$K76,COLUMN(INDIRECT('cal formula'!F$1))),\"\"))","v":""}]
[{"$f":"IF($I$8= \"All\", INDEX(data!$A$2:$H$251,,COLUMN(INDIRECT('cal formula'!A$1))),IFERROR(INDEX(data!$A$2:$H$251,data!$K77,COLUMN(INDIRECT('cal formula'!A$1))),\"\"))","v":""},{"$f":"IF($I$8= \"All\", INDEX(data!$A$2:$H$251,,COLUMN(INDIRECT('cal formula'!B$1))),IFERROR(INDEX(data!$A$2:$H$251,data!$K77,COLUMN(INDIRECT('cal formula'!B$1))),\"\"))","v":""},{"$f":"IF($I$8= \"All\", INDEX(data!$A$2:$H$251,,COLUMN(INDIRECT('cal formula'!C$1))),IFERROR(INDEX(data!$A$2:$H$251,data!$K77,COLUMN(INDIRECT('cal formula'!C$1))),\"\"))","v":""},{"$f":"IF($I$8= \"All\", INDEX(data!$A$2:$H$251,,COLUMN(INDIRECT('cal formula'!D$1))),IFERROR(INDEX(data!$A$2:$H$251,data!$K77,COLUMN(INDIRECT('cal formula'!D$1))),\"\"))","v":""},{"$f":"IF($I$8= \"All\", INDEX(data!$A$2:$H$251,,COLUMN(INDIRECT('cal formula'!E$1))),IFERROR(INDEX(data!$A$2:$H$251,data!$K77,COLUMN(INDIRECT('cal formula'!E$1))),\"\"))","v":""},{"$f":"IF($I$8= \"All\", INDEX(data!$A$2:$H$251,,COLUMN(INDIRECT('cal formula'!F$1))),IFERROR(INDEX(data!$A$2:$H$251,data!$K77,COLUMN(INDIRECT('cal formula'!F$1))),\"\"))","v":""}]
[{"$f":"IF($I$8= \"All\", INDEX(data!$A$2:$H$251,,COLUMN(INDIRECT('cal formula'!A$1))),IFERROR(INDEX(data!$A$2:$H$251,data!$K78,COLUMN(INDIRECT('cal formula'!A$1))),\"\"))","v":""},{"$f":"IF($I$8= \"All\", INDEX(data!$A$2:$H$251,,COLUMN(INDIRECT('cal formula'!B$1))),IFERROR(INDEX(data!$A$2:$H$251,data!$K78,COLUMN(INDIRECT('cal formula'!B$1))),\"\"))","v":""},{"$f":"IF($I$8= \"All\", INDEX(data!$A$2:$H$251,,COLUMN(INDIRECT('cal formula'!C$1))),IFERROR(INDEX(data!$A$2:$H$251,data!$K78,COLUMN(INDIRECT('cal formula'!C$1))),\"\"))","v":""},{"$f":"IF($I$8= \"All\", INDEX(data!$A$2:$H$251,,COLUMN(INDIRECT('cal formula'!D$1))),IFERROR(INDEX(data!$A$2:$H$251,data!$K78,COLUMN(INDIRECT('cal formula'!D$1))),\"\"))","v":""},{"$f":"IF($I$8= \"All\", INDEX(data!$A$2:$H$251,,COLUMN(INDIRECT('cal formula'!E$1))),IFERROR(INDEX(data!$A$2:$H$251,data!$K78,COLUMN(INDIRECT('cal formula'!E$1))),\"\"))","v":""},{"$f":"IF($I$8= \"All\", INDEX(data!$A$2:$H$251,,COLUMN(INDIRECT('cal formula'!F$1))),IFERROR(INDEX(data!$A$2:$H$251,data!$K78,COLUMN(INDIRECT('cal formula'!F$1))),\"\"))","v":""}]
[{"$f":"IF($I$8= \"All\", INDEX(data!$A$2:$H$251,,COLUMN(INDIRECT('cal formula'!A$1))),IFERROR(INDEX(data!$A$2:$H$251,data!$K79,COLUMN(INDIRECT('cal formula'!A$1))),\"\"))","v":""},{"$f":"IF($I$8= \"All\", INDEX(data!$A$2:$H$251,,COLUMN(INDIRECT('cal formula'!B$1))),IFERROR(INDEX(data!$A$2:$H$251,data!$K79,COLUMN(INDIRECT('cal formula'!B$1))),\"\"))","v":""},{"$f":"IF($I$8= \"All\", INDEX(data!$A$2:$H$251,,COLUMN(INDIRECT('cal formula'!C$1))),IFERROR(INDEX(data!$A$2:$H$251,data!$K79,COLUMN(INDIRECT('cal formula'!C$1))),\"\"))","v":""},{"$f":"IF($I$8= \"All\", INDEX(data!$A$2:$H$251,,COLUMN(INDIRECT('cal formula'!D$1))),IFERROR(INDEX(data!$A$2:$H$251,data!$K79,COLUMN(INDIRECT('cal formula'!D$1))),\"\"))","v":""},{"$f":"IF($I$8= \"All\", INDEX(data!$A$2:$H$251,,COLUMN(INDIRECT('cal formula'!E$1))),IFERROR(INDEX(data!$A$2:$H$251,data!$K79,COLUMN(INDIRECT('cal formula'!E$1))),\"\"))","v":""},{"$f":"IF($I$8= \"All\", INDEX(data!$A$2:$H$251,,COLUMN(INDIRECT('cal formula'!F$1))),IFERROR(INDEX(data!$A$2:$H$251,data!$K79,COLUMN(INDIRECT('cal formula'!F$1))),\"\"))","v":""}]
[{"$f":"IF($I$8= \"All\", INDEX(data!$A$2:$H$251,,COLUMN(INDIRECT('cal formula'!A$1))),IFERROR(INDEX(data!$A$2:$H$251,data!$K80,COLUMN(INDIRECT('cal formula'!A$1))),\"\"))","v":""},{"$f":"IF($I$8= \"All\", INDEX(data!$A$2:$H$251,,COLUMN(INDIRECT('cal formula'!B$1))),IFERROR(INDEX(data!$A$2:$H$251,data!$K80,COLUMN(INDIRECT('cal formula'!B$1))),\"\"))","v":""},{"$f":"IF($I$8= \"All\", INDEX(data!$A$2:$H$251,,COLUMN(INDIRECT('cal formula'!C$1))),IFERROR(INDEX(data!$A$2:$H$251,data!$K80,COLUMN(INDIRECT('cal formula'!C$1))),\"\"))","v":""},{"$f":"IF($I$8= \"All\", INDEX(data!$A$2:$H$251,,COLUMN(INDIRECT('cal formula'!D$1))),IFERROR(INDEX(data!$A$2:$H$251,data!$K80,COLUMN(INDIRECT('cal formula'!D$1))),\"\"))","v":""},{"$f":"IF($I$8= \"All\", INDEX(data!$A$2:$H$251,,COLUMN(INDIRECT('cal formula'!E$1))),IFERROR(INDEX(data!$A$2:$H$251,data!$K80,COLUMN(INDIRECT('cal formula'!E$1))),\"\"))","v":""},{"$f":"IF($I$8= \"All\", INDEX(data!$A$2:$H$251,,COLUMN(INDIRECT('cal formula'!F$1))),IFERROR(INDEX(data!$A$2:$H$251,data!$K80,COLUMN(INDIRECT('cal formula'!F$1))),\"\"))","v":""}]
[{"$f":"IF($I$8= \"All\", INDEX(data!$A$2:$H$251,,COLUMN(INDIRECT('cal formula'!A$1))),IFERROR(INDEX(data!$A$2:$H$251,data!$K81,COLUMN(INDIRECT('cal formula'!A$1))),\"\"))","v":""},{"$f":"IF($I$8= \"All\", INDEX(data!$A$2:$H$251,,COLUMN(INDIRECT('cal formula'!B$1))),IFERROR(INDEX(data!$A$2:$H$251,data!$K81,COLUMN(INDIRECT('cal formula'!B$1))),\"\"))","v":""},{"$f":"IF($I$8= \"All\", INDEX(data!$A$2:$H$251,,COLUMN(INDIRECT('cal formula'!C$1))),IFERROR(INDEX(data!$A$2:$H$251,data!$K81,COLUMN(INDIRECT('cal formula'!C$1))),\"\"))","v":""},{"$f":"IF($I$8= \"All\", INDEX(data!$A$2:$H$251,,COLUMN(INDIRECT('cal formula'!D$1))),IFERROR(INDEX(data!$A$2:$H$251,data!$K81,COLUMN(INDIRECT('cal formula'!D$1))),\"\"))","v":""},{"$f":"IF($I$8= \"All\", INDEX(data!$A$2:$H$251,,COLUMN(INDIRECT('cal formula'!E$1))),IFERROR(INDEX(data!$A$2:$H$251,data!$K81,COLUMN(INDIRECT('cal formula'!E$1))),\"\"))","v":""},{"$f":"IF($I$8= \"All\", INDEX(data!$A$2:$H$251,,COLUMN(INDIRECT('cal formula'!F$1))),IFERROR(INDEX(data!$A$2:$H$251,data!$K81,COLUMN(INDIRECT('cal formula'!F$1))),\"\"))","v":""}]
[{"$f":"IF($I$8= \"All\", INDEX(data!$A$2:$H$251,,COLUMN(INDIRECT('cal formula'!A$1))),IFERROR(INDEX(data!$A$2:$H$251,data!$K82,COLUMN(INDIRECT('cal formula'!A$1))),\"\"))","v":""},{"$f":"IF($I$8= \"All\", INDEX(data!$A$2:$H$251,,COLUMN(INDIRECT('cal formula'!B$1))),IFERROR(INDEX(data!$A$2:$H$251,data!$K82,COLUMN(INDIRECT('cal formula'!B$1))),\"\"))","v":""},{"$f":"IF($I$8= \"All\", INDEX(data!$A$2:$H$251,,COLUMN(INDIRECT('cal formula'!C$1))),IFERROR(INDEX(data!$A$2:$H$251,data!$K82,COLUMN(INDIRECT('cal formula'!C$1))),\"\"))","v":""},{"$f":"IF($I$8= \"All\", INDEX(data!$A$2:$H$251,,COLUMN(INDIRECT('cal formula'!D$1))),IFERROR(INDEX(data!$A$2:$H$251,data!$K82,COLUMN(INDIRECT('cal formula'!D$1))),\"\"))","v":""},{"$f":"IF($I$8= \"All\", INDEX(data!$A$2:$H$251,,COLUMN(INDIRECT('cal formula'!E$1))),IFERROR(INDEX(data!$A$2:$H$251,data!$K82,COLUMN(INDIRECT('cal formula'!E$1))),\"\"))","v":""},{"$f":"IF($I$8= \"All\", INDEX(data!$A$2:$H$251,,COLUMN(INDIRECT('cal formula'!F$1))),IFERROR(INDEX(data!$A$2:$H$251,data!$K82,COLUMN(INDIRECT('cal formula'!F$1))),\"\"))","v":""}]
[{"$f":"IF($I$8= \"All\", INDEX(data!$A$2:$H$251,,COLUMN(INDIRECT('cal formula'!A$1))),IFERROR(INDEX(data!$A$2:$H$251,data!$K83,COLUMN(INDIRECT('cal formula'!A$1))),\"\"))","v":""},{"$f":"IF($I$8= \"All\", INDEX(data!$A$2:$H$251,,COLUMN(INDIRECT('cal formula'!B$1))),IFERROR(INDEX(data!$A$2:$H$251,data!$K83,COLUMN(INDIRECT('cal formula'!B$1))),\"\"))","v":""},{"$f":"IF($I$8= \"All\", INDEX(data!$A$2:$H$251,,COLUMN(INDIRECT('cal formula'!C$1))),IFERROR(INDEX(data!$A$2:$H$251,data!$K83,COLUMN(INDIRECT('cal formula'!C$1))),\"\"))","v":""},{"$f":"IF($I$8= \"All\", INDEX(data!$A$2:$H$251,,COLUMN(INDIRECT('cal formula'!D$1))),IFERROR(INDEX(data!$A$2:$H$251,data!$K83,COLUMN(INDIRECT('cal formula'!D$1))),\"\"))","v":""},{"$f":"IF($I$8= \"All\", INDEX(data!$A$2:$H$251,,COLUMN(INDIRECT('cal formula'!E$1))),IFERROR(INDEX(data!$A$2:$H$251,data!$K83,COLUMN(INDIRECT('cal formula'!E$1))),\"\"))","v":""},{"$f":"IF($I$8= \"All\", INDEX(data!$A$2:$H$251,,COLUMN(INDIRECT('cal formula'!F$1))),IFERROR(INDEX(data!$A$2:$H$251,data!$K83,COLUMN(INDIRECT('cal formula'!F$1))),\"\"))","v":""}]
[{"$f":"IF($I$8= \"All\", INDEX(data!$A$2:$H$251,,COLUMN(INDIRECT('cal formula'!A$1))),IFERROR(INDEX(data!$A$2:$H$251,data!$K84,COLUMN(INDIRECT('cal formula'!A$1))),\"\"))","v":""},{"$f":"IF($I$8= \"All\", INDEX(data!$A$2:$H$251,,COLUMN(INDIRECT('cal formula'!B$1))),IFERROR(INDEX(data!$A$2:$H$251,data!$K84,COLUMN(INDIRECT('cal formula'!B$1))),\"\"))","v":""},{"$f":"IF($I$8= \"All\", INDEX(data!$A$2:$H$251,,COLUMN(INDIRECT('cal formula'!C$1))),IFERROR(INDEX(data!$A$2:$H$251,data!$K84,COLUMN(INDIRECT('cal formula'!C$1))),\"\"))","v":""},{"$f":"IF($I$8= \"All\", INDEX(data!$A$2:$H$251,,COLUMN(INDIRECT('cal formula'!D$1))),IFERROR(INDEX(data!$A$2:$H$251,data!$K84,COLUMN(INDIRECT('cal formula'!D$1))),\"\"))","v":""},{"$f":"IF($I$8= \"All\", INDEX(data!$A$2:$H$251,,COLUMN(INDIRECT('cal formula'!E$1))),IFERROR(INDEX(data!$A$2:$H$251,data!$K84,COLUMN(INDIRECT('cal formula'!E$1))),\"\"))","v":""},{"$f":"IF($I$8= \"All\", INDEX(data!$A$2:$H$251,,COLUMN(INDIRECT('cal formula'!F$1))),IFERROR(INDEX(data!$A$2:$H$251,data!$K84,COLUMN(INDIRECT('cal formula'!F$1))),\"\"))","v":""}]
[{"$f":"IF($I$8= \"All\", INDEX(data!$A$2:$H$251,,COLUMN(INDIRECT('cal formula'!A$1))),IFERROR(INDEX(data!$A$2:$H$251,data!$K85,COLUMN(INDIRECT('cal formula'!A$1))),\"\"))","v":""},{"$f":"IF($I$8= \"All\", INDEX(data!$A$2:$H$251,,COLUMN(INDIRECT('cal formula'!B$1))),IFERROR(INDEX(data!$A$2:$H$251,data!$K85,COLUMN(INDIRECT('cal formula'!B$1))),\"\"))","v":""},{"$f":"IF($I$8= \"All\", INDEX(data!$A$2:$H$251,,COLUMN(INDIRECT('cal formula'!C$1))),IFERROR(INDEX(data!$A$2:$H$251,data!$K85,COLUMN(INDIRECT('cal formula'!C$1))),\"\"))","v":""},{"$f":"IF($I$8= \"All\", INDEX(data!$A$2:$H$251,,COLUMN(INDIRECT('cal formula'!D$1))),IFERROR(INDEX(data!$A$2:$H$251,data!$K85,COLUMN(INDIRECT('cal formula'!D$1))),\"\"))","v":""},{"$f":"IF($I$8= \"All\", INDEX(data!$A$2:$H$251,,COLUMN(INDIRECT('cal formula'!E$1))),IFERROR(INDEX(data!$A$2:$H$251,data!$K85,COLUMN(INDIRECT('cal formula'!E$1))),\"\"))","v":""},{"$f":"IF($I$8= \"All\", INDEX(data!$A$2:$H$251,,COLUMN(INDIRECT('cal formula'!F$1))),IFERROR(INDEX(data!$A$2:$H$251,data!$K85,COLUMN(INDIRECT('cal formula'!F$1))),\"\"))","v":""}]
[{"$f":"IF($I$8= \"All\", INDEX(data!$A$2:$H$251,,COLUMN(INDIRECT('cal formula'!A$1))),IFERROR(INDEX(data!$A$2:$H$251,data!$K86,COLUMN(INDIRECT('cal formula'!A$1))),\"\"))","v":""},{"$f":"IF($I$8= \"All\", INDEX(data!$A$2:$H$251,,COLUMN(INDIRECT('cal formula'!B$1))),IFERROR(INDEX(data!$A$2:$H$251,data!$K86,COLUMN(INDIRECT('cal formula'!B$1))),\"\"))","v":""},{"$f":"IF($I$8= \"All\", INDEX(data!$A$2:$H$251,,COLUMN(INDIRECT('cal formula'!C$1))),IFERROR(INDEX(data!$A$2:$H$251,data!$K86,COLUMN(INDIRECT('cal formula'!C$1))),\"\"))","v":""},{"$f":"IF($I$8= \"All\", INDEX(data!$A$2:$H$251,,COLUMN(INDIRECT('cal formula'!D$1))),IFERROR(INDEX(data!$A$2:$H$251,data!$K86,COLUMN(INDIRECT('cal formula'!D$1))),\"\"))","v":""},{"$f":"IF($I$8= \"All\", INDEX(data!$A$2:$H$251,,COLUMN(INDIRECT('cal formula'!E$1))),IFERROR(INDEX(data!$A$2:$H$251,data!$K86,COLUMN(INDIRECT('cal formula'!E$1))),\"\"))","v":""},{"$f":"IF($I$8= \"All\", INDEX(data!$A$2:$H$251,,COLUMN(INDIRECT('cal formula'!F$1))),IFERROR(INDEX(data!$A$2:$H$251,data!$K86,COLUMN(INDIRECT('cal formula'!F$1))),\"\"))","v":""}]
[{"$f":"IF($I$8= \"All\", INDEX(data!$A$2:$H$251,,COLUMN(INDIRECT('cal formula'!A$1))),IFERROR(INDEX(data!$A$2:$H$251,data!$K87,COLUMN(INDIRECT('cal formula'!A$1))),\"\"))","v":""},{"$f":"IF($I$8= \"All\", INDEX(data!$A$2:$H$251,,COLUMN(INDIRECT('cal formula'!B$1))),IFERROR(INDEX(data!$A$2:$H$251,data!$K87,COLUMN(INDIRECT('cal formula'!B$1))),\"\"))","v":""},{"$f":"IF($I$8= \"All\", INDEX(data!$A$2:$H$251,,COLUMN(INDIRECT('cal formula'!C$1))),IFERROR(INDEX(data!$A$2:$H$251,data!$K87,COLUMN(INDIRECT('cal formula'!C$1))),\"\"))","v":""},{"$f":"IF($I$8= \"All\", INDEX(data!$A$2:$H$251,,COLUMN(INDIRECT('cal formula'!D$1))),IFERROR(INDEX(data!$A$2:$H$251,data!$K87,COLUMN(INDIRECT('cal formula'!D$1))),\"\"))","v":""},{"$f":"IF($I$8= \"All\", INDEX(data!$A$2:$H$251,,COLUMN(INDIRECT('cal formula'!E$1))),IFERROR(INDEX(data!$A$2:$H$251,data!$K87,COLUMN(INDIRECT('cal formula'!E$1))),\"\"))","v":""},{"$f":"IF($I$8= \"All\", INDEX(data!$A$2:$H$251,,COLUMN(INDIRECT('cal formula'!F$1))),IFERROR(INDEX(data!$A$2:$H$251,data!$K87,COLUMN(INDIRECT('cal formula'!F$1))),\"\"))","v":""}]
[{"$f":"IF($I$8= \"All\", INDEX(data!$A$2:$H$251,,COLUMN(INDIRECT('cal formula'!A$1))),IFERROR(INDEX(data!$A$2:$H$251,data!$K88,COLUMN(INDIRECT('cal formula'!A$1))),\"\"))","v":""},{"$f":"IF($I$8= \"All\", INDEX(data!$A$2:$H$251,,COLUMN(INDIRECT('cal formula'!B$1))),IFERROR(INDEX(data!$A$2:$H$251,data!$K88,COLUMN(INDIRECT('cal formula'!B$1))),\"\"))","v":""},{"$f":"IF($I$8= \"All\", INDEX(data!$A$2:$H$251,,COLUMN(INDIRECT('cal formula'!C$1))),IFERROR(INDEX(data!$A$2:$H$251,data!$K88,COLUMN(INDIRECT('cal formula'!C$1))),\"\"))","v":""},{"$f":"IF($I$8= \"All\", INDEX(data!$A$2:$H$251,,COLUMN(INDIRECT('cal formula'!D$1))),IFERROR(INDEX(data!$A$2:$H$251,data!$K88,COLUMN(INDIRECT('cal formula'!D$1))),\"\"))","v":""},{"$f":"IF($I$8= \"All\", INDEX(data!$A$2:$H$251,,COLUMN(INDIRECT('cal formula'!E$1))),IFERROR(INDEX(data!$A$2:$H$251,data!$K88,COLUMN(INDIRECT('cal formula'!E$1))),\"\"))","v":""},{"$f":"IF($I$8= \"All\", INDEX(data!$A$2:$H$251,,COLUMN(INDIRECT('cal formula'!F$1))),IFERROR(INDEX(data!$A$2:$H$251,data!$K88,COLUMN(INDIRECT('cal formula'!F$1))),\"\"))","v":""}]
[{"$f":"IF($I$8= \"All\", INDEX(data!$A$2:$H$251,,COLUMN(INDIRECT('cal formula'!A$1))),IFERROR(INDEX(data!$A$2:$H$251,data!$K89,COLUMN(INDIRECT('cal formula'!A$1))),\"\"))","v":""},{"$f":"IF($I$8= \"All\", INDEX(data!$A$2:$H$251,,COLUMN(INDIRECT('cal formula'!B$1))),IFERROR(INDEX(data!$A$2:$H$251,data!$K89,COLUMN(INDIRECT('cal formula'!B$1))),\"\"))","v":""},{"$f":"IF($I$8= \"All\", INDEX(data!$A$2:$H$251,,COLUMN(INDIRECT('cal formula'!C$1))),IFERROR(INDEX(data!$A$2:$H$251,data!$K89,COLUMN(INDIRECT('cal formula'!C$1))),\"\"))","v":""},{"$f":"IF($I$8= \"All\", INDEX(data!$A$2:$H$251,,COLUMN(INDIRECT('cal formula'!D$1))),IFERROR(INDEX(data!$A$2:$H$251,data!$K89,COLUMN(INDIRECT('cal formula'!D$1))),\"\"))","v":""},{"$f":"IF($I$8= \"All\", INDEX(data!$A$2:$H$251,,COLUMN(INDIRECT('cal formula'!E$1))),IFERROR(INDEX(data!$A$2:$H$251,data!$K89,COLUMN(INDIRECT('cal formula'!E$1))),\"\"))","v":""},{"$f":"IF($I$8= \"All\", INDEX(data!$A$2:$H$251,,COLUMN(INDIRECT('cal formula'!F$1))),IFERROR(INDEX(data!$A$2:$H$251,data!$K89,COLUMN(INDIRECT('cal formula'!F$1))),\"\"))","v":""}]
[{"$f":"IF($I$8= \"All\", INDEX(data!$A$2:$H$251,,COLUMN(INDIRECT('cal formula'!A$1))),IFERROR(INDEX(data!$A$2:$H$251,data!$K90,COLUMN(INDIRECT('cal formula'!A$1))),\"\"))","v":""},{"$f":"IF($I$8= \"All\", INDEX(data!$A$2:$H$251,,COLUMN(INDIRECT('cal formula'!B$1))),IFERROR(INDEX(data!$A$2:$H$251,data!$K90,COLUMN(INDIRECT('cal formula'!B$1))),\"\"))","v":""},{"$f":"IF($I$8= \"All\", INDEX(data!$A$2:$H$251,,COLUMN(INDIRECT('cal formula'!C$1))),IFERROR(INDEX(data!$A$2:$H$251,data!$K90,COLUMN(INDIRECT('cal formula'!C$1))),\"\"))","v":""},{"$f":"IF($I$8= \"All\", INDEX(data!$A$2:$H$251,,COLUMN(INDIRECT('cal formula'!D$1))),IFERROR(INDEX(data!$A$2:$H$251,data!$K90,COLUMN(INDIRECT('cal formula'!D$1))),\"\"))","v":""},{"$f":"IF($I$8= \"All\", INDEX(data!$A$2:$H$251,,COLUMN(INDIRECT('cal formula'!E$1))),IFERROR(INDEX(data!$A$2:$H$251,data!$K90,COLUMN(INDIRECT('cal formula'!E$1))),\"\"))","v":""},{"$f":"IF($I$8= \"All\", INDEX(data!$A$2:$H$251,,COLUMN(INDIRECT('cal formula'!F$1))),IFERROR(INDEX(data!$A$2:$H$251,data!$K90,COLUMN(INDIRECT('cal formula'!F$1))),\"\"))","v":""}]
[{"$f":"IF($I$8= \"All\", INDEX(data!$A$2:$H$251,,COLUMN(INDIRECT('cal formula'!A$1))),IFERROR(INDEX(data!$A$2:$H$251,data!$K91,COLUMN(INDIRECT('cal formula'!A$1))),\"\"))","v":""},{"$f":"IF($I$8= \"All\", INDEX(data!$A$2:$H$251,,COLUMN(INDIRECT('cal formula'!B$1))),IFERROR(INDEX(data!$A$2:$H$251,data!$K91,COLUMN(INDIRECT('cal formula'!B$1))),\"\"))","v":""},{"$f":"IF($I$8= \"All\", INDEX(data!$A$2:$H$251,,COLUMN(INDIRECT('cal formula'!C$1))),IFERROR(INDEX(data!$A$2:$H$251,data!$K91,COLUMN(INDIRECT('cal formula'!C$1))),\"\"))","v":""},{"$f":"IF($I$8= \"All\", INDEX(data!$A$2:$H$251,,COLUMN(INDIRECT('cal formula'!D$1))),IFERROR(INDEX(data!$A$2:$H$251,data!$K91,COLUMN(INDIRECT('cal formula'!D$1))),\"\"))","v":""},{"$f":"IF($I$8= \"All\", INDEX(data!$A$2:$H$251,,COLUMN(INDIRECT('cal formula'!E$1))),IFERROR(INDEX(data!$A$2:$H$251,data!$K91,COLUMN(INDIRECT('cal formula'!E$1))),\"\"))","v":""},{"$f":"IF($I$8= \"All\", INDEX(data!$A$2:$H$251,,COLUMN(INDIRECT('cal formula'!F$1))),IFERROR(INDEX(data!$A$2:$H$251,data!$K91,COLUMN(INDIRECT('cal formula'!F$1))),\"\"))","v":""}]
[{"$f":"IF($I$8= \"All\", INDEX(data!$A$2:$H$251,,COLUMN(INDIRECT('cal formula'!A$1))),IFERROR(INDEX(data!$A$2:$H$251,data!$K92,COLUMN(INDIRECT('cal formula'!A$1))),\"\"))","v":""},{"$f":"IF($I$8= \"All\", INDEX(data!$A$2:$H$251,,COLUMN(INDIRECT('cal formula'!B$1))),IFERROR(INDEX(data!$A$2:$H$251,data!$K92,COLUMN(INDIRECT('cal formula'!B$1))),\"\"))","v":""},{"$f":"IF($I$8= \"All\", INDEX(data!$A$2:$H$251,,COLUMN(INDIRECT('cal formula'!C$1))),IFERROR(INDEX(data!$A$2:$H$251,data!$K92,COLUMN(INDIRECT('cal formula'!C$1))),\"\"))","v":""},{"$f":"IF($I$8= \"All\", INDEX(data!$A$2:$H$251,,COLUMN(INDIRECT('cal formula'!D$1))),IFERROR(INDEX(data!$A$2:$H$251,data!$K92,COLUMN(INDIRECT('cal formula'!D$1))),\"\"))","v":""},{"$f":"IF($I$8= \"All\", INDEX(data!$A$2:$H$251,,COLUMN(INDIRECT('cal formula'!E$1))),IFERROR(INDEX(data!$A$2:$H$251,data!$K92,COLUMN(INDIRECT('cal formula'!E$1))),\"\"))","v":""},{"$f":"IF($I$8= \"All\", INDEX(data!$A$2:$H$251,,COLUMN(INDIRECT('cal formula'!F$1))),IFERROR(INDEX(data!$A$2:$H$251,data!$K92,COLUMN(INDIRECT('cal formula'!F$1))),\"\"))","v":""}]
[{"$f":"IF($I$8= \"All\", INDEX(data!$A$2:$H$251,,COLUMN(INDIRECT('cal formula'!A$1))),IFERROR(INDEX(data!$A$2:$H$251,data!$K93,COLUMN(INDIRECT('cal formula'!A$1))),\"\"))","v":""},{"$f":"IF($I$8= \"All\", INDEX(data!$A$2:$H$251,,COLUMN(INDIRECT('cal formula'!B$1))),IFERROR(INDEX(data!$A$2:$H$251,data!$K93,COLUMN(INDIRECT('cal formula'!B$1))),\"\"))","v":""},{"$f":"IF($I$8= \"All\", INDEX(data!$A$2:$H$251,,COLUMN(INDIRECT('cal formula'!C$1))),IFERROR(INDEX(data!$A$2:$H$251,data!$K93,COLUMN(INDIRECT('cal formula'!C$1))),\"\"))","v":""},{"$f":"IF($I$8= \"All\", INDEX(data!$A$2:$H$251,,COLUMN(INDIRECT('cal formula'!D$1))),IFERROR(INDEX(data!$A$2:$H$251,data!$K93,COLUMN(INDIRECT('cal formula'!D$1))),\"\"))","v":""},{"$f":"IF($I$8= \"All\", INDEX(data!$A$2:$H$251,,COLUMN(INDIRECT('cal formula'!E$1))),IFERROR(INDEX(data!$A$2:$H$251,data!$K93,COLUMN(INDIRECT('cal formula'!E$1))),\"\"))","v":""},{"$f":"IF($I$8= \"All\", INDEX(data!$A$2:$H$251,,COLUMN(INDIRECT('cal formula'!F$1))),IFERROR(INDEX(data!$A$2:$H$251,data!$K93,COLUMN(INDIRECT('cal formula'!F$1))),\"\"))","v":""}]
[{"$f":"IF($I$8= \"All\", INDEX(data!$A$2:$H$251,,COLUMN(INDIRECT('cal formula'!A$1))),IFERROR(INDEX(data!$A$2:$H$251,data!$K94,COLUMN(INDIRECT('cal formula'!A$1))),\"\"))","v":""},{"$f":"IF($I$8= \"All\", INDEX(data!$A$2:$H$251,,COLUMN(INDIRECT('cal formula'!B$1))),IFERROR(INDEX(data!$A$2:$H$251,data!$K94,COLUMN(INDIRECT('cal formula'!B$1))),\"\"))","v":""},{"$f":"IF($I$8= \"All\", INDEX(data!$A$2:$H$251,,COLUMN(INDIRECT('cal formula'!C$1))),IFERROR(INDEX(data!$A$2:$H$251,data!$K94,COLUMN(INDIRECT('cal formula'!C$1))),\"\"))","v":""},{"$f":"IF($I$8= \"All\", INDEX(data!$A$2:$H$251,,COLUMN(INDIRECT('cal formula'!D$1))),IFERROR(INDEX(data!$A$2:$H$251,data!$K94,COLUMN(INDIRECT('cal formula'!D$1))),\"\"))","v":""},{"$f":"IF($I$8= \"All\", INDEX(data!$A$2:$H$251,,COLUMN(INDIRECT('cal formula'!E$1))),IFERROR(INDEX(data!$A$2:$H$251,data!$K94,COLUMN(INDIRECT('cal formula'!E$1))),\"\"))","v":""},{"$f":"IF($I$8= \"All\", INDEX(data!$A$2:$H$251,,COLUMN(INDIRECT('cal formula'!F$1))),IFERROR(INDEX(data!$A$2:$H$251,data!$K94,COLUMN(INDIRECT('cal formula'!F$1))),\"\"))","v":""}]
[{"$f":"IF($I$8= \"All\", INDEX(data!$A$2:$H$251,,COLUMN(INDIRECT('cal formula'!A$1))),IFERROR(INDEX(data!$A$2:$H$251,data!$K95,COLUMN(INDIRECT('cal formula'!A$1))),\"\"))","v":""},{"$f":"IF($I$8= \"All\", INDEX(data!$A$2:$H$251,,COLUMN(INDIRECT('cal formula'!B$1))),IFERROR(INDEX(data!$A$2:$H$251,data!$K95,COLUMN(INDIRECT('cal formula'!B$1))),\"\"))","v":""},{"$f":"IF($I$8= \"All\", INDEX(data!$A$2:$H$251,,COLUMN(INDIRECT('cal formula'!C$1))),IFERROR(INDEX(data!$A$2:$H$251,data!$K95,COLUMN(INDIRECT('cal formula'!C$1))),\"\"))","v":""},{"$f":"IF($I$8= \"All\", INDEX(data!$A$2:$H$251,,COLUMN(INDIRECT('cal formula'!D$1))),IFERROR(INDEX(data!$A$2:$H$251,data!$K95,COLUMN(INDIRECT('cal formula'!D$1))),\"\"))","v":""},{"$f":"IF($I$8= \"All\", INDEX(data!$A$2:$H$251,,COLUMN(INDIRECT('cal formula'!E$1))),IFERROR(INDEX(data!$A$2:$H$251,data!$K95,COLUMN(INDIRECT('cal formula'!E$1))),\"\"))","v":""},{"$f":"IF($I$8= \"All\", INDEX(data!$A$2:$H$251,,COLUMN(INDIRECT('cal formula'!F$1))),IFERROR(INDEX(data!$A$2:$H$251,data!$K95,COLUMN(INDIRECT('cal formula'!F$1))),\"\"))","v":""}]
[{"$f":"IF($I$8= \"All\", INDEX(data!$A$2:$H$251,,COLUMN(INDIRECT('cal formula'!A$1))),IFERROR(INDEX(data!$A$2:$H$251,data!$K96,COLUMN(INDIRECT('cal formula'!A$1))),\"\"))","v":""},{"$f":"IF($I$8= \"All\", INDEX(data!$A$2:$H$251,,COLUMN(INDIRECT('cal formula'!B$1))),IFERROR(INDEX(data!$A$2:$H$251,data!$K96,COLUMN(INDIRECT('cal formula'!B$1))),\"\"))","v":""},{"$f":"IF($I$8= \"All\", INDEX(data!$A$2:$H$251,,COLUMN(INDIRECT('cal formula'!C$1))),IFERROR(INDEX(data!$A$2:$H$251,data!$K96,COLUMN(INDIRECT('cal formula'!C$1))),\"\"))","v":""},{"$f":"IF($I$8= \"All\", INDEX(data!$A$2:$H$251,,COLUMN(INDIRECT('cal formula'!D$1))),IFERROR(INDEX(data!$A$2:$H$251,data!$K96,COLUMN(INDIRECT('cal formula'!D$1))),\"\"))","v":""},{"$f":"IF($I$8= \"All\", INDEX(data!$A$2:$H$251,,COLUMN(INDIRECT('cal formula'!E$1))),IFERROR(INDEX(data!$A$2:$H$251,data!$K96,COLUMN(INDIRECT('cal formula'!E$1))),\"\"))","v":""},{"$f":"IF($I$8= \"All\", INDEX(data!$A$2:$H$251,,COLUMN(INDIRECT('cal formula'!F$1))),IFERROR(INDEX(data!$A$2:$H$251,data!$K96,COLUMN(INDIRECT('cal formula'!F$1))),\"\"))","v":""}]
[{"$f":"IF($I$8= \"All\", INDEX(data!$A$2:$H$251,,COLUMN(INDIRECT('cal formula'!A$1))),IFERROR(INDEX(data!$A$2:$H$251,data!$K97,COLUMN(INDIRECT('cal formula'!A$1))),\"\"))","v":""},{"$f":"IF($I$8= \"All\", INDEX(data!$A$2:$H$251,,COLUMN(INDIRECT('cal formula'!B$1))),IFERROR(INDEX(data!$A$2:$H$251,data!$K97,COLUMN(INDIRECT('cal formula'!B$1))),\"\"))","v":""},{"$f":"IF($I$8= \"All\", INDEX(data!$A$2:$H$251,,COLUMN(INDIRECT('cal formula'!C$1))),IFERROR(INDEX(data!$A$2:$H$251,data!$K97,COLUMN(INDIRECT('cal formula'!C$1))),\"\"))","v":""},{"$f":"IF($I$8= \"All\", INDEX(data!$A$2:$H$251,,COLUMN(INDIRECT('cal formula'!D$1))),IFERROR(INDEX(data!$A$2:$H$251,data!$K97,COLUMN(INDIRECT('cal formula'!D$1))),\"\"))","v":""},{"$f":"IF($I$8= \"All\", INDEX(data!$A$2:$H$251,,COLUMN(INDIRECT('cal formula'!E$1))),IFERROR(INDEX(data!$A$2:$H$251,data!$K97,COLUMN(INDIRECT('cal formula'!E$1))),\"\"))","v":""},{"$f":"IF($I$8= \"All\", INDEX(data!$A$2:$H$251,,COLUMN(INDIRECT('cal formula'!F$1))),IFERROR(INDEX(data!$A$2:$H$251,data!$K97,COLUMN(INDIRECT('cal formula'!F$1))),\"\"))","v":""}]
[{"$f":"IF($I$8= \"All\", INDEX(data!$A$2:$H$251,,COLUMN(INDIRECT('cal formula'!A$1))),IFERROR(INDEX(data!$A$2:$H$251,data!$K98,COLUMN(INDIRECT('cal formula'!A$1))),\"\"))","v":""},{"$f":"IF($I$8= \"All\", INDEX(data!$A$2:$H$251,,COLUMN(INDIRECT('cal formula'!B$1))),IFERROR(INDEX(data!$A$2:$H$251,data!$K98,COLUMN(INDIRECT('cal formula'!B$1))),\"\"))","v":""},{"$f":"IF($I$8= \"All\", INDEX(data!$A$2:$H$251,,COLUMN(INDIRECT('cal formula'!C$1))),IFERROR(INDEX(data!$A$2:$H$251,data!$K98,COLUMN(INDIRECT('cal formula'!C$1))),\"\"))","v":""},{"$f":"IF($I$8= \"All\", INDEX(data!$A$2:$H$251,,COLUMN(INDIRECT('cal formula'!D$1))),IFERROR(INDEX(data!$A$2:$H$251,data!$K98,COLUMN(INDIRECT('cal formula'!D$1))),\"\"))","v":""},{"$f":"IF($I$8= \"All\", INDEX(data!$A$2:$H$251,,COLUMN(INDIRECT('cal formula'!E$1))),IFERROR(INDEX(data!$A$2:$H$251,data!$K98,COLUMN(INDIRECT('cal formula'!E$1))),\"\"))","v":""},{"$f":"IF($I$8= \"All\", INDEX(data!$A$2:$H$251,,COLUMN(INDIRECT('cal formula'!F$1))),IFERROR(INDEX(data!$A$2:$H$251,data!$K98,COLUMN(INDIRECT('cal formula'!F$1))),\"\"))","v":""}]
[{"$f":"IF($I$8= \"All\", INDEX(data!$A$2:$H$251,,COLUMN(INDIRECT('cal formula'!A$1))),IFERROR(INDEX(data!$A$2:$H$251,data!$K99,COLUMN(INDIRECT('cal formula'!A$1))),\"\"))","v":""},{"$f":"IF($I$8= \"All\", INDEX(data!$A$2:$H$251,,COLUMN(INDIRECT('cal formula'!B$1))),IFERROR(INDEX(data!$A$2:$H$251,data!$K99,COLUMN(INDIRECT('cal formula'!B$1))),\"\"))","v":""},{"$f":"IF($I$8= \"All\", INDEX(data!$A$2:$H$251,,COLUMN(INDIRECT('cal formula'!C$1))),IFERROR(INDEX(data!$A$2:$H$251,data!$K99,COLUMN(INDIRECT('cal formula'!C$1))),\"\"))","v":""},{"$f":"IF($I$8= \"All\", INDEX(data!$A$2:$H$251,,COLUMN(INDIRECT('cal formula'!D$1))),IFERROR(INDEX(data!$A$2:$H$251,data!$K99,COLUMN(INDIRECT('cal formula'!D$1))),\"\"))","v":""},{"$f":"IF($I$8= \"All\", INDEX(data!$A$2:$H$251,,COLUMN(INDIRECT('cal formula'!E$1))),IFERROR(INDEX(data!$A$2:$H$251,data!$K99,COLUMN(INDIRECT('cal formula'!E$1))),\"\"))","v":""},{"$f":"IF($I$8= \"All\", INDEX(data!$A$2:$H$251,,COLUMN(INDIRECT('cal formula'!F$1))),IFERROR(INDEX(data!$A$2:$H$251,data!$K99,COLUMN(INDIRECT('cal formula'!F$1))),\"\"))","v":""}]
[{"$f":"IF($I$8= \"All\", INDEX(data!$A$2:$H$251,,COLUMN(INDIRECT('cal formula'!A$1))),IFERROR(INDEX(data!$A$2:$H$251,data!$K100,COLUMN(INDIRECT('cal formula'!A$1))),\"\"))","v":""},{"$f":"IF($I$8= \"All\", INDEX(data!$A$2:$H$251,,COLUMN(INDIRECT('cal formula'!B$1))),IFERROR(INDEX(data!$A$2:$H$251,data!$K100,COLUMN(INDIRECT('cal formula'!B$1))),\"\"))","v":""},{"$f":"IF($I$8= \"All\", INDEX(data!$A$2:$H$251,,COLUMN(INDIRECT('cal formula'!C$1))),IFERROR(INDEX(data!$A$2:$H$251,data!$K100,COLUMN(INDIRECT('cal formula'!C$1))),\"\"))","v":""},{"$f":"IF($I$8= \"All\", INDEX(data!$A$2:$H$251,,COLUMN(INDIRECT('cal formula'!D$1))),IFERROR(INDEX(data!$A$2:$H$251,data!$K100,COLUMN(INDIRECT('cal formula'!D$1))),\"\"))","v":""},{"$f":"IF($I$8= \"All\", INDEX(data!$A$2:$H$251,,COLUMN(INDIRECT('cal formula'!E$1))),IFERROR(INDEX(data!$A$2:$H$251,data!$K100,COLUMN(INDIRECT('cal formula'!E$1))),\"\"))","v":""},{"$f":"IF($I$8= \"All\", INDEX(data!$A$2:$H$251,,COLUMN(INDIRECT('cal formula'!F$1))),IFERROR(INDEX(data!$A$2:$H$251,data!$K100,COLUMN(INDIRECT('cal formula'!F$1))),\"\"))","v":""}]
[{"$f":"IF($I$8= \"All\", INDEX(data!$A$2:$H$251,,COLUMN(INDIRECT('cal formula'!A$1))),IFERROR(INDEX(data!$A$2:$H$251,data!$K101,COLUMN(INDIRECT('cal formula'!A$1))),\"\"))","v":""},{"$f":"IF($I$8= \"All\", INDEX(data!$A$2:$H$251,,COLUMN(INDIRECT('cal formula'!B$1))),IFERROR(INDEX(data!$A$2:$H$251,data!$K101,COLUMN(INDIRECT('cal formula'!B$1))),\"\"))","v":""},{"$f":"IF($I$8= \"All\", INDEX(data!$A$2:$H$251,,COLUMN(INDIRECT('cal formula'!C$1))),IFERROR(INDEX(data!$A$2:$H$251,data!$K101,COLUMN(INDIRECT('cal formula'!C$1))),\"\"))","v":""},{"$f":"IF($I$8= \"All\", INDEX(data!$A$2:$H$251,,COLUMN(INDIRECT('cal formula'!D$1))),IFERROR(INDEX(data!$A$2:$H$251,data!$K101,COLUMN(INDIRECT('cal formula'!D$1))),\"\"))","v":""},{"$f":"IF($I$8= \"All\", INDEX(data!$A$2:$H$251,,COLUMN(INDIRECT('cal formula'!E$1))),IFERROR(INDEX(data!$A$2:$H$251,data!$K101,COLUMN(INDIRECT('cal formula'!E$1))),\"\"))","v":""},{"$f":"IF($I$8= \"All\", INDEX(data!$A$2:$H$251,,COLUMN(INDIRECT('cal formula'!F$1))),IFERROR(INDEX(data!$A$2:$H$251,data!$K101,COLUMN(INDIRECT('cal formula'!F$1))),\"\"))","v":""}]
[{"$f":"IF($I$8= \"All\", INDEX(data!$A$2:$H$251,,COLUMN(INDIRECT('cal formula'!A$1))),IFERROR(INDEX(data!$A$2:$H$251,data!$K102,COLUMN(INDIRECT('cal formula'!A$1))),\"\"))","v":""},{"$f":"IF($I$8= \"All\", INDEX(data!$A$2:$H$251,,COLUMN(INDIRECT('cal formula'!B$1))),IFERROR(INDEX(data!$A$2:$H$251,data!$K102,COLUMN(INDIRECT('cal formula'!B$1))),\"\"))","v":""},{"$f":"IF($I$8= \"All\", INDEX(data!$A$2:$H$251,,COLUMN(INDIRECT('cal formula'!C$1))),IFERROR(INDEX(data!$A$2:$H$251,data!$K102,COLUMN(INDIRECT('cal formula'!C$1))),\"\"))","v":""},{"$f":"IF($I$8= \"All\", INDEX(data!$A$2:$H$251,,COLUMN(INDIRECT('cal formula'!D$1))),IFERROR(INDEX(data!$A$2:$H$251,data!$K102,COLUMN(INDIRECT('cal formula'!D$1))),\"\"))","v":""},{"$f":"IF($I$8= \"All\", INDEX(data!$A$2:$H$251,,COLUMN(INDIRECT('cal formula'!E$1))),IFERROR(INDEX(data!$A$2:$H$251,data!$K102,COLUMN(INDIRECT('cal formula'!E$1))),\"\"))","v":""},{"$f":"IF($I$8= \"All\", INDEX(data!$A$2:$H$251,,COLUMN(INDIRECT('cal formula'!F$1))),IFERROR(INDEX(data!$A$2:$H$251,data!$K102,COLUMN(INDIRECT('cal formula'!F$1))),\"\"))","v":""}]
[{"$f":"IF($I$8= \"All\", INDEX(data!$A$2:$H$251,,COLUMN(INDIRECT('cal formula'!A$1))),IFERROR(INDEX(data!$A$2:$H$251,data!$K103,COLUMN(INDIRECT('cal formula'!A$1))),\"\"))","v":""},{"$f":"IF($I$8= \"All\", INDEX(data!$A$2:$H$251,,COLUMN(INDIRECT('cal formula'!B$1))),IFERROR(INDEX(data!$A$2:$H$251,data!$K103,COLUMN(INDIRECT('cal formula'!B$1))),\"\"))","v":""},{"$f":"IF($I$8= \"All\", INDEX(data!$A$2:$H$251,,COLUMN(INDIRECT('cal formula'!C$1))),IFERROR(INDEX(data!$A$2:$H$251,data!$K103,COLUMN(INDIRECT('cal formula'!C$1))),\"\"))","v":""},{"$f":"IF($I$8= \"All\", INDEX(data!$A$2:$H$251,,COLUMN(INDIRECT('cal formula'!D$1))),IFERROR(INDEX(data!$A$2:$H$251,data!$K103,COLUMN(INDIRECT('cal formula'!D$1))),\"\"))","v":""},{"$f":"IF($I$8= \"All\", INDEX(data!$A$2:$H$251,,COLUMN(INDIRECT('cal formula'!E$1))),IFERROR(INDEX(data!$A$2:$H$251,data!$K103,COLUMN(INDIRECT('cal formula'!E$1))),\"\"))","v":""},{"$f":"IF($I$8= \"All\", INDEX(data!$A$2:$H$251,,COLUMN(INDIRECT('cal formula'!F$1))),IFERROR(INDEX(data!$A$2:$H$251,data!$K103,COLUMN(INDIRECT('cal formula'!F$1))),\"\"))","v":""}]
[{"$f":"IF($I$8= \"All\", INDEX(data!$A$2:$H$251,,COLUMN(INDIRECT('cal formula'!A$1))),IFERROR(INDEX(data!$A$2:$H$251,data!$K104,COLUMN(INDIRECT('cal formula'!A$1))),\"\"))","v":""},{"$f":"IF($I$8= \"All\", INDEX(data!$A$2:$H$251,,COLUMN(INDIRECT('cal formula'!B$1))),IFERROR(INDEX(data!$A$2:$H$251,data!$K104,COLUMN(INDIRECT('cal formula'!B$1))),\"\"))","v":""},{"$f":"IF($I$8= \"All\", INDEX(data!$A$2:$H$251,,COLUMN(INDIRECT('cal formula'!C$1))),IFERROR(INDEX(data!$A$2:$H$251,data!$K104,COLUMN(INDIRECT('cal formula'!C$1))),\"\"))","v":""},{"$f":"IF($I$8= \"All\", INDEX(data!$A$2:$H$251,,COLUMN(INDIRECT('cal formula'!D$1))),IFERROR(INDEX(data!$A$2:$H$251,data!$K104,COLUMN(INDIRECT('cal formula'!D$1))),\"\"))","v":""},{"$f":"IF($I$8= \"All\", INDEX(data!$A$2:$H$251,,COLUMN(INDIRECT('cal formula'!E$1))),IFERROR(INDEX(data!$A$2:$H$251,data!$K104,COLUMN(INDIRECT('cal formula'!E$1))),\"\"))","v":""},{"$f":"IF($I$8= \"All\", INDEX(data!$A$2:$H$251,,COLUMN(INDIRECT('cal formula'!F$1))),IFERROR(INDEX(data!$A$2:$H$251,data!$K104,COLUMN(INDIRECT('cal formula'!F$1))),\"\"))","v":""}]
[{"$f":"IF($I$8= \"All\", INDEX(data!$A$2:$H$251,,COLUMN(INDIRECT('cal formula'!A$1))),IFERROR(INDEX(data!$A$2:$H$251,data!$K105,COLUMN(INDIRECT('cal formula'!A$1))),\"\"))","v":""},{"$f":"IF($I$8= \"All\", INDEX(data!$A$2:$H$251,,COLUMN(INDIRECT('cal formula'!B$1))),IFERROR(INDEX(data!$A$2:$H$251,data!$K105,COLUMN(INDIRECT('cal formula'!B$1))),\"\"))","v":""},{"$f":"IF($I$8= \"All\", INDEX(data!$A$2:$H$251,,COLUMN(INDIRECT('cal formula'!C$1))),IFERROR(INDEX(data!$A$2:$H$251,data!$K105,COLUMN(INDIRECT('cal formula'!C$1))),\"\"))","v":""},{"$f":"IF($I$8= \"All\", INDEX(data!$A$2:$H$251,,COLUMN(INDIRECT('cal formula'!D$1))),IFERROR(INDEX(data!$A$2:$H$251,data!$K105,COLUMN(INDIRECT('cal formula'!D$1))),\"\"))","v":""},{"$f":"IF($I$8= \"All\", INDEX(data!$A$2:$H$251,,COLUMN(INDIRECT('cal formula'!E$1))),IFERROR(INDEX(data!$A$2:$H$251,data!$K105,COLUMN(INDIRECT('cal formula'!E$1))),\"\"))","v":""},{"$f":"IF($I$8= \"All\", INDEX(data!$A$2:$H$251,,COLUMN(INDIRECT('cal formula'!F$1))),IFERROR(INDEX(data!$A$2:$H$251,data!$K105,COLUMN(INDIRECT('cal formula'!F$1))),\"\"))","v":""}]
[{"$f":"IF($I$8= \"All\", INDEX(data!$A$2:$H$251,,COLUMN(INDIRECT('cal formula'!A$1))),IFERROR(INDEX(data!$A$2:$H$251,data!$K106,COLUMN(INDIRECT('cal formula'!A$1))),\"\"))","v":""},{"$f":"IF($I$8= \"All\", INDEX(data!$A$2:$H$251,,COLUMN(INDIRECT('cal formula'!B$1))),IFERROR(INDEX(data!$A$2:$H$251,data!$K106,COLUMN(INDIRECT('cal formula'!B$1))),\"\"))","v":""},{"$f":"IF($I$8= \"All\", INDEX(data!$A$2:$H$251,,COLUMN(INDIRECT('cal formula'!C$1))),IFERROR(INDEX(data!$A$2:$H$251,data!$K106,COLUMN(INDIRECT('cal formula'!C$1))),\"\"))","v":""},{"$f":"IF($I$8= \"All\", INDEX(data!$A$2:$H$251,,COLUMN(INDIRECT('cal formula'!D$1))),IFERROR(INDEX(data!$A$2:$H$251,data!$K106,COLUMN(INDIRECT('cal formula'!D$1))),\"\"))","v":""},{"$f":"IF($I$8= \"All\", INDEX(data!$A$2:$H$251,,COLUMN(INDIRECT('cal formula'!E$1))),IFERROR(INDEX(data!$A$2:$H$251,data!$K106,COLUMN(INDIRECT('cal formula'!E$1))),\"\"))","v":""},{"$f":"IF($I$8= \"All\", INDEX(data!$A$2:$H$251,,COLUMN(INDIRECT('cal formula'!F$1))),IFERROR(INDEX(data!$A$2:$H$251,data!$K106,COLUMN(INDIRECT('cal formula'!F$1))),\"\"))","v":""}]
[{"$f":"IF($I$8= \"All\", INDEX(data!$A$2:$H$251,,COLUMN(INDIRECT('cal formula'!A$1))),IFERROR(INDEX(data!$A$2:$H$251,data!$K107,COLUMN(INDIRECT('cal formula'!A$1))),\"\"))","v":""},{"$f":"IF($I$8= \"All\", INDEX(data!$A$2:$H$251,,COLUMN(INDIRECT('cal formula'!B$1))),IFERROR(INDEX(data!$A$2:$H$251,data!$K107,COLUMN(INDIRECT('cal formula'!B$1))),\"\"))","v":""},{"$f":"IF($I$8= \"All\", INDEX(data!$A$2:$H$251,,COLUMN(INDIRECT('cal formula'!C$1))),IFERROR(INDEX(data!$A$2:$H$251,data!$K107,COLUMN(INDIRECT('cal formula'!C$1))),\"\"))","v":""},{"$f":"IF($I$8= \"All\", INDEX(data!$A$2:$H$251,,COLUMN(INDIRECT('cal formula'!D$1))),IFERROR(INDEX(data!$A$2:$H$251,data!$K107,COLUMN(INDIRECT('cal formula'!D$1))),\"\"))","v":""},{"$f":"IF($I$8= \"All\", INDEX(data!$A$2:$H$251,,COLUMN(INDIRECT('cal formula'!E$1))),IFERROR(INDEX(data!$A$2:$H$251,data!$K107,COLUMN(INDIRECT('cal formula'!E$1))),\"\"))","v":""},{"$f":"IF($I$8= \"All\", INDEX(data!$A$2:$H$251,,COLUMN(INDIRECT('cal formula'!F$1))),IFERROR(INDEX(data!$A$2:$H$251,data!$K107,COLUMN(INDIRECT('cal formula'!F$1))),\"\"))","v":""}]
[{"$f":"IF($I$8= \"All\", INDEX(data!$A$2:$H$251,,COLUMN(INDIRECT('cal formula'!A$1))),IFERROR(INDEX(data!$A$2:$H$251,data!$K108,COLUMN(INDIRECT('cal formula'!A$1))),\"\"))","v":""},{"$f":"IF($I$8= \"All\", INDEX(data!$A$2:$H$251,,COLUMN(INDIRECT('cal formula'!B$1))),IFERROR(INDEX(data!$A$2:$H$251,data!$K108,COLUMN(INDIRECT('cal formula'!B$1))),\"\"))","v":""},{"$f":"IF($I$8= \"All\", INDEX(data!$A$2:$H$251,,COLUMN(INDIRECT('cal formula'!C$1))),IFERROR(INDEX(data!$A$2:$H$251,data!$K108,COLUMN(INDIRECT('cal formula'!C$1))),\"\"))","v":""},{"$f":"IF($I$8= \"All\", INDEX(data!$A$2:$H$251,,COLUMN(INDIRECT('cal formula'!D$1))),IFERROR(INDEX(data!$A$2:$H$251,data!$K108,COLUMN(INDIRECT('cal formula'!D$1))),\"\"))","v":""},{"$f":"IF($I$8= \"All\", INDEX(data!$A$2:$H$251,,COLUMN(INDIRECT('cal formula'!E$1))),IFERROR(INDEX(data!$A$2:$H$251,data!$K108,COLUMN(INDIRECT('cal formula'!E$1))),\"\"))","v":""},{"$f":"IF($I$8= \"All\", INDEX(data!$A$2:$H$251,,COLUMN(INDIRECT('cal formula'!F$1))),IFERROR(INDEX(data!$A$2:$H$251,data!$K108,COLUMN(INDIRECT('cal formula'!F$1))),\"\"))","v":""}]
[{"$f":"IF($I$8= \"All\", INDEX(data!$A$2:$H$251,,COLUMN(INDIRECT('cal formula'!A$1))),IFERROR(INDEX(data!$A$2:$H$251,data!$K109,COLUMN(INDIRECT('cal formula'!A$1))),\"\"))","v":""},{"$f":"IF($I$8= \"All\", INDEX(data!$A$2:$H$251,,COLUMN(INDIRECT('cal formula'!B$1))),IFERROR(INDEX(data!$A$2:$H$251,data!$K109,COLUMN(INDIRECT('cal formula'!B$1))),\"\"))","v":""},{"$f":"IF($I$8= \"All\", INDEX(data!$A$2:$H$251,,COLUMN(INDIRECT('cal formula'!C$1))),IFERROR(INDEX(data!$A$2:$H$251,data!$K109,COLUMN(INDIRECT('cal formula'!C$1))),\"\"))","v":""},{"$f":"IF($I$8= \"All\", INDEX(data!$A$2:$H$251,,COLUMN(INDIRECT('cal formula'!D$1))),IFERROR(INDEX(data!$A$2:$H$251,data!$K109,COLUMN(INDIRECT('cal formula'!D$1))),\"\"))","v":""},{"$f":"IF($I$8= \"All\", INDEX(data!$A$2:$H$251,,COLUMN(INDIRECT('cal formula'!E$1))),IFERROR(INDEX(data!$A$2:$H$251,data!$K109,COLUMN(INDIRECT('cal formula'!E$1))),\"\"))","v":""},{"$f":"IF($I$8= \"All\", INDEX(data!$A$2:$H$251,,COLUMN(INDIRECT('cal formula'!F$1))),IFERROR(INDEX(data!$A$2:$H$251,data!$K109,COLUMN(INDIRECT('cal formula'!F$1))),\"\"))","v":""}]
[{"$f":"IF($I$8= \"All\", INDEX(data!$A$2:$H$251,,COLUMN(INDIRECT('cal formula'!A$1))),IFERROR(INDEX(data!$A$2:$H$251,data!$K110,COLUMN(INDIRECT('cal formula'!A$1))),\"\"))","v":""},{"$f":"IF($I$8= \"All\", INDEX(data!$A$2:$H$251,,COLUMN(INDIRECT('cal formula'!B$1))),IFERROR(INDEX(data!$A$2:$H$251,data!$K110,COLUMN(INDIRECT('cal formula'!B$1))),\"\"))","v":""},{"$f":"IF($I$8= \"All\", INDEX(data!$A$2:$H$251,,COLUMN(INDIRECT('cal formula'!C$1))),IFERROR(INDEX(data!$A$2:$H$251,data!$K110,COLUMN(INDIRECT('cal formula'!C$1))),\"\"))","v":""},{"$f":"IF($I$8= \"All\", INDEX(data!$A$2:$H$251,,COLUMN(INDIRECT('cal formula'!D$1))),IFERROR(INDEX(data!$A$2:$H$251,data!$K110,COLUMN(INDIRECT('cal formula'!D$1))),\"\"))","v":""},{"$f":"IF($I$8= \"All\", INDEX(data!$A$2:$H$251,,COLUMN(INDIRECT('cal formula'!E$1))),IFERROR(INDEX(data!$A$2:$H$251,data!$K110,COLUMN(INDIRECT('cal formula'!E$1))),\"\"))","v":""},{"$f":"IF($I$8= \"All\", INDEX(data!$A$2:$H$251,,COLUMN(INDIRECT('cal formula'!F$1))),IFERROR(INDEX(data!$A$2:$H$251,data!$K110,COLUMN(INDIRECT('cal formula'!F$1))),\"\"))","v":""}]
[{"$f":"IF($I$8= \"All\", INDEX(data!$A$2:$H$251,,COLUMN(INDIRECT('cal formula'!A$1))),IFERROR(INDEX(data!$A$2:$H$251,data!$K111,COLUMN(INDIRECT('cal formula'!A$1))),\"\"))","v":""},{"$f":"IF($I$8= \"All\", INDEX(data!$A$2:$H$251,,COLUMN(INDIRECT('cal formula'!B$1))),IFERROR(INDEX(data!$A$2:$H$251,data!$K111,COLUMN(INDIRECT('cal formula'!B$1))),\"\"))","v":""},{"$f":"IF($I$8= \"All\", INDEX(data!$A$2:$H$251,,COLUMN(INDIRECT('cal formula'!C$1))),IFERROR(INDEX(data!$A$2:$H$251,data!$K111,COLUMN(INDIRECT('cal formula'!C$1))),\"\"))","v":""},{"$f":"IF($I$8= \"All\", INDEX(data!$A$2:$H$251,,COLUMN(INDIRECT('cal formula'!D$1))),IFERROR(INDEX(data!$A$2:$H$251,data!$K111,COLUMN(INDIRECT('cal formula'!D$1))),\"\"))","v":""},{"$f":"IF($I$8= \"All\", INDEX(data!$A$2:$H$251,,COLUMN(INDIRECT('cal formula'!E$1))),IFERROR(INDEX(data!$A$2:$H$251,data!$K111,COLUMN(INDIRECT('cal formula'!E$1))),\"\"))","v":""},{"$f":"IF($I$8= \"All\", INDEX(data!$A$2:$H$251,,COLUMN(INDIRECT('cal formula'!F$1))),IFERROR(INDEX(data!$A$2:$H$251,data!$K111,COLUMN(INDIRECT('cal formula'!F$1))),\"\"))","v":""}]
[{"$f":"IF($I$8= \"All\", INDEX(data!$A$2:$H$251,,COLUMN(INDIRECT('cal formula'!A$1))),IFERROR(INDEX(data!$A$2:$H$251,data!$K112,COLUMN(INDIRECT('cal formula'!A$1))),\"\"))","v":""},{"$f":"IF($I$8= \"All\", INDEX(data!$A$2:$H$251,,COLUMN(INDIRECT('cal formula'!B$1))),IFERROR(INDEX(data!$A$2:$H$251,data!$K112,COLUMN(INDIRECT('cal formula'!B$1))),\"\"))","v":""},{"$f":"IF($I$8= \"All\", INDEX(data!$A$2:$H$251,,COLUMN(INDIRECT('cal formula'!C$1))),IFERROR(INDEX(data!$A$2:$H$251,data!$K112,COLUMN(INDIRECT('cal formula'!C$1))),\"\"))","v":""},{"$f":"IF($I$8= \"All\", INDEX(data!$A$2:$H$251,,COLUMN(INDIRECT('cal formula'!D$1))),IFERROR(INDEX(data!$A$2:$H$251,data!$K112,COLUMN(INDIRECT('cal formula'!D$1))),\"\"))","v":""},{"$f":"IF($I$8= \"All\", INDEX(data!$A$2:$H$251,,COLUMN(INDIRECT('cal formula'!E$1))),IFERROR(INDEX(data!$A$2:$H$251,data!$K112,COLUMN(INDIRECT('cal formula'!E$1))),\"\"))","v":""},{"$f":"IF($I$8= \"All\", INDEX(data!$A$2:$H$251,,COLUMN(INDIRECT('cal formula'!F$1))),IFERROR(INDEX(data!$A$2:$H$251,data!$K112,COLUMN(INDIRECT('cal formula'!F$1))),\"\"))","v":""}]
[{"$f":"IF($I$8= \"All\", INDEX(data!$A$2:$H$251,,COLUMN(INDIRECT('cal formula'!A$1))),IFERROR(INDEX(data!$A$2:$H$251,data!$K113,COLUMN(INDIRECT('cal formula'!A$1))),\"\"))","v":""},{"$f":"IF($I$8= \"All\", INDEX(data!$A$2:$H$251,,COLUMN(INDIRECT('cal formula'!B$1))),IFERROR(INDEX(data!$A$2:$H$251,data!$K113,COLUMN(INDIRECT('cal formula'!B$1))),\"\"))","v":""},{"$f":"IF($I$8= \"All\", INDEX(data!$A$2:$H$251,,COLUMN(INDIRECT('cal formula'!C$1))),IFERROR(INDEX(data!$A$2:$H$251,data!$K113,COLUMN(INDIRECT('cal formula'!C$1))),\"\"))","v":""},{"$f":"IF($I$8= \"All\", INDEX(data!$A$2:$H$251,,COLUMN(INDIRECT('cal formula'!D$1))),IFERROR(INDEX(data!$A$2:$H$251,data!$K113,COLUMN(INDIRECT('cal formula'!D$1))),\"\"))","v":""},{"$f":"IF($I$8= \"All\", INDEX(data!$A$2:$H$251,,COLUMN(INDIRECT('cal formula'!E$1))),IFERROR(INDEX(data!$A$2:$H$251,data!$K113,COLUMN(INDIRECT('cal formula'!E$1))),\"\"))","v":""},{"$f":"IF($I$8= \"All\", INDEX(data!$A$2:$H$251,,COLUMN(INDIRECT('cal formula'!F$1))),IFERROR(INDEX(data!$A$2:$H$251,data!$K113,COLUMN(INDIRECT('cal formula'!F$1))),\"\"))","v":""}]
[{"$f":"IF($I$8= \"All\", INDEX(data!$A$2:$H$251,,COLUMN(INDIRECT('cal formula'!A$1))),IFERROR(INDEX(data!$A$2:$H$251,data!$K114,COLUMN(INDIRECT('cal formula'!A$1))),\"\"))","v":""},{"$f":"IF($I$8= \"All\", INDEX(data!$A$2:$H$251,,COLUMN(INDIRECT('cal formula'!B$1))),IFERROR(INDEX(data!$A$2:$H$251,data!$K114,COLUMN(INDIRECT('cal formula'!B$1))),\"\"))","v":""},{"$f":"IF($I$8= \"All\", INDEX(data!$A$2:$H$251,,COLUMN(INDIRECT('cal formula'!C$1))),IFERROR(INDEX(data!$A$2:$H$251,data!$K114,COLUMN(INDIRECT('cal formula'!C$1))),\"\"))","v":""},{"$f":"IF($I$8= \"All\", INDEX(data!$A$2:$H$251,,COLUMN(INDIRECT('cal formula'!D$1))),IFERROR(INDEX(data!$A$2:$H$251,data!$K114,COLUMN(INDIRECT('cal formula'!D$1))),\"\"))","v":""},{"$f":"IF($I$8= \"All\", INDEX(data!$A$2:$H$251,,COLUMN(INDIRECT('cal formula'!E$1))),IFERROR(INDEX(data!$A$2:$H$251,data!$K114,COLUMN(INDIRECT('cal formula'!E$1))),\"\"))","v":""},{"$f":"IF($I$8= \"All\", INDEX(data!$A$2:$H$251,,COLUMN(INDIRECT('cal formula'!F$1))),IFERROR(INDEX(data!$A$2:$H$251,data!$K114,COLUMN(INDIRECT('cal formula'!F$1))),\"\"))","v":""}]
[{"$f":"IF($I$8= \"All\", INDEX(data!$A$2:$H$251,,COLUMN(INDIRECT('cal formula'!A$1))),IFERROR(INDEX(data!$A$2:$H$251,data!$K115,COLUMN(INDIRECT('cal formula'!A$1))),\"\"))","v":""},{"$f":"IF($I$8= \"All\", INDEX(data!$A$2:$H$251,,COLUMN(INDIRECT('cal formula'!B$1))),IFERROR(INDEX(data!$A$2:$H$251,data!$K115,COLUMN(INDIRECT('cal formula'!B$1))),\"\"))","v":""},{"$f":"IF($I$8= \"All\", INDEX(data!$A$2:$H$251,,COLUMN(INDIRECT('cal formula'!C$1))),IFERROR(INDEX(data!$A$2:$H$251,data!$K115,COLUMN(INDIRECT('cal formula'!C$1))),\"\"))","v":""},{"$f":"IF($I$8= \"All\", INDEX(data!$A$2:$H$251,,COLUMN(INDIRECT('cal formula'!D$1))),IFERROR(INDEX(data!$A$2:$H$251,data!$K115,COLUMN(INDIRECT('cal formula'!D$1))),\"\"))","v":""},{"$f":"IF($I$8= \"All\", INDEX(data!$A$2:$H$251,,COLUMN(INDIRECT('cal formula'!E$1))),IFERROR(INDEX(data!$A$2:$H$251,data!$K115,COLUMN(INDIRECT('cal formula'!E$1))),\"\"))","v":""},{"$f":"IF($I$8= \"All\", INDEX(data!$A$2:$H$251,,COLUMN(INDIRECT('cal formula'!F$1))),IFERROR(INDEX(data!$A$2:$H$251,data!$K115,COLUMN(INDIRECT('cal formula'!F$1))),\"\"))","v":""}]
[{"$f":"IF($I$8= \"All\", INDEX(data!$A$2:$H$251,,COLUMN(INDIRECT('cal formula'!A$1))),IFERROR(INDEX(data!$A$2:$H$251,data!$K116,COLUMN(INDIRECT('cal formula'!A$1))),\"\"))","v":""},{"$f":"IF($I$8= \"All\", INDEX(data!$A$2:$H$251,,COLUMN(INDIRECT('cal formula'!B$1))),IFERROR(INDEX(data!$A$2:$H$251,data!$K116,COLUMN(INDIRECT('cal formula'!B$1))),\"\"))","v":""},{"$f":"IF($I$8= \"All\", INDEX(data!$A$2:$H$251,,COLUMN(INDIRECT('cal formula'!C$1))),IFERROR(INDEX(data!$A$2:$H$251,data!$K116,COLUMN(INDIRECT('cal formula'!C$1))),\"\"))","v":""},{"$f":"IF($I$8= \"All\", INDEX(data!$A$2:$H$251,,COLUMN(INDIRECT('cal formula'!D$1))),IFERROR(INDEX(data!$A$2:$H$251,data!$K116,COLUMN(INDIRECT('cal formula'!D$1))),\"\"))","v":""},{"$f":"IF($I$8= \"All\", INDEX(data!$A$2:$H$251,,COLUMN(INDIRECT('cal formula'!E$1))),IFERROR(INDEX(data!$A$2:$H$251,data!$K116,COLUMN(INDIRECT('cal formula'!E$1))),\"\"))","v":""},{"$f":"IF($I$8= \"All\", INDEX(data!$A$2:$H$251,,COLUMN(INDIRECT('cal formula'!F$1))),IFERROR(INDEX(data!$A$2:$H$251,data!$K116,COLUMN(INDIRECT('cal formula'!F$1))),\"\"))","v":""}]
[{"$f":"IF($I$8= \"All\", INDEX(data!$A$2:$H$251,,COLUMN(INDIRECT('cal formula'!A$1))),IFERROR(INDEX(data!$A$2:$H$251,data!$K117,COLUMN(INDIRECT('cal formula'!A$1))),\"\"))","v":""},{"$f":"IF($I$8= \"All\", INDEX(data!$A$2:$H$251,,COLUMN(INDIRECT('cal formula'!B$1))),IFERROR(INDEX(data!$A$2:$H$251,data!$K117,COLUMN(INDIRECT('cal formula'!B$1))),\"\"))","v":""},{"$f":"IF($I$8= \"All\", INDEX(data!$A$2:$H$251,,COLUMN(INDIRECT('cal formula'!C$1))),IFERROR(INDEX(data!$A$2:$H$251,data!$K117,COLUMN(INDIRECT('cal formula'!C$1))),\"\"))","v":""},{"$f":"IF($I$8= \"All\", INDEX(data!$A$2:$H$251,,COLUMN(INDIRECT('cal formula'!D$1))),IFERROR(INDEX(data!$A$2:$H$251,data!$K117,COLUMN(INDIRECT('cal formula'!D$1))),\"\"))","v":""},{"$f":"IF($I$8= \"All\", INDEX(data!$A$2:$H$251,,COLUMN(INDIRECT('cal formula'!E$1))),IFERROR(INDEX(data!$A$2:$H$251,data!$K117,COLUMN(INDIRECT('cal formula'!E$1))),\"\"))","v":""},{"$f":"IF($I$8= \"All\", INDEX(data!$A$2:$H$251,,COLUMN(INDIRECT('cal formula'!F$1))),IFERROR(INDEX(data!$A$2:$H$251,data!$K117,COLUMN(INDIRECT('cal formula'!F$1))),\"\"))","v":""}]
[{"$f":"IF($I$8= \"All\", INDEX(data!$A$2:$H$251,,COLUMN(INDIRECT('cal formula'!A$1))),IFERROR(INDEX(data!$A$2:$H$251,data!$K118,COLUMN(INDIRECT('cal formula'!A$1))),\"\"))","v":""},{"$f":"IF($I$8= \"All\", INDEX(data!$A$2:$H$251,,COLUMN(INDIRECT('cal formula'!B$1))),IFERROR(INDEX(data!$A$2:$H$251,data!$K118,COLUMN(INDIRECT('cal formula'!B$1))),\"\"))","v":""},{"$f":"IF($I$8= \"All\", INDEX(data!$A$2:$H$251,,COLUMN(INDIRECT('cal formula'!C$1))),IFERROR(INDEX(data!$A$2:$H$251,data!$K118,COLUMN(INDIRECT('cal formula'!C$1))),\"\"))","v":""},{"$f":"IF($I$8= \"All\", INDEX(data!$A$2:$H$251,,COLUMN(INDIRECT('cal formula'!D$1))),IFERROR(INDEX(data!$A$2:$H$251,data!$K118,COLUMN(INDIRECT('cal formula'!D$1))),\"\"))","v":""},{"$f":"IF($I$8= \"All\", INDEX(data!$A$2:$H$251,,COLUMN(INDIRECT('cal formula'!E$1))),IFERROR(INDEX(data!$A$2:$H$251,data!$K118,COLUMN(INDIRECT('cal formula'!E$1))),\"\"))","v":""},{"$f":"IF($I$8= \"All\", INDEX(data!$A$2:$H$251,,COLUMN(INDIRECT('cal formula'!F$1))),IFERROR(INDEX(data!$A$2:$H$251,data!$K118,COLUMN(INDIRECT('cal formula'!F$1))),\"\"))","v":""}]
[{"$f":"IF($I$8= \"All\", INDEX(data!$A$2:$H$251,,COLUMN(INDIRECT('cal formula'!A$1))),IFERROR(INDEX(data!$A$2:$H$251,data!$K119,COLUMN(INDIRECT('cal formula'!A$1))),\"\"))","v":""},{"$f":"IF($I$8= \"All\", INDEX(data!$A$2:$H$251,,COLUMN(INDIRECT('cal formula'!B$1))),IFERROR(INDEX(data!$A$2:$H$251,data!$K119,COLUMN(INDIRECT('cal formula'!B$1))),\"\"))","v":""},{"$f":"IF($I$8= \"All\", INDEX(data!$A$2:$H$251,,COLUMN(INDIRECT('cal formula'!C$1))),IFERROR(INDEX(data!$A$2:$H$251,data!$K119,COLUMN(INDIRECT('cal formula'!C$1))),\"\"))","v":""},{"$f":"IF($I$8= \"All\", INDEX(data!$A$2:$H$251,,COLUMN(INDIRECT('cal formula'!D$1))),IFERROR(INDEX(data!$A$2:$H$251,data!$K119,COLUMN(INDIRECT('cal formula'!D$1))),\"\"))","v":""},{"$f":"IF($I$8= \"All\", INDEX(data!$A$2:$H$251,,COLUMN(INDIRECT('cal formula'!E$1))),IFERROR(INDEX(data!$A$2:$H$251,data!$K119,COLUMN(INDIRECT('cal formula'!E$1))),\"\"))","v":""},{"$f":"IF($I$8= \"All\", INDEX(data!$A$2:$H$251,,COLUMN(INDIRECT('cal formula'!F$1))),IFERROR(INDEX(data!$A$2:$H$251,data!$K119,COLUMN(INDIRECT('cal formula'!F$1))),\"\"))","v":""}]
[{"$f":"IF($I$8= \"All\", INDEX(data!$A$2:$H$251,,COLUMN(INDIRECT('cal formula'!A$1))),IFERROR(INDEX(data!$A$2:$H$251,data!$K120,COLUMN(INDIRECT('cal formula'!A$1))),\"\"))","v":""},{"$f":"IF($I$8= \"All\", INDEX(data!$A$2:$H$251,,COLUMN(INDIRECT('cal formula'!B$1))),IFERROR(INDEX(data!$A$2:$H$251,data!$K120,COLUMN(INDIRECT('cal formula'!B$1))),\"\"))","v":""},{"$f":"IF($I$8= \"All\", INDEX(data!$A$2:$H$251,,COLUMN(INDIRECT('cal formula'!C$1))),IFERROR(INDEX(data!$A$2:$H$251,data!$K120,COLUMN(INDIRECT('cal formula'!C$1))),\"\"))","v":""},{"$f":"IF($I$8= \"All\", INDEX(data!$A$2:$H$251,,COLUMN(INDIRECT('cal formula'!D$1))),IFERROR(INDEX(data!$A$2:$H$251,data!$K120,COLUMN(INDIRECT('cal formula'!D$1))),\"\"))","v":""},{"$f":"IF($I$8= \"All\", INDEX(data!$A$2:$H$251,,COLUMN(INDIRECT('cal formula'!E$1))),IFERROR(INDEX(data!$A$2:$H$251,data!$K120,COLUMN(INDIRECT('cal formula'!E$1))),\"\"))","v":""},{"$f":"IF($I$8= \"All\", INDEX(data!$A$2:$H$251,,COLUMN(INDIRECT('cal formula'!F$1))),IFERROR(INDEX(data!$A$2:$H$251,data!$K120,COLUMN(INDIRECT('cal formula'!F$1))),\"\"))","v":""}]
[{"$f":"IF($I$8= \"All\", INDEX(data!$A$2:$H$251,,COLUMN(INDIRECT('cal formula'!A$1))),IFERROR(INDEX(data!$A$2:$H$251,data!$K121,COLUMN(INDIRECT('cal formula'!A$1))),\"\"))","v":""},{"$f":"IF($I$8= \"All\", INDEX(data!$A$2:$H$251,,COLUMN(INDIRECT('cal formula'!B$1))),IFERROR(INDEX(data!$A$2:$H$251,data!$K121,COLUMN(INDIRECT('cal formula'!B$1))),\"\"))","v":""},{"$f":"IF($I$8= \"All\", INDEX(data!$A$2:$H$251,,COLUMN(INDIRECT('cal formula'!C$1))),IFERROR(INDEX(data!$A$2:$H$251,data!$K121,COLUMN(INDIRECT('cal formula'!C$1))),\"\"))","v":""},{"$f":"IF($I$8= \"All\", INDEX(data!$A$2:$H$251,,COLUMN(INDIRECT('cal formula'!D$1))),IFERROR(INDEX(data!$A$2:$H$251,data!$K121,COLUMN(INDIRECT('cal formula'!D$1))),\"\"))","v":""},{"$f":"IF($I$8= \"All\", INDEX(data!$A$2:$H$251,,COLUMN(INDIRECT('cal formula'!E$1))),IFERROR(INDEX(data!$A$2:$H$251,data!$K121,COLUMN(INDIRECT('cal formula'!E$1))),\"\"))","v":""},{"$f":"IF($I$8= \"All\", INDEX(data!$A$2:$H$251,,COLUMN(INDIRECT('cal formula'!F$1))),IFERROR(INDEX(data!$A$2:$H$251,data!$K121,COLUMN(INDIRECT('cal formula'!F$1))),\"\"))","v":""}]
[{"$f":"IF($I$8= \"All\", INDEX(data!$A$2:$H$251,,COLUMN(INDIRECT('cal formula'!A$1))),IFERROR(INDEX(data!$A$2:$H$251,data!$K122,COLUMN(INDIRECT('cal formula'!A$1))),\"\"))","v":""},{"$f":"IF($I$8= \"All\", INDEX(data!$A$2:$H$251,,COLUMN(INDIRECT('cal formula'!B$1))),IFERROR(INDEX(data!$A$2:$H$251,data!$K122,COLUMN(INDIRECT('cal formula'!B$1))),\"\"))","v":""},{"$f":"IF($I$8= \"All\", INDEX(data!$A$2:$H$251,,COLUMN(INDIRECT('cal formula'!C$1))),IFERROR(INDEX(data!$A$2:$H$251,data!$K122,COLUMN(INDIRECT('cal formula'!C$1))),\"\"))","v":""},{"$f":"IF($I$8= \"All\", INDEX(data!$A$2:$H$251,,COLUMN(INDIRECT('cal formula'!D$1))),IFERROR(INDEX(data!$A$2:$H$251,data!$K122,COLUMN(INDIRECT('cal formula'!D$1))),\"\"))","v":""},{"$f":"IF($I$8= \"All\", INDEX(data!$A$2:$H$251,,COLUMN(INDIRECT('cal formula'!E$1))),IFERROR(INDEX(data!$A$2:$H$251,data!$K122,COLUMN(INDIRECT('cal formula'!E$1))),\"\"))","v":""},{"$f":"IF($I$8= \"All\", INDEX(data!$A$2:$H$251,,COLUMN(INDIRECT('cal formula'!F$1))),IFERROR(INDEX(data!$A$2:$H$251,data!$K122,COLUMN(INDIRECT('cal formula'!F$1))),\"\"))","v":""}]
[{"$f":"IF($I$8= \"All\", INDEX(data!$A$2:$H$251,,COLUMN(INDIRECT('cal formula'!A$1))),IFERROR(INDEX(data!$A$2:$H$251,data!$K123,COLUMN(INDIRECT('cal formula'!A$1))),\"\"))","v":""},{"$f":"IF($I$8= \"All\", INDEX(data!$A$2:$H$251,,COLUMN(INDIRECT('cal formula'!B$1))),IFERROR(INDEX(data!$A$2:$H$251,data!$K123,COLUMN(INDIRECT('cal formula'!B$1))),\"\"))","v":""},{"$f":"IF($I$8= \"All\", INDEX(data!$A$2:$H$251,,COLUMN(INDIRECT('cal formula'!C$1))),IFERROR(INDEX(data!$A$2:$H$251,data!$K123,COLUMN(INDIRECT('cal formula'!C$1))),\"\"))","v":""},{"$f":"IF($I$8= \"All\", INDEX(data!$A$2:$H$251,,COLUMN(INDIRECT('cal formula'!D$1))),IFERROR(INDEX(data!$A$2:$H$251,data!$K123,COLUMN(INDIRECT('cal formula'!D$1))),\"\"))","v":""},{"$f":"IF($I$8= \"All\", INDEX(data!$A$2:$H$251,,COLUMN(INDIRECT('cal formula'!E$1))),IFERROR(INDEX(data!$A$2:$H$251,data!$K123,COLUMN(INDIRECT('cal formula'!E$1))),\"\"))","v":""},{"$f":"IF($I$8= \"All\", INDEX(data!$A$2:$H$251,,COLUMN(INDIRECT('cal formula'!F$1))),IFERROR(INDEX(data!$A$2:$H$251,data!$K123,COLUMN(INDIRECT('cal formula'!F$1))),\"\"))","v":""}]
[{"$f":"IF($I$8= \"All\", INDEX(data!$A$2:$H$251,,COLUMN(INDIRECT('cal formula'!A$1))),IFERROR(INDEX(data!$A$2:$H$251,data!$K124,COLUMN(INDIRECT('cal formula'!A$1))),\"\"))","v":""},{"$f":"IF($I$8= \"All\", INDEX(data!$A$2:$H$251,,COLUMN(INDIRECT('cal formula'!B$1))),IFERROR(INDEX(data!$A$2:$H$251,data!$K124,COLUMN(INDIRECT('cal formula'!B$1))),\"\"))","v":""},{"$f":"IF($I$8= \"All\", INDEX(data!$A$2:$H$251,,COLUMN(INDIRECT('cal formula'!C$1))),IFERROR(INDEX(data!$A$2:$H$251,data!$K124,COLUMN(INDIRECT('cal formula'!C$1))),\"\"))","v":""},{"$f":"IF($I$8= \"All\", INDEX(data!$A$2:$H$251,,COLUMN(INDIRECT('cal formula'!D$1))),IFERROR(INDEX(data!$A$2:$H$251,data!$K124,COLUMN(INDIRECT('cal formula'!D$1))),\"\"))","v":""},{"$f":"IF($I$8= \"All\", INDEX(data!$A$2:$H$251,,COLUMN(INDIRECT('cal formula'!E$1))),IFERROR(INDEX(data!$A$2:$H$251,data!$K124,COLUMN(INDIRECT('cal formula'!E$1))),\"\"))","v":""},{"$f":"IF($I$8= \"All\", INDEX(data!$A$2:$H$251,,COLUMN(INDIRECT('cal formula'!F$1))),IFERROR(INDEX(data!$A$2:$H$251,data!$K124,COLUMN(INDIRECT('cal formula'!F$1))),\"\"))","v":""}]
[{"$f":"IF($I$8= \"All\", INDEX(data!$A$2:$H$251,,COLUMN(INDIRECT('cal formula'!A$1))),IFERROR(INDEX(data!$A$2:$H$251,data!$K125,COLUMN(INDIRECT('cal formula'!A$1))),\"\"))","v":""},{"$f":"IF($I$8= \"All\", INDEX(data!$A$2:$H$251,,COLUMN(INDIRECT('cal formula'!B$1))),IFERROR(INDEX(data!$A$2:$H$251,data!$K125,COLUMN(INDIRECT('cal formula'!B$1))),\"\"))","v":""},{"$f":"IF($I$8= \"All\", INDEX(data!$A$2:$H$251,,COLUMN(INDIRECT('cal formula'!C$1))),IFERROR(INDEX(data!$A$2:$H$251,data!$K125,COLUMN(INDIRECT('cal formula'!C$1))),\"\"))","v":""},{"$f":"IF($I$8= \"All\", INDEX(data!$A$2:$H$251,,COLUMN(INDIRECT('cal formula'!D$1))),IFERROR(INDEX(data!$A$2:$H$251,data!$K125,COLUMN(INDIRECT('cal formula'!D$1))),\"\"))","v":""},{"$f":"IF($I$8= \"All\", INDEX(data!$A$2:$H$251,,COLUMN(INDIRECT('cal formula'!E$1))),IFERROR(INDEX(data!$A$2:$H$251,data!$K125,COLUMN(INDIRECT('cal formula'!E$1))),\"\"))","v":""},{"$f":"IF($I$8= \"All\", INDEX(data!$A$2:$H$251,,COLUMN(INDIRECT('cal formula'!F$1))),IFERROR(INDEX(data!$A$2:$H$251,data!$K125,COLUMN(INDIRECT('cal formula'!F$1))),\"\"))","v":""}]
[{"$f":"IF($I$8= \"All\", INDEX(data!$A$2:$H$251,,COLUMN(INDIRECT('cal formula'!A$1))),IFERROR(INDEX(data!$A$2:$H$251,data!$K126,COLUMN(INDIRECT('cal formula'!A$1))),\"\"))","v":""},{"$f":"IF($I$8= \"All\", INDEX(data!$A$2:$H$251,,COLUMN(INDIRECT('cal formula'!B$1))),IFERROR(INDEX(data!$A$2:$H$251,data!$K126,COLUMN(INDIRECT('cal formula'!B$1))),\"\"))","v":""},{"$f":"IF($I$8= \"All\", INDEX(data!$A$2:$H$251,,COLUMN(INDIRECT('cal formula'!C$1))),IFERROR(INDEX(data!$A$2:$H$251,data!$K126,COLUMN(INDIRECT('cal formula'!C$1))),\"\"))","v":""},{"$f":"IF($I$8= \"All\", INDEX(data!$A$2:$H$251,,COLUMN(INDIRECT('cal formula'!D$1))),IFERROR(INDEX(data!$A$2:$H$251,data!$K126,COLUMN(INDIRECT('cal formula'!D$1))),\"\"))","v":""},{"$f":"IF($I$8= \"All\", INDEX(data!$A$2:$H$251,,COLUMN(INDIRECT('cal formula'!E$1))),IFERROR(INDEX(data!$A$2:$H$251,data!$K126,COLUMN(INDIRECT('cal formula'!E$1))),\"\"))","v":""},{"$f":"IF($I$8= \"All\", INDEX(data!$A$2:$H$251,,COLUMN(INDIRECT('cal formula'!F$1))),IFERROR(INDEX(data!$A$2:$H$251,data!$K126,COLUMN(INDIRECT('cal formula'!F$1))),\"\"))","v":""}]
[{"$f":"IF($I$8= \"All\", INDEX(data!$A$2:$H$251,,COLUMN(INDIRECT('cal formula'!A$1))),IFERROR(INDEX(data!$A$2:$H$251,data!$K127,COLUMN(INDIRECT('cal formula'!A$1))),\"\"))","v":""},{"$f":"IF($I$8= \"All\", INDEX(data!$A$2:$H$251,,COLUMN(INDIRECT('cal formula'!B$1))),IFERROR(INDEX(data!$A$2:$H$251,data!$K127,COLUMN(INDIRECT('cal formula'!B$1))),\"\"))","v":""},{"$f":"IF($I$8= \"All\", INDEX(data!$A$2:$H$251,,COLUMN(INDIRECT('cal formula'!C$1))),IFERROR(INDEX(data!$A$2:$H$251,data!$K127,COLUMN(INDIRECT('cal formula'!C$1))),\"\"))","v":""},{"$f":"IF($I$8= \"All\", INDEX(data!$A$2:$H$251,,COLUMN(INDIRECT('cal formula'!D$1))),IFERROR(INDEX(data!$A$2:$H$251,data!$K127,COLUMN(INDIRECT('cal formula'!D$1))),\"\"))","v":""},{"$f":"IF($I$8= \"All\", INDEX(data!$A$2:$H$251,,COLUMN(INDIRECT('cal formula'!E$1))),IFERROR(INDEX(data!$A$2:$H$251,data!$K127,COLUMN(INDIRECT('cal formula'!E$1))),\"\"))","v":""},{"$f":"IF($I$8= \"All\", INDEX(data!$A$2:$H$251,,COLUMN(INDIRECT('cal formula'!F$1))),IFERROR(INDEX(data!$A$2:$H$251,data!$K127,COLUMN(INDIRECT('cal formula'!F$1))),\"\"))","v":""}]
[{"$f":"IF($I$8= \"All\", INDEX(data!$A$2:$H$251,,COLUMN(INDIRECT('cal formula'!A$1))),IFERROR(INDEX(data!$A$2:$H$251,data!$K128,COLUMN(INDIRECT('cal formula'!A$1))),\"\"))","v":""},{"$f":"IF($I$8= \"All\", INDEX(data!$A$2:$H$251,,COLUMN(INDIRECT('cal formula'!B$1))),IFERROR(INDEX(data!$A$2:$H$251,data!$K128,COLUMN(INDIRECT('cal formula'!B$1))),\"\"))","v":""},{"$f":"IF($I$8= \"All\", INDEX(data!$A$2:$H$251,,COLUMN(INDIRECT('cal formula'!C$1))),IFERROR(INDEX(data!$A$2:$H$251,data!$K128,COLUMN(INDIRECT('cal formula'!C$1))),\"\"))","v":""},{"$f":"IF($I$8= \"All\", INDEX(data!$A$2:$H$251,,COLUMN(INDIRECT('cal formula'!D$1))),IFERROR(INDEX(data!$A$2:$H$251,data!$K128,COLUMN(INDIRECT('cal formula'!D$1))),\"\"))","v":""},{"$f":"IF($I$8= \"All\", INDEX(data!$A$2:$H$251,,COLUMN(INDIRECT('cal formula'!E$1))),IFERROR(INDEX(data!$A$2:$H$251,data!$K128,COLUMN(INDIRECT('cal formula'!E$1))),\"\"))","v":""},{"$f":"IF($I$8= \"All\", INDEX(data!$A$2:$H$251,,COLUMN(INDIRECT('cal formula'!F$1))),IFERROR(INDEX(data!$A$2:$H$251,data!$K128,COLUMN(INDIRECT('cal formula'!F$1))),\"\"))","v":""}]
[{"$f":"IF($I$8= \"All\", INDEX(data!$A$2:$H$251,,COLUMN(INDIRECT('cal formula'!A$1))),IFERROR(INDEX(data!$A$2:$H$251,data!$K129,COLUMN(INDIRECT('cal formula'!A$1))),\"\"))","v":""},{"$f":"IF($I$8= \"All\", INDEX(data!$A$2:$H$251,,COLUMN(INDIRECT('cal formula'!B$1))),IFERROR(INDEX(data!$A$2:$H$251,data!$K129,COLUMN(INDIRECT('cal formula'!B$1))),\"\"))","v":""},{"$f":"IF($I$8= \"All\", INDEX(data!$A$2:$H$251,,COLUMN(INDIRECT('cal formula'!C$1))),IFERROR(INDEX(data!$A$2:$H$251,data!$K129,COLUMN(INDIRECT('cal formula'!C$1))),\"\"))","v":""},{"$f":"IF($I$8= \"All\", INDEX(data!$A$2:$H$251,,COLUMN(INDIRECT('cal formula'!D$1))),IFERROR(INDEX(data!$A$2:$H$251,data!$K129,COLUMN(INDIRECT('cal formula'!D$1))),\"\"))","v":""},{"$f":"IF($I$8= \"All\", INDEX(data!$A$2:$H$251,,COLUMN(INDIRECT('cal formula'!E$1))),IFERROR(INDEX(data!$A$2:$H$251,data!$K129,COLUMN(INDIRECT('cal formula'!E$1))),\"\"))","v":""},{"$f":"IF($I$8= \"All\", INDEX(data!$A$2:$H$251,,COLUMN(INDIRECT('cal formula'!F$1))),IFERROR(INDEX(data!$A$2:$H$251,data!$K129,COLUMN(INDIRECT('cal formula'!F$1))),\"\"))","v":""}]
[{"$f":"IF($I$8= \"All\", INDEX(data!$A$2:$H$251,,COLUMN(INDIRECT('cal formula'!A$1))),IFERROR(INDEX(data!$A$2:$H$251,data!$K130,COLUMN(INDIRECT('cal formula'!A$1))),\"\"))","v":""},{"$f":"IF($I$8= \"All\", INDEX(data!$A$2:$H$251,,COLUMN(INDIRECT('cal formula'!B$1))),IFERROR(INDEX(data!$A$2:$H$251,data!$K130,COLUMN(INDIRECT('cal formula'!B$1))),\"\"))","v":""},{"$f":"IF($I$8= \"All\", INDEX(data!$A$2:$H$251,,COLUMN(INDIRECT('cal formula'!C$1))),IFERROR(INDEX(data!$A$2:$H$251,data!$K130,COLUMN(INDIRECT('cal formula'!C$1))),\"\"))","v":""},{"$f":"IF($I$8= \"All\", INDEX(data!$A$2:$H$251,,COLUMN(INDIRECT('cal formula'!D$1))),IFERROR(INDEX(data!$A$2:$H$251,data!$K130,COLUMN(INDIRECT('cal formula'!D$1))),\"\"))","v":""},{"$f":"IF($I$8= \"All\", INDEX(data!$A$2:$H$251,,COLUMN(INDIRECT('cal formula'!E$1))),IFERROR(INDEX(data!$A$2:$H$251,data!$K130,COLUMN(INDIRECT('cal formula'!E$1))),\"\"))","v":""},{"$f":"IF($I$8= \"All\", INDEX(data!$A$2:$H$251,,COLUMN(INDIRECT('cal formula'!F$1))),IFERROR(INDEX(data!$A$2:$H$251,data!$K130,COLUMN(INDIRECT('cal formula'!F$1))),\"\"))","v":""}]
[{"$f":"IF($I$8= \"All\", INDEX(data!$A$2:$H$251,,COLUMN(INDIRECT('cal formula'!A$1))),IFERROR(INDEX(data!$A$2:$H$251,data!$K131,COLUMN(INDIRECT('cal formula'!A$1))),\"\"))","v":""},{"$f":"IF($I$8= \"All\", INDEX(data!$A$2:$H$251,,COLUMN(INDIRECT('cal formula'!B$1))),IFERROR(INDEX(data!$A$2:$H$251,data!$K131,COLUMN(INDIRECT('cal formula'!B$1))),\"\"))","v":""},{"$f":"IF($I$8= \"All\", INDEX(data!$A$2:$H$251,,COLUMN(INDIRECT('cal formula'!C$1))),IFERROR(INDEX(data!$A$2:$H$251,data!$K131,COLUMN(INDIRECT('cal formula'!C$1))),\"\"))","v":""},{"$f":"IF($I$8= \"All\", INDEX(data!$A$2:$H$251,,COLUMN(INDIRECT('cal formula'!D$1))),IFERROR(INDEX(data!$A$2:$H$251,data!$K131,COLUMN(INDIRECT('cal formula'!D$1))),\"\"))","v":""},{"$f":"IF($I$8= \"All\", INDEX(data!$A$2:$H$251,,COLUMN(INDIRECT('cal formula'!E$1))),IFERROR(INDEX(data!$A$2:$H$251,data!$K131,COLUMN(INDIRECT('cal formula'!E$1))),\"\"))","v":""},{"$f":"IF($I$8= \"All\", INDEX(data!$A$2:$H$251,,COLUMN(INDIRECT('cal formula'!F$1))),IFERROR(INDEX(data!$A$2:$H$251,data!$K131,COLUMN(INDIRECT('cal formula'!F$1))),\"\"))","v":""}]
[{"$f":"IF($I$8= \"All\", INDEX(data!$A$2:$H$251,,COLUMN(INDIRECT('cal formula'!A$1))),IFERROR(INDEX(data!$A$2:$H$251,data!$K132,COLUMN(INDIRECT('cal formula'!A$1))),\"\"))","v":""},{"$f":"IF($I$8= \"All\", INDEX(data!$A$2:$H$251,,COLUMN(INDIRECT('cal formula'!B$1))),IFERROR(INDEX(data!$A$2:$H$251,data!$K132,COLUMN(INDIRECT('cal formula'!B$1))),\"\"))","v":""},{"$f":"IF($I$8= \"All\", INDEX(data!$A$2:$H$251,,COLUMN(INDIRECT('cal formula'!C$1))),IFERROR(INDEX(data!$A$2:$H$251,data!$K132,COLUMN(INDIRECT('cal formula'!C$1))),\"\"))","v":""},{"$f":"IF($I$8= \"All\", INDEX(data!$A$2:$H$251,,COLUMN(INDIRECT('cal formula'!D$1))),IFERROR(INDEX(data!$A$2:$H$251,data!$K132,COLUMN(INDIRECT('cal formula'!D$1))),\"\"))","v":""},{"$f":"IF($I$8= \"All\", INDEX(data!$A$2:$H$251,,COLUMN(INDIRECT('cal formula'!E$1))),IFERROR(INDEX(data!$A$2:$H$251,data!$K132,COLUMN(INDIRECT('cal formula'!E$1))),\"\"))","v":""},{"$f":"IF($I$8= \"All\", INDEX(data!$A$2:$H$251,,COLUMN(INDIRECT('cal formula'!F$1))),IFERROR(INDEX(data!$A$2:$H$251,data!$K132,COLUMN(INDIRECT('cal formula'!F$1))),\"\"))","v":""}]
[{"$f":"IF($I$8= \"All\", INDEX(data!$A$2:$H$251,,COLUMN(INDIRECT('cal formula'!A$1))),IFERROR(INDEX(data!$A$2:$H$251,data!$K133,COLUMN(INDIRECT('cal formula'!A$1))),\"\"))","v":""},{"$f":"IF($I$8= \"All\", INDEX(data!$A$2:$H$251,,COLUMN(INDIRECT('cal formula'!B$1))),IFERROR(INDEX(data!$A$2:$H$251,data!$K133,COLUMN(INDIRECT('cal formula'!B$1))),\"\"))","v":""},{"$f":"IF($I$8= \"All\", INDEX(data!$A$2:$H$251,,COLUMN(INDIRECT('cal formula'!C$1))),IFERROR(INDEX(data!$A$2:$H$251,data!$K133,COLUMN(INDIRECT('cal formula'!C$1))),\"\"))","v":""},{"$f":"IF($I$8= \"All\", INDEX(data!$A$2:$H$251,,COLUMN(INDIRECT('cal formula'!D$1))),IFERROR(INDEX(data!$A$2:$H$251,data!$K133,COLUMN(INDIRECT('cal formula'!D$1))),\"\"))","v":""},{"$f":"IF($I$8= \"All\", INDEX(data!$A$2:$H$251,,COLUMN(INDIRECT('cal formula'!E$1))),IFERROR(INDEX(data!$A$2:$H$251,data!$K133,COLUMN(INDIRECT('cal formula'!E$1))),\"\"))","v":""},{"$f":"IF($I$8= \"All\", INDEX(data!$A$2:$H$251,,COLUMN(INDIRECT('cal formula'!F$1))),IFERROR(INDEX(data!$A$2:$H$251,data!$K133,COLUMN(INDIRECT('cal formula'!F$1))),\"\"))","v":""}]
[{"$f":"IF($I$8= \"All\", INDEX(data!$A$2:$H$251,,COLUMN(INDIRECT('cal formula'!A$1))),IFERROR(INDEX(data!$A$2:$H$251,data!$K134,COLUMN(INDIRECT('cal formula'!A$1))),\"\"))","v":""},{"$f":"IF($I$8= \"All\", INDEX(data!$A$2:$H$251,,COLUMN(INDIRECT('cal formula'!B$1))),IFERROR(INDEX(data!$A$2:$H$251,data!$K134,COLUMN(INDIRECT('cal formula'!B$1))),\"\"))","v":""},{"$f":"IF($I$8= \"All\", INDEX(data!$A$2:$H$251,,COLUMN(INDIRECT('cal formula'!C$1))),IFERROR(INDEX(data!$A$2:$H$251,data!$K134,COLUMN(INDIRECT('cal formula'!C$1))),\"\"))","v":""},{"$f":"IF($I$8= \"All\", INDEX(data!$A$2:$H$251,,COLUMN(INDIRECT('cal formula'!D$1))),IFERROR(INDEX(data!$A$2:$H$251,data!$K134,COLUMN(INDIRECT('cal formula'!D$1))),\"\"))","v":""},{"$f":"IF($I$8= \"All\", INDEX(data!$A$2:$H$251,,COLUMN(INDIRECT('cal formula'!E$1))),IFERROR(INDEX(data!$A$2:$H$251,data!$K134,COLUMN(INDIRECT('cal formula'!E$1))),\"\"))","v":""},{"$f":"IF($I$8= \"All\", INDEX(data!$A$2:$H$251,,COLUMN(INDIRECT('cal formula'!F$1))),IFERROR(INDEX(data!$A$2:$H$251,data!$K134,COLUMN(INDIRECT('cal formula'!F$1))),\"\"))","v":""}]
[{"$f":"IF($I$8= \"All\", INDEX(data!$A$2:$H$251,,COLUMN(INDIRECT('cal formula'!A$1))),IFERROR(INDEX(data!$A$2:$H$251,data!$K135,COLUMN(INDIRECT('cal formula'!A$1))),\"\"))","v":""},{"$f":"IF($I$8= \"All\", INDEX(data!$A$2:$H$251,,COLUMN(INDIRECT('cal formula'!B$1))),IFERROR(INDEX(data!$A$2:$H$251,data!$K135,COLUMN(INDIRECT('cal formula'!B$1))),\"\"))","v":""},{"$f":"IF($I$8= \"All\", INDEX(data!$A$2:$H$251,,COLUMN(INDIRECT('cal formula'!C$1))),IFERROR(INDEX(data!$A$2:$H$251,data!$K135,COLUMN(INDIRECT('cal formula'!C$1))),\"\"))","v":""},{"$f":"IF($I$8= \"All\", INDEX(data!$A$2:$H$251,,COLUMN(INDIRECT('cal formula'!D$1))),IFERROR(INDEX(data!$A$2:$H$251,data!$K135,COLUMN(INDIRECT('cal formula'!D$1))),\"\"))","v":""},{"$f":"IF($I$8= \"All\", INDEX(data!$A$2:$H$251,,COLUMN(INDIRECT('cal formula'!E$1))),IFERROR(INDEX(data!$A$2:$H$251,data!$K135,COLUMN(INDIRECT('cal formula'!E$1))),\"\"))","v":""},{"$f":"IF($I$8= \"All\", INDEX(data!$A$2:$H$251,,COLUMN(INDIRECT('cal formula'!F$1))),IFERROR(INDEX(data!$A$2:$H$251,data!$K135,COLUMN(INDIRECT('cal formula'!F$1))),\"\"))","v":""}]
[{"$f":"IF($I$8= \"All\", INDEX(data!$A$2:$H$251,,COLUMN(INDIRECT('cal formula'!A$1))),IFERROR(INDEX(data!$A$2:$H$251,data!$K136,COLUMN(INDIRECT('cal formula'!A$1))),\"\"))","v":""},{"$f":"IF($I$8= \"All\", INDEX(data!$A$2:$H$251,,COLUMN(INDIRECT('cal formula'!B$1))),IFERROR(INDEX(data!$A$2:$H$251,data!$K136,COLUMN(INDIRECT('cal formula'!B$1))),\"\"))","v":""},{"$f":"IF($I$8= \"All\", INDEX(data!$A$2:$H$251,,COLUMN(INDIRECT('cal formula'!C$1))),IFERROR(INDEX(data!$A$2:$H$251,data!$K136,COLUMN(INDIRECT('cal formula'!C$1))),\"\"))","v":""},{"$f":"IF($I$8= \"All\", INDEX(data!$A$2:$H$251,,COLUMN(INDIRECT('cal formula'!D$1))),IFERROR(INDEX(data!$A$2:$H$251,data!$K136,COLUMN(INDIRECT('cal formula'!D$1))),\"\"))","v":""},{"$f":"IF($I$8= \"All\", INDEX(data!$A$2:$H$251,,COLUMN(INDIRECT('cal formula'!E$1))),IFERROR(INDEX(data!$A$2:$H$251,data!$K136,COLUMN(INDIRECT('cal formula'!E$1))),\"\"))","v":""},{"$f":"IF($I$8= \"All\", INDEX(data!$A$2:$H$251,,COLUMN(INDIRECT('cal formula'!F$1))),IFERROR(INDEX(data!$A$2:$H$251,data!$K136,COLUMN(INDIRECT('cal formula'!F$1))),\"\"))","v":""}]
[{"$f":"IF($I$8= \"All\", INDEX(data!$A$2:$H$251,,COLUMN(INDIRECT('cal formula'!A$1))),IFERROR(INDEX(data!$A$2:$H$251,data!$K137,COLUMN(INDIRECT('cal formula'!A$1))),\"\"))","v":""},{"$f":"IF($I$8= \"All\", INDEX(data!$A$2:$H$251,,COLUMN(INDIRECT('cal formula'!B$1))),IFERROR(INDEX(data!$A$2:$H$251,data!$K137,COLUMN(INDIRECT('cal formula'!B$1))),\"\"))","v":""},{"$f":"IF($I$8= \"All\", INDEX(data!$A$2:$H$251,,COLUMN(INDIRECT('cal formula'!C$1))),IFERROR(INDEX(data!$A$2:$H$251,data!$K137,COLUMN(INDIRECT('cal formula'!C$1))),\"\"))","v":""},{"$f":"IF($I$8= \"All\", INDEX(data!$A$2:$H$251,,COLUMN(INDIRECT('cal formula'!D$1))),IFERROR(INDEX(data!$A$2:$H$251,data!$K137,COLUMN(INDIRECT('cal formula'!D$1))),\"\"))","v":""},{"$f":"IF($I$8= \"All\", INDEX(data!$A$2:$H$251,,COLUMN(INDIRECT('cal formula'!E$1))),IFERROR(INDEX(data!$A$2:$H$251,data!$K137,COLUMN(INDIRECT('cal formula'!E$1))),\"\"))","v":""},{"$f":"IF($I$8= \"All\", INDEX(data!$A$2:$H$251,,COLUMN(INDIRECT('cal formula'!F$1))),IFERROR(INDEX(data!$A$2:$H$251,data!$K137,COLUMN(INDIRECT('cal formula'!F$1))),\"\"))","v":""}]
[{"$f":"IF($I$8= \"All\", INDEX(data!$A$2:$H$251,,COLUMN(INDIRECT('cal formula'!A$1))),IFERROR(INDEX(data!$A$2:$H$251,data!$K138,COLUMN(INDIRECT('cal formula'!A$1))),\"\"))","v":""},{"$f":"IF($I$8= \"All\", INDEX(data!$A$2:$H$251,,COLUMN(INDIRECT('cal formula'!B$1))),IFERROR(INDEX(data!$A$2:$H$251,data!$K138,COLUMN(INDIRECT('cal formula'!B$1))),\"\"))","v":""},{"$f":"IF($I$8= \"All\", INDEX(data!$A$2:$H$251,,COLUMN(INDIRECT('cal formula'!C$1))),IFERROR(INDEX(data!$A$2:$H$251,data!$K138,COLUMN(INDIRECT('cal formula'!C$1))),\"\"))","v":""},{"$f":"IF($I$8= \"All\", INDEX(data!$A$2:$H$251,,COLUMN(INDIRECT('cal formula'!D$1))),IFERROR(INDEX(data!$A$2:$H$251,data!$K138,COLUMN(INDIRECT('cal formula'!D$1))),\"\"))","v":""},{"$f":"IF($I$8= \"All\", INDEX(data!$A$2:$H$251,,COLUMN(INDIRECT('cal formula'!E$1))),IFERROR(INDEX(data!$A$2:$H$251,data!$K138,COLUMN(INDIRECT('cal formula'!E$1))),\"\"))","v":""},{"$f":"IF($I$8= \"All\", INDEX(data!$A$2:$H$251,,COLUMN(INDIRECT('cal formula'!F$1))),IFERROR(INDEX(data!$A$2:$H$251,data!$K138,COLUMN(INDIRECT('cal formula'!F$1))),\"\"))","v":""}]
[{"$f":"IF($I$8= \"All\", INDEX(data!$A$2:$H$251,,COLUMN(INDIRECT('cal formula'!A$1))),IFERROR(INDEX(data!$A$2:$H$251,data!$K139,COLUMN(INDIRECT('cal formula'!A$1))),\"\"))","v":""},{"$f":"IF($I$8= \"All\", INDEX(data!$A$2:$H$251,,COLUMN(INDIRECT('cal formula'!B$1))),IFERROR(INDEX(data!$A$2:$H$251,data!$K139,COLUMN(INDIRECT('cal formula'!B$1))),\"\"))","v":""},{"$f":"IF($I$8= \"All\", INDEX(data!$A$2:$H$251,,COLUMN(INDIRECT('cal formula'!C$1))),IFERROR(INDEX(data!$A$2:$H$251,data!$K139,COLUMN(INDIRECT('cal formula'!C$1))),\"\"))","v":""},{"$f":"IF($I$8= \"All\", INDEX(data!$A$2:$H$251,,COLUMN(INDIRECT('cal formula'!D$1))),IFERROR(INDEX(data!$A$2:$H$251,data!$K139,COLUMN(INDIRECT('cal formula'!D$1))),\"\"))","v":""},{"$f":"IF($I$8= \"All\", INDEX(data!$A$2:$H$251,,COLUMN(INDIRECT('cal formula'!E$1))),IFERROR(INDEX(data!$A$2:$H$251,data!$K139,COLUMN(INDIRECT('cal formula'!E$1))),\"\"))","v":""},{"$f":"IF($I$8= \"All\", INDEX(data!$A$2:$H$251,,COLUMN(INDIRECT('cal formula'!F$1))),IFERROR(INDEX(data!$A$2:$H$251,data!$K139,COLUMN(INDIRECT('cal formula'!F$1))),\"\"))","v":""}]
[{"$f":"IF($I$8= \"All\", INDEX(data!$A$2:$H$251,,COLUMN(INDIRECT('cal formula'!A$1))),IFERROR(INDEX(data!$A$2:$H$251,data!$K140,COLUMN(INDIRECT('cal formula'!A$1))),\"\"))","v":""},{"$f":"IF($I$8= \"All\", INDEX(data!$A$2:$H$251,,COLUMN(INDIRECT('cal formula'!B$1))),IFERROR(INDEX(data!$A$2:$H$251,data!$K140,COLUMN(INDIRECT('cal formula'!B$1))),\"\"))","v":""},{"$f":"IF($I$8= \"All\", INDEX(data!$A$2:$H$251,,COLUMN(INDIRECT('cal formula'!C$1))),IFERROR(INDEX(data!$A$2:$H$251,data!$K140,COLUMN(INDIRECT('cal formula'!C$1))),\"\"))","v":""},{"$f":"IF($I$8= \"All\", INDEX(data!$A$2:$H$251,,COLUMN(INDIRECT('cal formula'!D$1))),IFERROR(INDEX(data!$A$2:$H$251,data!$K140,COLUMN(INDIRECT('cal formula'!D$1))),\"\"))","v":""},{"$f":"IF($I$8= \"All\", INDEX(data!$A$2:$H$251,,COLUMN(INDIRECT('cal formula'!E$1))),IFERROR(INDEX(data!$A$2:$H$251,data!$K140,COLUMN(INDIRECT('cal formula'!E$1))),\"\"))","v":""},{"$f":"IF($I$8= \"All\", INDEX(data!$A$2:$H$251,,COLUMN(INDIRECT('cal formula'!F$1))),IFERROR(INDEX(data!$A$2:$H$251,data!$K140,COLUMN(INDIRECT('cal formula'!F$1))),\"\"))","v":""}]
[{"$f":"IF($I$8= \"All\", INDEX(data!$A$2:$H$251,,COLUMN(INDIRECT('cal formula'!A$1))),IFERROR(INDEX(data!$A$2:$H$251,data!$K141,COLUMN(INDIRECT('cal formula'!A$1))),\"\"))","v":""},{"$f":"IF($I$8= \"All\", INDEX(data!$A$2:$H$251,,COLUMN(INDIRECT('cal formula'!B$1))),IFERROR(INDEX(data!$A$2:$H$251,data!$K141,COLUMN(INDIRECT('cal formula'!B$1))),\"\"))","v":""},{"$f":"IF($I$8= \"All\", INDEX(data!$A$2:$H$251,,COLUMN(INDIRECT('cal formula'!C$1))),IFERROR(INDEX(data!$A$2:$H$251,data!$K141,COLUMN(INDIRECT('cal formula'!C$1))),\"\"))","v":""},{"$f":"IF($I$8= \"All\", INDEX(data!$A$2:$H$251,,COLUMN(INDIRECT('cal formula'!D$1))),IFERROR(INDEX(data!$A$2:$H$251,data!$K141,COLUMN(INDIRECT('cal formula'!D$1))),\"\"))","v":""},{"$f":"IF($I$8= \"All\", INDEX(data!$A$2:$H$251,,COLUMN(INDIRECT('cal formula'!E$1))),IFERROR(INDEX(data!$A$2:$H$251,data!$K141,COLUMN(INDIRECT('cal formula'!E$1))),\"\"))","v":""},{"$f":"IF($I$8= \"All\", INDEX(data!$A$2:$H$251,,COLUMN(INDIRECT('cal formula'!F$1))),IFERROR(INDEX(data!$A$2:$H$251,data!$K141,COLUMN(INDIRECT('cal formula'!F$1))),\"\"))","v":""}]
[{"$f":"IF($I$8= \"All\", INDEX(data!$A$2:$H$251,,COLUMN(INDIRECT('cal formula'!A$1))),IFERROR(INDEX(data!$A$2:$H$251,data!$K142,COLUMN(INDIRECT('cal formula'!A$1))),\"\"))","v":""},{"$f":"IF($I$8= \"All\", INDEX(data!$A$2:$H$251,,COLUMN(INDIRECT('cal formula'!B$1))),IFERROR(INDEX(data!$A$2:$H$251,data!$K142,COLUMN(INDIRECT('cal formula'!B$1))),\"\"))","v":""},{"$f":"IF($I$8= \"All\", INDEX(data!$A$2:$H$251,,COLUMN(INDIRECT('cal formula'!C$1))),IFERROR(INDEX(data!$A$2:$H$251,data!$K142,COLUMN(INDIRECT('cal formula'!C$1))),\"\"))","v":""},{"$f":"IF($I$8= \"All\", INDEX(data!$A$2:$H$251,,COLUMN(INDIRECT('cal formula'!D$1))),IFERROR(INDEX(data!$A$2:$H$251,data!$K142,COLUMN(INDIRECT('cal formula'!D$1))),\"\"))","v":""},{"$f":"IF($I$8= \"All\", INDEX(data!$A$2:$H$251,,COLUMN(INDIRECT('cal formula'!E$1))),IFERROR(INDEX(data!$A$2:$H$251,data!$K142,COLUMN(INDIRECT('cal formula'!E$1))),\"\"))","v":""},{"$f":"IF($I$8= \"All\", INDEX(data!$A$2:$H$251,,COLUMN(INDIRECT('cal formula'!F$1))),IFERROR(INDEX(data!$A$2:$H$251,data!$K142,COLUMN(INDIRECT('cal formula'!F$1))),\"\"))","v":""}]
[{"$f":"IF($I$8= \"All\", INDEX(data!$A$2:$H$251,,COLUMN(INDIRECT('cal formula'!A$1))),IFERROR(INDEX(data!$A$2:$H$251,data!$K143,COLUMN(INDIRECT('cal formula'!A$1))),\"\"))","v":""},{"$f":"IF($I$8= \"All\", INDEX(data!$A$2:$H$251,,COLUMN(INDIRECT('cal formula'!B$1))),IFERROR(INDEX(data!$A$2:$H$251,data!$K143,COLUMN(INDIRECT('cal formula'!B$1))),\"\"))","v":""},{"$f":"IF($I$8= \"All\", INDEX(data!$A$2:$H$251,,COLUMN(INDIRECT('cal formula'!C$1))),IFERROR(INDEX(data!$A$2:$H$251,data!$K143,COLUMN(INDIRECT('cal formula'!C$1))),\"\"))","v":""},{"$f":"IF($I$8= \"All\", INDEX(data!$A$2:$H$251,,COLUMN(INDIRECT('cal formula'!D$1))),IFERROR(INDEX(data!$A$2:$H$251,data!$K143,COLUMN(INDIRECT('cal formula'!D$1))),\"\"))","v":""},{"$f":"IF($I$8= \"All\", INDEX(data!$A$2:$H$251,,COLUMN(INDIRECT('cal formula'!E$1))),IFERROR(INDEX(data!$A$2:$H$251,data!$K143,COLUMN(INDIRECT('cal formula'!E$1))),\"\"))","v":""},{"$f":"IF($I$8= \"All\", INDEX(data!$A$2:$H$251,,COLUMN(INDIRECT('cal formula'!F$1))),IFERROR(INDEX(data!$A$2:$H$251,data!$K143,COLUMN(INDIRECT('cal formula'!F$1))),\"\"))","v":""}]
[{"$f":"IF($I$8= \"All\", INDEX(data!$A$2:$H$251,,COLUMN(INDIRECT('cal formula'!A$1))),IFERROR(INDEX(data!$A$2:$H$251,data!$K144,COLUMN(INDIRECT('cal formula'!A$1))),\"\"))","v":""},{"$f":"IF($I$8= \"All\", INDEX(data!$A$2:$H$251,,COLUMN(INDIRECT('cal formula'!B$1))),IFERROR(INDEX(data!$A$2:$H$251,data!$K144,COLUMN(INDIRECT('cal formula'!B$1))),\"\"))","v":""},{"$f":"IF($I$8= \"All\", INDEX(data!$A$2:$H$251,,COLUMN(INDIRECT('cal formula'!C$1))),IFERROR(INDEX(data!$A$2:$H$251,data!$K144,COLUMN(INDIRECT('cal formula'!C$1))),\"\"))","v":""},{"$f":"IF($I$8= \"All\", INDEX(data!$A$2:$H$251,,COLUMN(INDIRECT('cal formula'!D$1))),IFERROR(INDEX(data!$A$2:$H$251,data!$K144,COLUMN(INDIRECT('cal formula'!D$1))),\"\"))","v":""},{"$f":"IF($I$8= \"All\", INDEX(data!$A$2:$H$251,,COLUMN(INDIRECT('cal formula'!E$1))),IFERROR(INDEX(data!$A$2:$H$251,data!$K144,COLUMN(INDIRECT('cal formula'!E$1))),\"\"))","v":""},{"$f":"IF($I$8= \"All\", INDEX(data!$A$2:$H$251,,COLUMN(INDIRECT('cal formula'!F$1))),IFERROR(INDEX(data!$A$2:$H$251,data!$K144,COLUMN(INDIRECT('cal formula'!F$1))),\"\"))","v":""}]
[{"$f":"IF($I$8= \"All\", INDEX(data!$A$2:$H$251,,COLUMN(INDIRECT('cal formula'!A$1))),IFERROR(INDEX(data!$A$2:$H$251,data!$K145,COLUMN(INDIRECT('cal formula'!A$1))),\"\"))","v":""},{"$f":"IF($I$8= \"All\", INDEX(data!$A$2:$H$251,,COLUMN(INDIRECT('cal formula'!B$1))),IFERROR(INDEX(data!$A$2:$H$251,data!$K145,COLUMN(INDIRECT('cal formula'!B$1))),\"\"))","v":""},{"$f":"IF($I$8= \"All\", INDEX(data!$A$2:$H$251,,COLUMN(INDIRECT('cal formula'!C$1))),IFERROR(INDEX(data!$A$2:$H$251,data!$K145,COLUMN(INDIRECT('cal formula'!C$1))),\"\"))","v":""},{"$f":"IF($I$8= \"All\", INDEX(data!$A$2:$H$251,,COLUMN(INDIRECT('cal formula'!D$1))),IFERROR(INDEX(data!$A$2:$H$251,data!$K145,COLUMN(INDIRECT('cal formula'!D$1))),\"\"))","v":""},{"$f":"IF($I$8= \"All\", INDEX(data!$A$2:$H$251,,COLUMN(INDIRECT('cal formula'!E$1))),IFERROR(INDEX(data!$A$2:$H$251,data!$K145,COLUMN(INDIRECT('cal formula'!E$1))),\"\"))","v":""},{"$f":"IF($I$8= \"All\", INDEX(data!$A$2:$H$251,,COLUMN(INDIRECT('cal formula'!F$1))),IFERROR(INDEX(data!$A$2:$H$251,data!$K145,COLUMN(INDIRECT('cal formula'!F$1))),\"\"))","v":""}]
[{"$f":"IF($I$8= \"All\", INDEX(data!$A$2:$H$251,,COLUMN(INDIRECT('cal formula'!A$1))),IFERROR(INDEX(data!$A$2:$H$251,data!$K146,COLUMN(INDIRECT('cal formula'!A$1))),\"\"))","v":""},{"$f":"IF($I$8= \"All\", INDEX(data!$A$2:$H$251,,COLUMN(INDIRECT('cal formula'!B$1))),IFERROR(INDEX(data!$A$2:$H$251,data!$K146,COLUMN(INDIRECT('cal formula'!B$1))),\"\"))","v":""},{"$f":"IF($I$8= \"All\", INDEX(data!$A$2:$H$251,,COLUMN(INDIRECT('cal formula'!C$1))),IFERROR(INDEX(data!$A$2:$H$251,data!$K146,COLUMN(INDIRECT('cal formula'!C$1))),\"\"))","v":""},{"$f":"IF($I$8= \"All\", INDEX(data!$A$2:$H$251,,COLUMN(INDIRECT('cal formula'!D$1))),IFERROR(INDEX(data!$A$2:$H$251,data!$K146,COLUMN(INDIRECT('cal formula'!D$1))),\"\"))","v":""},{"$f":"IF($I$8= \"All\", INDEX(data!$A$2:$H$251,,COLUMN(INDIRECT('cal formula'!E$1))),IFERROR(INDEX(data!$A$2:$H$251,data!$K146,COLUMN(INDIRECT('cal formula'!E$1))),\"\"))","v":""},{"$f":"IF($I$8= \"All\", INDEX(data!$A$2:$H$251,,COLUMN(INDIRECT('cal formula'!F$1))),IFERROR(INDEX(data!$A$2:$H$251,data!$K146,COLUMN(INDIRECT('cal formula'!F$1))),\"\"))","v":""}]
[{"$f":"IF($I$8= \"All\", INDEX(data!$A$2:$H$251,,COLUMN(INDIRECT('cal formula'!A$1))),IFERROR(INDEX(data!$A$2:$H$251,data!$K147,COLUMN(INDIRECT('cal formula'!A$1))),\"\"))","v":""},{"$f":"IF($I$8= \"All\", INDEX(data!$A$2:$H$251,,COLUMN(INDIRECT('cal formula'!B$1))),IFERROR(INDEX(data!$A$2:$H$251,data!$K147,COLUMN(INDIRECT('cal formula'!B$1))),\"\"))","v":""},{"$f":"IF($I$8= \"All\", INDEX(data!$A$2:$H$251,,COLUMN(INDIRECT('cal formula'!C$1))),IFERROR(INDEX(data!$A$2:$H$251,data!$K147,COLUMN(INDIRECT('cal formula'!C$1))),\"\"))","v":""},{"$f":"IF($I$8= \"All\", INDEX(data!$A$2:$H$251,,COLUMN(INDIRECT('cal formula'!D$1))),IFERROR(INDEX(data!$A$2:$H$251,data!$K147,COLUMN(INDIRECT('cal formula'!D$1))),\"\"))","v":""},{"$f":"IF($I$8= \"All\", INDEX(data!$A$2:$H$251,,COLUMN(INDIRECT('cal formula'!E$1))),IFERROR(INDEX(data!$A$2:$H$251,data!$K147,COLUMN(INDIRECT('cal formula'!E$1))),\"\"))","v":""},{"$f":"IF($I$8= \"All\", INDEX(data!$A$2:$H$251,,COLUMN(INDIRECT('cal formula'!F$1))),IFERROR(INDEX(data!$A$2:$H$251,data!$K147,COLUMN(INDIRECT('cal formula'!F$1))),\"\"))","v":""}]
[{"$f":"IF($I$8= \"All\", INDEX(data!$A$2:$H$251,,COLUMN(INDIRECT('cal formula'!A$1))),IFERROR(INDEX(data!$A$2:$H$251,data!$K148,COLUMN(INDIRECT('cal formula'!A$1))),\"\"))","v":""},{"$f":"IF($I$8= \"All\", INDEX(data!$A$2:$H$251,,COLUMN(INDIRECT('cal formula'!B$1))),IFERROR(INDEX(data!$A$2:$H$251,data!$K148,COLUMN(INDIRECT('cal formula'!B$1))),\"\"))","v":""},{"$f":"IF($I$8= \"All\", INDEX(data!$A$2:$H$251,,COLUMN(INDIRECT('cal formula'!C$1))),IFERROR(INDEX(data!$A$2:$H$251,data!$K148,COLUMN(INDIRECT('cal formula'!C$1))),\"\"))","v":""},{"$f":"IF($I$8= \"All\", INDEX(data!$A$2:$H$251,,COLUMN(INDIRECT('cal formula'!D$1))),IFERROR(INDEX(data!$A$2:$H$251,data!$K148,COLUMN(INDIRECT('cal formula'!D$1))),\"\"))","v":""},{"$f":"IF($I$8= \"All\", INDEX(data!$A$2:$H$251,,COLUMN(INDIRECT('cal formula'!E$1))),IFERROR(INDEX(data!$A$2:$H$251,data!$K148,COLUMN(INDIRECT('cal formula'!E$1))),\"\"))","v":""},{"$f":"IF($I$8= \"All\", INDEX(data!$A$2:$H$251,,COLUMN(INDIRECT('cal formula'!F$1))),IFERROR(INDEX(data!$A$2:$H$251,data!$K148,COLUMN(INDIRECT('cal formula'!F$1))),\"\"))","v":""}]
[{"$f":"IF($I$8= \"All\", INDEX(data!$A$2:$H$251,,COLUMN(INDIRECT('cal formula'!A$1))),IFERROR(INDEX(data!$A$2:$H$251,data!$K149,COLUMN(INDIRECT('cal formula'!A$1))),\"\"))","v":""},{"$f":"IF($I$8= \"All\", INDEX(data!$A$2:$H$251,,COLUMN(INDIRECT('cal formula'!B$1))),IFERROR(INDEX(data!$A$2:$H$251,data!$K149,COLUMN(INDIRECT('cal formula'!B$1))),\"\"))","v":""},{"$f":"IF($I$8= \"All\", INDEX(data!$A$2:$H$251,,COLUMN(INDIRECT('cal formula'!C$1))),IFERROR(INDEX(data!$A$2:$H$251,data!$K149,COLUMN(INDIRECT('cal formula'!C$1))),\"\"))","v":""},{"$f":"IF($I$8= \"All\", INDEX(data!$A$2:$H$251,,COLUMN(INDIRECT('cal formula'!D$1))),IFERROR(INDEX(data!$A$2:$H$251,data!$K149,COLUMN(INDIRECT('cal formula'!D$1))),\"\"))","v":""},{"$f":"IF($I$8= \"All\", INDEX(data!$A$2:$H$251,,COLUMN(INDIRECT('cal formula'!E$1))),IFERROR(INDEX(data!$A$2:$H$251,data!$K149,COLUMN(INDIRECT('cal formula'!E$1))),\"\"))","v":""},{"$f":"IF($I$8= \"All\", INDEX(data!$A$2:$H$251,,COLUMN(INDIRECT('cal formula'!F$1))),IFERROR(INDEX(data!$A$2:$H$251,data!$K149,COLUMN(INDIRECT('cal formula'!F$1))),\"\"))","v":""}]
[{"$f":"IF($I$8= \"All\", INDEX(data!$A$2:$H$251,,COLUMN(INDIRECT('cal formula'!A$1))),IFERROR(INDEX(data!$A$2:$H$251,data!$K150,COLUMN(INDIRECT('cal formula'!A$1))),\"\"))","v":""},{"$f":"IF($I$8= \"All\", INDEX(data!$A$2:$H$251,,COLUMN(INDIRECT('cal formula'!B$1))),IFERROR(INDEX(data!$A$2:$H$251,data!$K150,COLUMN(INDIRECT('cal formula'!B$1))),\"\"))","v":""},{"$f":"IF($I$8= \"All\", INDEX(data!$A$2:$H$251,,COLUMN(INDIRECT('cal formula'!C$1))),IFERROR(INDEX(data!$A$2:$H$251,data!$K150,COLUMN(INDIRECT('cal formula'!C$1))),\"\"))","v":""},{"$f":"IF($I$8= \"All\", INDEX(data!$A$2:$H$251,,COLUMN(INDIRECT('cal formula'!D$1))),IFERROR(INDEX(data!$A$2:$H$251,data!$K150,COLUMN(INDIRECT('cal formula'!D$1))),\"\"))","v":""},{"$f":"IF($I$8= \"All\", INDEX(data!$A$2:$H$251,,COLUMN(INDIRECT('cal formula'!E$1))),IFERROR(INDEX(data!$A$2:$H$251,data!$K150,COLUMN(INDIRECT('cal formula'!E$1))),\"\"))","v":""},{"$f":"IF($I$8= \"All\", INDEX(data!$A$2:$H$251,,COLUMN(INDIRECT('cal formula'!F$1))),IFERROR(INDEX(data!$A$2:$H$251,data!$K150,COLUMN(INDIRECT('cal formula'!F$1))),\"\"))","v":""}]
[{"$f":"IF($I$8= \"All\", INDEX(data!$A$2:$H$251,,COLUMN(INDIRECT('cal formula'!A$1))),IFERROR(INDEX(data!$A$2:$H$251,data!$K151,COLUMN(INDIRECT('cal formula'!A$1))),\"\"))","v":""},{"$f":"IF($I$8= \"All\", INDEX(data!$A$2:$H$251,,COLUMN(INDIRECT('cal formula'!B$1))),IFERROR(INDEX(data!$A$2:$H$251,data!$K151,COLUMN(INDIRECT('cal formula'!B$1))),\"\"))","v":""},{"$f":"IF($I$8= \"All\", INDEX(data!$A$2:$H$251,,COLUMN(INDIRECT('cal formula'!C$1))),IFERROR(INDEX(data!$A$2:$H$251,data!$K151,COLUMN(INDIRECT('cal formula'!C$1))),\"\"))","v":""},{"$f":"IF($I$8= \"All\", INDEX(data!$A$2:$H$251,,COLUMN(INDIRECT('cal formula'!D$1))),IFERROR(INDEX(data!$A$2:$H$251,data!$K151,COLUMN(INDIRECT('cal formula'!D$1))),\"\"))","v":""},{"$f":"IF($I$8= \"All\", INDEX(data!$A$2:$H$251,,COLUMN(INDIRECT('cal formula'!E$1))),IFERROR(INDEX(data!$A$2:$H$251,data!$K151,COLUMN(INDIRECT('cal formula'!E$1))),\"\"))","v":""},{"$f":"IF($I$8= \"All\", INDEX(data!$A$2:$H$251,,COLUMN(INDIRECT('cal formula'!F$1))),IFERROR(INDEX(data!$A$2:$H$251,data!$K151,COLUMN(INDIRECT('cal formula'!F$1))),\"\"))","v":""}]
[{"$f":"IF($I$8= \"All\", INDEX(data!$A$2:$H$251,,COLUMN(INDIRECT('cal formula'!A$1))),IFERROR(INDEX(data!$A$2:$H$251,data!$K152,COLUMN(INDIRECT('cal formula'!A$1))),\"\"))","v":""},{"$f":"IF($I$8= \"All\", INDEX(data!$A$2:$H$251,,COLUMN(INDIRECT('cal formula'!B$1))),IFERROR(INDEX(data!$A$2:$H$251,data!$K152,COLUMN(INDIRECT('cal formula'!B$1))),\"\"))","v":""},{"$f":"IF($I$8= \"All\", INDEX(data!$A$2:$H$251,,COLUMN(INDIRECT('cal formula'!C$1))),IFERROR(INDEX(data!$A$2:$H$251,data!$K152,COLUMN(INDIRECT('cal formula'!C$1))),\"\"))","v":""},{"$f":"IF($I$8= \"All\", INDEX(data!$A$2:$H$251,,COLUMN(INDIRECT('cal formula'!D$1))),IFERROR(INDEX(data!$A$2:$H$251,data!$K152,COLUMN(INDIRECT('cal formula'!D$1))),\"\"))","v":""},{"$f":"IF($I$8= \"All\", INDEX(data!$A$2:$H$251,,COLUMN(INDIRECT('cal formula'!E$1))),IFERROR(INDEX(data!$A$2:$H$251,data!$K152,COLUMN(INDIRECT('cal formula'!E$1))),\"\"))","v":""},{"$f":"IF($I$8= \"All\", INDEX(data!$A$2:$H$251,,COLUMN(INDIRECT('cal formula'!F$1))),IFERROR(INDEX(data!$A$2:$H$251,data!$K152,COLUMN(INDIRECT('cal formula'!F$1))),\"\"))","v":""}]
[{"$f":"IF($I$8= \"All\", INDEX(data!$A$2:$H$251,,COLUMN(INDIRECT('cal formula'!A$1))),IFERROR(INDEX(data!$A$2:$H$251,data!$K153,COLUMN(INDIRECT('cal formula'!A$1))),\"\"))","v":""},{"$f":"IF($I$8= \"All\", INDEX(data!$A$2:$H$251,,COLUMN(INDIRECT('cal formula'!B$1))),IFERROR(INDEX(data!$A$2:$H$251,data!$K153,COLUMN(INDIRECT('cal formula'!B$1))),\"\"))","v":""},{"$f":"IF($I$8= \"All\", INDEX(data!$A$2:$H$251,,COLUMN(INDIRECT('cal formula'!C$1))),IFERROR(INDEX(data!$A$2:$H$251,data!$K153,COLUMN(INDIRECT('cal formula'!C$1))),\"\"))","v":""},{"$f":"IF($I$8= \"All\", INDEX(data!$A$2:$H$251,,COLUMN(INDIRECT('cal formula'!D$1))),IFERROR(INDEX(data!$A$2:$H$251,data!$K153,COLUMN(INDIRECT('cal formula'!D$1))),\"\"))","v":""},{"$f":"IF($I$8= \"All\", INDEX(data!$A$2:$H$251,,COLUMN(INDIRECT('cal formula'!E$1))),IFERROR(INDEX(data!$A$2:$H$251,data!$K153,COLUMN(INDIRECT('cal formula'!E$1))),\"\"))","v":""},{"$f":"IF($I$8= \"All\", INDEX(data!$A$2:$H$251,,COLUMN(INDIRECT('cal formula'!F$1))),IFERROR(INDEX(data!$A$2:$H$251,data!$K153,COLUMN(INDIRECT('cal formula'!F$1))),\"\"))","v":""}]
[{"$f":"IF($I$8= \"All\", INDEX(data!$A$2:$H$251,,COLUMN(INDIRECT('cal formula'!A$1))),IFERROR(INDEX(data!$A$2:$H$251,data!$K154,COLUMN(INDIRECT('cal formula'!A$1))),\"\"))","v":""},{"$f":"IF($I$8= \"All\", INDEX(data!$A$2:$H$251,,COLUMN(INDIRECT('cal formula'!B$1))),IFERROR(INDEX(data!$A$2:$H$251,data!$K154,COLUMN(INDIRECT('cal formula'!B$1))),\"\"))","v":""},{"$f":"IF($I$8= \"All\", INDEX(data!$A$2:$H$251,,COLUMN(INDIRECT('cal formula'!C$1))),IFERROR(INDEX(data!$A$2:$H$251,data!$K154,COLUMN(INDIRECT('cal formula'!C$1))),\"\"))","v":""},{"$f":"IF($I$8= \"All\", INDEX(data!$A$2:$H$251,,COLUMN(INDIRECT('cal formula'!D$1))),IFERROR(INDEX(data!$A$2:$H$251,data!$K154,COLUMN(INDIRECT('cal formula'!D$1))),\"\"))","v":""},{"$f":"IF($I$8= \"All\", INDEX(data!$A$2:$H$251,,COLUMN(INDIRECT('cal formula'!E$1))),IFERROR(INDEX(data!$A$2:$H$251,data!$K154,COLUMN(INDIRECT('cal formula'!E$1))),\"\"))","v":""},{"$f":"IF($I$8= \"All\", INDEX(data!$A$2:$H$251,,COLUMN(INDIRECT('cal formula'!F$1))),IFERROR(INDEX(data!$A$2:$H$251,data!$K154,COLUMN(INDIRECT('cal formula'!F$1))),\"\"))","v":""}]
[{"$f":"IF($I$8= \"All\", INDEX(data!$A$2:$H$251,,COLUMN(INDIRECT('cal formula'!A$1))),IFERROR(INDEX(data!$A$2:$H$251,data!$K155,COLUMN(INDIRECT('cal formula'!A$1))),\"\"))","v":""},{"$f":"IF($I$8= \"All\", INDEX(data!$A$2:$H$251,,COLUMN(INDIRECT('cal formula'!B$1))),IFERROR(INDEX(data!$A$2:$H$251,data!$K155,COLUMN(INDIRECT('cal formula'!B$1))),\"\"))","v":""},{"$f":"IF($I$8= \"All\", INDEX(data!$A$2:$H$251,,COLUMN(INDIRECT('cal formula'!C$1))),IFERROR(INDEX(data!$A$2:$H$251,data!$K155,COLUMN(INDIRECT('cal formula'!C$1))),\"\"))","v":""},{"$f":"IF($I$8= \"All\", INDEX(data!$A$2:$H$251,,COLUMN(INDIRECT('cal formula'!D$1))),IFERROR(INDEX(data!$A$2:$H$251,data!$K155,COLUMN(INDIRECT('cal formula'!D$1))),\"\"))","v":""},{"$f":"IF($I$8= \"All\", INDEX(data!$A$2:$H$251,,COLUMN(INDIRECT('cal formula'!E$1))),IFERROR(INDEX(data!$A$2:$H$251,data!$K155,COLUMN(INDIRECT('cal formula'!E$1))),\"\"))","v":""},{"$f":"IF($I$8= \"All\", INDEX(data!$A$2:$H$251,,COLUMN(INDIRECT('cal formula'!F$1))),IFERROR(INDEX(data!$A$2:$H$251,data!$K155,COLUMN(INDIRECT('cal formula'!F$1))),\"\"))","v":""}]
[{"$f":"IF($I$8= \"All\", INDEX(data!$A$2:$H$251,,COLUMN(INDIRECT('cal formula'!A$1))),IFERROR(INDEX(data!$A$2:$H$251,data!$K156,COLUMN(INDIRECT('cal formula'!A$1))),\"\"))","v":""},{"$f":"IF($I$8= \"All\", INDEX(data!$A$2:$H$251,,COLUMN(INDIRECT('cal formula'!B$1))),IFERROR(INDEX(data!$A$2:$H$251,data!$K156,COLUMN(INDIRECT('cal formula'!B$1))),\"\"))","v":""},{"$f":"IF($I$8= \"All\", INDEX(data!$A$2:$H$251,,COLUMN(INDIRECT('cal formula'!C$1))),IFERROR(INDEX(data!$A$2:$H$251,data!$K156,COLUMN(INDIRECT('cal formula'!C$1))),\"\"))","v":""},{"$f":"IF($I$8= \"All\", INDEX(data!$A$2:$H$251,,COLUMN(INDIRECT('cal formula'!D$1))),IFERROR(INDEX(data!$A$2:$H$251,data!$K156,COLUMN(INDIRECT('cal formula'!D$1))),\"\"))","v":""},{"$f":"IF($I$8= \"All\", INDEX(data!$A$2:$H$251,,COLUMN(INDIRECT('cal formula'!E$1))),IFERROR(INDEX(data!$A$2:$H$251,data!$K156,COLUMN(INDIRECT('cal formula'!E$1))),\"\"))","v":""},{"$f":"IF($I$8= \"All\", INDEX(data!$A$2:$H$251,,COLUMN(INDIRECT('cal formula'!F$1))),IFERROR(INDEX(data!$A$2:$H$251,data!$K156,COLUMN(INDIRECT('cal formula'!F$1))),\"\"))","v":""}]
[{"$f":"IF($I$8= \"All\", INDEX(data!$A$2:$H$251,,COLUMN(INDIRECT('cal formula'!A$1))),IFERROR(INDEX(data!$A$2:$H$251,data!$K157,COLUMN(INDIRECT('cal formula'!A$1))),\"\"))","v":""},{"$f":"IF($I$8= \"All\", INDEX(data!$A$2:$H$251,,COLUMN(INDIRECT('cal formula'!B$1))),IFERROR(INDEX(data!$A$2:$H$251,data!$K157,COLUMN(INDIRECT('cal formula'!B$1))),\"\"))","v":""},{"$f":"IF($I$8= \"All\", INDEX(data!$A$2:$H$251,,COLUMN(INDIRECT('cal formula'!C$1))),IFERROR(INDEX(data!$A$2:$H$251,data!$K157,COLUMN(INDIRECT('cal formula'!C$1))),\"\"))","v":""},{"$f":"IF($I$8= \"All\", INDEX(data!$A$2:$H$251,,COLUMN(INDIRECT('cal formula'!D$1))),IFERROR(INDEX(data!$A$2:$H$251,data!$K157,COLUMN(INDIRECT('cal formula'!D$1))),\"\"))","v":""},{"$f":"IF($I$8= \"All\", INDEX(data!$A$2:$H$251,,COLUMN(INDIRECT('cal formula'!E$1))),IFERROR(INDEX(data!$A$2:$H$251,data!$K157,COLUMN(INDIRECT('cal formula'!E$1))),\"\"))","v":""},{"$f":"IF($I$8= \"All\", INDEX(data!$A$2:$H$251,,COLUMN(INDIRECT('cal formula'!F$1))),IFERROR(INDEX(data!$A$2:$H$251,data!$K157,COLUMN(INDIRECT('cal formula'!F$1))),\"\"))","v":""}]
[{"$f":"IF($I$8= \"All\", INDEX(data!$A$2:$H$251,,COLUMN(INDIRECT('cal formula'!A$1))),IFERROR(INDEX(data!$A$2:$H$251,data!$K158,COLUMN(INDIRECT('cal formula'!A$1))),\"\"))","v":""},{"$f":"IF($I$8= \"All\", INDEX(data!$A$2:$H$251,,COLUMN(INDIRECT('cal formula'!B$1))),IFERROR(INDEX(data!$A$2:$H$251,data!$K158,COLUMN(INDIRECT('cal formula'!B$1))),\"\"))","v":""},{"$f":"IF($I$8= \"All\", INDEX(data!$A$2:$H$251,,COLUMN(INDIRECT('cal formula'!C$1))),IFERROR(INDEX(data!$A$2:$H$251,data!$K158,COLUMN(INDIRECT('cal formula'!C$1))),\"\"))","v":""},{"$f":"IF($I$8= \"All\", INDEX(data!$A$2:$H$251,,COLUMN(INDIRECT('cal formula'!D$1))),IFERROR(INDEX(data!$A$2:$H$251,data!$K158,COLUMN(INDIRECT('cal formula'!D$1))),\"\"))","v":""},{"$f":"IF($I$8= \"All\", INDEX(data!$A$2:$H$251,,COLUMN(INDIRECT('cal formula'!E$1))),IFERROR(INDEX(data!$A$2:$H$251,data!$K158,COLUMN(INDIRECT('cal formula'!E$1))),\"\"))","v":""},{"$f":"IF($I$8= \"All\", INDEX(data!$A$2:$H$251,,COLUMN(INDIRECT('cal formula'!F$1))),IFERROR(INDEX(data!$A$2:$H$251,data!$K158,COLUMN(INDIRECT('cal formula'!F$1))),\"\"))","v":""}]
[{"$f":"IF($I$8= \"All\", INDEX(data!$A$2:$H$251,,COLUMN(INDIRECT('cal formula'!A$1))),IFERROR(INDEX(data!$A$2:$H$251,data!$K159,COLUMN(INDIRECT('cal formula'!A$1))),\"\"))","v":""},{"$f":"IF($I$8= \"All\", INDEX(data!$A$2:$H$251,,COLUMN(INDIRECT('cal formula'!B$1))),IFERROR(INDEX(data!$A$2:$H$251,data!$K159,COLUMN(INDIRECT('cal formula'!B$1))),\"\"))","v":""},{"$f":"IF($I$8= \"All\", INDEX(data!$A$2:$H$251,,COLUMN(INDIRECT('cal formula'!C$1))),IFERROR(INDEX(data!$A$2:$H$251,data!$K159,COLUMN(INDIRECT('cal formula'!C$1))),\"\"))","v":""},{"$f":"IF($I$8= \"All\", INDEX(data!$A$2:$H$251,,COLUMN(INDIRECT('cal formula'!D$1))),IFERROR(INDEX(data!$A$2:$H$251,data!$K159,COLUMN(INDIRECT('cal formula'!D$1))),\"\"))","v":""},{"$f":"IF($I$8= \"All\", INDEX(data!$A$2:$H$251,,COLUMN(INDIRECT('cal formula'!E$1))),IFERROR(INDEX(data!$A$2:$H$251,data!$K159,COLUMN(INDIRECT('cal formula'!E$1))),\"\"))","v":""},{"$f":"IF($I$8= \"All\", INDEX(data!$A$2:$H$251,,COLUMN(INDIRECT('cal formula'!F$1))),IFERROR(INDEX(data!$A$2:$H$251,data!$K159,COLUMN(INDIRECT('cal formula'!F$1))),\"\"))","v":""}]
[{"$f":"IF($I$8= \"All\", INDEX(data!$A$2:$H$251,,COLUMN(INDIRECT('cal formula'!A$1))),IFERROR(INDEX(data!$A$2:$H$251,data!$K160,COLUMN(INDIRECT('cal formula'!A$1))),\"\"))","v":""},{"$f":"IF($I$8= \"All\", INDEX(data!$A$2:$H$251,,COLUMN(INDIRECT('cal formula'!B$1))),IFERROR(INDEX(data!$A$2:$H$251,data!$K160,COLUMN(INDIRECT('cal formula'!B$1))),\"\"))","v":""},{"$f":"IF($I$8= \"All\", INDEX(data!$A$2:$H$251,,COLUMN(INDIRECT('cal formula'!C$1))),IFERROR(INDEX(data!$A$2:$H$251,data!$K160,COLUMN(INDIRECT('cal formula'!C$1))),\"\"))","v":""},{"$f":"IF($I$8= \"All\", INDEX(data!$A$2:$H$251,,COLUMN(INDIRECT('cal formula'!D$1))),IFERROR(INDEX(data!$A$2:$H$251,data!$K160,COLUMN(INDIRECT('cal formula'!D$1))),\"\"))","v":""},{"$f":"IF($I$8= \"All\", INDEX(data!$A$2:$H$251,,COLUMN(INDIRECT('cal formula'!E$1))),IFERROR(INDEX(data!$A$2:$H$251,data!$K160,COLUMN(INDIRECT('cal formula'!E$1))),\"\"))","v":""},{"$f":"IF($I$8= \"All\", INDEX(data!$A$2:$H$251,,COLUMN(INDIRECT('cal formula'!F$1))),IFERROR(INDEX(data!$A$2:$H$251,data!$K160,COLUMN(INDIRECT('cal formula'!F$1))),\"\"))","v":""}]
[{"$f":"IF($I$8= \"All\", INDEX(data!$A$2:$H$251,,COLUMN(INDIRECT('cal formula'!A$1))),IFERROR(INDEX(data!$A$2:$H$251,data!$K161,COLUMN(INDIRECT('cal formula'!A$1))),\"\"))","v":""},{"$f":"IF($I$8= \"All\", INDEX(data!$A$2:$H$251,,COLUMN(INDIRECT('cal formula'!B$1))),IFERROR(INDEX(data!$A$2:$H$251,data!$K161,COLUMN(INDIRECT('cal formula'!B$1))),\"\"))","v":""},{"$f":"IF($I$8= \"All\", INDEX(data!$A$2:$H$251,,COLUMN(INDIRECT('cal formula'!C$1))),IFERROR(INDEX(data!$A$2:$H$251,data!$K161,COLUMN(INDIRECT('cal formula'!C$1))),\"\"))","v":""},{"$f":"IF($I$8= \"All\", INDEX(data!$A$2:$H$251,,COLUMN(INDIRECT('cal formula'!D$1))),IFERROR(INDEX(data!$A$2:$H$251,data!$K161,COLUMN(INDIRECT('cal formula'!D$1))),\"\"))","v":""},{"$f":"IF($I$8= \"All\", INDEX(data!$A$2:$H$251,,COLUMN(INDIRECT('cal formula'!E$1))),IFERROR(INDEX(data!$A$2:$H$251,data!$K161,COLUMN(INDIRECT('cal formula'!E$1))),\"\"))","v":""},{"$f":"IF($I$8= \"All\", INDEX(data!$A$2:$H$251,,COLUMN(INDIRECT('cal formula'!F$1))),IFERROR(INDEX(data!$A$2:$H$251,data!$K161,COLUMN(INDIRECT('cal formula'!F$1))),\"\"))","v":""}]
[{"$f":"IF($I$8= \"All\", INDEX(data!$A$2:$H$251,,COLUMN(INDIRECT('cal formula'!A$1))),IFERROR(INDEX(data!$A$2:$H$251,data!$K162,COLUMN(INDIRECT('cal formula'!A$1))),\"\"))","v":""},{"$f":"IF($I$8= \"All\", INDEX(data!$A$2:$H$251,,COLUMN(INDIRECT('cal formula'!B$1))),IFERROR(INDEX(data!$A$2:$H$251,data!$K162,COLUMN(INDIRECT('cal formula'!B$1))),\"\"))","v":""},{"$f":"IF($I$8= \"All\", INDEX(data!$A$2:$H$251,,COLUMN(INDIRECT('cal formula'!C$1))),IFERROR(INDEX(data!$A$2:$H$251,data!$K162,COLUMN(INDIRECT('cal formula'!C$1))),\"\"))","v":""},{"$f":"IF($I$8= \"All\", INDEX(data!$A$2:$H$251,,COLUMN(INDIRECT('cal formula'!D$1))),IFERROR(INDEX(data!$A$2:$H$251,data!$K162,COLUMN(INDIRECT('cal formula'!D$1))),\"\"))","v":""},{"$f":"IF($I$8= \"All\", INDEX(data!$A$2:$H$251,,COLUMN(INDIRECT('cal formula'!E$1))),IFERROR(INDEX(data!$A$2:$H$251,data!$K162,COLUMN(INDIRECT('cal formula'!E$1))),\"\"))","v":""},{"$f":"IF($I$8= \"All\", INDEX(data!$A$2:$H$251,,COLUMN(INDIRECT('cal formula'!F$1))),IFERROR(INDEX(data!$A$2:$H$251,data!$K162,COLUMN(INDIRECT('cal formula'!F$1))),\"\"))","v":""}]
[{"$f":"IF($I$8= \"All\", INDEX(data!$A$2:$H$251,,COLUMN(INDIRECT('cal formula'!A$1))),IFERROR(INDEX(data!$A$2:$H$251,data!$K163,COLUMN(INDIRECT('cal formula'!A$1))),\"\"))","v":""},{"$f":"IF($I$8= \"All\", INDEX(data!$A$2:$H$251,,COLUMN(INDIRECT('cal formula'!B$1))),IFERROR(INDEX(data!$A$2:$H$251,data!$K163,COLUMN(INDIRECT('cal formula'!B$1))),\"\"))","v":""},{"$f":"IF($I$8= \"All\", INDEX(data!$A$2:$H$251,,COLUMN(INDIRECT('cal formula'!C$1))),IFERROR(INDEX(data!$A$2:$H$251,data!$K163,COLUMN(INDIRECT('cal formula'!C$1))),\"\"))","v":""},{"$f":"IF($I$8= \"All\", INDEX(data!$A$2:$H$251,,COLUMN(INDIRECT('cal formula'!D$1))),IFERROR(INDEX(data!$A$2:$H$251,data!$K163,COLUMN(INDIRECT('cal formula'!D$1))),\"\"))","v":""},{"$f":"IF($I$8= \"All\", INDEX(data!$A$2:$H$251,,COLUMN(INDIRECT('cal formula'!E$1))),IFERROR(INDEX(data!$A$2:$H$251,data!$K163,COLUMN(INDIRECT('cal formula'!E$1))),\"\"))","v":""},{"$f":"IF($I$8= \"All\", INDEX(data!$A$2:$H$251,,COLUMN(INDIRECT('cal formula'!F$1))),IFERROR(INDEX(data!$A$2:$H$251,data!$K163,COLUMN(INDIRECT('cal formula'!F$1))),\"\"))","v":""}]
[{"$f":"IF($I$8= \"All\", INDEX(data!$A$2:$H$251,,COLUMN(INDIRECT('cal formula'!A$1))),IFERROR(INDEX(data!$A$2:$H$251,data!$K164,COLUMN(INDIRECT('cal formula'!A$1))),\"\"))","v":""},{"$f":"IF($I$8= \"All\", INDEX(data!$A$2:$H$251,,COLUMN(INDIRECT('cal formula'!B$1))),IFERROR(INDEX(data!$A$2:$H$251,data!$K164,COLUMN(INDIRECT('cal formula'!B$1))),\"\"))","v":""},{"$f":"IF($I$8= \"All\", INDEX(data!$A$2:$H$251,,COLUMN(INDIRECT('cal formula'!C$1))),IFERROR(INDEX(data!$A$2:$H$251,data!$K164,COLUMN(INDIRECT('cal formula'!C$1))),\"\"))","v":""},{"$f":"IF($I$8= \"All\", INDEX(data!$A$2:$H$251,,COLUMN(INDIRECT('cal formula'!D$1))),IFERROR(INDEX(data!$A$2:$H$251,data!$K164,COLUMN(INDIRECT('cal formula'!D$1))),\"\"))","v":""},{"$f":"IF($I$8= \"All\", INDEX(data!$A$2:$H$251,,COLUMN(INDIRECT('cal formula'!E$1))),IFERROR(INDEX(data!$A$2:$H$251,data!$K164,COLUMN(INDIRECT('cal formula'!E$1))),\"\"))","v":""},{"$f":"IF($I$8= \"All\", INDEX(data!$A$2:$H$251,,COLUMN(INDIRECT('cal formula'!F$1))),IFERROR(INDEX(data!$A$2:$H$251,data!$K164,COLUMN(INDIRECT('cal formula'!F$1))),\"\"))","v":""}]
[{"$f":"IF($I$8= \"All\", INDEX(data!$A$2:$H$251,,COLUMN(INDIRECT('cal formula'!A$1))),IFERROR(INDEX(data!$A$2:$H$251,data!$K165,COLUMN(INDIRECT('cal formula'!A$1))),\"\"))","v":""},{"$f":"IF($I$8= \"All\", INDEX(data!$A$2:$H$251,,COLUMN(INDIRECT('cal formula'!B$1))),IFERROR(INDEX(data!$A$2:$H$251,data!$K165,COLUMN(INDIRECT('cal formula'!B$1))),\"\"))","v":""},{"$f":"IF($I$8= \"All\", INDEX(data!$A$2:$H$251,,COLUMN(INDIRECT('cal formula'!C$1))),IFERROR(INDEX(data!$A$2:$H$251,data!$K165,COLUMN(INDIRECT('cal formula'!C$1))),\"\"))","v":""},{"$f":"IF($I$8= \"All\", INDEX(data!$A$2:$H$251,,COLUMN(INDIRECT('cal formula'!D$1))),IFERROR(INDEX(data!$A$2:$H$251,data!$K165,COLUMN(INDIRECT('cal formula'!D$1))),\"\"))","v":""},{"$f":"IF($I$8= \"All\", INDEX(data!$A$2:$H$251,,COLUMN(INDIRECT('cal formula'!E$1))),IFERROR(INDEX(data!$A$2:$H$251,data!$K165,COLUMN(INDIRECT('cal formula'!E$1))),\"\"))","v":""},{"$f":"IF($I$8= \"All\", INDEX(data!$A$2:$H$251,,COLUMN(INDIRECT('cal formula'!F$1))),IFERROR(INDEX(data!$A$2:$H$251,data!$K165,COLUMN(INDIRECT('cal formula'!F$1))),\"\"))","v":""}]
[{"$f":"IF($I$8= \"All\", INDEX(data!$A$2:$H$251,,COLUMN(INDIRECT('cal formula'!A$1))),IFERROR(INDEX(data!$A$2:$H$251,data!$K166,COLUMN(INDIRECT('cal formula'!A$1))),\"\"))","v":""},{"$f":"IF($I$8= \"All\", INDEX(data!$A$2:$H$251,,COLUMN(INDIRECT('cal formula'!B$1))),IFERROR(INDEX(data!$A$2:$H$251,data!$K166,COLUMN(INDIRECT('cal formula'!B$1))),\"\"))","v":""},{"$f":"IF($I$8= \"All\", INDEX(data!$A$2:$H$251,,COLUMN(INDIRECT('cal formula'!C$1))),IFERROR(INDEX(data!$A$2:$H$251,data!$K166,COLUMN(INDIRECT('cal formula'!C$1))),\"\"))","v":""},{"$f":"IF($I$8= \"All\", INDEX(data!$A$2:$H$251,,COLUMN(INDIRECT('cal formula'!D$1))),IFERROR(INDEX(data!$A$2:$H$251,data!$K166,COLUMN(INDIRECT('cal formula'!D$1))),\"\"))","v":""},{"$f":"IF($I$8= \"All\", INDEX(data!$A$2:$H$251,,COLUMN(INDIRECT('cal formula'!E$1))),IFERROR(INDEX(data!$A$2:$H$251,data!$K166,COLUMN(INDIRECT('cal formula'!E$1))),\"\"))","v":""},{"$f":"IF($I$8= \"All\", INDEX(data!$A$2:$H$251,,COLUMN(INDIRECT('cal formula'!F$1))),IFERROR(INDEX(data!$A$2:$H$251,data!$K166,COLUMN(INDIRECT('cal formula'!F$1))),\"\"))","v":""}]
[{"$f":"IF($I$8= \"All\", INDEX(data!$A$2:$H$251,,COLUMN(INDIRECT('cal formula'!A$1))),IFERROR(INDEX(data!$A$2:$H$251,data!$K167,COLUMN(INDIRECT('cal formula'!A$1))),\"\"))","v":""},{"$f":"IF($I$8= \"All\", INDEX(data!$A$2:$H$251,,COLUMN(INDIRECT('cal formula'!B$1))),IFERROR(INDEX(data!$A$2:$H$251,data!$K167,COLUMN(INDIRECT('cal formula'!B$1))),\"\"))","v":""},{"$f":"IF($I$8= \"All\", INDEX(data!$A$2:$H$251,,COLUMN(INDIRECT('cal formula'!C$1))),IFERROR(INDEX(data!$A$2:$H$251,data!$K167,COLUMN(INDIRECT('cal formula'!C$1))),\"\"))","v":""},{"$f":"IF($I$8= \"All\", INDEX(data!$A$2:$H$251,,COLUMN(INDIRECT('cal formula'!D$1))),IFERROR(INDEX(data!$A$2:$H$251,data!$K167,COLUMN(INDIRECT('cal formula'!D$1))),\"\"))","v":""},{"$f":"IF($I$8= \"All\", INDEX(data!$A$2:$H$251,,COLUMN(INDIRECT('cal formula'!E$1))),IFERROR(INDEX(data!$A$2:$H$251,data!$K167,COLUMN(INDIRECT('cal formula'!E$1))),\"\"))","v":""},{"$f":"IF($I$8= \"All\", INDEX(data!$A$2:$H$251,,COLUMN(INDIRECT('cal formula'!F$1))),IFERROR(INDEX(data!$A$2:$H$251,data!$K167,COLUMN(INDIRECT('cal formula'!F$1))),\"\"))","v":""}]
[{"$f":"IF($I$8= \"All\", INDEX(data!$A$2:$H$251,,COLUMN(INDIRECT('cal formula'!A$1))),IFERROR(INDEX(data!$A$2:$H$251,data!$K168,COLUMN(INDIRECT('cal formula'!A$1))),\"\"))","v":""},{"$f":"IF($I$8= \"All\", INDEX(data!$A$2:$H$251,,COLUMN(INDIRECT('cal formula'!B$1))),IFERROR(INDEX(data!$A$2:$H$251,data!$K168,COLUMN(INDIRECT('cal formula'!B$1))),\"\"))","v":""},{"$f":"IF($I$8= \"All\", INDEX(data!$A$2:$H$251,,COLUMN(INDIRECT('cal formula'!C$1))),IFERROR(INDEX(data!$A$2:$H$251,data!$K168,COLUMN(INDIRECT('cal formula'!C$1))),\"\"))","v":""},{"$f":"IF($I$8= \"All\", INDEX(data!$A$2:$H$251,,COLUMN(INDIRECT('cal formula'!D$1))),IFERROR(INDEX(data!$A$2:$H$251,data!$K168,COLUMN(INDIRECT('cal formula'!D$1))),\"\"))","v":""},{"$f":"IF($I$8= \"All\", INDEX(data!$A$2:$H$251,,COLUMN(INDIRECT('cal formula'!E$1))),IFERROR(INDEX(data!$A$2:$H$251,data!$K168,COLUMN(INDIRECT('cal formula'!E$1))),\"\"))","v":""},{"$f":"IF($I$8= \"All\", INDEX(data!$A$2:$H$251,,COLUMN(INDIRECT('cal formula'!F$1))),IFERROR(INDEX(data!$A$2:$H$251,data!$K168,COLUMN(INDIRECT('cal formula'!F$1))),\"\"))","v":""}]
[{"$f":"IF($I$8= \"All\", INDEX(data!$A$2:$H$251,,COLUMN(INDIRECT('cal formula'!A$1))),IFERROR(INDEX(data!$A$2:$H$251,data!$K169,COLUMN(INDIRECT('cal formula'!A$1))),\"\"))","v":""},{"$f":"IF($I$8= \"All\", INDEX(data!$A$2:$H$251,,COLUMN(INDIRECT('cal formula'!B$1))),IFERROR(INDEX(data!$A$2:$H$251,data!$K169,COLUMN(INDIRECT('cal formula'!B$1))),\"\"))","v":""},{"$f":"IF($I$8= \"All\", INDEX(data!$A$2:$H$251,,COLUMN(INDIRECT('cal formula'!C$1))),IFERROR(INDEX(data!$A$2:$H$251,data!$K169,COLUMN(INDIRECT('cal formula'!C$1))),\"\"))","v":""},{"$f":"IF($I$8= \"All\", INDEX(data!$A$2:$H$251,,COLUMN(INDIRECT('cal formula'!D$1))),IFERROR(INDEX(data!$A$2:$H$251,data!$K169,COLUMN(INDIRECT('cal formula'!D$1))),\"\"))","v":""},{"$f":"IF($I$8= \"All\", INDEX(data!$A$2:$H$251,,COLUMN(INDIRECT('cal formula'!E$1))),IFERROR(INDEX(data!$A$2:$H$251,data!$K169,COLUMN(INDIRECT('cal formula'!E$1))),\"\"))","v":""},{"$f":"IF($I$8= \"All\", INDEX(data!$A$2:$H$251,,COLUMN(INDIRECT('cal formula'!F$1))),IFERROR(INDEX(data!$A$2:$H$251,data!$K169,COLUMN(INDIRECT('cal formula'!F$1))),\"\"))","v":""}]
[{"$f":"IF($I$8= \"All\", INDEX(data!$A$2:$H$251,,COLUMN(INDIRECT('cal formula'!A$1))),IFERROR(INDEX(data!$A$2:$H$251,data!$K170,COLUMN(INDIRECT('cal formula'!A$1))),\"\"))","v":""},{"$f":"IF($I$8= \"All\", INDEX(data!$A$2:$H$251,,COLUMN(INDIRECT('cal formula'!B$1))),IFERROR(INDEX(data!$A$2:$H$251,data!$K170,COLUMN(INDIRECT('cal formula'!B$1))),\"\"))","v":""},{"$f":"IF($I$8= \"All\", INDEX(data!$A$2:$H$251,,COLUMN(INDIRECT('cal formula'!C$1))),IFERROR(INDEX(data!$A$2:$H$251,data!$K170,COLUMN(INDIRECT('cal formula'!C$1))),\"\"))","v":""},{"$f":"IF($I$8= \"All\", INDEX(data!$A$2:$H$251,,COLUMN(INDIRECT('cal formula'!D$1))),IFERROR(INDEX(data!$A$2:$H$251,data!$K170,COLUMN(INDIRECT('cal formula'!D$1))),\"\"))","v":""},{"$f":"IF($I$8= \"All\", INDEX(data!$A$2:$H$251,,COLUMN(INDIRECT('cal formula'!E$1))),IFERROR(INDEX(data!$A$2:$H$251,data!$K170,COLUMN(INDIRECT('cal formula'!E$1))),\"\"))","v":""},{"$f":"IF($I$8= \"All\", INDEX(data!$A$2:$H$251,,COLUMN(INDIRECT('cal formula'!F$1))),IFERROR(INDEX(data!$A$2:$H$251,data!$K170,COLUMN(INDIRECT('cal formula'!F$1))),\"\"))","v":""}]
[{"$f":"IF($I$8= \"All\", INDEX(data!$A$2:$H$251,,COLUMN(INDIRECT('cal formula'!A$1))),IFERROR(INDEX(data!$A$2:$H$251,data!$K171,COLUMN(INDIRECT('cal formula'!A$1))),\"\"))","v":""},{"$f":"IF($I$8= \"All\", INDEX(data!$A$2:$H$251,,COLUMN(INDIRECT('cal formula'!B$1))),IFERROR(INDEX(data!$A$2:$H$251,data!$K171,COLUMN(INDIRECT('cal formula'!B$1))),\"\"))","v":""},{"$f":"IF($I$8= \"All\", INDEX(data!$A$2:$H$251,,COLUMN(INDIRECT('cal formula'!C$1))),IFERROR(INDEX(data!$A$2:$H$251,data!$K171,COLUMN(INDIRECT('cal formula'!C$1))),\"\"))","v":""},{"$f":"IF($I$8= \"All\", INDEX(data!$A$2:$H$251,,COLUMN(INDIRECT('cal formula'!D$1))),IFERROR(INDEX(data!$A$2:$H$251,data!$K171,COLUMN(INDIRECT('cal formula'!D$1))),\"\"))","v":""},{"$f":"IF($I$8= \"All\", INDEX(data!$A$2:$H$251,,COLUMN(INDIRECT('cal formula'!E$1))),IFERROR(INDEX(data!$A$2:$H$251,data!$K171,COLUMN(INDIRECT('cal formula'!E$1))),\"\"))","v":""},{"$f":"IF($I$8= \"All\", INDEX(data!$A$2:$H$251,,COLUMN(INDIRECT('cal formula'!F$1))),IFERROR(INDEX(data!$A$2:$H$251,data!$K171,COLUMN(INDIRECT('cal formula'!F$1))),\"\"))","v":""}]
[{"$f":"IF($I$8= \"All\", INDEX(data!$A$2:$H$251,,COLUMN(INDIRECT('cal formula'!A$1))),IFERROR(INDEX(data!$A$2:$H$251,data!$K172,COLUMN(INDIRECT('cal formula'!A$1))),\"\"))","v":""},{"$f":"IF($I$8= \"All\", INDEX(data!$A$2:$H$251,,COLUMN(INDIRECT('cal formula'!B$1))),IFERROR(INDEX(data!$A$2:$H$251,data!$K172,COLUMN(INDIRECT('cal formula'!B$1))),\"\"))","v":""},{"$f":"IF($I$8= \"All\", INDEX(data!$A$2:$H$251,,COLUMN(INDIRECT('cal formula'!C$1))),IFERROR(INDEX(data!$A$2:$H$251,data!$K172,COLUMN(INDIRECT('cal formula'!C$1))),\"\"))","v":""},{"$f":"IF($I$8= \"All\", INDEX(data!$A$2:$H$251,,COLUMN(INDIRECT('cal formula'!D$1))),IFERROR(INDEX(data!$A$2:$H$251,data!$K172,COLUMN(INDIRECT('cal formula'!D$1))),\"\"))","v":""},{"$f":"IF($I$8= \"All\", INDEX(data!$A$2:$H$251,,COLUMN(INDIRECT('cal formula'!E$1))),IFERROR(INDEX(data!$A$2:$H$251,data!$K172,COLUMN(INDIRECT('cal formula'!E$1))),\"\"))","v":""},{"$f":"IF($I$8= \"All\", INDEX(data!$A$2:$H$251,,COLUMN(INDIRECT('cal formula'!F$1))),IFERROR(INDEX(data!$A$2:$H$251,data!$K172,COLUMN(INDIRECT('cal formula'!F$1))),\"\"))","v":""}]
[{"$f":"IF($I$8= \"All\", INDEX(data!$A$2:$H$251,,COLUMN(INDIRECT('cal formula'!A$1))),IFERROR(INDEX(data!$A$2:$H$251,data!$K173,COLUMN(INDIRECT('cal formula'!A$1))),\"\"))","v":""},{"$f":"IF($I$8= \"All\", INDEX(data!$A$2:$H$251,,COLUMN(INDIRECT('cal formula'!B$1))),IFERROR(INDEX(data!$A$2:$H$251,data!$K173,COLUMN(INDIRECT('cal formula'!B$1))),\"\"))","v":""},{"$f":"IF($I$8= \"All\", INDEX(data!$A$2:$H$251,,COLUMN(INDIRECT('cal formula'!C$1))),IFERROR(INDEX(data!$A$2:$H$251,data!$K173,COLUMN(INDIRECT('cal formula'!C$1))),\"\"))","v":""},{"$f":"IF($I$8= \"All\", INDEX(data!$A$2:$H$251,,COLUMN(INDIRECT('cal formula'!D$1))),IFERROR(INDEX(data!$A$2:$H$251,data!$K173,COLUMN(INDIRECT('cal formula'!D$1))),\"\"))","v":""},{"$f":"IF($I$8= \"All\", INDEX(data!$A$2:$H$251,,COLUMN(INDIRECT('cal formula'!E$1))),IFERROR(INDEX(data!$A$2:$H$251,data!$K173,COLUMN(INDIRECT('cal formula'!E$1))),\"\"))","v":""},{"$f":"IF($I$8= \"All\", INDEX(data!$A$2:$H$251,,COLUMN(INDIRECT('cal formula'!F$1))),IFERROR(INDEX(data!$A$2:$H$251,data!$K173,COLUMN(INDIRECT('cal formula'!F$1))),\"\"))","v":""}]
[{"$f":"IF($I$8= \"All\", INDEX(data!$A$2:$H$251,,COLUMN(INDIRECT('cal formula'!A$1))),IFERROR(INDEX(data!$A$2:$H$251,data!$K174,COLUMN(INDIRECT('cal formula'!A$1))),\"\"))","v":""},{"$f":"IF($I$8= \"All\", INDEX(data!$A$2:$H$251,,COLUMN(INDIRECT('cal formula'!B$1))),IFERROR(INDEX(data!$A$2:$H$251,data!$K174,COLUMN(INDIRECT('cal formula'!B$1))),\"\"))","v":""},{"$f":"IF($I$8= \"All\", INDEX(data!$A$2:$H$251,,COLUMN(INDIRECT('cal formula'!C$1))),IFERROR(INDEX(data!$A$2:$H$251,data!$K174,COLUMN(INDIRECT('cal formula'!C$1))),\"\"))","v":""},{"$f":"IF($I$8= \"All\", INDEX(data!$A$2:$H$251,,COLUMN(INDIRECT('cal formula'!D$1))),IFERROR(INDEX(data!$A$2:$H$251,data!$K174,COLUMN(INDIRECT('cal formula'!D$1))),\"\"))","v":""},{"$f":"IF($I$8= \"All\", INDEX(data!$A$2:$H$251,,COLUMN(INDIRECT('cal formula'!E$1))),IFERROR(INDEX(data!$A$2:$H$251,data!$K174,COLUMN(INDIRECT('cal formula'!E$1))),\"\"))","v":""},{"$f":"IF($I$8= \"All\", INDEX(data!$A$2:$H$251,,COLUMN(INDIRECT('cal formula'!F$1))),IFERROR(INDEX(data!$A$2:$H$251,data!$K174,COLUMN(INDIRECT('cal formula'!F$1))),\"\"))","v":""}]
[{"$f":"IF($I$8= \"All\", INDEX(data!$A$2:$H$251,,COLUMN(INDIRECT('cal formula'!A$1))),IFERROR(INDEX(data!$A$2:$H$251,data!$K175,COLUMN(INDIRECT('cal formula'!A$1))),\"\"))","v":""},{"$f":"IF($I$8= \"All\", INDEX(data!$A$2:$H$251,,COLUMN(INDIRECT('cal formula'!B$1))),IFERROR(INDEX(data!$A$2:$H$251,data!$K175,COLUMN(INDIRECT('cal formula'!B$1))),\"\"))","v":""},{"$f":"IF($I$8= \"All\", INDEX(data!$A$2:$H$251,,COLUMN(INDIRECT('cal formula'!C$1))),IFERROR(INDEX(data!$A$2:$H$251,data!$K175,COLUMN(INDIRECT('cal formula'!C$1))),\"\"))","v":""},{"$f":"IF($I$8= \"All\", INDEX(data!$A$2:$H$251,,COLUMN(INDIRECT('cal formula'!D$1))),IFERROR(INDEX(data!$A$2:$H$251,data!$K175,COLUMN(INDIRECT('cal formula'!D$1))),\"\"))","v":""},{"$f":"IF($I$8= \"All\", INDEX(data!$A$2:$H$251,,COLUMN(INDIRECT('cal formula'!E$1))),IFERROR(INDEX(data!$A$2:$H$251,data!$K175,COLUMN(INDIRECT('cal formula'!E$1))),\"\"))","v":""},{"$f":"IF($I$8= \"All\", INDEX(data!$A$2:$H$251,,COLUMN(INDIRECT('cal formula'!F$1))),IFERROR(INDEX(data!$A$2:$H$251,data!$K175,COLUMN(INDIRECT('cal formula'!F$1))),\"\"))","v":""}]
[{"$f":"IF($I$8= \"All\", INDEX(data!$A$2:$H$251,,COLUMN(INDIRECT('cal formula'!A$1))),IFERROR(INDEX(data!$A$2:$H$251,data!$K176,COLUMN(INDIRECT('cal formula'!A$1))),\"\"))","v":""},{"$f":"IF($I$8= \"All\", INDEX(data!$A$2:$H$251,,COLUMN(INDIRECT('cal formula'!B$1))),IFERROR(INDEX(data!$A$2:$H$251,data!$K176,COLUMN(INDIRECT('cal formula'!B$1))),\"\"))","v":""},{"$f":"IF($I$8= \"All\", INDEX(data!$A$2:$H$251,,COLUMN(INDIRECT('cal formula'!C$1))),IFERROR(INDEX(data!$A$2:$H$251,data!$K176,COLUMN(INDIRECT('cal formula'!C$1))),\"\"))","v":""},{"$f":"IF($I$8= \"All\", INDEX(data!$A$2:$H$251,,COLUMN(INDIRECT('cal formula'!D$1))),IFERROR(INDEX(data!$A$2:$H$251,data!$K176,COLUMN(INDIRECT('cal formula'!D$1))),\"\"))","v":""},{"$f":"IF($I$8= \"All\", INDEX(data!$A$2:$H$251,,COLUMN(INDIRECT('cal formula'!E$1))),IFERROR(INDEX(data!$A$2:$H$251,data!$K176,COLUMN(INDIRECT('cal formula'!E$1))),\"\"))","v":""},{"$f":"IF($I$8= \"All\", INDEX(data!$A$2:$H$251,,COLUMN(INDIRECT('cal formula'!F$1))),IFERROR(INDEX(data!$A$2:$H$251,data!$K176,COLUMN(INDIRECT('cal formula'!F$1))),\"\"))","v":""}]
[{"$f":"IF($I$8= \"All\", INDEX(data!$A$2:$H$251,,COLUMN(INDIRECT('cal formula'!A$1))),IFERROR(INDEX(data!$A$2:$H$251,data!$K177,COLUMN(INDIRECT('cal formula'!A$1))),\"\"))","v":""},{"$f":"IF($I$8= \"All\", INDEX(data!$A$2:$H$251,,COLUMN(INDIRECT('cal formula'!B$1))),IFERROR(INDEX(data!$A$2:$H$251,data!$K177,COLUMN(INDIRECT('cal formula'!B$1))),\"\"))","v":""},{"$f":"IF($I$8= \"All\", INDEX(data!$A$2:$H$251,,COLUMN(INDIRECT('cal formula'!C$1))),IFERROR(INDEX(data!$A$2:$H$251,data!$K177,COLUMN(INDIRECT('cal formula'!C$1))),\"\"))","v":""},{"$f":"IF($I$8= \"All\", INDEX(data!$A$2:$H$251,,COLUMN(INDIRECT('cal formula'!D$1))),IFERROR(INDEX(data!$A$2:$H$251,data!$K177,COLUMN(INDIRECT('cal formula'!D$1))),\"\"))","v":""},{"$f":"IF($I$8= \"All\", INDEX(data!$A$2:$H$251,,COLUMN(INDIRECT('cal formula'!E$1))),IFERROR(INDEX(data!$A$2:$H$251,data!$K177,COLUMN(INDIRECT('cal formula'!E$1))),\"\"))","v":""},{"$f":"IF($I$8= \"All\", INDEX(data!$A$2:$H$251,,COLUMN(INDIRECT('cal formula'!F$1))),IFERROR(INDEX(data!$A$2:$H$251,data!$K177,COLUMN(INDIRECT('cal formula'!F$1))),\"\"))","v":""}]
[{"$f":"IF($I$8= \"All\", INDEX(data!$A$2:$H$251,,COLUMN(INDIRECT('cal formula'!A$1))),IFERROR(INDEX(data!$A$2:$H$251,data!$K178,COLUMN(INDIRECT('cal formula'!A$1))),\"\"))","v":""},{"$f":"IF($I$8= \"All\", INDEX(data!$A$2:$H$251,,COLUMN(INDIRECT('cal formula'!B$1))),IFERROR(INDEX(data!$A$2:$H$251,data!$K178,COLUMN(INDIRECT('cal formula'!B$1))),\"\"))","v":""},{"$f":"IF($I$8= \"All\", INDEX(data!$A$2:$H$251,,COLUMN(INDIRECT('cal formula'!C$1))),IFERROR(INDEX(data!$A$2:$H$251,data!$K178,COLUMN(INDIRECT('cal formula'!C$1))),\"\"))","v":""},{"$f":"IF($I$8= \"All\", INDEX(data!$A$2:$H$251,,COLUMN(INDIRECT('cal formula'!D$1))),IFERROR(INDEX(data!$A$2:$H$251,data!$K178,COLUMN(INDIRECT('cal formula'!D$1))),\"\"))","v":""},{"$f":"IF($I$8= \"All\", INDEX(data!$A$2:$H$251,,COLUMN(INDIRECT('cal formula'!E$1))),IFERROR(INDEX(data!$A$2:$H$251,data!$K178,COLUMN(INDIRECT('cal formula'!E$1))),\"\"))","v":""},{"$f":"IF($I$8= \"All\", INDEX(data!$A$2:$H$251,,COLUMN(INDIRECT('cal formula'!F$1))),IFERROR(INDEX(data!$A$2:$H$251,data!$K178,COLUMN(INDIRECT('cal formula'!F$1))),\"\"))","v":""}]
[{"$f":"IF($I$8= \"All\", INDEX(data!$A$2:$H$251,,COLUMN(INDIRECT('cal formula'!A$1))),IFERROR(INDEX(data!$A$2:$H$251,data!$K179,COLUMN(INDIRECT('cal formula'!A$1))),\"\"))","v":""},{"$f":"IF($I$8= \"All\", INDEX(data!$A$2:$H$251,,COLUMN(INDIRECT('cal formula'!B$1))),IFERROR(INDEX(data!$A$2:$H$251,data!$K179,COLUMN(INDIRECT('cal formula'!B$1))),\"\"))","v":""},{"$f":"IF($I$8= \"All\", INDEX(data!$A$2:$H$251,,COLUMN(INDIRECT('cal formula'!C$1))),IFERROR(INDEX(data!$A$2:$H$251,data!$K179,COLUMN(INDIRECT('cal formula'!C$1))),\"\"))","v":""},{"$f":"IF($I$8= \"All\", INDEX(data!$A$2:$H$251,,COLUMN(INDIRECT('cal formula'!D$1))),IFERROR(INDEX(data!$A$2:$H$251,data!$K179,COLUMN(INDIRECT('cal formula'!D$1))),\"\"))","v":""},{"$f":"IF($I$8= \"All\", INDEX(data!$A$2:$H$251,,COLUMN(INDIRECT('cal formula'!E$1))),IFERROR(INDEX(data!$A$2:$H$251,data!$K179,COLUMN(INDIRECT('cal formula'!E$1))),\"\"))","v":""},{"$f":"IF($I$8= \"All\", INDEX(data!$A$2:$H$251,,COLUMN(INDIRECT('cal formula'!F$1))),IFERROR(INDEX(data!$A$2:$H$251,data!$K179,COLUMN(INDIRECT('cal formula'!F$1))),\"\"))","v":""}]
[{"$f":"IF($I$8= \"All\", INDEX(data!$A$2:$H$251,,COLUMN(INDIRECT('cal formula'!A$1))),IFERROR(INDEX(data!$A$2:$H$251,data!$K180,COLUMN(INDIRECT('cal formula'!A$1))),\"\"))","v":""},{"$f":"IF($I$8= \"All\", INDEX(data!$A$2:$H$251,,COLUMN(INDIRECT('cal formula'!B$1))),IFERROR(INDEX(data!$A$2:$H$251,data!$K180,COLUMN(INDIRECT('cal formula'!B$1))),\"\"))","v":""},{"$f":"IF($I$8= \"All\", INDEX(data!$A$2:$H$251,,COLUMN(INDIRECT('cal formula'!C$1))),IFERROR(INDEX(data!$A$2:$H$251,data!$K180,COLUMN(INDIRECT('cal formula'!C$1))),\"\"))","v":""},{"$f":"IF($I$8= \"All\", INDEX(data!$A$2:$H$251,,COLUMN(INDIRECT('cal formula'!D$1))),IFERROR(INDEX(data!$A$2:$H$251,data!$K180,COLUMN(INDIRECT('cal formula'!D$1))),\"\"))","v":""},{"$f":"IF($I$8= \"All\", INDEX(data!$A$2:$H$251,,COLUMN(INDIRECT('cal formula'!E$1))),IFERROR(INDEX(data!$A$2:$H$251,data!$K180,COLUMN(INDIRECT('cal formula'!E$1))),\"\"))","v":""},{"$f":"IF($I$8= \"All\", INDEX(data!$A$2:$H$251,,COLUMN(INDIRECT('cal formula'!F$1))),IFERROR(INDEX(data!$A$2:$H$251,data!$K180,COLUMN(INDIRECT('cal formula'!F$1))),\"\"))","v":""}]
[{"$f":"IF($I$8= \"All\", INDEX(data!$A$2:$H$251,,COLUMN(INDIRECT('cal formula'!A$1))),IFERROR(INDEX(data!$A$2:$H$251,data!$K181,COLUMN(INDIRECT('cal formula'!A$1))),\"\"))","v":""},{"$f":"IF($I$8= \"All\", INDEX(data!$A$2:$H$251,,COLUMN(INDIRECT('cal formula'!B$1))),IFERROR(INDEX(data!$A$2:$H$251,data!$K181,COLUMN(INDIRECT('cal formula'!B$1))),\"\"))","v":""},{"$f":"IF($I$8= \"All\", INDEX(data!$A$2:$H$251,,COLUMN(INDIRECT('cal formula'!C$1))),IFERROR(INDEX(data!$A$2:$H$251,data!$K181,COLUMN(INDIRECT('cal formula'!C$1))),\"\"))","v":""},{"$f":"IF($I$8= \"All\", INDEX(data!$A$2:$H$251,,COLUMN(INDIRECT('cal formula'!D$1))),IFERROR(INDEX(data!$A$2:$H$251,data!$K181,COLUMN(INDIRECT('cal formula'!D$1))),\"\"))","v":""},{"$f":"IF($I$8= \"All\", INDEX(data!$A$2:$H$251,,COLUMN(INDIRECT('cal formula'!E$1))),IFERROR(INDEX(data!$A$2:$H$251,data!$K181,COLUMN(INDIRECT('cal formula'!E$1))),\"\"))","v":""},{"$f":"IF($I$8= \"All\", INDEX(data!$A$2:$H$251,,COLUMN(INDIRECT('cal formula'!F$1))),IFERROR(INDEX(data!$A$2:$H$251,data!$K181,COLUMN(INDIRECT('cal formula'!F$1))),\"\"))","v":""}]
[{"$f":"IF($I$8= \"All\", INDEX(data!$A$2:$H$251,,COLUMN(INDIRECT('cal formula'!A$1))),IFERROR(INDEX(data!$A$2:$H$251,data!$K182,COLUMN(INDIRECT('cal formula'!A$1))),\"\"))","v":""},{"$f":"IF($I$8= \"All\", INDEX(data!$A$2:$H$251,,COLUMN(INDIRECT('cal formula'!B$1))),IFERROR(INDEX(data!$A$2:$H$251,data!$K182,COLUMN(INDIRECT('cal formula'!B$1))),\"\"))","v":""},{"$f":"IF($I$8= \"All\", INDEX(data!$A$2:$H$251,,COLUMN(INDIRECT('cal formula'!C$1))),IFERROR(INDEX(data!$A$2:$H$251,data!$K182,COLUMN(INDIRECT('cal formula'!C$1))),\"\"))","v":""},{"$f":"IF($I$8= \"All\", INDEX(data!$A$2:$H$251,,COLUMN(INDIRECT('cal formula'!D$1))),IFERROR(INDEX(data!$A$2:$H$251,data!$K182,COLUMN(INDIRECT('cal formula'!D$1))),\"\"))","v":""},{"$f":"IF($I$8= \"All\", INDEX(data!$A$2:$H$251,,COLUMN(INDIRECT('cal formula'!E$1))),IFERROR(INDEX(data!$A$2:$H$251,data!$K182,COLUMN(INDIRECT('cal formula'!E$1))),\"\"))","v":""},{"$f":"IF($I$8= \"All\", INDEX(data!$A$2:$H$251,,COLUMN(INDIRECT('cal formula'!F$1))),IFERROR(INDEX(data!$A$2:$H$251,data!$K182,COLUMN(INDIRECT('cal formula'!F$1))),\"\"))","v":""}]
[{"$f":"IF($I$8= \"All\", INDEX(data!$A$2:$H$251,,COLUMN(INDIRECT('cal formula'!A$1))),IFERROR(INDEX(data!$A$2:$H$251,data!$K183,COLUMN(INDIRECT('cal formula'!A$1))),\"\"))","v":""},{"$f":"IF($I$8= \"All\", INDEX(data!$A$2:$H$251,,COLUMN(INDIRECT('cal formula'!B$1))),IFERROR(INDEX(data!$A$2:$H$251,data!$K183,COLUMN(INDIRECT('cal formula'!B$1))),\"\"))","v":""},{"$f":"IF($I$8= \"All\", INDEX(data!$A$2:$H$251,,COLUMN(INDIRECT('cal formula'!C$1))),IFERROR(INDEX(data!$A$2:$H$251,data!$K183,COLUMN(INDIRECT('cal formula'!C$1))),\"\"))","v":""},{"$f":"IF($I$8= \"All\", INDEX(data!$A$2:$H$251,,COLUMN(INDIRECT('cal formula'!D$1))),IFERROR(INDEX(data!$A$2:$H$251,data!$K183,COLUMN(INDIRECT('cal formula'!D$1))),\"\"))","v":""},{"$f":"IF($I$8= \"All\", INDEX(data!$A$2:$H$251,,COLUMN(INDIRECT('cal formula'!E$1))),IFERROR(INDEX(data!$A$2:$H$251,data!$K183,COLUMN(INDIRECT('cal formula'!E$1))),\"\"))","v":""},{"$f":"IF($I$8= \"All\", INDEX(data!$A$2:$H$251,,COLUMN(INDIRECT('cal formula'!F$1))),IFERROR(INDEX(data!$A$2:$H$251,data!$K183,COLUMN(INDIRECT('cal formula'!F$1))),\"\"))","v":""}]
[{"$f":"IF($I$8= \"All\", INDEX(data!$A$2:$H$251,,COLUMN(INDIRECT('cal formula'!A$1))),IFERROR(INDEX(data!$A$2:$H$251,data!$K184,COLUMN(INDIRECT('cal formula'!A$1))),\"\"))","v":""},{"$f":"IF($I$8= \"All\", INDEX(data!$A$2:$H$251,,COLUMN(INDIRECT('cal formula'!B$1))),IFERROR(INDEX(data!$A$2:$H$251,data!$K184,COLUMN(INDIRECT('cal formula'!B$1))),\"\"))","v":""},{"$f":"IF($I$8= \"All\", INDEX(data!$A$2:$H$251,,COLUMN(INDIRECT('cal formula'!C$1))),IFERROR(INDEX(data!$A$2:$H$251,data!$K184,COLUMN(INDIRECT('cal formula'!C$1))),\"\"))","v":""},{"$f":"IF($I$8= \"All\", INDEX(data!$A$2:$H$251,,COLUMN(INDIRECT('cal formula'!D$1))),IFERROR(INDEX(data!$A$2:$H$251,data!$K184,COLUMN(INDIRECT('cal formula'!D$1))),\"\"))","v":""},{"$f":"IF($I$8= \"All\", INDEX(data!$A$2:$H$251,,COLUMN(INDIRECT('cal formula'!E$1))),IFERROR(INDEX(data!$A$2:$H$251,data!$K184,COLUMN(INDIRECT('cal formula'!E$1))),\"\"))","v":""},{"$f":"IF($I$8= \"All\", INDEX(data!$A$2:$H$251,,COLUMN(INDIRECT('cal formula'!F$1))),IFERROR(INDEX(data!$A$2:$H$251,data!$K184,COLUMN(INDIRECT('cal formula'!F$1))),\"\"))","v":""}]
[{"$f":"IF($I$8= \"All\", INDEX(data!$A$2:$H$251,,COLUMN(INDIRECT('cal formula'!A$1))),IFERROR(INDEX(data!$A$2:$H$251,data!$K185,COLUMN(INDIRECT('cal formula'!A$1))),\"\"))","v":""},{"$f":"IF($I$8= \"All\", INDEX(data!$A$2:$H$251,,COLUMN(INDIRECT('cal formula'!B$1))),IFERROR(INDEX(data!$A$2:$H$251,data!$K185,COLUMN(INDIRECT('cal formula'!B$1))),\"\"))","v":""},{"$f":"IF($I$8= \"All\", INDEX(data!$A$2:$H$251,,COLUMN(INDIRECT('cal formula'!C$1))),IFERROR(INDEX(data!$A$2:$H$251,data!$K185,COLUMN(INDIRECT('cal formula'!C$1))),\"\"))","v":""},{"$f":"IF($I$8= \"All\", INDEX(data!$A$2:$H$251,,COLUMN(INDIRECT('cal formula'!D$1))),IFERROR(INDEX(data!$A$2:$H$251,data!$K185,COLUMN(INDIRECT('cal formula'!D$1))),\"\"))","v":""},{"$f":"IF($I$8= \"All\", INDEX(data!$A$2:$H$251,,COLUMN(INDIRECT('cal formula'!E$1))),IFERROR(INDEX(data!$A$2:$H$251,data!$K185,COLUMN(INDIRECT('cal formula'!E$1))),\"\"))","v":""},{"$f":"IF($I$8= \"All\", INDEX(data!$A$2:$H$251,,COLUMN(INDIRECT('cal formula'!F$1))),IFERROR(INDEX(data!$A$2:$H$251,data!$K185,COLUMN(INDIRECT('cal formula'!F$1))),\"\"))","v":""}]
[{"$f":"IF($I$8= \"All\", INDEX(data!$A$2:$H$251,,COLUMN(INDIRECT('cal formula'!A$1))),IFERROR(INDEX(data!$A$2:$H$251,data!$K186,COLUMN(INDIRECT('cal formula'!A$1))),\"\"))","v":""},{"$f":"IF($I$8= \"All\", INDEX(data!$A$2:$H$251,,COLUMN(INDIRECT('cal formula'!B$1))),IFERROR(INDEX(data!$A$2:$H$251,data!$K186,COLUMN(INDIRECT('cal formula'!B$1))),\"\"))","v":""},{"$f":"IF($I$8= \"All\", INDEX(data!$A$2:$H$251,,COLUMN(INDIRECT('cal formula'!C$1))),IFERROR(INDEX(data!$A$2:$H$251,data!$K186,COLUMN(INDIRECT('cal formula'!C$1))),\"\"))","v":""},{"$f":"IF($I$8= \"All\", INDEX(data!$A$2:$H$251,,COLUMN(INDIRECT('cal formula'!D$1))),IFERROR(INDEX(data!$A$2:$H$251,data!$K186,COLUMN(INDIRECT('cal formula'!D$1))),\"\"))","v":""},{"$f":"IF($I$8= \"All\", INDEX(data!$A$2:$H$251,,COLUMN(INDIRECT('cal formula'!E$1))),IFERROR(INDEX(data!$A$2:$H$251,data!$K186,COLUMN(INDIRECT('cal formula'!E$1))),\"\"))","v":""},{"$f":"IF($I$8= \"All\", INDEX(data!$A$2:$H$251,,COLUMN(INDIRECT('cal formula'!F$1))),IFERROR(INDEX(data!$A$2:$H$251,data!$K186,COLUMN(INDIRECT('cal formula'!F$1))),\"\"))","v":""}]
[{"$f":"IF($I$8= \"All\", INDEX(data!$A$2:$H$251,,COLUMN(INDIRECT('cal formula'!A$1))),IFERROR(INDEX(data!$A$2:$H$251,data!$K187,COLUMN(INDIRECT('cal formula'!A$1))),\"\"))","v":""},{"$f":"IF($I$8= \"All\", INDEX(data!$A$2:$H$251,,COLUMN(INDIRECT('cal formula'!B$1))),IFERROR(INDEX(data!$A$2:$H$251,data!$K187,COLUMN(INDIRECT('cal formula'!B$1))),\"\"))","v":""},{"$f":"IF($I$8= \"All\", INDEX(data!$A$2:$H$251,,COLUMN(INDIRECT('cal formula'!C$1))),IFERROR(INDEX(data!$A$2:$H$251,data!$K187,COLUMN(INDIRECT('cal formula'!C$1))),\"\"))","v":""},{"$f":"IF($I$8= \"All\", INDEX(data!$A$2:$H$251,,COLUMN(INDIRECT('cal formula'!D$1))),IFERROR(INDEX(data!$A$2:$H$251,data!$K187,COLUMN(INDIRECT('cal formula'!D$1))),\"\"))","v":""},{"$f":"IF($I$8= \"All\", INDEX(data!$A$2:$H$251,,COLUMN(INDIRECT('cal formula'!E$1))),IFERROR(INDEX(data!$A$2:$H$251,data!$K187,COLUMN(INDIRECT('cal formula'!E$1))),\"\"))","v":""},{"$f":"IF($I$8= \"All\", INDEX(data!$A$2:$H$251,,COLUMN(INDIRECT('cal formula'!F$1))),IFERROR(INDEX(data!$A$2:$H$251,data!$K187,COLUMN(INDIRECT('cal formula'!F$1))),\"\"))","v":""}]
[{"$f":"IF($I$8= \"All\", INDEX(data!$A$2:$H$251,,COLUMN(INDIRECT('cal formula'!A$1))),IFERROR(INDEX(data!$A$2:$H$251,data!$K188,COLUMN(INDIRECT('cal formula'!A$1))),\"\"))","v":""},{"$f":"IF($I$8= \"All\", INDEX(data!$A$2:$H$251,,COLUMN(INDIRECT('cal formula'!B$1))),IFERROR(INDEX(data!$A$2:$H$251,data!$K188,COLUMN(INDIRECT('cal formula'!B$1))),\"\"))","v":""},{"$f":"IF($I$8= \"All\", INDEX(data!$A$2:$H$251,,COLUMN(INDIRECT('cal formula'!C$1))),IFERROR(INDEX(data!$A$2:$H$251,data!$K188,COLUMN(INDIRECT('cal formula'!C$1))),\"\"))","v":""},{"$f":"IF($I$8= \"All\", INDEX(data!$A$2:$H$251,,COLUMN(INDIRECT('cal formula'!D$1))),IFERROR(INDEX(data!$A$2:$H$251,data!$K188,COLUMN(INDIRECT('cal formula'!D$1))),\"\"))","v":""},{"$f":"IF($I$8= \"All\", INDEX(data!$A$2:$H$251,,COLUMN(INDIRECT('cal formula'!E$1))),IFERROR(INDEX(data!$A$2:$H$251,data!$K188,COLUMN(INDIRECT('cal formula'!E$1))),\"\"))","v":""},{"$f":"IF($I$8= \"All\", INDEX(data!$A$2:$H$251,,COLUMN(INDIRECT('cal formula'!F$1))),IFERROR(INDEX(data!$A$2:$H$251,data!$K188,COLUMN(INDIRECT('cal formula'!F$1))),\"\"))","v":""}]
[{"$f":"IF($I$8= \"All\", INDEX(data!$A$2:$H$251,,COLUMN(INDIRECT('cal formula'!A$1))),IFERROR(INDEX(data!$A$2:$H$251,data!$K189,COLUMN(INDIRECT('cal formula'!A$1))),\"\"))","v":""},{"$f":"IF($I$8= \"All\", INDEX(data!$A$2:$H$251,,COLUMN(INDIRECT('cal formula'!B$1))),IFERROR(INDEX(data!$A$2:$H$251,data!$K189,COLUMN(INDIRECT('cal formula'!B$1))),\"\"))","v":""},{"$f":"IF($I$8= \"All\", INDEX(data!$A$2:$H$251,,COLUMN(INDIRECT('cal formula'!C$1))),IFERROR(INDEX(data!$A$2:$H$251,data!$K189,COLUMN(INDIRECT('cal formula'!C$1))),\"\"))","v":""},{"$f":"IF($I$8= \"All\", INDEX(data!$A$2:$H$251,,COLUMN(INDIRECT('cal formula'!D$1))),IFERROR(INDEX(data!$A$2:$H$251,data!$K189,COLUMN(INDIRECT('cal formula'!D$1))),\"\"))","v":""},{"$f":"IF($I$8= \"All\", INDEX(data!$A$2:$H$251,,COLUMN(INDIRECT('cal formula'!E$1))),IFERROR(INDEX(data!$A$2:$H$251,data!$K189,COLUMN(INDIRECT('cal formula'!E$1))),\"\"))","v":""},{"$f":"IF($I$8= \"All\", INDEX(data!$A$2:$H$251,,COLUMN(INDIRECT('cal formula'!F$1))),IFERROR(INDEX(data!$A$2:$H$251,data!$K189,COLUMN(INDIRECT('cal formula'!F$1))),\"\"))","v":""}]
[{"$f":"IF($I$8= \"All\", INDEX(data!$A$2:$H$251,,COLUMN(INDIRECT('cal formula'!A$1))),IFERROR(INDEX(data!$A$2:$H$251,data!$K190,COLUMN(INDIRECT('cal formula'!A$1))),\"\"))","v":""},{"$f":"IF($I$8= \"All\", INDEX(data!$A$2:$H$251,,COLUMN(INDIRECT('cal formula'!B$1))),IFERROR(INDEX(data!$A$2:$H$251,data!$K190,COLUMN(INDIRECT('cal formula'!B$1))),\"\"))","v":""},{"$f":"IF($I$8= \"All\", INDEX(data!$A$2:$H$251,,COLUMN(INDIRECT('cal formula'!C$1))),IFERROR(INDEX(data!$A$2:$H$251,data!$K190,COLUMN(INDIRECT('cal formula'!C$1))),\"\"))","v":""},{"$f":"IF($I$8= \"All\", INDEX(data!$A$2:$H$251,,COLUMN(INDIRECT('cal formula'!D$1))),IFERROR(INDEX(data!$A$2:$H$251,data!$K190,COLUMN(INDIRECT('cal formula'!D$1))),\"\"))","v":""},{"$f":"IF($I$8= \"All\", INDEX(data!$A$2:$H$251,,COLUMN(INDIRECT('cal formula'!E$1))),IFERROR(INDEX(data!$A$2:$H$251,data!$K190,COLUMN(INDIRECT('cal formula'!E$1))),\"\"))","v":""},{"$f":"IF($I$8= \"All\", INDEX(data!$A$2:$H$251,,COLUMN(INDIRECT('cal formula'!F$1))),IFERROR(INDEX(data!$A$2:$H$251,data!$K190,COLUMN(INDIRECT('cal formula'!F$1))),\"\"))","v":""}]
[{"$f":"IF($I$8= \"All\", INDEX(data!$A$2:$H$251,,COLUMN(INDIRECT('cal formula'!A$1))),IFERROR(INDEX(data!$A$2:$H$251,data!$K191,COLUMN(INDIRECT('cal formula'!A$1))),\"\"))","v":""},{"$f":"IF($I$8= \"All\", INDEX(data!$A$2:$H$251,,COLUMN(INDIRECT('cal formula'!B$1))),IFERROR(INDEX(data!$A$2:$H$251,data!$K191,COLUMN(INDIRECT('cal formula'!B$1))),\"\"))","v":""},{"$f":"IF($I$8= \"All\", INDEX(data!$A$2:$H$251,,COLUMN(INDIRECT('cal formula'!C$1))),IFERROR(INDEX(data!$A$2:$H$251,data!$K191,COLUMN(INDIRECT('cal formula'!C$1))),\"\"))","v":""},{"$f":"IF($I$8= \"All\", INDEX(data!$A$2:$H$251,,COLUMN(INDIRECT('cal formula'!D$1))),IFERROR(INDEX(data!$A$2:$H$251,data!$K191,COLUMN(INDIRECT('cal formula'!D$1))),\"\"))","v":""},{"$f":"IF($I$8= \"All\", INDEX(data!$A$2:$H$251,,COLUMN(INDIRECT('cal formula'!E$1))),IFERROR(INDEX(data!$A$2:$H$251,data!$K191,COLUMN(INDIRECT('cal formula'!E$1))),\"\"))","v":""},{"$f":"IF($I$8= \"All\", INDEX(data!$A$2:$H$251,,COLUMN(INDIRECT('cal formula'!F$1))),IFERROR(INDEX(data!$A$2:$H$251,data!$K191,COLUMN(INDIRECT('cal formula'!F$1))),\"\"))","v":""}]
[{"$f":"IF($I$8= \"All\", INDEX(data!$A$2:$H$251,,COLUMN(INDIRECT('cal formula'!A$1))),IFERROR(INDEX(data!$A$2:$H$251,data!$K192,COLUMN(INDIRECT('cal formula'!A$1))),\"\"))","v":""},{"$f":"IF($I$8= \"All\", INDEX(data!$A$2:$H$251,,COLUMN(INDIRECT('cal formula'!B$1))),IFERROR(INDEX(data!$A$2:$H$251,data!$K192,COLUMN(INDIRECT('cal formula'!B$1))),\"\"))","v":""},{"$f":"IF($I$8= \"All\", INDEX(data!$A$2:$H$251,,COLUMN(INDIRECT('cal formula'!C$1))),IFERROR(INDEX(data!$A$2:$H$251,data!$K192,COLUMN(INDIRECT('cal formula'!C$1))),\"\"))","v":""},{"$f":"IF($I$8= \"All\", INDEX(data!$A$2:$H$251,,COLUMN(INDIRECT('cal formula'!D$1))),IFERROR(INDEX(data!$A$2:$H$251,data!$K192,COLUMN(INDIRECT('cal formula'!D$1))),\"\"))","v":""},{"$f":"IF($I$8= \"All\", INDEX(data!$A$2:$H$251,,COLUMN(INDIRECT('cal formula'!E$1))),IFERROR(INDEX(data!$A$2:$H$251,data!$K192,COLUMN(INDIRECT('cal formula'!E$1))),\"\"))","v":""},{"$f":"IF($I$8= \"All\", INDEX(data!$A$2:$H$251,,COLUMN(INDIRECT('cal formula'!F$1))),IFERROR(INDEX(data!$A$2:$H$251,data!$K192,COLUMN(INDIRECT('cal formula'!F$1))),\"\"))","v":""}]
[{"$f":"IF($I$8= \"All\", INDEX(data!$A$2:$H$251,,COLUMN(INDIRECT('cal formula'!A$1))),IFERROR(INDEX(data!$A$2:$H$251,data!$K193,COLUMN(INDIRECT('cal formula'!A$1))),\"\"))","v":""},{"$f":"IF($I$8= \"All\", INDEX(data!$A$2:$H$251,,COLUMN(INDIRECT('cal formula'!B$1))),IFERROR(INDEX(data!$A$2:$H$251,data!$K193,COLUMN(INDIRECT('cal formula'!B$1))),\"\"))","v":""},{"$f":"IF($I$8= \"All\", INDEX(data!$A$2:$H$251,,COLUMN(INDIRECT('cal formula'!C$1))),IFERROR(INDEX(data!$A$2:$H$251,data!$K193,COLUMN(INDIRECT('cal formula'!C$1))),\"\"))","v":""},{"$f":"IF($I$8= \"All\", INDEX(data!$A$2:$H$251,,COLUMN(INDIRECT('cal formula'!D$1))),IFERROR(INDEX(data!$A$2:$H$251,data!$K193,COLUMN(INDIRECT('cal formula'!D$1))),\"\"))","v":""},{"$f":"IF($I$8= \"All\", INDEX(data!$A$2:$H$251,,COLUMN(INDIRECT('cal formula'!E$1))),IFERROR(INDEX(data!$A$2:$H$251,data!$K193,COLUMN(INDIRECT('cal formula'!E$1))),\"\"))","v":""},{"$f":"IF($I$8= \"All\", INDEX(data!$A$2:$H$251,,COLUMN(INDIRECT('cal formula'!F$1))),IFERROR(INDEX(data!$A$2:$H$251,data!$K193,COLUMN(INDIRECT('cal formula'!F$1))),\"\"))","v":""}]
[{"$f":"IF($I$8= \"All\", INDEX(data!$A$2:$H$251,,COLUMN(INDIRECT('cal formula'!A$1))),IFERROR(INDEX(data!$A$2:$H$251,data!$K194,COLUMN(INDIRECT('cal formula'!A$1))),\"\"))","v":""},{"$f":"IF($I$8= \"All\", INDEX(data!$A$2:$H$251,,COLUMN(INDIRECT('cal formula'!B$1))),IFERROR(INDEX(data!$A$2:$H$251,data!$K194,COLUMN(INDIRECT('cal formula'!B$1))),\"\"))","v":""},{"$f":"IF($I$8= \"All\", INDEX(data!$A$2:$H$251,,COLUMN(INDIRECT('cal formula'!C$1))),IFERROR(INDEX(data!$A$2:$H$251,data!$K194,COLUMN(INDIRECT('cal formula'!C$1))),\"\"))","v":""},{"$f":"IF($I$8= \"All\", INDEX(data!$A$2:$H$251,,COLUMN(INDIRECT('cal formula'!D$1))),IFERROR(INDEX(data!$A$2:$H$251,data!$K194,COLUMN(INDIRECT('cal formula'!D$1))),\"\"))","v":""},{"$f":"IF($I$8= \"All\", INDEX(data!$A$2:$H$251,,COLUMN(INDIRECT('cal formula'!E$1))),IFERROR(INDEX(data!$A$2:$H$251,data!$K194,COLUMN(INDIRECT('cal formula'!E$1))),\"\"))","v":""},{"$f":"IF($I$8= \"All\", INDEX(data!$A$2:$H$251,,COLUMN(INDIRECT('cal formula'!F$1))),IFERROR(INDEX(data!$A$2:$H$251,data!$K194,COLUMN(INDIRECT('cal formula'!F$1))),\"\"))","v":""}]
[{"$f":"IF($I$8= \"All\", INDEX(data!$A$2:$H$251,,COLUMN(INDIRECT('cal formula'!A$1))),IFERROR(INDEX(data!$A$2:$H$251,data!$K195,COLUMN(INDIRECT('cal formula'!A$1))),\"\"))","v":""},{"$f":"IF($I$8= \"All\", INDEX(data!$A$2:$H$251,,COLUMN(INDIRECT('cal formula'!B$1))),IFERROR(INDEX(data!$A$2:$H$251,data!$K195,COLUMN(INDIRECT('cal formula'!B$1))),\"\"))","v":""},{"$f":"IF($I$8= \"All\", INDEX(data!$A$2:$H$251,,COLUMN(INDIRECT('cal formula'!C$1))),IFERROR(INDEX(data!$A$2:$H$251,data!$K195,COLUMN(INDIRECT('cal formula'!C$1))),\"\"))","v":""},{"$f":"IF($I$8= \"All\", INDEX(data!$A$2:$H$251,,COLUMN(INDIRECT('cal formula'!D$1))),IFERROR(INDEX(data!$A$2:$H$251,data!$K195,COLUMN(INDIRECT('cal formula'!D$1))),\"\"))","v":""},{"$f":"IF($I$8= \"All\", INDEX(data!$A$2:$H$251,,COLUMN(INDIRECT('cal formula'!E$1))),IFERROR(INDEX(data!$A$2:$H$251,data!$K195,COLUMN(INDIRECT('cal formula'!E$1))),\"\"))","v":""},{"$f":"IF($I$8= \"All\", INDEX(data!$A$2:$H$251,,COLUMN(INDIRECT('cal formula'!F$1))),IFERROR(INDEX(data!$A$2:$H$251,data!$K195,COLUMN(INDIRECT('cal formula'!F$1))),\"\"))","v":""}]
[{"$f":"IF($I$8= \"All\", INDEX(data!$A$2:$H$251,,COLUMN(INDIRECT('cal formula'!A$1))),IFERROR(INDEX(data!$A$2:$H$251,data!$K196,COLUMN(INDIRECT('cal formula'!A$1))),\"\"))","v":""},{"$f":"IF($I$8= \"All\", INDEX(data!$A$2:$H$251,,COLUMN(INDIRECT('cal formula'!B$1))),IFERROR(INDEX(data!$A$2:$H$251,data!$K196,COLUMN(INDIRECT('cal formula'!B$1))),\"\"))","v":""},{"$f":"IF($I$8= \"All\", INDEX(data!$A$2:$H$251,,COLUMN(INDIRECT('cal formula'!C$1))),IFERROR(INDEX(data!$A$2:$H$251,data!$K196,COLUMN(INDIRECT('cal formula'!C$1))),\"\"))","v":""},{"$f":"IF($I$8= \"All\", INDEX(data!$A$2:$H$251,,COLUMN(INDIRECT('cal formula'!D$1))),IFERROR(INDEX(data!$A$2:$H$251,data!$K196,COLUMN(INDIRECT('cal formula'!D$1))),\"\"))","v":""},{"$f":"IF($I$8= \"All\", INDEX(data!$A$2:$H$251,,COLUMN(INDIRECT('cal formula'!E$1))),IFERROR(INDEX(data!$A$2:$H$251,data!$K196,COLUMN(INDIRECT('cal formula'!E$1))),\"\"))","v":""},{"$f":"IF($I$8= \"All\", INDEX(data!$A$2:$H$251,,COLUMN(INDIRECT('cal formula'!F$1))),IFERROR(INDEX(data!$A$2:$H$251,data!$K196,COLUMN(INDIRECT('cal formula'!F$1))),\"\"))","v":""}]
[{"$f":"IF($I$8= \"All\", INDEX(data!$A$2:$H$251,,COLUMN(INDIRECT('cal formula'!A$1))),IFERROR(INDEX(data!$A$2:$H$251,data!$K197,COLUMN(INDIRECT('cal formula'!A$1))),\"\"))","v":""},{"$f":"IF($I$8= \"All\", INDEX(data!$A$2:$H$251,,COLUMN(INDIRECT('cal formula'!B$1))),IFERROR(INDEX(data!$A$2:$H$251,data!$K197,COLUMN(INDIRECT('cal formula'!B$1))),\"\"))","v":""},{"$f":"IF($I$8= \"All\", INDEX(data!$A$2:$H$251,,COLUMN(INDIRECT('cal formula'!C$1))),IFERROR(INDEX(data!$A$2:$H$251,data!$K197,COLUMN(INDIRECT('cal formula'!C$1))),\"\"))","v":""},{"$f":"IF($I$8= \"All\", INDEX(data!$A$2:$H$251,,COLUMN(INDIRECT('cal formula'!D$1))),IFERROR(INDEX(data!$A$2:$H$251,data!$K197,COLUMN(INDIRECT('cal formula'!D$1))),\"\"))","v":""},{"$f":"IF($I$8= \"All\", INDEX(data!$A$2:$H$251,,COLUMN(INDIRECT('cal formula'!E$1))),IFERROR(INDEX(data!$A$2:$H$251,data!$K197,COLUMN(INDIRECT('cal formula'!E$1))),\"\"))","v":""},{"$f":"IF($I$8= \"All\", INDEX(data!$A$2:$H$251,,COLUMN(INDIRECT('cal formula'!F$1))),IFERROR(INDEX(data!$A$2:$H$251,data!$K197,COLUMN(INDIRECT('cal formula'!F$1))),\"\"))","v":""}]
[{"$f":"IF($I$8= \"All\", INDEX(data!$A$2:$H$251,,COLUMN(INDIRECT('cal formula'!A$1))),IFERROR(INDEX(data!$A$2:$H$251,data!$K198,COLUMN(INDIRECT('cal formula'!A$1))),\"\"))","v":""},{"$f":"IF($I$8= \"All\", INDEX(data!$A$2:$H$251,,COLUMN(INDIRECT('cal formula'!B$1))),IFERROR(INDEX(data!$A$2:$H$251,data!$K198,COLUMN(INDIRECT('cal formula'!B$1))),\"\"))","v":""},{"$f":"IF($I$8= \"All\", INDEX(data!$A$2:$H$251,,COLUMN(INDIRECT('cal formula'!C$1))),IFERROR(INDEX(data!$A$2:$H$251,data!$K198,COLUMN(INDIRECT('cal formula'!C$1))),\"\"))","v":""},{"$f":"IF($I$8= \"All\", INDEX(data!$A$2:$H$251,,COLUMN(INDIRECT('cal formula'!D$1))),IFERROR(INDEX(data!$A$2:$H$251,data!$K198,COLUMN(INDIRECT('cal formula'!D$1))),\"\"))","v":""},{"$f":"IF($I$8= \"All\", INDEX(data!$A$2:$H$251,,COLUMN(INDIRECT('cal formula'!E$1))),IFERROR(INDEX(data!$A$2:$H$251,data!$K198,COLUMN(INDIRECT('cal formula'!E$1))),\"\"))","v":""},{"$f":"IF($I$8= \"All\", INDEX(data!$A$2:$H$251,,COLUMN(INDIRECT('cal formula'!F$1))),IFERROR(INDEX(data!$A$2:$H$251,data!$K198,COLUMN(INDIRECT('cal formula'!F$1))),\"\"))","v":""}]
[{"$f":"IF($I$8= \"All\", INDEX(data!$A$2:$H$251,,COLUMN(INDIRECT('cal formula'!A$1))),IFERROR(INDEX(data!$A$2:$H$251,data!$K199,COLUMN(INDIRECT('cal formula'!A$1))),\"\"))","v":""},{"$f":"IF($I$8= \"All\", INDEX(data!$A$2:$H$251,,COLUMN(INDIRECT('cal formula'!B$1))),IFERROR(INDEX(data!$A$2:$H$251,data!$K199,COLUMN(INDIRECT('cal formula'!B$1))),\"\"))","v":""},{"$f":"IF($I$8= \"All\", INDEX(data!$A$2:$H$251,,COLUMN(INDIRECT('cal formula'!C$1))),IFERROR(INDEX(data!$A$2:$H$251,data!$K199,COLUMN(INDIRECT('cal formula'!C$1))),\"\"))","v":""},{"$f":"IF($I$8= \"All\", INDEX(data!$A$2:$H$251,,COLUMN(INDIRECT('cal formula'!D$1))),IFERROR(INDEX(data!$A$2:$H$251,data!$K199,COLUMN(INDIRECT('cal formula'!D$1))),\"\"))","v":""},{"$f":"IF($I$8= \"All\", INDEX(data!$A$2:$H$251,,COLUMN(INDIRECT('cal formula'!E$1))),IFERROR(INDEX(data!$A$2:$H$251,data!$K199,COLUMN(INDIRECT('cal formula'!E$1))),\"\"))","v":""},{"$f":"IF($I$8= \"All\", INDEX(data!$A$2:$H$251,,COLUMN(INDIRECT('cal formula'!F$1))),IFERROR(INDEX(data!$A$2:$H$251,data!$K199,COLUMN(INDIRECT('cal formula'!F$1))),\"\"))","v":""}]
[{"$f":"IF($I$8= \"All\", INDEX(data!$A$2:$H$251,,COLUMN(INDIRECT('cal formula'!A$1))),IFERROR(INDEX(data!$A$2:$H$251,data!$K200,COLUMN(INDIRECT('cal formula'!A$1))),\"\"))","v":""},{"$f":"IF($I$8= \"All\", INDEX(data!$A$2:$H$251,,COLUMN(INDIRECT('cal formula'!B$1))),IFERROR(INDEX(data!$A$2:$H$251,data!$K200,COLUMN(INDIRECT('cal formula'!B$1))),\"\"))","v":""},{"$f":"IF($I$8= \"All\", INDEX(data!$A$2:$H$251,,COLUMN(INDIRECT('cal formula'!C$1))),IFERROR(INDEX(data!$A$2:$H$251,data!$K200,COLUMN(INDIRECT('cal formula'!C$1))),\"\"))","v":""},{"$f":"IF($I$8= \"All\", INDEX(data!$A$2:$H$251,,COLUMN(INDIRECT('cal formula'!D$1))),IFERROR(INDEX(data!$A$2:$H$251,data!$K200,COLUMN(INDIRECT('cal formula'!D$1))),\"\"))","v":""},{"$f":"IF($I$8= \"All\", INDEX(data!$A$2:$H$251,,COLUMN(INDIRECT('cal formula'!E$1))),IFERROR(INDEX(data!$A$2:$H$251,data!$K200,COLUMN(INDIRECT('cal formula'!E$1))),\"\"))","v":""},{"$f":"IF($I$8= \"All\", INDEX(data!$A$2:$H$251,,COLUMN(INDIRECT('cal formula'!F$1))),IFERROR(INDEX(data!$A$2:$H$251,data!$K200,COLUMN(INDIRECT('cal formula'!F$1))),\"\"))","v":""}]
[{"$f":"IF($I$8= \"All\", INDEX(data!$A$2:$H$251,,COLUMN(INDIRECT('cal formula'!A$1))),IFERROR(INDEX(data!$A$2:$H$251,data!$K201,COLUMN(INDIRECT('cal formula'!A$1))),\"\"))","v":""},{"$f":"IF($I$8= \"All\", INDEX(data!$A$2:$H$251,,COLUMN(INDIRECT('cal formula'!B$1))),IFERROR(INDEX(data!$A$2:$H$251,data!$K201,COLUMN(INDIRECT('cal formula'!B$1))),\"\"))","v":""},{"$f":"IF($I$8= \"All\", INDEX(data!$A$2:$H$251,,COLUMN(INDIRECT('cal formula'!C$1))),IFERROR(INDEX(data!$A$2:$H$251,data!$K201,COLUMN(INDIRECT('cal formula'!C$1))),\"\"))","v":""},{"$f":"IF($I$8= \"All\", INDEX(data!$A$2:$H$251,,COLUMN(INDIRECT('cal formula'!D$1))),IFERROR(INDEX(data!$A$2:$H$251,data!$K201,COLUMN(INDIRECT('cal formula'!D$1))),\"\"))","v":""},{"$f":"IF($I$8= \"All\", INDEX(data!$A$2:$H$251,,COLUMN(INDIRECT('cal formula'!E$1))),IFERROR(INDEX(data!$A$2:$H$251,data!$K201,COLUMN(INDIRECT('cal formula'!E$1))),\"\"))","v":""},{"$f":"IF($I$8= \"All\", INDEX(data!$A$2:$H$251,,COLUMN(INDIRECT('cal formula'!F$1))),IFERROR(INDEX(data!$A$2:$H$251,data!$K201,COLUMN(INDIRECT('cal formula'!F$1))),\"\"))","v":""}]
[{"$f":"IF($I$8= \"All\", INDEX(data!$A$2:$H$251,,COLUMN(INDIRECT('cal formula'!A$1))),IFERROR(INDEX(data!$A$2:$H$251,data!$K202,COLUMN(INDIRECT('cal formula'!A$1))),\"\"))","v":""},{"$f":"IF($I$8= \"All\", INDEX(data!$A$2:$H$251,,COLUMN(INDIRECT('cal formula'!B$1))),IFERROR(INDEX(data!$A$2:$H$251,data!$K202,COLUMN(INDIRECT('cal formula'!B$1))),\"\"))","v":""},{"$f":"IF($I$8= \"All\", INDEX(data!$A$2:$H$251,,COLUMN(INDIRECT('cal formula'!C$1))),IFERROR(INDEX(data!$A$2:$H$251,data!$K202,COLUMN(INDIRECT('cal formula'!C$1))),\"\"))","v":""},{"$f":"IF($I$8= \"All\", INDEX(data!$A$2:$H$251,,COLUMN(INDIRECT('cal formula'!D$1))),IFERROR(INDEX(data!$A$2:$H$251,data!$K202,COLUMN(INDIRECT('cal formula'!D$1))),\"\"))","v":""},{"$f":"IF($I$8= \"All\", INDEX(data!$A$2:$H$251,,COLUMN(INDIRECT('cal formula'!E$1))),IFERROR(INDEX(data!$A$2:$H$251,data!$K202,COLUMN(INDIRECT('cal formula'!E$1))),\"\"))","v":""},{"$f":"IF($I$8= \"All\", INDEX(data!$A$2:$H$251,,COLUMN(INDIRECT('cal formula'!F$1))),IFERROR(INDEX(data!$A$2:$H$251,data!$K202,COLUMN(INDIRECT('cal formula'!F$1))),\"\"))","v":""}]
[{"$f":"IF($I$8= \"All\", INDEX(data!$A$2:$H$251,,COLUMN(INDIRECT('cal formula'!A$1))),IFERROR(INDEX(data!$A$2:$H$251,data!$K203,COLUMN(INDIRECT('cal formula'!A$1))),\"\"))","v":""},{"$f":"IF($I$8= \"All\", INDEX(data!$A$2:$H$251,,COLUMN(INDIRECT('cal formula'!B$1))),IFERROR(INDEX(data!$A$2:$H$251,data!$K203,COLUMN(INDIRECT('cal formula'!B$1))),\"\"))","v":""},{"$f":"IF($I$8= \"All\", INDEX(data!$A$2:$H$251,,COLUMN(INDIRECT('cal formula'!C$1))),IFERROR(INDEX(data!$A$2:$H$251,data!$K203,COLUMN(INDIRECT('cal formula'!C$1))),\"\"))","v":""},{"$f":"IF($I$8= \"All\", INDEX(data!$A$2:$H$251,,COLUMN(INDIRECT('cal formula'!D$1))),IFERROR(INDEX(data!$A$2:$H$251,data!$K203,COLUMN(INDIRECT('cal formula'!D$1))),\"\"))","v":""},{"$f":"IF($I$8= \"All\", INDEX(data!$A$2:$H$251,,COLUMN(INDIRECT('cal formula'!E$1))),IFERROR(INDEX(data!$A$2:$H$251,data!$K203,COLUMN(INDIRECT('cal formula'!E$1))),\"\"))","v":""},{"$f":"IF($I$8= \"All\", INDEX(data!$A$2:$H$251,,COLUMN(INDIRECT('cal formula'!F$1))),IFERROR(INDEX(data!$A$2:$H$251,data!$K203,COLUMN(INDIRECT('cal formula'!F$1))),\"\"))","v":""}]
[{"$f":"IF($I$8= \"All\", INDEX(data!$A$2:$H$251,,COLUMN(INDIRECT('cal formula'!A$1))),IFERROR(INDEX(data!$A$2:$H$251,data!$K204,COLUMN(INDIRECT('cal formula'!A$1))),\"\"))","v":""},{"$f":"IF($I$8= \"All\", INDEX(data!$A$2:$H$251,,COLUMN(INDIRECT('cal formula'!B$1))),IFERROR(INDEX(data!$A$2:$H$251,data!$K204,COLUMN(INDIRECT('cal formula'!B$1))),\"\"))","v":""},{"$f":"IF($I$8= \"All\", INDEX(data!$A$2:$H$251,,COLUMN(INDIRECT('cal formula'!C$1))),IFERROR(INDEX(data!$A$2:$H$251,data!$K204,COLUMN(INDIRECT('cal formula'!C$1))),\"\"))","v":""},{"$f":"IF($I$8= \"All\", INDEX(data!$A$2:$H$251,,COLUMN(INDIRECT('cal formula'!D$1))),IFERROR(INDEX(data!$A$2:$H$251,data!$K204,COLUMN(INDIRECT('cal formula'!D$1))),\"\"))","v":""},{"$f":"IF($I$8= \"All\", INDEX(data!$A$2:$H$251,,COLUMN(INDIRECT('cal formula'!E$1))),IFERROR(INDEX(data!$A$2:$H$251,data!$K204,COLUMN(INDIRECT('cal formula'!E$1))),\"\"))","v":""},{"$f":"IF($I$8= \"All\", INDEX(data!$A$2:$H$251,,COLUMN(INDIRECT('cal formula'!F$1))),IFERROR(INDEX(data!$A$2:$H$251,data!$K204,COLUMN(INDIRECT('cal formula'!F$1))),\"\"))","v":""}]
[{"$f":"IF($I$8= \"All\", INDEX(data!$A$2:$H$251,,COLUMN(INDIRECT('cal formula'!A$1))),IFERROR(INDEX(data!$A$2:$H$251,data!$K205,COLUMN(INDIRECT('cal formula'!A$1))),\"\"))","v":""},{"$f":"IF($I$8= \"All\", INDEX(data!$A$2:$H$251,,COLUMN(INDIRECT('cal formula'!B$1))),IFERROR(INDEX(data!$A$2:$H$251,data!$K205,COLUMN(INDIRECT('cal formula'!B$1))),\"\"))","v":""},{"$f":"IF($I$8= \"All\", INDEX(data!$A$2:$H$251,,COLUMN(INDIRECT('cal formula'!C$1))),IFERROR(INDEX(data!$A$2:$H$251,data!$K205,COLUMN(INDIRECT('cal formula'!C$1))),\"\"))","v":""},{"$f":"IF($I$8= \"All\", INDEX(data!$A$2:$H$251,,COLUMN(INDIRECT('cal formula'!D$1))),IFERROR(INDEX(data!$A$2:$H$251,data!$K205,COLUMN(INDIRECT('cal formula'!D$1))),\"\"))","v":""},{"$f":"IF($I$8= \"All\", INDEX(data!$A$2:$H$251,,COLUMN(INDIRECT('cal formula'!E$1))),IFERROR(INDEX(data!$A$2:$H$251,data!$K205,COLUMN(INDIRECT('cal formula'!E$1))),\"\"))","v":""},{"$f":"IF($I$8= \"All\", INDEX(data!$A$2:$H$251,,COLUMN(INDIRECT('cal formula'!F$1))),IFERROR(INDEX(data!$A$2:$H$251,data!$K205,COLUMN(INDIRECT('cal formula'!F$1))),\"\"))","v":""}]
[{"$f":"IF($I$8= \"All\", INDEX(data!$A$2:$H$251,,COLUMN(INDIRECT('cal formula'!A$1))),IFERROR(INDEX(data!$A$2:$H$251,data!$K206,COLUMN(INDIRECT('cal formula'!A$1))),\"\"))","v":""},{"$f":"IF($I$8= \"All\", INDEX(data!$A$2:$H$251,,COLUMN(INDIRECT('cal formula'!B$1))),IFERROR(INDEX(data!$A$2:$H$251,data!$K206,COLUMN(INDIRECT('cal formula'!B$1))),\"\"))","v":""},{"$f":"IF($I$8= \"All\", INDEX(data!$A$2:$H$251,,COLUMN(INDIRECT('cal formula'!C$1))),IFERROR(INDEX(data!$A$2:$H$251,data!$K206,COLUMN(INDIRECT('cal formula'!C$1))),\"\"))","v":""},{"$f":"IF($I$8= \"All\", INDEX(data!$A$2:$H$251,,COLUMN(INDIRECT('cal formula'!D$1))),IFERROR(INDEX(data!$A$2:$H$251,data!$K206,COLUMN(INDIRECT('cal formula'!D$1))),\"\"))","v":""},{"$f":"IF($I$8= \"All\", INDEX(data!$A$2:$H$251,,COLUMN(INDIRECT('cal formula'!E$1))),IFERROR(INDEX(data!$A$2:$H$251,data!$K206,COLUMN(INDIRECT('cal formula'!E$1))),\"\"))","v":""},{"$f":"IF($I$8= \"All\", INDEX(data!$A$2:$H$251,,COLUMN(INDIRECT('cal formula'!F$1))),IFERROR(INDEX(data!$A$2:$H$251,data!$K206,COLUMN(INDIRECT('cal formula'!F$1))),\"\"))","v":""}]
[{"$f":"IF($I$8= \"All\", INDEX(data!$A$2:$H$251,,COLUMN(INDIRECT('cal formula'!A$1))),IFERROR(INDEX(data!$A$2:$H$251,data!$K207,COLUMN(INDIRECT('cal formula'!A$1))),\"\"))","v":""},{"$f":"IF($I$8= \"All\", INDEX(data!$A$2:$H$251,,COLUMN(INDIRECT('cal formula'!B$1))),IFERROR(INDEX(data!$A$2:$H$251,data!$K207,COLUMN(INDIRECT('cal formula'!B$1))),\"\"))","v":""},{"$f":"IF($I$8= \"All\", INDEX(data!$A$2:$H$251,,COLUMN(INDIRECT('cal formula'!C$1))),IFERROR(INDEX(data!$A$2:$H$251,data!$K207,COLUMN(INDIRECT('cal formula'!C$1))),\"\"))","v":""},{"$f":"IF($I$8= \"All\", INDEX(data!$A$2:$H$251,,COLUMN(INDIRECT('cal formula'!D$1))),IFERROR(INDEX(data!$A$2:$H$251,data!$K207,COLUMN(INDIRECT('cal formula'!D$1))),\"\"))","v":""},{"$f":"IF($I$8= \"All\", INDEX(data!$A$2:$H$251,,COLUMN(INDIRECT('cal formula'!E$1))),IFERROR(INDEX(data!$A$2:$H$251,data!$K207,COLUMN(INDIRECT('cal formula'!E$1))),\"\"))","v":""},{"$f":"IF($I$8= \"All\", INDEX(data!$A$2:$H$251,,COLUMN(INDIRECT('cal formula'!F$1))),IFERROR(INDEX(data!$A$2:$H$251,data!$K207,COLUMN(INDIRECT('cal formula'!F$1))),\"\"))","v":""}]
[{"$f":"IF($I$8= \"All\", INDEX(data!$A$2:$H$251,,COLUMN(INDIRECT('cal formula'!A$1))),IFERROR(INDEX(data!$A$2:$H$251,data!$K208,COLUMN(INDIRECT('cal formula'!A$1))),\"\"))","v":""},{"$f":"IF($I$8= \"All\", INDEX(data!$A$2:$H$251,,COLUMN(INDIRECT('cal formula'!B$1))),IFERROR(INDEX(data!$A$2:$H$251,data!$K208,COLUMN(INDIRECT('cal formula'!B$1))),\"\"))","v":""},{"$f":"IF($I$8= \"All\", INDEX(data!$A$2:$H$251,,COLUMN(INDIRECT('cal formula'!C$1))),IFERROR(INDEX(data!$A$2:$H$251,data!$K208,COLUMN(INDIRECT('cal formula'!C$1))),\"\"))","v":""},{"$f":"IF($I$8= \"All\", INDEX(data!$A$2:$H$251,,COLUMN(INDIRECT('cal formula'!D$1))),IFERROR(INDEX(data!$A$2:$H$251,data!$K208,COLUMN(INDIRECT('cal formula'!D$1))),\"\"))","v":""},{"$f":"IF($I$8= \"All\", INDEX(data!$A$2:$H$251,,COLUMN(INDIRECT('cal formula'!E$1))),IFERROR(INDEX(data!$A$2:$H$251,data!$K208,COLUMN(INDIRECT('cal formula'!E$1))),\"\"))","v":""},{"$f":"IF($I$8= \"All\", INDEX(data!$A$2:$H$251,,COLUMN(INDIRECT('cal formula'!F$1))),IFERROR(INDEX(data!$A$2:$H$251,data!$K208,COLUMN(INDIRECT('cal formula'!F$1))),\"\"))","v":""}]
[{"$f":"IF($I$8= \"All\", INDEX(data!$A$2:$H$251,,COLUMN(INDIRECT('cal formula'!A$1))),IFERROR(INDEX(data!$A$2:$H$251,data!$K209,COLUMN(INDIRECT('cal formula'!A$1))),\"\"))","v":""},{"$f":"IF($I$8= \"All\", INDEX(data!$A$2:$H$251,,COLUMN(INDIRECT('cal formula'!B$1))),IFERROR(INDEX(data!$A$2:$H$251,data!$K209,COLUMN(INDIRECT('cal formula'!B$1))),\"\"))","v":""},{"$f":"IF($I$8= \"All\", INDEX(data!$A$2:$H$251,,COLUMN(INDIRECT('cal formula'!C$1))),IFERROR(INDEX(data!$A$2:$H$251,data!$K209,COLUMN(INDIRECT('cal formula'!C$1))),\"\"))","v":""},{"$f":"IF($I$8= \"All\", INDEX(data!$A$2:$H$251,,COLUMN(INDIRECT('cal formula'!D$1))),IFERROR(INDEX(data!$A$2:$H$251,data!$K209,COLUMN(INDIRECT('cal formula'!D$1))),\"\"))","v":""},{"$f":"IF($I$8= \"All\", INDEX(data!$A$2:$H$251,,COLUMN(INDIRECT('cal formula'!E$1))),IFERROR(INDEX(data!$A$2:$H$251,data!$K209,COLUMN(INDIRECT('cal formula'!E$1))),\"\"))","v":""},{"$f":"IF($I$8= \"All\", INDEX(data!$A$2:$H$251,,COLUMN(INDIRECT('cal formula'!F$1))),IFERROR(INDEX(data!$A$2:$H$251,data!$K209,COLUMN(INDIRECT('cal formula'!F$1))),\"\"))","v":""}]
[{"$f":"IF($I$8= \"All\", INDEX(data!$A$2:$H$251,,COLUMN(INDIRECT('cal formula'!A$1))),IFERROR(INDEX(data!$A$2:$H$251,data!$K210,COLUMN(INDIRECT('cal formula'!A$1))),\"\"))","v":""},{"$f":"IF($I$8= \"All\", INDEX(data!$A$2:$H$251,,COLUMN(INDIRECT('cal formula'!B$1))),IFERROR(INDEX(data!$A$2:$H$251,data!$K210,COLUMN(INDIRECT('cal formula'!B$1))),\"\"))","v":""},{"$f":"IF($I$8= \"All\", INDEX(data!$A$2:$H$251,,COLUMN(INDIRECT('cal formula'!C$1))),IFERROR(INDEX(data!$A$2:$H$251,data!$K210,COLUMN(INDIRECT('cal formula'!C$1))),\"\"))","v":""},{"$f":"IF($I$8= \"All\", INDEX(data!$A$2:$H$251,,COLUMN(INDIRECT('cal formula'!D$1))),IFERROR(INDEX(data!$A$2:$H$251,data!$K210,COLUMN(INDIRECT('cal formula'!D$1))),\"\"))","v":""},{"$f":"IF($I$8= \"All\", INDEX(data!$A$2:$H$251,,COLUMN(INDIRECT('cal formula'!E$1))),IFERROR(INDEX(data!$A$2:$H$251,data!$K210,COLUMN(INDIRECT('cal formula'!E$1))),\"\"))","v":""},{"$f":"IF($I$8= \"All\", INDEX(data!$A$2:$H$251,,COLUMN(INDIRECT('cal formula'!F$1))),IFERROR(INDEX(data!$A$2:$H$251,data!$K210,COLUMN(INDIRECT('cal formula'!F$1))),\"\"))","v":""}]
[{"$f":"IF($I$8= \"All\", INDEX(data!$A$2:$H$251,,COLUMN(INDIRECT('cal formula'!A$1))),IFERROR(INDEX(data!$A$2:$H$251,data!$K211,COLUMN(INDIRECT('cal formula'!A$1))),\"\"))","v":""},{"$f":"IF($I$8= \"All\", INDEX(data!$A$2:$H$251,,COLUMN(INDIRECT('cal formula'!B$1))),IFERROR(INDEX(data!$A$2:$H$251,data!$K211,COLUMN(INDIRECT('cal formula'!B$1))),\"\"))","v":""},{"$f":"IF($I$8= \"All\", INDEX(data!$A$2:$H$251,,COLUMN(INDIRECT('cal formula'!C$1))),IFERROR(INDEX(data!$A$2:$H$251,data!$K211,COLUMN(INDIRECT('cal formula'!C$1))),\"\"))","v":""},{"$f":"IF($I$8= \"All\", INDEX(data!$A$2:$H$251,,COLUMN(INDIRECT('cal formula'!D$1))),IFERROR(INDEX(data!$A$2:$H$251,data!$K211,COLUMN(INDIRECT('cal formula'!D$1))),\"\"))","v":""},{"$f":"IF($I$8= \"All\", INDEX(data!$A$2:$H$251,,COLUMN(INDIRECT('cal formula'!E$1))),IFERROR(INDEX(data!$A$2:$H$251,data!$K211,COLUMN(INDIRECT('cal formula'!E$1))),\"\"))","v":""},{"$f":"IF($I$8= \"All\", INDEX(data!$A$2:$H$251,,COLUMN(INDIRECT('cal formula'!F$1))),IFERROR(INDEX(data!$A$2:$H$251,data!$K211,COLUMN(INDIRECT('cal formula'!F$1))),\"\"))","v":""}]
[{"$f":"IF($I$8= \"All\", INDEX(data!$A$2:$H$251,,COLUMN(INDIRECT('cal formula'!A$1))),IFERROR(INDEX(data!$A$2:$H$251,data!$K212,COLUMN(INDIRECT('cal formula'!A$1))),\"\"))","v":""},{"$f":"IF($I$8= \"All\", INDEX(data!$A$2:$H$251,,COLUMN(INDIRECT('cal formula'!B$1))),IFERROR(INDEX(data!$A$2:$H$251,data!$K212,COLUMN(INDIRECT('cal formula'!B$1))),\"\"))","v":""},{"$f":"IF($I$8= \"All\", INDEX(data!$A$2:$H$251,,COLUMN(INDIRECT('cal formula'!C$1))),IFERROR(INDEX(data!$A$2:$H$251,data!$K212,COLUMN(INDIRECT('cal formula'!C$1))),\"\"))","v":""},{"$f":"IF($I$8= \"All\", INDEX(data!$A$2:$H$251,,COLUMN(INDIRECT('cal formula'!D$1))),IFERROR(INDEX(data!$A$2:$H$251,data!$K212,COLUMN(INDIRECT('cal formula'!D$1))),\"\"))","v":""},{"$f":"IF($I$8= \"All\", INDEX(data!$A$2:$H$251,,COLUMN(INDIRECT('cal formula'!E$1))),IFERROR(INDEX(data!$A$2:$H$251,data!$K212,COLUMN(INDIRECT('cal formula'!E$1))),\"\"))","v":""},{"$f":"IF($I$8= \"All\", INDEX(data!$A$2:$H$251,,COLUMN(INDIRECT('cal formula'!F$1))),IFERROR(INDEX(data!$A$2:$H$251,data!$K212,COLUMN(INDIRECT('cal formula'!F$1))),\"\"))","v":""}]
[{"$f":"IF($I$8= \"All\", INDEX(data!$A$2:$H$251,,COLUMN(INDIRECT('cal formula'!A$1))),IFERROR(INDEX(data!$A$2:$H$251,data!$K213,COLUMN(INDIRECT('cal formula'!A$1))),\"\"))","v":""},{"$f":"IF($I$8= \"All\", INDEX(data!$A$2:$H$251,,COLUMN(INDIRECT('cal formula'!B$1))),IFERROR(INDEX(data!$A$2:$H$251,data!$K213,COLUMN(INDIRECT('cal formula'!B$1))),\"\"))","v":""},{"$f":"IF($I$8= \"All\", INDEX(data!$A$2:$H$251,,COLUMN(INDIRECT('cal formula'!C$1))),IFERROR(INDEX(data!$A$2:$H$251,data!$K213,COLUMN(INDIRECT('cal formula'!C$1))),\"\"))","v":""},{"$f":"IF($I$8= \"All\", INDEX(data!$A$2:$H$251,,COLUMN(INDIRECT('cal formula'!D$1))),IFERROR(INDEX(data!$A$2:$H$251,data!$K213,COLUMN(INDIRECT('cal formula'!D$1))),\"\"))","v":""},{"$f":"IF($I$8= \"All\", INDEX(data!$A$2:$H$251,,COLUMN(INDIRECT('cal formula'!E$1))),IFERROR(INDEX(data!$A$2:$H$251,data!$K213,COLUMN(INDIRECT('cal formula'!E$1))),\"\"))","v":""},{"$f":"IF($I$8= \"All\", INDEX(data!$A$2:$H$251,,COLUMN(INDIRECT('cal formula'!F$1))),IFERROR(INDEX(data!$A$2:$H$251,data!$K213,COLUMN(INDIRECT('cal formula'!F$1))),\"\"))","v":""}]
[{"$f":"IF($I$8= \"All\", INDEX(data!$A$2:$H$251,,COLUMN(INDIRECT('cal formula'!A$1))),IFERROR(INDEX(data!$A$2:$H$251,data!$K214,COLUMN(INDIRECT('cal formula'!A$1))),\"\"))","v":""},{"$f":"IF($I$8= \"All\", INDEX(data!$A$2:$H$251,,COLUMN(INDIRECT('cal formula'!B$1))),IFERROR(INDEX(data!$A$2:$H$251,data!$K214,COLUMN(INDIRECT('cal formula'!B$1))),\"\"))","v":""},{"$f":"IF($I$8= \"All\", INDEX(data!$A$2:$H$251,,COLUMN(INDIRECT('cal formula'!C$1))),IFERROR(INDEX(data!$A$2:$H$251,data!$K214,COLUMN(INDIRECT('cal formula'!C$1))),\"\"))","v":""},{"$f":"IF($I$8= \"All\", INDEX(data!$A$2:$H$251,,COLUMN(INDIRECT('cal formula'!D$1))),IFERROR(INDEX(data!$A$2:$H$251,data!$K214,COLUMN(INDIRECT('cal formula'!D$1))),\"\"))","v":""},{"$f":"IF($I$8= \"All\", INDEX(data!$A$2:$H$251,,COLUMN(INDIRECT('cal formula'!E$1))),IFERROR(INDEX(data!$A$2:$H$251,data!$K214,COLUMN(INDIRECT('cal formula'!E$1))),\"\"))","v":""},{"$f":"IF($I$8= \"All\", INDEX(data!$A$2:$H$251,,COLUMN(INDIRECT('cal formula'!F$1))),IFERROR(INDEX(data!$A$2:$H$251,data!$K214,COLUMN(INDIRECT('cal formula'!F$1))),\"\"))","v":""}]
[{"$f":"IF($I$8= \"All\", INDEX(data!$A$2:$H$251,,COLUMN(INDIRECT('cal formula'!A$1))),IFERROR(INDEX(data!$A$2:$H$251,data!$K215,COLUMN(INDIRECT('cal formula'!A$1))),\"\"))","v":""},{"$f":"IF($I$8= \"All\", INDEX(data!$A$2:$H$251,,COLUMN(INDIRECT('cal formula'!B$1))),IFERROR(INDEX(data!$A$2:$H$251,data!$K215,COLUMN(INDIRECT('cal formula'!B$1))),\"\"))","v":""},{"$f":"IF($I$8= \"All\", INDEX(data!$A$2:$H$251,,COLUMN(INDIRECT('cal formula'!C$1))),IFERROR(INDEX(data!$A$2:$H$251,data!$K215,COLUMN(INDIRECT('cal formula'!C$1))),\"\"))","v":""},{"$f":"IF($I$8= \"All\", INDEX(data!$A$2:$H$251,,COLUMN(INDIRECT('cal formula'!D$1))),IFERROR(INDEX(data!$A$2:$H$251,data!$K215,COLUMN(INDIRECT('cal formula'!D$1))),\"\"))","v":""},{"$f":"IF($I$8= \"All\", INDEX(data!$A$2:$H$251,,COLUMN(INDIRECT('cal formula'!E$1))),IFERROR(INDEX(data!$A$2:$H$251,data!$K215,COLUMN(INDIRECT('cal formula'!E$1))),\"\"))","v":""},{"$f":"IF($I$8= \"All\", INDEX(data!$A$2:$H$251,,COLUMN(INDIRECT('cal formula'!F$1))),IFERROR(INDEX(data!$A$2:$H$251,data!$K215,COLUMN(INDIRECT('cal formula'!F$1))),\"\"))","v":""}]
[{"$f":"IF($I$8= \"All\", INDEX(data!$A$2:$H$251,,COLUMN(INDIRECT('cal formula'!A$1))),IFERROR(INDEX(data!$A$2:$H$251,data!$K216,COLUMN(INDIRECT('cal formula'!A$1))),\"\"))","v":""},{"$f":"IF($I$8= \"All\", INDEX(data!$A$2:$H$251,,COLUMN(INDIRECT('cal formula'!B$1))),IFERROR(INDEX(data!$A$2:$H$251,data!$K216,COLUMN(INDIRECT('cal formula'!B$1))),\"\"))","v":""},{"$f":"IF($I$8= \"All\", INDEX(data!$A$2:$H$251,,COLUMN(INDIRECT('cal formula'!C$1))),IFERROR(INDEX(data!$A$2:$H$251,data!$K216,COLUMN(INDIRECT('cal formula'!C$1))),\"\"))","v":""},{"$f":"IF($I$8= \"All\", INDEX(data!$A$2:$H$251,,COLUMN(INDIRECT('cal formula'!D$1))),IFERROR(INDEX(data!$A$2:$H$251,data!$K216,COLUMN(INDIRECT('cal formula'!D$1))),\"\"))","v":""},{"$f":"IF($I$8= \"All\", INDEX(data!$A$2:$H$251,,COLUMN(INDIRECT('cal formula'!E$1))),IFERROR(INDEX(data!$A$2:$H$251,data!$K216,COLUMN(INDIRECT('cal formula'!E$1))),\"\"))","v":""},{"$f":"IF($I$8= \"All\", INDEX(data!$A$2:$H$251,,COLUMN(INDIRECT('cal formula'!F$1))),IFERROR(INDEX(data!$A$2:$H$251,data!$K216,COLUMN(INDIRECT('cal formula'!F$1))),\"\"))","v":""}]
[{"$f":"IF($I$8= \"All\", INDEX(data!$A$2:$H$251,,COLUMN(INDIRECT('cal formula'!A$1))),IFERROR(INDEX(data!$A$2:$H$251,data!$K217,COLUMN(INDIRECT('cal formula'!A$1))),\"\"))","v":""},{"$f":"IF($I$8= \"All\", INDEX(data!$A$2:$H$251,,COLUMN(INDIRECT('cal formula'!B$1))),IFERROR(INDEX(data!$A$2:$H$251,data!$K217,COLUMN(INDIRECT('cal formula'!B$1))),\"\"))","v":""},{"$f":"IF($I$8= \"All\", INDEX(data!$A$2:$H$251,,COLUMN(INDIRECT('cal formula'!C$1))),IFERROR(INDEX(data!$A$2:$H$251,data!$K217,COLUMN(INDIRECT('cal formula'!C$1))),\"\"))","v":""},{"$f":"IF($I$8= \"All\", INDEX(data!$A$2:$H$251,,COLUMN(INDIRECT('cal formula'!D$1))),IFERROR(INDEX(data!$A$2:$H$251,data!$K217,COLUMN(INDIRECT('cal formula'!D$1))),\"\"))","v":""},{"$f":"IF($I$8= \"All\", INDEX(data!$A$2:$H$251,,COLUMN(INDIRECT('cal formula'!E$1))),IFERROR(INDEX(data!$A$2:$H$251,data!$K217,COLUMN(INDIRECT('cal formula'!E$1))),\"\"))","v":""},{"$f":"IF($I$8= \"All\", INDEX(data!$A$2:$H$251,,COLUMN(INDIRECT('cal formula'!F$1))),IFERROR(INDEX(data!$A$2:$H$251,data!$K217,COLUMN(INDIRECT('cal formula'!F$1))),\"\"))","v":""}]
[{"$f":"IF($I$8= \"All\", INDEX(data!$A$2:$H$251,,COLUMN(INDIRECT('cal formula'!A$1))),IFERROR(INDEX(data!$A$2:$H$251,data!$K218,COLUMN(INDIRECT('cal formula'!A$1))),\"\"))","v":""},{"$f":"IF($I$8= \"All\", INDEX(data!$A$2:$H$251,,COLUMN(INDIRECT('cal formula'!B$1))),IFERROR(INDEX(data!$A$2:$H$251,data!$K218,COLUMN(INDIRECT('cal formula'!B$1))),\"\"))","v":""},{"$f":"IF($I$8= \"All\", INDEX(data!$A$2:$H$251,,COLUMN(INDIRECT('cal formula'!C$1))),IFERROR(INDEX(data!$A$2:$H$251,data!$K218,COLUMN(INDIRECT('cal formula'!C$1))),\"\"))","v":""},{"$f":"IF($I$8= \"All\", INDEX(data!$A$2:$H$251,,COLUMN(INDIRECT('cal formula'!D$1))),IFERROR(INDEX(data!$A$2:$H$251,data!$K218,COLUMN(INDIRECT('cal formula'!D$1))),\"\"))","v":""},{"$f":"IF($I$8= \"All\", INDEX(data!$A$2:$H$251,,COLUMN(INDIRECT('cal formula'!E$1))),IFERROR(INDEX(data!$A$2:$H$251,data!$K218,COLUMN(INDIRECT('cal formula'!E$1))),\"\"))","v":""},{"$f":"IF($I$8= \"All\", INDEX(data!$A$2:$H$251,,COLUMN(INDIRECT('cal formula'!F$1))),IFERROR(INDEX(data!$A$2:$H$251,data!$K218,COLUMN(INDIRECT('cal formula'!F$1))),\"\"))","v":""}]
[{"$f":"IF($I$8= \"All\", INDEX(data!$A$2:$H$251,,COLUMN(INDIRECT('cal formula'!A$1))),IFERROR(INDEX(data!$A$2:$H$251,data!$K219,COLUMN(INDIRECT('cal formula'!A$1))),\"\"))","v":""},{"$f":"IF($I$8= \"All\", INDEX(data!$A$2:$H$251,,COLUMN(INDIRECT('cal formula'!B$1))),IFERROR(INDEX(data!$A$2:$H$251,data!$K219,COLUMN(INDIRECT('cal formula'!B$1))),\"\"))","v":""},{"$f":"IF($I$8= \"All\", INDEX(data!$A$2:$H$251,,COLUMN(INDIRECT('cal formula'!C$1))),IFERROR(INDEX(data!$A$2:$H$251,data!$K219,COLUMN(INDIRECT('cal formula'!C$1))),\"\"))","v":""},{"$f":"IF($I$8= \"All\", INDEX(data!$A$2:$H$251,,COLUMN(INDIRECT('cal formula'!D$1))),IFERROR(INDEX(data!$A$2:$H$251,data!$K219,COLUMN(INDIRECT('cal formula'!D$1))),\"\"))","v":""},{"$f":"IF($I$8= \"All\", INDEX(data!$A$2:$H$251,,COLUMN(INDIRECT('cal formula'!E$1))),IFERROR(INDEX(data!$A$2:$H$251,data!$K219,COLUMN(INDIRECT('cal formula'!E$1))),\"\"))","v":""},{"$f":"IF($I$8= \"All\", INDEX(data!$A$2:$H$251,,COLUMN(INDIRECT('cal formula'!F$1))),IFERROR(INDEX(data!$A$2:$H$251,data!$K219,COLUMN(INDIRECT('cal formula'!F$1))),\"\"))","v":""}]
[{"$f":"IF($I$8= \"All\", INDEX(data!$A$2:$H$251,,COLUMN(INDIRECT('cal formula'!A$1))),IFERROR(INDEX(data!$A$2:$H$251,data!$K220,COLUMN(INDIRECT('cal formula'!A$1))),\"\"))","v":""},{"$f":"IF($I$8= \"All\", INDEX(data!$A$2:$H$251,,COLUMN(INDIRECT('cal formula'!B$1))),IFERROR(INDEX(data!$A$2:$H$251,data!$K220,COLUMN(INDIRECT('cal formula'!B$1))),\"\"))","v":""},{"$f":"IF($I$8= \"All\", INDEX(data!$A$2:$H$251,,COLUMN(INDIRECT('cal formula'!C$1))),IFERROR(INDEX(data!$A$2:$H$251,data!$K220,COLUMN(INDIRECT('cal formula'!C$1))),\"\"))","v":""},{"$f":"IF($I$8= \"All\", INDEX(data!$A$2:$H$251,,COLUMN(INDIRECT('cal formula'!D$1))),IFERROR(INDEX(data!$A$2:$H$251,data!$K220,COLUMN(INDIRECT('cal formula'!D$1))),\"\"))","v":""},{"$f":"IF($I$8= \"All\", INDEX(data!$A$2:$H$251,,COLUMN(INDIRECT('cal formula'!E$1))),IFERROR(INDEX(data!$A$2:$H$251,data!$K220,COLUMN(INDIRECT('cal formula'!E$1))),\"\"))","v":""},{"$f":"IF($I$8= \"All\", INDEX(data!$A$2:$H$251,,COLUMN(INDIRECT('cal formula'!F$1))),IFERROR(INDEX(data!$A$2:$H$251,data!$K220,COLUMN(INDIRECT('cal formula'!F$1))),\"\"))","v":""}]
[{"$f":"IF($I$8= \"All\", INDEX(data!$A$2:$H$251,,COLUMN(INDIRECT('cal formula'!A$1))),IFERROR(INDEX(data!$A$2:$H$251,data!$K221,COLUMN(INDIRECT('cal formula'!A$1))),\"\"))","v":""},{"$f":"IF($I$8= \"All\", INDEX(data!$A$2:$H$251,,COLUMN(INDIRECT('cal formula'!B$1))),IFERROR(INDEX(data!$A$2:$H$251,data!$K221,COLUMN(INDIRECT('cal formula'!B$1))),\"\"))","v":""},{"$f":"IF($I$8= \"All\", INDEX(data!$A$2:$H$251,,COLUMN(INDIRECT('cal formula'!C$1))),IFERROR(INDEX(data!$A$2:$H$251,data!$K221,COLUMN(INDIRECT('cal formula'!C$1))),\"\"))","v":""},{"$f":"IF($I$8= \"All\", INDEX(data!$A$2:$H$251,,COLUMN(INDIRECT('cal formula'!D$1))),IFERROR(INDEX(data!$A$2:$H$251,data!$K221,COLUMN(INDIRECT('cal formula'!D$1))),\"\"))","v":""},{"$f":"IF($I$8= \"All\", INDEX(data!$A$2:$H$251,,COLUMN(INDIRECT('cal formula'!E$1))),IFERROR(INDEX(data!$A$2:$H$251,data!$K221,COLUMN(INDIRECT('cal formula'!E$1))),\"\"))","v":""},{"$f":"IF($I$8= \"All\", INDEX(data!$A$2:$H$251,,COLUMN(INDIRECT('cal formula'!F$1))),IFERROR(INDEX(data!$A$2:$H$251,data!$K221,COLUMN(INDIRECT('cal formula'!F$1))),\"\"))","v":""}]
[{"$f":"IF($I$8= \"All\", INDEX(data!$A$2:$H$251,,COLUMN(INDIRECT('cal formula'!A$1))),IFERROR(INDEX(data!$A$2:$H$251,data!$K222,COLUMN(INDIRECT('cal formula'!A$1))),\"\"))","v":""},{"$f":"IF($I$8= \"All\", INDEX(data!$A$2:$H$251,,COLUMN(INDIRECT('cal formula'!B$1))),IFERROR(INDEX(data!$A$2:$H$251,data!$K222,COLUMN(INDIRECT('cal formula'!B$1))),\"\"))","v":""},{"$f":"IF($I$8= \"All\", INDEX(data!$A$2:$H$251,,COLUMN(INDIRECT('cal formula'!C$1))),IFERROR(INDEX(data!$A$2:$H$251,data!$K222,COLUMN(INDIRECT('cal formula'!C$1))),\"\"))","v":""},{"$f":"IF($I$8= \"All\", INDEX(data!$A$2:$H$251,,COLUMN(INDIRECT('cal formula'!D$1))),IFERROR(INDEX(data!$A$2:$H$251,data!$K222,COLUMN(INDIRECT('cal formula'!D$1))),\"\"))","v":""},{"$f":"IF($I$8= \"All\", INDEX(data!$A$2:$H$251,,COLUMN(INDIRECT('cal formula'!E$1))),IFERROR(INDEX(data!$A$2:$H$251,data!$K222,COLUMN(INDIRECT('cal formula'!E$1))),\"\"))","v":""},{"$f":"IF($I$8= \"All\", INDEX(data!$A$2:$H$251,,COLUMN(INDIRECT('cal formula'!F$1))),IFERROR(INDEX(data!$A$2:$H$251,data!$K222,COLUMN(INDIRECT('cal formula'!F$1))),\"\"))","v":""}]
[{"$f":"IF($I$8= \"All\", INDEX(data!$A$2:$H$251,,COLUMN(INDIRECT('cal formula'!A$1))),IFERROR(INDEX(data!$A$2:$H$251,data!$K223,COLUMN(INDIRECT('cal formula'!A$1))),\"\"))","v":""},{"$f":"IF($I$8= \"All\", INDEX(data!$A$2:$H$251,,COLUMN(INDIRECT('cal formula'!B$1))),IFERROR(INDEX(data!$A$2:$H$251,data!$K223,COLUMN(INDIRECT('cal formula'!B$1))),\"\"))","v":""},{"$f":"IF($I$8= \"All\", INDEX(data!$A$2:$H$251,,COLUMN(INDIRECT('cal formula'!C$1))),IFERROR(INDEX(data!$A$2:$H$251,data!$K223,COLUMN(INDIRECT('cal formula'!C$1))),\"\"))","v":""},{"$f":"IF($I$8= \"All\", INDEX(data!$A$2:$H$251,,COLUMN(INDIRECT('cal formula'!D$1))),IFERROR(INDEX(data!$A$2:$H$251,data!$K223,COLUMN(INDIRECT('cal formula'!D$1))),\"\"))","v":""},{"$f":"IF($I$8= \"All\", INDEX(data!$A$2:$H$251,,COLUMN(INDIRECT('cal formula'!E$1))),IFERROR(INDEX(data!$A$2:$H$251,data!$K223,COLUMN(INDIRECT('cal formula'!E$1))),\"\"))","v":""},{"$f":"IF($I$8= \"All\", INDEX(data!$A$2:$H$251,,COLUMN(INDIRECT('cal formula'!F$1))),IFERROR(INDEX(data!$A$2:$H$251,data!$K223,COLUMN(INDIRECT('cal formula'!F$1))),\"\"))","v":""}]
[{"$f":"IF($I$8= \"All\", INDEX(data!$A$2:$H$251,,COLUMN(INDIRECT('cal formula'!A$1))),IFERROR(INDEX(data!$A$2:$H$251,data!$K224,COLUMN(INDIRECT('cal formula'!A$1))),\"\"))","v":""},{"$f":"IF($I$8= \"All\", INDEX(data!$A$2:$H$251,,COLUMN(INDIRECT('cal formula'!B$1))),IFERROR(INDEX(data!$A$2:$H$251,data!$K224,COLUMN(INDIRECT('cal formula'!B$1))),\"\"))","v":""},{"$f":"IF($I$8= \"All\", INDEX(data!$A$2:$H$251,,COLUMN(INDIRECT('cal formula'!C$1))),IFERROR(INDEX(data!$A$2:$H$251,data!$K224,COLUMN(INDIRECT('cal formula'!C$1))),\"\"))","v":""},{"$f":"IF($I$8= \"All\", INDEX(data!$A$2:$H$251,,COLUMN(INDIRECT('cal formula'!D$1))),IFERROR(INDEX(data!$A$2:$H$251,data!$K224,COLUMN(INDIRECT('cal formula'!D$1))),\"\"))","v":""},{"$f":"IF($I$8= \"All\", INDEX(data!$A$2:$H$251,,COLUMN(INDIRECT('cal formula'!E$1))),IFERROR(INDEX(data!$A$2:$H$251,data!$K224,COLUMN(INDIRECT('cal formula'!E$1))),\"\"))","v":""},{"$f":"IF($I$8= \"All\", INDEX(data!$A$2:$H$251,,COLUMN(INDIRECT('cal formula'!F$1))),IFERROR(INDEX(data!$A$2:$H$251,data!$K224,COLUMN(INDIRECT('cal formula'!F$1))),\"\"))","v":""}]
[{"$f":"IF($I$8= \"All\", INDEX(data!$A$2:$H$251,,COLUMN(INDIRECT('cal formula'!A$1))),IFERROR(INDEX(data!$A$2:$H$251,data!$K225,COLUMN(INDIRECT('cal formula'!A$1))),\"\"))","v":""},{"$f":"IF($I$8= \"All\", INDEX(data!$A$2:$H$251,,COLUMN(INDIRECT('cal formula'!B$1))),IFERROR(INDEX(data!$A$2:$H$251,data!$K225,COLUMN(INDIRECT('cal formula'!B$1))),\"\"))","v":""},{"$f":"IF($I$8= \"All\", INDEX(data!$A$2:$H$251,,COLUMN(INDIRECT('cal formula'!C$1))),IFERROR(INDEX(data!$A$2:$H$251,data!$K225,COLUMN(INDIRECT('cal formula'!C$1))),\"\"))","v":""},{"$f":"IF($I$8= \"All\", INDEX(data!$A$2:$H$251,,COLUMN(INDIRECT('cal formula'!D$1))),IFERROR(INDEX(data!$A$2:$H$251,data!$K225,COLUMN(INDIRECT('cal formula'!D$1))),\"\"))","v":""},{"$f":"IF($I$8= \"All\", INDEX(data!$A$2:$H$251,,COLUMN(INDIRECT('cal formula'!E$1))),IFERROR(INDEX(data!$A$2:$H$251,data!$K225,COLUMN(INDIRECT('cal formula'!E$1))),\"\"))","v":""},{"$f":"IF($I$8= \"All\", INDEX(data!$A$2:$H$251,,COLUMN(INDIRECT('cal formula'!F$1))),IFERROR(INDEX(data!$A$2:$H$251,data!$K225,COLUMN(INDIRECT('cal formula'!F$1))),\"\"))","v":""}]
[{"$f":"IF($I$8= \"All\", INDEX(data!$A$2:$H$251,,COLUMN(INDIRECT('cal formula'!A$1))),IFERROR(INDEX(data!$A$2:$H$251,data!$K226,COLUMN(INDIRECT('cal formula'!A$1))),\"\"))","v":""},{"$f":"IF($I$8= \"All\", INDEX(data!$A$2:$H$251,,COLUMN(INDIRECT('cal formula'!B$1))),IFERROR(INDEX(data!$A$2:$H$251,data!$K226,COLUMN(INDIRECT('cal formula'!B$1))),\"\"))","v":""},{"$f":"IF($I$8= \"All\", INDEX(data!$A$2:$H$251,,COLUMN(INDIRECT('cal formula'!C$1))),IFERROR(INDEX(data!$A$2:$H$251,data!$K226,COLUMN(INDIRECT('cal formula'!C$1))),\"\"))","v":""},{"$f":"IF($I$8= \"All\", INDEX(data!$A$2:$H$251,,COLUMN(INDIRECT('cal formula'!D$1))),IFERROR(INDEX(data!$A$2:$H$251,data!$K226,COLUMN(INDIRECT('cal formula'!D$1))),\"\"))","v":""},{"$f":"IF($I$8= \"All\", INDEX(data!$A$2:$H$251,,COLUMN(INDIRECT('cal formula'!E$1))),IFERROR(INDEX(data!$A$2:$H$251,data!$K226,COLUMN(INDIRECT('cal formula'!E$1))),\"\"))","v":""},{"$f":"IF($I$8= \"All\", INDEX(data!$A$2:$H$251,,COLUMN(INDIRECT('cal formula'!F$1))),IFERROR(INDEX(data!$A$2:$H$251,data!$K226,COLUMN(INDIRECT('cal formula'!F$1))),\"\"))","v":""}]
[{"$f":"IF($I$8= \"All\", INDEX(data!$A$2:$H$251,,COLUMN(INDIRECT('cal formula'!A$1))),IFERROR(INDEX(data!$A$2:$H$251,data!$K227,COLUMN(INDIRECT('cal formula'!A$1))),\"\"))","v":""},{"$f":"IF($I$8= \"All\", INDEX(data!$A$2:$H$251,,COLUMN(INDIRECT('cal formula'!B$1))),IFERROR(INDEX(data!$A$2:$H$251,data!$K227,COLUMN(INDIRECT('cal formula'!B$1))),\"\"))","v":""},{"$f":"IF($I$8= \"All\", INDEX(data!$A$2:$H$251,,COLUMN(INDIRECT('cal formula'!C$1))),IFERROR(INDEX(data!$A$2:$H$251,data!$K227,COLUMN(INDIRECT('cal formula'!C$1))),\"\"))","v":""},{"$f":"IF($I$8= \"All\", INDEX(data!$A$2:$H$251,,COLUMN(INDIRECT('cal formula'!D$1))),IFERROR(INDEX(data!$A$2:$H$251,data!$K227,COLUMN(INDIRECT('cal formula'!D$1))),\"\"))","v":""},{"$f":"IF($I$8= \"All\", INDEX(data!$A$2:$H$251,,COLUMN(INDIRECT('cal formula'!E$1))),IFERROR(INDEX(data!$A$2:$H$251,data!$K227,COLUMN(INDIRECT('cal formula'!E$1))),\"\"))","v":""},{"$f":"IF($I$8= \"All\", INDEX(data!$A$2:$H$251,,COLUMN(INDIRECT('cal formula'!F$1))),IFERROR(INDEX(data!$A$2:$H$251,data!$K227,COLUMN(INDIRECT('cal formula'!F$1))),\"\"))","v":""}]
[{"$f":"IF($I$8= \"All\", INDEX(data!$A$2:$H$251,,COLUMN(INDIRECT('cal formula'!A$1))),IFERROR(INDEX(data!$A$2:$H$251,data!$K228,COLUMN(INDIRECT('cal formula'!A$1))),\"\"))","v":""},{"$f":"IF($I$8= \"All\", INDEX(data!$A$2:$H$251,,COLUMN(INDIRECT('cal formula'!B$1))),IFERROR(INDEX(data!$A$2:$H$251,data!$K228,COLUMN(INDIRECT('cal formula'!B$1))),\"\"))","v":""},{"$f":"IF($I$8= \"All\", INDEX(data!$A$2:$H$251,,COLUMN(INDIRECT('cal formula'!C$1))),IFERROR(INDEX(data!$A$2:$H$251,data!$K228,COLUMN(INDIRECT('cal formula'!C$1))),\"\"))","v":""},{"$f":"IF($I$8= \"All\", INDEX(data!$A$2:$H$251,,COLUMN(INDIRECT('cal formula'!D$1))),IFERROR(INDEX(data!$A$2:$H$251,data!$K228,COLUMN(INDIRECT('cal formula'!D$1))),\"\"))","v":""},{"$f":"IF($I$8= \"All\", INDEX(data!$A$2:$H$251,,COLUMN(INDIRECT('cal formula'!E$1))),IFERROR(INDEX(data!$A$2:$H$251,data!$K228,COLUMN(INDIRECT('cal formula'!E$1))),\"\"))","v":""},{"$f":"IF($I$8= \"All\", INDEX(data!$A$2:$H$251,,COLUMN(INDIRECT('cal formula'!F$1))),IFERROR(INDEX(data!$A$2:$H$251,data!$K228,COLUMN(INDIRECT('cal formula'!F$1))),\"\"))","v":""}]
[{"$f":"IF($I$8= \"All\", INDEX(data!$A$2:$H$251,,COLUMN(INDIRECT('cal formula'!A$1))),IFERROR(INDEX(data!$A$2:$H$251,data!$K229,COLUMN(INDIRECT('cal formula'!A$1))),\"\"))","v":""},{"$f":"IF($I$8= \"All\", INDEX(data!$A$2:$H$251,,COLUMN(INDIRECT('cal formula'!B$1))),IFERROR(INDEX(data!$A$2:$H$251,data!$K229,COLUMN(INDIRECT('cal formula'!B$1))),\"\"))","v":""},{"$f":"IF($I$8= \"All\", INDEX(data!$A$2:$H$251,,COLUMN(INDIRECT('cal formula'!C$1))),IFERROR(INDEX(data!$A$2:$H$251,data!$K229,COLUMN(INDIRECT('cal formula'!C$1))),\"\"))","v":""},{"$f":"IF($I$8= \"All\", INDEX(data!$A$2:$H$251,,COLUMN(INDIRECT('cal formula'!D$1))),IFERROR(INDEX(data!$A$2:$H$251,data!$K229,COLUMN(INDIRECT('cal formula'!D$1))),\"\"))","v":""},{"$f":"IF($I$8= \"All\", INDEX(data!$A$2:$H$251,,COLUMN(INDIRECT('cal formula'!E$1))),IFERROR(INDEX(data!$A$2:$H$251,data!$K229,COLUMN(INDIRECT('cal formula'!E$1))),\"\"))","v":""},{"$f":"IF($I$8= \"All\", INDEX(data!$A$2:$H$251,,COLUMN(INDIRECT('cal formula'!F$1))),IFERROR(INDEX(data!$A$2:$H$251,data!$K229,COLUMN(INDIRECT('cal formula'!F$1))),\"\"))","v":""}]
[{"$f":"IF($I$8= \"All\", INDEX(data!$A$2:$H$251,,COLUMN(INDIRECT('cal formula'!A$1))),IFERROR(INDEX(data!$A$2:$H$251,data!$K230,COLUMN(INDIRECT('cal formula'!A$1))),\"\"))","v":""},{"$f":"IF($I$8= \"All\", INDEX(data!$A$2:$H$251,,COLUMN(INDIRECT('cal formula'!B$1))),IFERROR(INDEX(data!$A$2:$H$251,data!$K230,COLUMN(INDIRECT('cal formula'!B$1))),\"\"))","v":""},{"$f":"IF($I$8= \"All\", INDEX(data!$A$2:$H$251,,COLUMN(INDIRECT('cal formula'!C$1))),IFERROR(INDEX(data!$A$2:$H$251,data!$K230,COLUMN(INDIRECT('cal formula'!C$1))),\"\"))","v":""},{"$f":"IF($I$8= \"All\", INDEX(data!$A$2:$H$251,,COLUMN(INDIRECT('cal formula'!D$1))),IFERROR(INDEX(data!$A$2:$H$251,data!$K230,COLUMN(INDIRECT('cal formula'!D$1))),\"\"))","v":""},{"$f":"IF($I$8= \"All\", INDEX(data!$A$2:$H$251,,COLUMN(INDIRECT('cal formula'!E$1))),IFERROR(INDEX(data!$A$2:$H$251,data!$K230,COLUMN(INDIRECT('cal formula'!E$1))),\"\"))","v":""},{"$f":"IF($I$8= \"All\", INDEX(data!$A$2:$H$251,,COLUMN(INDIRECT('cal formula'!F$1))),IFERROR(INDEX(data!$A$2:$H$251,data!$K230,COLUMN(INDIRECT('cal formula'!F$1))),\"\"))","v":""}]
[{"$f":"IF($I$8= \"All\", INDEX(data!$A$2:$H$251,,COLUMN(INDIRECT('cal formula'!A$1))),IFERROR(INDEX(data!$A$2:$H$251,data!$K231,COLUMN(INDIRECT('cal formula'!A$1))),\"\"))","v":""},{"$f":"IF($I$8= \"All\", INDEX(data!$A$2:$H$251,,COLUMN(INDIRECT('cal formula'!B$1))),IFERROR(INDEX(data!$A$2:$H$251,data!$K231,COLUMN(INDIRECT('cal formula'!B$1))),\"\"))","v":""},{"$f":"IF($I$8= \"All\", INDEX(data!$A$2:$H$251,,COLUMN(INDIRECT('cal formula'!C$1))),IFERROR(INDEX(data!$A$2:$H$251,data!$K231,COLUMN(INDIRECT('cal formula'!C$1))),\"\"))","v":""},{"$f":"IF($I$8= \"All\", INDEX(data!$A$2:$H$251,,COLUMN(INDIRECT('cal formula'!D$1))),IFERROR(INDEX(data!$A$2:$H$251,data!$K231,COLUMN(INDIRECT('cal formula'!D$1))),\"\"))","v":""},{"$f":"IF($I$8= \"All\", INDEX(data!$A$2:$H$251,,COLUMN(INDIRECT('cal formula'!E$1))),IFERROR(INDEX(data!$A$2:$H$251,data!$K231,COLUMN(INDIRECT('cal formula'!E$1))),\"\"))","v":""},{"$f":"IF($I$8= \"All\", INDEX(data!$A$2:$H$251,,COLUMN(INDIRECT('cal formula'!F$1))),IFERROR(INDEX(data!$A$2:$H$251,data!$K231,COLUMN(INDIRECT('cal formula'!F$1))),\"\"))","v":""}]
[{"$f":"IF($I$8= \"All\", INDEX(data!$A$2:$H$251,,COLUMN(INDIRECT('cal formula'!A$1))),IFERROR(INDEX(data!$A$2:$H$251,data!$K232,COLUMN(INDIRECT('cal formula'!A$1))),\"\"))","v":""},{"$f":"IF($I$8= \"All\", INDEX(data!$A$2:$H$251,,COLUMN(INDIRECT('cal formula'!B$1))),IFERROR(INDEX(data!$A$2:$H$251,data!$K232,COLUMN(INDIRECT('cal formula'!B$1))),\"\"))","v":""},{"$f":"IF($I$8= \"All\", INDEX(data!$A$2:$H$251,,COLUMN(INDIRECT('cal formula'!C$1))),IFERROR(INDEX(data!$A$2:$H$251,data!$K232,COLUMN(INDIRECT('cal formula'!C$1))),\"\"))","v":""},{"$f":"IF($I$8= \"All\", INDEX(data!$A$2:$H$251,,COLUMN(INDIRECT('cal formula'!D$1))),IFERROR(INDEX(data!$A$2:$H$251,data!$K232,COLUMN(INDIRECT('cal formula'!D$1))),\"\"))","v":""},{"$f":"IF($I$8= \"All\", INDEX(data!$A$2:$H$251,,COLUMN(INDIRECT('cal formula'!E$1))),IFERROR(INDEX(data!$A$2:$H$251,data!$K232,COLUMN(INDIRECT('cal formula'!E$1))),\"\"))","v":""},{"$f":"IF($I$8= \"All\", INDEX(data!$A$2:$H$251,,COLUMN(INDIRECT('cal formula'!F$1))),IFERROR(INDEX(data!$A$2:$H$251,data!$K232,COLUMN(INDIRECT('cal formula'!F$1))),\"\"))","v":""}]
[{"$f":"IF($I$8= \"All\", INDEX(data!$A$2:$H$251,,COLUMN(INDIRECT('cal formula'!A$1))),IFERROR(INDEX(data!$A$2:$H$251,data!$K233,COLUMN(INDIRECT('cal formula'!A$1))),\"\"))","v":""},{"$f":"IF($I$8= \"All\", INDEX(data!$A$2:$H$251,,COLUMN(INDIRECT('cal formula'!B$1))),IFERROR(INDEX(data!$A$2:$H$251,data!$K233,COLUMN(INDIRECT('cal formula'!B$1))),\"\"))","v":""},{"$f":"IF($I$8= \"All\", INDEX(data!$A$2:$H$251,,COLUMN(INDIRECT('cal formula'!C$1))),IFERROR(INDEX(data!$A$2:$H$251,data!$K233,COLUMN(INDIRECT('cal formula'!C$1))),\"\"))","v":""},{"$f":"IF($I$8= \"All\", INDEX(data!$A$2:$H$251,,COLUMN(INDIRECT('cal formula'!D$1))),IFERROR(INDEX(data!$A$2:$H$251,data!$K233,COLUMN(INDIRECT('cal formula'!D$1))),\"\"))","v":""},{"$f":"IF($I$8= \"All\", INDEX(data!$A$2:$H$251,,COLUMN(INDIRECT('cal formula'!E$1))),IFERROR(INDEX(data!$A$2:$H$251,data!$K233,COLUMN(INDIRECT('cal formula'!E$1))),\"\"))","v":""},{"$f":"IF($I$8= \"All\", INDEX(data!$A$2:$H$251,,COLUMN(INDIRECT('cal formula'!F$1))),IFERROR(INDEX(data!$A$2:$H$251,data!$K233,COLUMN(INDIRECT('cal formula'!F$1))),\"\"))","v":""}]
[{"$f":"IF($I$8= \"All\", INDEX(data!$A$2:$H$251,,COLUMN(INDIRECT('cal formula'!A$1))),IFERROR(INDEX(data!$A$2:$H$251,data!$K234,COLUMN(INDIRECT('cal formula'!A$1))),\"\"))","v":""},{"$f":"IF($I$8= \"All\", INDEX(data!$A$2:$H$251,,COLUMN(INDIRECT('cal formula'!B$1))),IFERROR(INDEX(data!$A$2:$H$251,data!$K234,COLUMN(INDIRECT('cal formula'!B$1))),\"\"))","v":""},{"$f":"IF($I$8= \"All\", INDEX(data!$A$2:$H$251,,COLUMN(INDIRECT('cal formula'!C$1))),IFERROR(INDEX(data!$A$2:$H$251,data!$K234,COLUMN(INDIRECT('cal formula'!C$1))),\"\"))","v":""},{"$f":"IF($I$8= \"All\", INDEX(data!$A$2:$H$251,,COLUMN(INDIRECT('cal formula'!D$1))),IFERROR(INDEX(data!$A$2:$H$251,data!$K234,COLUMN(INDIRECT('cal formula'!D$1))),\"\"))","v":""},{"$f":"IF($I$8= \"All\", INDEX(data!$A$2:$H$251,,COLUMN(INDIRECT('cal formula'!E$1))),IFERROR(INDEX(data!$A$2:$H$251,data!$K234,COLUMN(INDIRECT('cal formula'!E$1))),\"\"))","v":""},{"$f":"IF($I$8= \"All\", INDEX(data!$A$2:$H$251,,COLUMN(INDIRECT('cal formula'!F$1))),IFERROR(INDEX(data!$A$2:$H$251,data!$K234,COLUMN(INDIRECT('cal formula'!F$1))),\"\"))","v":""}]
[{"$f":"IF($I$8= \"All\", INDEX(data!$A$2:$H$251,,COLUMN(INDIRECT('cal formula'!A$1))),IFERROR(INDEX(data!$A$2:$H$251,data!$K235,COLUMN(INDIRECT('cal formula'!A$1))),\"\"))","v":""},{"$f":"IF($I$8= \"All\", INDEX(data!$A$2:$H$251,,COLUMN(INDIRECT('cal formula'!B$1))),IFERROR(INDEX(data!$A$2:$H$251,data!$K235,COLUMN(INDIRECT('cal formula'!B$1))),\"\"))","v":""},{"$f":"IF($I$8= \"All\", INDEX(data!$A$2:$H$251,,COLUMN(INDIRECT('cal formula'!C$1))),IFERROR(INDEX(data!$A$2:$H$251,data!$K235,COLUMN(INDIRECT('cal formula'!C$1))),\"\"))","v":""},{"$f":"IF($I$8= \"All\", INDEX(data!$A$2:$H$251,,COLUMN(INDIRECT('cal formula'!D$1))),IFERROR(INDEX(data!$A$2:$H$251,data!$K235,COLUMN(INDIRECT('cal formula'!D$1))),\"\"))","v":""},{"$f":"IF($I$8= \"All\", INDEX(data!$A$2:$H$251,,COLUMN(INDIRECT('cal formula'!E$1))),IFERROR(INDEX(data!$A$2:$H$251,data!$K235,COLUMN(INDIRECT('cal formula'!E$1))),\"\"))","v":""},{"$f":"IF($I$8= \"All\", INDEX(data!$A$2:$H$251,,COLUMN(INDIRECT('cal formula'!F$1))),IFERROR(INDEX(data!$A$2:$H$251,data!$K235,COLUMN(INDIRECT('cal formula'!F$1))),\"\"))","v":""}]
[{"$f":"IF($I$8= \"All\", INDEX(data!$A$2:$H$251,,COLUMN(INDIRECT('cal formula'!A$1))),IFERROR(INDEX(data!$A$2:$H$251,data!$K236,COLUMN(INDIRECT('cal formula'!A$1))),\"\"))","v":""},{"$f":"IF($I$8= \"All\", INDEX(data!$A$2:$H$251,,COLUMN(INDIRECT('cal formula'!B$1))),IFERROR(INDEX(data!$A$2:$H$251,data!$K236,COLUMN(INDIRECT('cal formula'!B$1))),\"\"))","v":""},{"$f":"IF($I$8= \"All\", INDEX(data!$A$2:$H$251,,COLUMN(INDIRECT('cal formula'!C$1))),IFERROR(INDEX(data!$A$2:$H$251,data!$K236,COLUMN(INDIRECT('cal formula'!C$1))),\"\"))","v":""},{"$f":"IF($I$8= \"All\", INDEX(data!$A$2:$H$251,,COLUMN(INDIRECT('cal formula'!D$1))),IFERROR(INDEX(data!$A$2:$H$251,data!$K236,COLUMN(INDIRECT('cal formula'!D$1))),\"\"))","v":""},{"$f":"IF($I$8= \"All\", INDEX(data!$A$2:$H$251,,COLUMN(INDIRECT('cal formula'!E$1))),IFERROR(INDEX(data!$A$2:$H$251,data!$K236,COLUMN(INDIRECT('cal formula'!E$1))),\"\"))","v":""},{"$f":"IF($I$8= \"All\", INDEX(data!$A$2:$H$251,,COLUMN(INDIRECT('cal formula'!F$1))),IFERROR(INDEX(data!$A$2:$H$251,data!$K236,COLUMN(INDIRECT('cal formula'!F$1))),\"\"))","v":""}]
[{"$f":"IF($I$8= \"All\", INDEX(data!$A$2:$H$251,,COLUMN(INDIRECT('cal formula'!A$1))),IFERROR(INDEX(data!$A$2:$H$251,data!$K237,COLUMN(INDIRECT('cal formula'!A$1))),\"\"))","v":""},{"$f":"IF($I$8= \"All\", INDEX(data!$A$2:$H$251,,COLUMN(INDIRECT('cal formula'!B$1))),IFERROR(INDEX(data!$A$2:$H$251,data!$K237,COLUMN(INDIRECT('cal formula'!B$1))),\"\"))","v":""},{"$f":"IF($I$8= \"All\", INDEX(data!$A$2:$H$251,,COLUMN(INDIRECT('cal formula'!C$1))),IFERROR(INDEX(data!$A$2:$H$251,data!$K237,COLUMN(INDIRECT('cal formula'!C$1))),\"\"))","v":""},{"$f":"IF($I$8= \"All\", INDEX(data!$A$2:$H$251,,COLUMN(INDIRECT('cal formula'!D$1))),IFERROR(INDEX(data!$A$2:$H$251,data!$K237,COLUMN(INDIRECT('cal formula'!D$1))),\"\"))","v":""},{"$f":"IF($I$8= \"All\", INDEX(data!$A$2:$H$251,,COLUMN(INDIRECT('cal formula'!E$1))),IFERROR(INDEX(data!$A$2:$H$251,data!$K237,COLUMN(INDIRECT('cal formula'!E$1))),\"\"))","v":""},{"$f":"IF($I$8= \"All\", INDEX(data!$A$2:$H$251,,COLUMN(INDIRECT('cal formula'!F$1))),IFERROR(INDEX(data!$A$2:$H$251,data!$K237,COLUMN(INDIRECT('cal formula'!F$1))),\"\"))","v":""}]
[{"$f":"IF($I$8= \"All\", INDEX(data!$A$2:$H$251,,COLUMN(INDIRECT('cal formula'!A$1))),IFERROR(INDEX(data!$A$2:$H$251,data!$K238,COLUMN(INDIRECT('cal formula'!A$1))),\"\"))","v":""},{"$f":"IF($I$8= \"All\", INDEX(data!$A$2:$H$251,,COLUMN(INDIRECT('cal formula'!B$1))),IFERROR(INDEX(data!$A$2:$H$251,data!$K238,COLUMN(INDIRECT('cal formula'!B$1))),\"\"))","v":""},{"$f":"IF($I$8= \"All\", INDEX(data!$A$2:$H$251,,COLUMN(INDIRECT('cal formula'!C$1))),IFERROR(INDEX(data!$A$2:$H$251,data!$K238,COLUMN(INDIRECT('cal formula'!C$1))),\"\"))","v":""},{"$f":"IF($I$8= \"All\", INDEX(data!$A$2:$H$251,,COLUMN(INDIRECT('cal formula'!D$1))),IFERROR(INDEX(data!$A$2:$H$251,data!$K238,COLUMN(INDIRECT('cal formula'!D$1))),\"\"))","v":""},{"$f":"IF($I$8= \"All\", INDEX(data!$A$2:$H$251,,COLUMN(INDIRECT('cal formula'!E$1))),IFERROR(INDEX(data!$A$2:$H$251,data!$K238,COLUMN(INDIRECT('cal formula'!E$1))),\"\"))","v":""},{"$f":"IF($I$8= \"All\", INDEX(data!$A$2:$H$251,,COLUMN(INDIRECT('cal formula'!F$1))),IFERROR(INDEX(data!$A$2:$H$251,data!$K238,COLUMN(INDIRECT('cal formula'!F$1))),\"\"))","v":""}]
[{"$f":"IF($I$8= \"All\", INDEX(data!$A$2:$H$251,,COLUMN(INDIRECT('cal formula'!A$1))),IFERROR(INDEX(data!$A$2:$H$251,data!$K239,COLUMN(INDIRECT('cal formula'!A$1))),\"\"))","v":""},{"$f":"IF($I$8= \"All\", INDEX(data!$A$2:$H$251,,COLUMN(INDIRECT('cal formula'!B$1))),IFERROR(INDEX(data!$A$2:$H$251,data!$K239,COLUMN(INDIRECT('cal formula'!B$1))),\"\"))","v":""},{"$f":"IF($I$8= \"All\", INDEX(data!$A$2:$H$251,,COLUMN(INDIRECT('cal formula'!C$1))),IFERROR(INDEX(data!$A$2:$H$251,data!$K239,COLUMN(INDIRECT('cal formula'!C$1))),\"\"))","v":""},{"$f":"IF($I$8= \"All\", INDEX(data!$A$2:$H$251,,COLUMN(INDIRECT('cal formula'!D$1))),IFERROR(INDEX(data!$A$2:$H$251,data!$K239,COLUMN(INDIRECT('cal formula'!D$1))),\"\"))","v":""},{"$f":"IF($I$8= \"All\", INDEX(data!$A$2:$H$251,,COLUMN(INDIRECT('cal formula'!E$1))),IFERROR(INDEX(data!$A$2:$H$251,data!$K239,COLUMN(INDIRECT('cal formula'!E$1))),\"\"))","v":""},{"$f":"IF($I$8= \"All\", INDEX(data!$A$2:$H$251,,COLUMN(INDIRECT('cal formula'!F$1))),IFERROR(INDEX(data!$A$2:$H$251,data!$K239,COLUMN(INDIRECT('cal formula'!F$1))),\"\"))","v":""}]
[{"$f":"IF($I$8= \"All\", INDEX(data!$A$2:$H$251,,COLUMN(INDIRECT('cal formula'!A$1))),IFERROR(INDEX(data!$A$2:$H$251,data!$K240,COLUMN(INDIRECT('cal formula'!A$1))),\"\"))","v":""},{"$f":"IF($I$8= \"All\", INDEX(data!$A$2:$H$251,,COLUMN(INDIRECT('cal formula'!B$1))),IFERROR(INDEX(data!$A$2:$H$251,data!$K240,COLUMN(INDIRECT('cal formula'!B$1))),\"\"))","v":""},{"$f":"IF($I$8= \"All\", INDEX(data!$A$2:$H$251,,COLUMN(INDIRECT('cal formula'!C$1))),IFERROR(INDEX(data!$A$2:$H$251,data!$K240,COLUMN(INDIRECT('cal formula'!C$1))),\"\"))","v":""},{"$f":"IF($I$8= \"All\", INDEX(data!$A$2:$H$251,,COLUMN(INDIRECT('cal formula'!D$1))),IFERROR(INDEX(data!$A$2:$H$251,data!$K240,COLUMN(INDIRECT('cal formula'!D$1))),\"\"))","v":""},{"$f":"IF($I$8= \"All\", INDEX(data!$A$2:$H$251,,COLUMN(INDIRECT('cal formula'!E$1))),IFERROR(INDEX(data!$A$2:$H$251,data!$K240,COLUMN(INDIRECT('cal formula'!E$1))),\"\"))","v":""},{"$f":"IF($I$8= \"All\", INDEX(data!$A$2:$H$251,,COLUMN(INDIRECT('cal formula'!F$1))),IFERROR(INDEX(data!$A$2:$H$251,data!$K240,COLUMN(INDIRECT('cal formula'!F$1))),\"\"))","v":""}]
[{"$f":"IF($I$8= \"All\", INDEX(data!$A$2:$H$251,,COLUMN(INDIRECT('cal formula'!A$1))),IFERROR(INDEX(data!$A$2:$H$251,data!$K241,COLUMN(INDIRECT('cal formula'!A$1))),\"\"))","v":""},{"$f":"IF($I$8= \"All\", INDEX(data!$A$2:$H$251,,COLUMN(INDIRECT('cal formula'!B$1))),IFERROR(INDEX(data!$A$2:$H$251,data!$K241,COLUMN(INDIRECT('cal formula'!B$1))),\"\"))","v":""},{"$f":"IF($I$8= \"All\", INDEX(data!$A$2:$H$251,,COLUMN(INDIRECT('cal formula'!C$1))),IFERROR(INDEX(data!$A$2:$H$251,data!$K241,COLUMN(INDIRECT('cal formula'!C$1))),\"\"))","v":""},{"$f":"IF($I$8= \"All\", INDEX(data!$A$2:$H$251,,COLUMN(INDIRECT('cal formula'!D$1))),IFERROR(INDEX(data!$A$2:$H$251,data!$K241,COLUMN(INDIRECT('cal formula'!D$1))),\"\"))","v":""},{"$f":"IF($I$8= \"All\", INDEX(data!$A$2:$H$251,,COLUMN(INDIRECT('cal formula'!E$1))),IFERROR(INDEX(data!$A$2:$H$251,data!$K241,COLUMN(INDIRECT('cal formula'!E$1))),\"\"))","v":""},{"$f":"IF($I$8= \"All\", INDEX(data!$A$2:$H$251,,COLUMN(INDIRECT('cal formula'!F$1))),IFERROR(INDEX(data!$A$2:$H$251,data!$K241,COLUMN(INDIRECT('cal formula'!F$1))),\"\"))","v":""}]
[{"$f":"IF($I$8= \"All\", INDEX(data!$A$2:$H$251,,COLUMN(INDIRECT('cal formula'!A$1))),IFERROR(INDEX(data!$A$2:$H$251,data!$K242,COLUMN(INDIRECT('cal formula'!A$1))),\"\"))","v":""},{"$f":"IF($I$8= \"All\", INDEX(data!$A$2:$H$251,,COLUMN(INDIRECT('cal formula'!B$1))),IFERROR(INDEX(data!$A$2:$H$251,data!$K242,COLUMN(INDIRECT('cal formula'!B$1))),\"\"))","v":""},{"$f":"IF($I$8= \"All\", INDEX(data!$A$2:$H$251,,COLUMN(INDIRECT('cal formula'!C$1))),IFERROR(INDEX(data!$A$2:$H$251,data!$K242,COLUMN(INDIRECT('cal formula'!C$1))),\"\"))","v":""},{"$f":"IF($I$8= \"All\", INDEX(data!$A$2:$H$251,,COLUMN(INDIRECT('cal formula'!D$1))),IFERROR(INDEX(data!$A$2:$H$251,data!$K242,COLUMN(INDIRECT('cal formula'!D$1))),\"\"))","v":""},{"$f":"IF($I$8= \"All\", INDEX(data!$A$2:$H$251,,COLUMN(INDIRECT('cal formula'!E$1))),IFERROR(INDEX(data!$A$2:$H$251,data!$K242,COLUMN(INDIRECT('cal formula'!E$1))),\"\"))","v":""},{"$f":"IF($I$8= \"All\", INDEX(data!$A$2:$H$251,,COLUMN(INDIRECT('cal formula'!F$1))),IFERROR(INDEX(data!$A$2:$H$251,data!$K242,COLUMN(INDIRECT('cal formula'!F$1))),\"\"))","v":""}]
[{"$f":"IF($I$8= \"All\", INDEX(data!$A$2:$H$251,,COLUMN(INDIRECT('cal formula'!A$1))),IFERROR(INDEX(data!$A$2:$H$251,data!$K243,COLUMN(INDIRECT('cal formula'!A$1))),\"\"))","v":""},{"$f":"IF($I$8= \"All\", INDEX(data!$A$2:$H$251,,COLUMN(INDIRECT('cal formula'!B$1))),IFERROR(INDEX(data!$A$2:$H$251,data!$K243,COLUMN(INDIRECT('cal formula'!B$1))),\"\"))","v":""},{"$f":"IF($I$8= \"All\", INDEX(data!$A$2:$H$251,,COLUMN(INDIRECT('cal formula'!C$1))),IFERROR(INDEX(data!$A$2:$H$251,data!$K243,COLUMN(INDIRECT('cal formula'!C$1))),\"\"))","v":""},{"$f":"IF($I$8= \"All\", INDEX(data!$A$2:$H$251,,COLUMN(INDIRECT('cal formula'!D$1))),IFERROR(INDEX(data!$A$2:$H$251,data!$K243,COLUMN(INDIRECT('cal formula'!D$1))),\"\"))","v":""},{"$f":"IF($I$8= \"All\", INDEX(data!$A$2:$H$251,,COLUMN(INDIRECT('cal formula'!E$1))),IFERROR(INDEX(data!$A$2:$H$251,data!$K243,COLUMN(INDIRECT('cal formula'!E$1))),\"\"))","v":""},{"$f":"IF($I$8= \"All\", INDEX(data!$A$2:$H$251,,COLUMN(INDIRECT('cal formula'!F$1))),IFERROR(INDEX(data!$A$2:$H$251,data!$K243,COLUMN(INDIRECT('cal formula'!F$1))),\"\"))","v":""}]
[{"$f":"IF($I$8= \"All\", INDEX(data!$A$2:$H$251,,COLUMN(INDIRECT('cal formula'!A$1))),IFERROR(INDEX(data!$A$2:$H$251,data!$K244,COLUMN(INDIRECT('cal formula'!A$1))),\"\"))","v":""},{"$f":"IF($I$8= \"All\", INDEX(data!$A$2:$H$251,,COLUMN(INDIRECT('cal formula'!B$1))),IFERROR(INDEX(data!$A$2:$H$251,data!$K244,COLUMN(INDIRECT('cal formula'!B$1))),\"\"))","v":""},{"$f":"IF($I$8= \"All\", INDEX(data!$A$2:$H$251,,COLUMN(INDIRECT('cal formula'!C$1))),IFERROR(INDEX(data!$A$2:$H$251,data!$K244,COLUMN(INDIRECT('cal formula'!C$1))),\"\"))","v":""},{"$f":"IF($I$8= \"All\", INDEX(data!$A$2:$H$251,,COLUMN(INDIRECT('cal formula'!D$1))),IFERROR(INDEX(data!$A$2:$H$251,data!$K244,COLUMN(INDIRECT('cal formula'!D$1))),\"\"))","v":""},{"$f":"IF($I$8= \"All\", INDEX(data!$A$2:$H$251,,COLUMN(INDIRECT('cal formula'!E$1))),IFERROR(INDEX(data!$A$2:$H$251,data!$K244,COLUMN(INDIRECT('cal formula'!E$1))),\"\"))","v":""},{"$f":"IF($I$8= \"All\", INDEX(data!$A$2:$H$251,,COLUMN(INDIRECT('cal formula'!F$1))),IFERROR(INDEX(data!$A$2:$H$251,data!$K244,COLUMN(INDIRECT('cal formula'!F$1))),\"\"))","v":""}]
[{"$f":"IF($I$8= \"All\", INDEX(data!$A$2:$H$251,,COLUMN(INDIRECT('cal formula'!A$1))),IFERROR(INDEX(data!$A$2:$H$251,data!$K245,COLUMN(INDIRECT('cal formula'!A$1))),\"\"))","v":""},{"$f":"IF($I$8= \"All\", INDEX(data!$A$2:$H$251,,COLUMN(INDIRECT('cal formula'!B$1))),IFERROR(INDEX(data!$A$2:$H$251,data!$K245,COLUMN(INDIRECT('cal formula'!B$1))),\"\"))","v":""},{"$f":"IF($I$8= \"All\", INDEX(data!$A$2:$H$251,,COLUMN(INDIRECT('cal formula'!C$1))),IFERROR(INDEX(data!$A$2:$H$251,data!$K245,COLUMN(INDIRECT('cal formula'!C$1))),\"\"))","v":""},{"$f":"IF($I$8= \"All\", INDEX(data!$A$2:$H$251,,COLUMN(INDIRECT('cal formula'!D$1))),IFERROR(INDEX(data!$A$2:$H$251,data!$K245,COLUMN(INDIRECT('cal formula'!D$1))),\"\"))","v":""},{"$f":"IF($I$8= \"All\", INDEX(data!$A$2:$H$251,,COLUMN(INDIRECT('cal formula'!E$1))),IFERROR(INDEX(data!$A$2:$H$251,data!$K245,COLUMN(INDIRECT('cal formula'!E$1))),\"\"))","v":""},{"$f":"IF($I$8= \"All\", INDEX(data!$A$2:$H$251,,COLUMN(INDIRECT('cal formula'!F$1))),IFERROR(INDEX(data!$A$2:$H$251,data!$K245,COLUMN(INDIRECT('cal formula'!F$1))),\"\"))","v":""}]
[{"$f":"IF($I$8= \"All\", INDEX(data!$A$2:$H$251,,COLUMN(INDIRECT('cal formula'!A$1))),IFERROR(INDEX(data!$A$2:$H$251,data!$K246,COLUMN(INDIRECT('cal formula'!A$1))),\"\"))","v":""},{"$f":"IF($I$8= \"All\", INDEX(data!$A$2:$H$251,,COLUMN(INDIRECT('cal formula'!B$1))),IFERROR(INDEX(data!$A$2:$H$251,data!$K246,COLUMN(INDIRECT('cal formula'!B$1))),\"\"))","v":""},{"$f":"IF($I$8= \"All\", INDEX(data!$A$2:$H$251,,COLUMN(INDIRECT('cal formula'!C$1))),IFERROR(INDEX(data!$A$2:$H$251,data!$K246,COLUMN(INDIRECT('cal formula'!C$1))),\"\"))","v":""},{"$f":"IF($I$8= \"All\", INDEX(data!$A$2:$H$251,,COLUMN(INDIRECT('cal formula'!D$1))),IFERROR(INDEX(data!$A$2:$H$251,data!$K246,COLUMN(INDIRECT('cal formula'!D$1))),\"\"))","v":""},{"$f":"IF($I$8= \"All\", INDEX(data!$A$2:$H$251,,COLUMN(INDIRECT('cal formula'!E$1))),IFERROR(INDEX(data!$A$2:$H$251,data!$K246,COLUMN(INDIRECT('cal formula'!E$1))),\"\"))","v":""},{"$f":"IF($I$8= \"All\", INDEX(data!$A$2:$H$251,,COLUMN(INDIRECT('cal formula'!F$1))),IFERROR(INDEX(data!$A$2:$H$251,data!$K246,COLUMN(INDIRECT('cal formula'!F$1))),\"\"))","v":""}]
[{"$f":"IF($I$8= \"All\", INDEX(data!$A$2:$H$251,,COLUMN(INDIRECT('cal formula'!A$1))),IFERROR(INDEX(data!$A$2:$H$251,data!$K247,COLUMN(INDIRECT('cal formula'!A$1))),\"\"))","v":""},{"$f":"IF($I$8= \"All\", INDEX(data!$A$2:$H$251,,COLUMN(INDIRECT('cal formula'!B$1))),IFERROR(INDEX(data!$A$2:$H$251,data!$K247,COLUMN(INDIRECT('cal formula'!B$1))),\"\"))","v":""},{"$f":"IF($I$8= \"All\", INDEX(data!$A$2:$H$251,,COLUMN(INDIRECT('cal formula'!C$1))),IFERROR(INDEX(data!$A$2:$H$251,data!$K247,COLUMN(INDIRECT('cal formula'!C$1))),\"\"))","v":""},{"$f":"IF($I$8= \"All\", INDEX(data!$A$2:$H$251,,COLUMN(INDIRECT('cal formula'!D$1))),IFERROR(INDEX(data!$A$2:$H$251,data!$K247,COLUMN(INDIRECT('cal formula'!D$1))),\"\"))","v":""},{"$f":"IF($I$8= \"All\", INDEX(data!$A$2:$H$251,,COLUMN(INDIRECT('cal formula'!E$1))),IFERROR(INDEX(data!$A$2:$H$251,data!$K247,COLUMN(INDIRECT('cal formula'!E$1))),\"\"))","v":""},{"$f":"IF($I$8= \"All\", INDEX(data!$A$2:$H$251,,COLUMN(INDIRECT('cal formula'!F$1))),IFERROR(INDEX(data!$A$2:$H$251,data!$K247,COLUMN(INDIRECT('cal formula'!F$1))),\"\"))","v":""}]
[{"$f":"IF($I$8= \"All\", INDEX(data!$A$2:$H$251,,COLUMN(INDIRECT('cal formula'!A$1))),IFERROR(INDEX(data!$A$2:$H$251,data!$K248,COLUMN(INDIRECT('cal formula'!A$1))),\"\"))","v":""},{"$f":"IF($I$8= \"All\", INDEX(data!$A$2:$H$251,,COLUMN(INDIRECT('cal formula'!B$1))),IFERROR(INDEX(data!$A$2:$H$251,data!$K248,COLUMN(INDIRECT('cal formula'!B$1))),\"\"))","v":""},{"$f":"IF($I$8= \"All\", INDEX(data!$A$2:$H$251,,COLUMN(INDIRECT('cal formula'!C$1))),IFERROR(INDEX(data!$A$2:$H$251,data!$K248,COLUMN(INDIRECT('cal formula'!C$1))),\"\"))","v":""},{"$f":"IF($I$8= \"All\", INDEX(data!$A$2:$H$251,,COLUMN(INDIRECT('cal formula'!D$1))),IFERROR(INDEX(data!$A$2:$H$251,data!$K248,COLUMN(INDIRECT('cal formula'!D$1))),\"\"))","v":""},{"$f":"IF($I$8= \"All\", INDEX(data!$A$2:$H$251,,COLUMN(INDIRECT('cal formula'!E$1))),IFERROR(INDEX(data!$A$2:$H$251,data!$K248,COLUMN(INDIRECT('cal formula'!E$1))),\"\"))","v":""},{"$f":"IF($I$8= \"All\", INDEX(data!$A$2:$H$251,,COLUMN(INDIRECT('cal formula'!F$1))),IFERROR(INDEX(data!$A$2:$H$251,data!$K248,COLUMN(INDIRECT('cal formula'!F$1))),\"\"))","v":""}]
[{"$f":"IF($I$8= \"All\", INDEX(data!$A$2:$H$251,,COLUMN(INDIRECT('cal formula'!A$1))),IFERROR(INDEX(data!$A$2:$H$251,data!$K249,COLUMN(INDIRECT('cal formula'!A$1))),\"\"))","v":""},{"$f":"IF($I$8= \"All\", INDEX(data!$A$2:$H$251,,COLUMN(INDIRECT('cal formula'!B$1))),IFERROR(INDEX(data!$A$2:$H$251,data!$K249,COLUMN(INDIRECT('cal formula'!B$1))),\"\"))","v":""},{"$f":"IF($I$8= \"All\", INDEX(data!$A$2:$H$251,,COLUMN(INDIRECT('cal formula'!C$1))),IFERROR(INDEX(data!$A$2:$H$251,data!$K249,COLUMN(INDIRECT('cal formula'!C$1))),\"\"))","v":""},{"$f":"IF($I$8= \"All\", INDEX(data!$A$2:$H$251,,COLUMN(INDIRECT('cal formula'!D$1))),IFERROR(INDEX(data!$A$2:$H$251,data!$K249,COLUMN(INDIRECT('cal formula'!D$1))),\"\"))","v":""},{"$f":"IF($I$8= \"All\", INDEX(data!$A$2:$H$251,,COLUMN(INDIRECT('cal formula'!E$1))),IFERROR(INDEX(data!$A$2:$H$251,data!$K249,COLUMN(INDIRECT('cal formula'!E$1))),\"\"))","v":""},{"$f":"IF($I$8= \"All\", INDEX(data!$A$2:$H$251,,COLUMN(INDIRECT('cal formula'!F$1))),IFERROR(INDEX(data!$A$2:$H$251,data!$K249,COLUMN(INDIRECT('cal formula'!F$1))),\"\"))","v":""}]
[{"$f":"IF($I$8= \"All\", INDEX(data!$A$2:$H$251,,COLUMN(INDIRECT('cal formula'!A$1))),IFERROR(INDEX(data!$A$2:$H$251,data!$K250,COLUMN(INDIRECT('cal formula'!A$1))),\"\"))","v":""},{"$f":"IF($I$8= \"All\", INDEX(data!$A$2:$H$251,,COLUMN(INDIRECT('cal formula'!B$1))),IFERROR(INDEX(data!$A$2:$H$251,data!$K250,COLUMN(INDIRECT('cal formula'!B$1))),\"\"))","v":""},{"$f":"IF($I$8= \"All\", INDEX(data!$A$2:$H$251,,COLUMN(INDIRECT('cal formula'!C$1))),IFERROR(INDEX(data!$A$2:$H$251,data!$K250,COLUMN(INDIRECT('cal formula'!C$1))),\"\"))","v":""},{"$f":"IF($I$8= \"All\", INDEX(data!$A$2:$H$251,,COLUMN(INDIRECT('cal formula'!D$1))),IFERROR(INDEX(data!$A$2:$H$251,data!$K250,COLUMN(INDIRECT('cal formula'!D$1))),\"\"))","v":""},{"$f":"IF($I$8= \"All\", INDEX(data!$A$2:$H$251,,COLUMN(INDIRECT('cal formula'!E$1))),IFERROR(INDEX(data!$A$2:$H$251,data!$K250,COLUMN(INDIRECT('cal formula'!E$1))),\"\"))","v":""},{"$f":"IF($I$8= \"All\", INDEX(data!$A$2:$H$251,,COLUMN(INDIRECT('cal formula'!F$1))),IFERROR(INDEX(data!$A$2:$H$251,data!$K250,COLUMN(INDIRECT('cal formula'!F$1))),\"\"))","v":""}]
[{"$f":"IF($I$8= \"All\", INDEX(data!$A$2:$H$251,,COLUMN(INDIRECT('cal formula'!A$1))),IFERROR(INDEX(data!$A$2:$H$251,data!$K251,COLUMN(INDIRECT('cal formula'!A$1))),\"\"))","v":""},{"$f":"IF($I$8= \"All\", INDEX(data!$A$2:$H$251,,COLUMN(INDIRECT('cal formula'!B$1))),IFERROR(INDEX(data!$A$2:$H$251,data!$K251,COLUMN(INDIRECT('cal formula'!B$1))),\"\"))","v":""},{"$f":"IF($I$8= \"All\", INDEX(data!$A$2:$H$251,,COLUMN(INDIRECT('cal formula'!C$1))),IFERROR(INDEX(data!$A$2:$H$251,data!$K251,COLUMN(INDIRECT('cal formula'!C$1))),\"\"))","v":""},{"$f":"IF($I$8= \"All\", INDEX(data!$A$2:$H$251,,COLUMN(INDIRECT('cal formula'!D$1))),IFERROR(INDEX(data!$A$2:$H$251,data!$K251,COLUMN(INDIRECT('cal formula'!D$1))),\"\"))","v":""},{"$f":"IF($I$8= \"All\", INDEX(data!$A$2:$H$251,,COLUMN(INDIRECT('cal formula'!E$1))),IFERROR(INDEX(data!$A$2:$H$251,data!$K251,COLUMN(INDIRECT('cal formula'!E$1))),\"\"))","v":""},{"$f":"IF($I$8= \"All\", INDEX(data!$A$2:$H$251,,COLUMN(INDIRECT('cal formula'!F$1))),IFERROR(INDEX(data!$A$2:$H$251,data!$K251,COLUMN(INDIRECT('cal formula'!F$1))),\"\"))","v":""}]

{"sheet":"charts","index":3,"n_rows":4,"n_cols":3,"rows_kept":4,"cut":false,"hidden":false,"merged":[]}
[]
[]
[null,"Department Select"]
[null,"Total employee count",{"$f":"'cal formula'!I11","v":"16 employees"}]